Workbook

Sheet 2nd(MPR)MPRApplicant (hidden)
D1: MPR Applicant (GeneralInfo) The Current Case Number and Project Number must match 2014 or 2015 NOSA Response "Primary Project" for Your NOSA Response to Display | H1: MPR Applicant (GeneralInfo) The Current Case Number and Project Number must match 2014 or 2015 NOSA Response "Primary Project" for Your NOSA Response to Display | K1: MPR Applicant: Deferral of Existing RD Loans Assumed? Select Yes or No
A2: =SUM(I5,I6,I7,E5,E6,E7) -> 0 | F2: Click to find MPR NOSA Response | J2: Obligation Date AMAS MIFI | K2: Unpaid RD Loans (Enter Ln Numbers) | L2: Defer This Loan As Part of 2nd Scenario (Yes or No) | M2: Original Monthly Payment (Subsidized Amt) | N2: Original Amt: | O2: Balance:
H3: =SUM(GeneralInfo!I25,GeneralInfo!I26,GeneralInfo!I27,GeneralInfo!I28,GeneralInfo!I29) -> 39 | I3: =GeneralInfo!H10&GeneralInfo!J10 -> 12345678912-3 | J3: =IF(GeneralInfo!H75,GeneralInfo!H75,"") -> 1995-04-10 | K3: =GeneralInfo!B33 -> Loan 1 | L3: =MPRApplicant!L3 -> No | M3: =GeneralInfo!D33 -> 1614.25 | N3: =GeneralInfo!E33 -> 515930 | O3: =GeneralInfo!F33 -> 353567.55 | R3: Selections from Sources & Uses Pages MPR Applicant: MPR Loan Tools | AA3: Yes
D4: Owner Provided Funds - Include as Source of Funds | H4: Owner Provided Funds - Include as Source of Funds | J4: =IF(GeneralInfo!H76,GeneralInfo!H76,"") -> 1991-09-30 | K4: =GeneralInfo!B34 -> Loan 2 | L4: =MPRApplicant!L4 -> No | M4: =GeneralInfo!D34 -> 1433.76 | N4: =GeneralInfo!E34 -> 501557 | O4: =GeneralInfo!F34 -> 337519.31 | R4: Type | T4: Amount | U4: Rate | V4: Term | W4: Amortization | X4: Annual Payment | AA4: No
D5: Owner Capital Contribution | E5: =IF($E$31>0,$E$31,IF($I$31>0,$I$31,0)) -> 0 | H5: Owner Capital Contribution | I5: =IF(I31>0,I31,IF(E31>0,E31,0)) -> 0 | J5: =IF(GeneralInfo!H77,GeneralInfo!H77,"") ->  | K5: =GeneralInfo!B35 -> Loan 3 | L5: =MPRApplicant!L5 -> No | M5: =GeneralInfo!D35 -> 0 | N5: =GeneralInfo!E35 -> 0 | O5: =GeneralInfo!F35 -> 0 | S5: ='2nd(MPR)Sources & Uses'!C15 ->  | T5: ='2nd(MPR)Sources & Uses'!D14 -> 0 | U5: =IFERROR(VLOOKUP($S$5,tool,3,FALSE),"") ->  | V5: =IFERROR(VLOOKUP($S$5,tool,5,FALSE),"") ->  | W5: =IFERROR(VLOOKUP($S$5,tool,4,FALSE),"") ->  | X5: =IFERROR(PMT(U5/12,W5*12,-T5,0)*12,0) -> 0
D6: Owner Provides for Transaction Cost | E6: =IF($E$32=TRUE,10000,IF($I$32=TRUE,10000,0)) -> 0 | H6: Owner Provides for Transaction Cost | I6: =IF($E$32=TRUE,10000,IF($I$32=TRUE,10000,0)) -> 0 | J6: =IF(GeneralInfo!H78,GeneralInfo!H78,"") ->  | K6: =GeneralInfo!B36 -> Loan 4 | L6: =MPRApplicant!L6 -> No | M6: =GeneralInfo!D36 -> 0 | N6: =GeneralInfo!E36 -> 0 | O6: =GeneralInfo!F36 -> 0 | S6: ='2nd(MPR)Sources & Uses'!C17 ->  | T6: ='2nd(MPR)Sources & Uses'!D16 -> 0 | U6: =IFERROR(VLOOKUP(S6,tool,3,FALSE),"") ->  | V6: =IFERROR(VLOOKUP(S6,tool,5,FALSE),"") ->  | W6: =IFERROR(VLOOKUP(S6,tool,4,FALSE),"") ->  | X6: =IFERROR(PMT(U6/12,W6*12,-T6,0)*12,0) -> 0
D7: Owner Provides for Hard Cost | E7: =IF($I$33=TRUE,$H$3*1000,IF($E$33=TRUE, $H$3*1000,0)) -> 0 | H7: Owner Provides for Hard Cost | I7: =IF($I$33=TRUE,$H$3*1000,IF($E$33=TRUE, $H$3*1000,0)) -> 0 | J7: =IF(GeneralInfo!H79,GeneralInfo!H79,"") ->  | K7: =GeneralInfo!B37 -> Loan 5 | L7: =MPRApplicant!L7 -> No | M7: =GeneralInfo!D37 -> 0 | N7: =GeneralInfo!E37 -> 0 | O7: =GeneralInfo!F37 -> 0 | S7: ='2nd(MPR)Sources & Uses'!C19 ->  | T7: ='2nd(MPR)Sources & Uses'!D18 -> 0 | U7: =IFERROR(VLOOKUP(S7,tool,3,FALSE),"") ->  | V7: =IFERROR(VLOOKUP(S7,tool,5,FALSE),"") ->  | W7: =IFERROR(VLOOKUP(S7,tool,4,FALSE),"") ->  | X7: =IFERROR(PMT(U7/12,W7*12,-T7,0)*12,0) -> 0
J8: =IF(GeneralInfo!H80,GeneralInfo!H80,"") ->  | K8: =GeneralInfo!G33 -> Loan 6 | L8: =MPRApplicant!L8 -> No | M8: =GeneralInfo!I33 -> 0 | N8: =GeneralInfo!J33 -> 0 | O8: =GeneralInfo!K33 -> 0 | R8: ='Sources & Uses'!C11 -> 0 | T8: ='Sources & Uses'!D10 -> 0 | U8: ='Sources & Uses'!F10 -> 0 | V8: ='Sources & Uses'!G10 -> 0 | W8: ='Sources & Uses'!H10 -> 0 | X8: ='Sources & Uses'!I10 -> 0 | AA8: MPR Loan Tools & Debt Deferral | AC8: Interest Rate | AD8: Amortization | AE8: Term
D9: 2015 NOSA Response | H9: 2014 NOSA Response | J9: =IF(GeneralInfo!H81,GeneralInfo!H81,"") ->  | K9: =GeneralInfo!G34 -> Loan 7 | L9: =MPRApplicant!L9 -> No | M9: =GeneralInfo!I34 -> 0 | N9: =GeneralInfo!J34 -> 0 | O9: =GeneralInfo!K34 -> 0 | R9: ='Sources & Uses'!C13 -> Cow Poke Bank | T9: ='Sources & Uses'!D12 -> 685000 | U9: ='Sources & Uses'!F12 -> 0.05 | V9: ='Sources & Uses'!G12 -> 30 | W9: ='Sources & Uses'!H12 -> 30 | X9: ='Sources & Uses'!I12 -> 44126.73741
J10: =IF(GeneralInfo!H82,GeneralInfo!H82,"") ->  | K10: =GeneralInfo!G35 -> Loan 8 | L10: =MPRApplicant!L10 -> No | M10: =GeneralInfo!I35 -> 0 | N10: =GeneralInfo!J35 -> 0 | O10: =GeneralInfo!K35 -> 0 | R10: ='Sources & Uses'!C15 -> 0 | T10: ='Sources & Uses'!D14 -> 0 | U10: ='Sources & Uses'!F14 -> 0 | V10: ='Sources & Uses'!G14 -> 0 | W10: ='Sources & Uses'!H14 -> 0 | X10: ='Sources & Uses'!I14 ->  | AA10: MPR Non-Profit Grant | AC10: 0 | AD10: 0 | AE10: 0
C11: 1 | D11: BorrProj | E11: =IFERROR(VLOOKUP($I$3,mpr2015web,C11,FALSE),"0") -> 0 | H11: BorrProj | I11: =IFERROR(VLOOKUP($I$3,MPR2014Web,C11,FALSE),"0") -> 0 | J11: =IF(GeneralInfo!H83,GeneralInfo!H83,"") ->  | K11: =GeneralInfo!G36 -> Loan 9 | L11: =MPRApplicant!L11 -> No | M11: =GeneralInfo!I36 -> 0 | N11: =GeneralInfo!J36 -> 0 | O11: =GeneralInfo!K36 -> 0 | R11: ='Sources & Uses'!C17 -> 0 | T11: ='Sources & Uses'!D16 -> 0 | U11: ='Sources & Uses'!F16 -> 0 | V11: ='Sources & Uses'!G16 -> 0 | W11: ='Sources & Uses'!H16 -> 0 | X11: ='Sources & Uses'!I16 ->  | AA11: MPR Zero Percent Loan | AC11: 0 | AD11: 50 | AE11: 30
C12: 2 | D12: Primary Project State | E12: 0 | H12: Primary Project State | I12: 0 | J12: =IF(GeneralInfo!H84,GeneralInfo!H84,"") ->  | K12: =GeneralInfo!G37 -> Loan 10 | L12: =MPRApplicant!L12 -> No | M12: =GeneralInfo!I37 -> 0 | N12: =GeneralInfo!J37 -> 0 | O12: =GeneralInfo!K37 -> 0 | R12: ='Sources & Uses'!C19 -> 0 | T12: ='Sources & Uses'!D18 -> 0 | U12: ='Sources & Uses'!F18 -> 0 | V12: ='Sources & Uses'!G18 -> 0 | W12: ='Sources & Uses'!H18 -> 0 | X12: ='Sources & Uses'!I18 ->  | AA12: Section 515 RRH Loan | AC12: 0.01 | AD12: 50 | AE12: 30
C13: 3 | D13: Primary Project Name | E13: 0 | H13: Primary Project Name | I13: 0 | AA13: Section 516 Farm Labor Loan | AC13: 0.01 | AD13: 33 | AE13: 33
C14: 4 | D14: Borrower ID #1 | E14: 0 | H14: Borrower ID #1 | I14: 0 | R14: Has RTO Been Changed After Tools Applied? | AA14: MPR Soft Second Loan | AC14: 0.01 | AD14: 0 | AE14: 30
C15: 5 | D15: Project Id #1 | E15: 0 | H15: Project Id #1 | I15: 0 | R15: ='Rents & Operations'!K57 -> 33825 | T15: ='2nd(MPR)Rents & Operations'!K57 -> 33825
C16: 6 | D16: Status | E16: 0 | H16: Status | I16: 0 | R16: Pre-MPR RTO Amount | T16: Budgeted RTO Amount
C17: 7 | D17: Total NOFA Points | E17: 0 | H17: Total NOFA Points | I17: 0
C18: 8 | D18: Funding Track | E18: 0 | H18: Transaction Type | I18: 0
C19: 9 | D19: Transaction Type | E19: 0 | H19: Number of Consolidated Properties | I19: 0
C20: 10 | D20: Number of Consolidated Properties | E20: 0 | H20: Portfolio Name | I20: 0
C21: 11 | D21: Portfolio Name | E21: 0 | H21: MFIS Project State | I21: 0
C22: 12 | D22: Project Type #1 | E22: 0 | H22: Project Type #1 | I22: 0
C23: 13 | D23: Tax Credits | E23: 0 | H23: Tax Credits | I23: 0
C24: 14 | D24: 3rd Party Loan | E24: 0 | H24: 3rd Party Loan | I24: 0
C25: 15 | D25: 3rd Party Grant | E25: 0 | H25: 3rd Party Grant | I25: 0
C26: 16 | D26: Tax Exempt Financing | E26: 0 | H26: Tax Exempt Financing | I26: 0
C27: 17 | D27: RD Section 515 Rehab Loan | E27: 0 | H27: RD Section 515 Rehab Loan | I27: 0
C28: 18 | D28: RD Section 514/516 Rehab Off-farm Loan/Grant | E28: 0 | H28: RD Section 514/516 Rehab Off-farm Loan/Grant | I28: 0
C29: 19 | D29: RD Section 538 Loan | E29: 0 | H29: RD Section 538 Loan | I29: 0
C30: 20 | D30: RD Preservation Revolving Loan Funds | E30: 0 | H30: RD Preservation Revolving Loan Funds | I30: 0
C31: 21 | D31: Owner Provided Capital Contributions | E31: 0 | H31: Owner Provided Capital Contributions | I31: 0
C32: 22 | D32: Owner Provided Transaction Costs of Ten Thousand per Project | E32: 0 | H32: Owner Provided Transaction Costs of Ten Thousand per Project | I32: 0
C33: 23 | D33: Owner Provided Hard Costs of One Thousand per Unit | E33: 0 | H33: Owner Provided Hard Costs of One Thousand per Unit | I33: 0
C34: 24 | D34: Transfer of Ownership | E34: 0 | H34: Transfer of Ownership | I34: 0
C35: 25 | D35: Item Type | E35: 0 | H35: Item Type | I35: 0
C36: 26 | D36: Path | E36: 0 | H36: Path | I36: 0
C37: 27 | D37: PtsConsolidation | E37: 0 | H37: PtsConsolidation | I37: 0
C38: 28 | D38: PtsAgeOfProject | E38: 0 | H38: PtsAgeOfProject | I38: 0
C39: 29 | D39: PtsPriorAgencyApprovalOfCNA | E39: 0 | H39: PtsPriorAgencyApprovalOfCNA | I39: 0
C40: 30 | D40: PtsContributionOfOtherSources | E40: 0 | H40: PtsContributionOfOtherSources | I40: 0
C41: 31 | D41: PtsOwnerContribTransaction | E41: 0 | H41: PtsOwnerContribTransaction | I41: 0
C42: 32 | D42: PtsOwnerContribHardCosts | E42: 0 | H42: PtsOwnerContribHardCosts | I42: 0
C43: 33 | D43: PtsTransferProject | E43: 0 | H43: PtsStateGrant | I43: 0
C44: 34 | D44: PtsNoTransferProject | E44: 0 | H44: PtsTransferProject | I44: 0
C45: 35 | D45: PtsMaturingMortgage | E45: 0 | H45: PtsNoTransferProject | I45: 0
C46: 36 | D46: PtsPovertyCounty | E46: 0 | H46: PtsEnergyConservation | I46: 0
C47: 37 | D47: PtsAdverseImpact | E47: 0 | H47: PtsEnergyGeneration | I47: 0
C48: 38 | D48: PtsTenantServices | E48: 0 | H48: PtsGreenPropertyCredentials | I48: 0
C49: 39 | D49: PtsEnergyConservation | E49: 0 | H49: PtsTenantServices | I49: 0
C50: 40 | D50: PtsEnergyGeneration | E50: 0
C51: 41 | D51: PtsGreenPropertyCredentials | E51: 0

Sheet 2nd(MPR)DashData (hidden)
C4: Net Operating Income
C5: Operational Cash Sources (3560-7 Part 1 line 10) | D5: ='2nd(MPR)Rents & Operations'!K41 -> 324456.8
C6: Less Total Operating & Maintenance Expenses 3560-7 Part 1 line 16) | D6: =-'2nd(MPR)Rents & Operations'!K50 -> -203669
C7: Less Reserve Deposit 3560-7 Part 1 line 22) | D7: =-'2nd(MPR)Rents & Operations'!K56 -> -25000
C8: Less Misc. Expense 3560-7 Part 1 line 27) | D8: =-'2nd(MPR)Rents & Operations'!K62 -> 0
C9: = Net Operating Income: | D9: =SUM(D5:D8) -> 95787.8
F10: Rents Needed Calculation
C11: Debt Service Coverage Ratio | F11: Debt Service | G11: ='2nd(MPR)Rents & Operations'!K51+'2nd(MPR)Rents & Operations'!K60 -> 61696.30889 | H11: =G11*15% -> 9254.446334 | I11: (NOI to achieve 1.15)
C12: Net Operating Income / Total Debt Service = DSCR | F12: O&M | G12: ='2nd(MPR)Rents & Operations'!K50+'2nd(MPR)Rents & Operations'!K62 -> 203669 | H12: =H11/0.08 -> 115680.5792 | I12: (Recognized Contribution to achieve 1.15)
C13: Net Operating Income | D13: =D9 -> 95787.8 | F13: Reserve | G13: ='2nd(MPR)Rents & Operations'!K56 -> 25000 | H13: =MIN(D64,D65) -> 2071487 | I13: (Actual Contribution)
C14: Total Debt Service 3560-7 Part 1 line 17 and 25 | D14: ='2nd(MPR)Rents & Operations'!K51+'2nd(MPR)Rents & Operations'!K60 -> 61696.30889 | F14: RTO | G14: ='2nd(MPR)Rents & Operations'!K57 -> 33825 | H14: =IF(H13>H12,H12*8%,H13*8%) -> 9254.446334
C15: Debt Service Coverage Ratio | D15: =ROUND(D13/D14,2) -> 1.55 | F15: Balance for 1.15 DSCR | G15: =IF(G11*15%-G14>0,G11*15%-G14,0) -> 0
C16: =IF($D$15<1,"Deal Not Feasible - Can't Cover Proposed Debt", "Adequate Revenue for Debt Service") -> Adequate Revenue for Debt Service | F16: Sum | G16: =SUM(G11:G15) -> 324190.3089
C17: =IF('2nd(MPR)Sources & Uses'!D3<>"",'2nd(MPR)Sources & Uses'!D3,"") ->  | F17: Less Other Inc | G17: =-SUM('2nd(MPR)Rents & Operations'!K34:K38) -> -4208
F18: Total | G18: =SUM(G16:G17) -> 319982.3089
C19: Cash Flow - Part II of RTO Calculation | F19: With Vacancy | G19: =-G18/H19 -> 336823.483 | H19: ='2nd(MPR)Rents & Operations'!L39-1 -> -0.95 | I19: (don't delete H19 )
C20: Cash Flow after Debt Service | D20: =IF(D23<>0,D9-D14+E20,D9-D14) -> 34091.49111 | E20: =SUMIF('2nd(MPR)GeneralInfo'!$I$74:$I$83,"Yes",'2nd(MPR)GeneralInfo'!$M$74:$M$83)*12 -> 0 | F20: Amt on UW Bud | G20: ='2nd(MPR)Rents & Operations'!K32 -> 337104
C21: Less Additional Cushion Required (Agency test for vacancy & cushion) | D21: =IF(D53>0, -D53,"") ->  | F21: (+) inc (-) dec Rents Per unit | G21: =IFERROR(-ROUNDUP((G19-G20)/'2nd(MPR)Rents & Operations'!G19/12,0),"") -> 1
C22: Less Budget Above Minimum of CRCU, LIHTC | D22: =IF(G28<0,0,-G28) -> 0 | G22: =-(G19-G20)/'2nd(MPR)Rents & Operations'!G19/12 -> 0.5993952066
C23: Less Debt Service for Any Non-Amortizing RD Loan | D23: =-SUMIF('2nd(MPR)GeneralInfo'!$I$74:$I$83,"Yes",'2nd(MPR)GeneralInfo'!$M$74:$M$83)*12 -> 0
C24: (1) Net Cash Flow For RTO Consideration | D24: =SUM(D20:D23) -> 34091.49111 | F24: Underwritten v/s Min CRCU LIHTC | I24: Did RTO go UP?
C25: (2) RTO Required for 1.15 DSCR | D25: =('2nd(MPR)GeneralInfo'!M86+'2nd(MPR)Rents & Operations'!K60)*15% -> 9254.446334 | F25: Rents CRCU | G25: ='2nd(MPR)Rents & Operations'!K19*12*'2nd(MPR)Rents & Operations'!G19 -> 365508 | I25: =IF('2nd(MPR)Rents & Operations'!K57>GeneralInfo!D29,"Yes","No") -> Yes | J25: Did MPR Tools Increase RTO?
C26: (3) 8% of Equity Contribution From Part 1 | D26: =D68 -> 34553.0512 | E26: =D26 -> 34553.0512 | F26: Rents LIHTC | G26: ='2nd(MPR)Rents & Operations'!J19*'2nd(MPR)Rents & Operations'!G19*12 -> 401076 | L26: RTO Caclulated in First Scenerio | M26: =DashData!D27 -> 33825.29111
C27: =IF('2nd(MPR)GeneralInfo'!J15,"Annual RTO for This Transaction (Includes 3/1/2017 Pilot)",IF('2nd(MPR)GeneralInfo'!I15,"Non-Proft - Not RTO Eligible (Refer to Asset Mgmt Fee)","Annual RTO for This Transaction")) -> Annual RTO for This Transaction | D27: =IF('2nd(MPR)GeneralInfo'!J15,E27,IF('2nd(MPR)GeneralInfo'!I15,0,E27)) -> 34091.49111 | E27: =IF(D25>D26,D25,IF(D24<=D25,D25,IF(D26>D24,D24,IF(D26<D24,D26,D25)))) -> 34091.49111 | F27: Rents UW | G27: ='2nd(MPR)Rents & Operations'!K32 -> 337104 | L27: RTO Caclulated in Second Scenerio | M27: =D27 -> 34091.49111
C28: =IF('2nd(MPR)Rents & Operations'!L19>'2nd(MPR)Rents & Operations'!K19,"Warning this Calculation is Based Upon Rents That Exceed CRCU AND Adjustments are Needed To This Proposal",IF('2nd(MPR)Rents & Operations'!L19>'2nd(MPR)Rents & Operations'!J19,"Warning This Calculation is Based Upon Rents that Exceed LIHTC; Adjustments May Be Needed, Review & Document LIHTC Compliance","Rents Are Within CRCU and LIHTC Rates")) -> Rents Are Within CRCU and LIHTC Rates | G28: =G27-MIN(G25,G26) -> -28404 | L28: RTO Budgeted in First Scenerio | M28: ='Rents & Operations'!K57 -> 33825
C29: Owner Contribution Recognized For Loan Agreement | D29: =ROUND(D27/0.08,0) -> 426144 | L29: RTO Budgeted in Second Scenerio | M29: ='2nd(MPR)Rents & Operations'!K57 -> 33825
C30: =IF(G21=1,"Rents Adequate",IF(G21>0,"Rents Higher than Needed for Cash Flow by "&TEXT(G21,"$0"),"Rents Lower than Needed for Cash Flow by "&TEXT(G21,"$0"))) -> Rents Adequate
C31: ="Estimated annual amount required to pay off Deferred Developer Fee over 15 yrs $"&TEXT('2nd(MPR)Sources & Uses'!D28/15,0) -> Estimated annual amount required to pay off Deferred Developer Fee over 15 yrs $20523
C32: Sellers Equity
C33: Current RD Debt | D33: ='2nd(MPR)Sources & Uses'!D6+'2nd(MPR)Sources & Uses'!D7 -> 691086.86 | F33: Loan to Value | N33: Sellers Equity
C34: (2) Sellers Equity or Exit Incentive Proposed | D34: ='2nd(MPR)Sources & Uses'!D122 -> 463731 | F34: Permanent Financing | N34: =C37 -> Appraisal - Market Value As Is | R34: =D37 -> 1181000
C35: Debt & Sellers Equity | D35: =SUM(D33:D34) -> 1154817.86 | F35: Agency Security Value from Appraisal | H35: ='2nd(MPR)GeneralInfo'!I20 -> 1808000 | I35: =IF($D$64<=0,"New Loan(s) Must be Reduced, Exceeds Eligible Purposes", "") ->  | N35: =C36 -> Reserve Funds (less any withdrawn for Equity) | R35: =D36 -> 103182
C36: Reserve Funds (less any withdrawn for Equity) | D36: =CashAnalysis!H22+CashAnalysis!H24 -> 103182 | F36: Agency Assumed Loans | H36: ='2nd(MPR)Sources & Uses'!D7 -> 691086.86 | N36: =C33 -> Current RD Debt | R36: =-D33 -> -691086.86
C37: Appraisal - Market Value As Is | D37: ='2nd(MPR)GeneralInfo'!I19 -> 1181000 | F37: Other Proposed Amortizing Loans | H37: =SUM('2nd(MPR)Sources & Uses'!D10:D20)-F61 -> 685000 | I37: =H35-H38 -> 431913.14 | J37: (mat above Security Value) | N37: =C39 -> (1) Sellers Equity Allowed Per Appraisal | R37: =SUM(R34:R36) -> 593095.14
C38: Total Reserve Plus Market Value As Is | D38: =SUM(D36:D37) -> 1284182 | F38: TOTAL Amortizing Loans | H38: =SUM(H36:H37) -> 1376086.86 | N38: =C34 -> (2) Sellers Equity or Exit Incentive Proposed | R38: =D34 -> 463731
C39: (1) Sellers Equity Allowed Per Appraisal | D39: =D38-D33 -> 593095.14 | F39: Security Value Less Amort. Loans | H39: =H35-H38 -> 431913.14 | N39: =C40 -> 
C40: =IF(AND($D$39<=0,('2nd(MPR)Rents & Operations'!$K$60>0)),"No Seller Equity Allowed with New Loans on Property",IF(AND($D$39<=0,('2nd(MPR)Rents & Operations'!$K$60<=0)),"Sellers Equity Allowed Because No New Loans on the Property","")) ->  | F40: Loan to Value | H40: =H38/H35 -> 0.7611099889 | N40: =C44 -> Sellers Equity Allowed
C41: =IF(C40="No Seller Equity Allowed with New Loans on Property", "Exit Incentive", "") ->  | F41: =IFERROR(IF(H40>1,"Warning Loans Exceed Value","Loans Secured"),"") -> Loans Secured | N41: =C41 -> 
C42: =IF(AND(D160=1,D163=1,D166=1,D171=1,D175=1,D178=1,D181=1,D185=1,D188=1,D192=1,D195=1,D198=1),"All Thresholds Met","Thresholds Not Met") -> Thresholds Not Met | D42: =IF(C42="All Thresholds Met",D34,"") ->  | F42: Interim Financing | N42: =C42 -> Thresholds Not Met
C43: =IF(C42="All Thresholds Met",IF(AND(D61>=0,D64>=0),"4 Test Met for Exit Incentive: 1. All Thresholds Met. 2. Exit Incentive available from Tax Credits, 3. New Loan for 515 Eligible Purposes 4. All Loans Secured"),"No Exit Incentive Allowed") -> No Exit Incentive Allowed | F43: Interim Lender | H43: ='2nd(MPR)Sources & Uses'!E25 -> 2999084 | N43: =C43 -> No Exit Incentive Allowed
C44: =IF(AND(C40="No Seller Equity Allowed with New Loans on Property",(D39<D34)),"No Sellers Equity Allowed - Verify Exit Incentive",IF(D39<D34,"Sellers Equity Exceeds Amount Allowed Per Appraisal","Sellers Equity Allowed")) -> Sellers Equity Allowed | F44: Agency Interim Security Position | H44: =H35-H36-H43 -> -1882170.86 | N44: =IF(ConsolidationDetail!AC72>6,"Review Acquisition Price for Consolidated Properties","") -> 
C46: Vacancy Loss Comparison of Industry Standard with Agency Requirement for Vacancy & Cushion | F46: (Cap)
C47: Vacancy Loss as Underwritten | D47: =-'2nd(MPR)Rents & Operations'!$K$39 -> 16855.2 | E47: ='2nd(MPR)Rents & Operations'!$L$39 -> 0.05 | F47: =IF('2nd(MPR)Rents & Operations'!G19>15,10%,15%) -> 0.1
C48: Vacancy Loss 3 yr Avg Actual | D48: =IF((AVERAGE(MFIS!$T$2,MFIS!$W$2,MFIS!$Z$2))-('2nd(MPR)Rents & Operations'!$I$32+'2nd(MPR)Rents & Operations'!$I$33-'2nd(MPR)Rents & Operations'!$I$52-'2nd(MPR)Rents & Operations'!$I$55)>0,(AVERAGE(MFIS!$T$2,MFIS!$W$2,MFIS!$Z$2))-('2nd(MPR)Rents & Operations'!$I$32+'2nd(MPR)Rents & Operations'!$I$33-'2nd(MPR)Rents & Operations'!$I$52-'2nd(MPR)Rents & Operations'!$I$55),0) -> 10283.33333 | E48: =IFERROR(-ROUND(('2nd(MPR)Rents & Operations'!$I$32+'2nd(MPR)Rents & Operations'!$I$33-'2nd(MPR)Rents & Operations'!$I$52-'2nd(MPR)Rents & Operations'!$I$55)/F49-1,4),0) -> 0.041 | F48: =E48+2% -> 0.061
C49: Vacancy Loss Agency Standard (Actual plus 2%) not to exceed 10% for 16 or more units and or 15% for less than 16 units | D49: ='2nd(MPR)Rents & Operations'!K32*E49 -> 20563.344 | E49: =MIN(F47,F48) -> 0.061 | F49: =IF(MFIS!$U$2>0,AVERAGE(MFIS!$T$2,MFIS!$W$2,MFIS!$Z$2),AVERAGE(MFIS!$W$2,MFIS!$Z$2)) -> 250792
C50: ="O&M for Cushion & Turn Over in Budget (line 10)" -> O&M for Cushion & Turn Over in Budget (line 10) | D50: =('2nd(MPR)Rents & Operations'!V71-'2nd(MPR)Rents & Operations'!V36)*5% -> 10183.45 | F50: ='2nd(MPR)Rents & Operations'!V36 -> 0 | G50: (Budgeted Cushion)
C51: 1) Total Allowances = Vacancy & Cushion (agency test) | D51: =SUM($D$49,$D$50) -> 30746.794
C52: 2) Less Industry Standard (of 5%) | D52: ='2nd(MPR)Rents & Operations'!K32*5% -> 16855.2
C53: Minimum of 1) or 2), Less Actual Budgeted Amount If positive Reduce Net Cash for RTO. | D53: =MIN(D52,D51)-D47-F50 -> 0 | E53: =$D$53/'2nd(MPR)Rents & Operations'!$K$32 -> 0 | F53: (minimum of "total allowance, or industry standard" Less actual budgeted amount
C54: =IF(E48>E47,"Underwritten Vacancy not Supported by Historical Actual plus 2%", "") -> 
C58: =IF('2nd(MPR)GeneralInfo'!J15,"Equity Contribution - Part I of RTO Calculation (Includes 3/1/2017 Pilot)","Equity Contribution - Part I of RTO Calculation") -> Equity Contribution - Part I of RTO Calculation
C59: Security Value (As Improved with added Value of Interest Credit) | D59: ='2nd(MPR)GeneralInfo'!I20 -> 1808000
C60: Less All Amortizing Loans on the Property and RD Deferral | D60: =-SUM('2nd(MPR)Sources & Uses'!D6:D21)+F61 -> -1376086.86 | F60: Non-Amortizing Loans
C61: (1) Security Value in Excess of Loans | D61: =SUM(D59:D60) -> 431913.14 | F61: =IF('2nd(MPR)Sources & Uses'!E12,'2nd(MPR)Sources & Uses'!D12,0)+IF('2nd(MPR)Sources & Uses'!E14,'2nd(MPR)Sources & Uses'!D14,0)+IF('2nd(MPR)Sources & Uses'!E16,'2nd(MPR)Sources & Uses'!D16,0)+IF('2nd(MPR)Sources & Uses'!E20,'2nd(MPR)Sources & Uses'!D20,0) -> 0 | I61: Rents & Tenant Impact
C62: =IF('2nd(MPR)GeneralInfo'!J15,"Total Tax Credits, Deferred Developers Fee, Non-Profit Developer Loan & Grants ","Total Tax Credits, Deferred Developers Fee") -> Total Tax Credits, Deferred Developers Fee | D62: =IF('2nd(MPR)GeneralInfo'!J15,SUM('2nd(MPR)Sources & Uses'!D24:D29)+'2nd(MPR)Sources & Uses'!D30+'2nd(MPR)Sources & Uses'!D31,SUM('2nd(MPR)Sources & Uses'!D24:D29)) -> 3720618.52 | I62: Rent Increase Proposed | K62: ='2nd(MPR)Rents & Operations'!L19-'2nd(MPR)Rents & Operations'!I19 -> 165
C63: =IF('2nd(MPR)GeneralInfo'!J15," Less Sellers Equity & Ineligible Expenses for 515 (Contingency Considered Eligible)","Less Sellers Equity & Ineligible Expenses for 515") -> Less Sellers Equity & Ineligible Expenses for 515 | D63: =IF('2nd(MPR)GeneralInfo'!J15,-SUM('2nd(MPR)Sources & Uses'!D122+'2nd(MPR)Sources & Uses'!D118),-SUM('2nd(MPR)Sources & Uses'!D122+'2nd(MPR)Sources & Uses'!D118-'Sources & Uses'!D100)) -> -1382568.52 | I63: Number RA Units | K63: ='2nd(MPR)GeneralInfo'!I30 -> 37
C64: =IF('2nd(MPR)GeneralInfo'!J15,"(2) Contribution Provided for All 515 Eligible Cost - Contingency Considered Eligible","(2) Contribution Provided for All 515 Eligible Cost") -> (2) Contribution Provided for All 515 Eligible Cost | D64: =SUM($D$62:$D$63) -> 2338050 | I64: Vouchers or Other Tenant Subsidy | K64: ='2nd(MPR)GeneralInfo'!I31 -> 0
C65: =IF('2nd(MPR)GeneralInfo'!J15,"(3) Hard Cost of Construction (From Sources & Uses) (Includes Construction Contingency)","(3) Hard Cost of Construction (From Sources & Uses)") -> (3) Hard Cost of Construction (From Sources & Uses) | D65: =IF('2nd(MPR)GeneralInfo'!J15,'2nd(MPR)Sources & Uses'!D54+'2nd(MPR)Sources & Uses'!D100,'2nd(MPR)Sources & Uses'!D54) -> 2071487 | I65: Total Project Units | K65: ='2nd(MPR)Rents & Operations'!G19 -> 39
C66: Minimum of (1), (2), (3) | D66: =MIN($D$61,$D$64,D65) -> 431913.14 | I66: Potential Tenant Impact | K66: =K65-K64-K63 -> 2
C67: Maximum Possible Contribution Recognized for Additional RTO | D67: =$D$66 -> 431913.14 | I67: Annual Impact on RA | K67: =K62*K63*12 -> 73260
C68: =IF('2nd(MPR)GeneralInfo'!J15,"Includes 3/1/2017 Pilot -- 8% of Recognized Equity Contribution As Shown Above",IF('2nd(MPR)GeneralInfo'!I15,"Non-Profit - RTO Not Applicable (Refer to Asset Mgmt Fee)","8% of Recognized Equity Contribution As Shown Above")) -> 8% of Recognized Equity Contribution As Shown Above | D68: =IF('2nd(MPR)GeneralInfo'!J15,IF($D$67>0,$D$67*8%,0),IF('2nd(MPR)GeneralInfo'!I15,0,IF($D$67>0,$D$67*8%,0))) -> 34553.0512 | I68: Per Unit Per Year RA Increase | K68: =K62*12 -> 1980
C69: =IF('2nd(MPR)Sources & Uses'!$E$42<>0,"Sources and Uses Are Out of Balance - Correct Issue", "Sources & Uses Balanced") -> Sources and Uses Are Out of Balance - Correct Issue | I69: % of Annual Rent Increase | K69: =K62/'2nd(MPR)Rents & Operations'!I19 -> 0.2972972973
C70: =IF(D68<=0,"Equity Contribution Not Recognized for RTO","Equity Contribution for RTO Must be Tested with Cash Flow") -> Equity Contribution for RTO Must be Tested with Cash Flow
C79: Operating Expenses | D79: Current Budget | E79: Average 3 Yr History | F79: Underwritten | G79: State Avg
C80: MAINTENANCE & OPERATING | D80: ='2nd(MPR)Rents & Operations'!S37/'2nd(MPR)Rents & Operations'!G19 -> 1457.282051 | E80: ='2nd(MPR)Rents & Operations'!T37/'2nd(MPR)Rents & Operations'!G19 -> 1589.316239 | F80: ='2nd(MPR)Rents & Operations'!V37/'2nd(MPR)Rents & Operations'!G19 -> 1401.128205 | G80: ='2nd(MPR)Rents & Operations'!AB37 -> 1906.87853
C81: TOTAL UTILITIES | D81: ='2nd(MPR)Rents & Operations'!S45/'2nd(MPR)Rents & Operations'!G19 -> 1312.820513 | E81: ='2nd(MPR)Rents & Operations'!T45/'2nd(MPR)Rents & Operations'!G19 -> 1207.615385 | F81: ='2nd(MPR)Rents & Operations'!V45/'2nd(MPR)Rents & Operations'!G19 -> 1261.25641 | G81: ='2nd(MPR)Rents & Operations'!AB45 -> 2360.990629
C82: ADMNSTRATVE | D82: ='2nd(MPR)Rents & Operations'!S61/'2nd(MPR)Rents & Operations'!G19 -> 1665.384615 | E82: ='2nd(MPR)Rents & Operations'!T61/'2nd(MPR)Rents & Operations'!G19 -> 1555.333333 | F82: ='2nd(MPR)Rents & Operations'!V61/'2nd(MPR)Rents & Operations'!G19 -> 1717.769231 | G82: ='2nd(MPR)Rents & Operations'!AB61 -> 2363.099947
C83: TAXES & INSURANCE | D83: ='2nd(MPR)Rents & Operations'!S69/'2nd(MPR)Rents & Operations'!G19 -> 813.8461538 | E83: ='2nd(MPR)Rents & Operations'!T69/'2nd(MPR)Rents & Operations'!G19 -> 785.2435897 | F83: ='2nd(MPR)Rents & Operations'!V69/'2nd(MPR)Rents & Operations'!G19 -> 842.1282051 | G83: ='2nd(MPR)Rents & Operations'!AB69 -> 1164.891731
C84: TOTAL O & M EXPENSES | D84: ='2nd(MPR)Rents & Operations'!S71/'2nd(MPR)Rents & Operations'!G19 -> 5249.333333 | E84: ='2nd(MPR)Rents & Operations'!T71/'2nd(MPR)Rents & Operations'!G19 -> 5137.508547 | F84: ='2nd(MPR)Rents & Operations'!V71/'2nd(MPR)Rents & Operations'!G19 -> 5222.282051 | G84: ='2nd(MPR)Rents & Operations'!AB71 -> 7795.860837
C86: =C79 -> Operating Expenses | D86: =D79 -> Current Budget | E86: =E79 -> Average 3 Yr History | F86: =F79 -> Underwritten | G86: =G79 -> State Avg
C87: =C84 -> TOTAL O & M EXPENSES | D87: =D84 -> 5249.333333 | E87: =E84 -> 5137.508547 | F87: =F84 -> 5222.282051 | G87: =G84 -> 7795.860837
C94: Transaction Cost Comparison | D94: ='2nd(MPR)Sources & Uses'!E49 -> Comment
C95: ='2nd(MPR)Sources & Uses'!B50&" For Repair / Rehab" -> Hard Costs For Repair / Rehab | D95: ='2nd(MPR)Sources & Uses'!D54 -> 2071487
C96: ='2nd(MPR)Sources & Uses'!B55 -> Contractor Fees | D96: ='2nd(MPR)Sources & Uses'!D60 -> 364581
C97: ='2nd(MPR)Sources & Uses'!C62 -> Engineer | D97: ='2nd(MPR)Sources & Uses'!D70 -> 184466 | E97: Hard & Soft Cost | F97: Soft Cost | G97: Hard Cost
C98: ='2nd(MPR)Sources & Uses'!B71 -> Financing & Interim Cost | D98: ='2nd(MPR)Sources & Uses'!D77 -> 172978 | E98: =SUM(D95:D101) -> 4405718.52 | F98: =SUM(D96:D101) -> 2334231.52 | G98: =D95 -> 2071487
C99: ='2nd(MPR)Sources & Uses'!B78 -> Soft Cost & Other Expenses | D99: ='2nd(MPR)Sources & Uses'!D89 -> 22489 | F99: =F98/E98 -> 0.5298185777 | G99: =G98/E98 -> 0.4701814223
C100: ='2nd(MPR)Sources & Uses'!B91 -> Entity and Syndication | D100: ='2nd(MPR)Sources & Uses'!D118 -> 1125986.52
C101: Sellers Equity | D101: ='2nd(MPR)Sources & Uses'!D122 -> 463731
C102: Assumption of RD Loan | D102: ='2nd(MPR)Sources & Uses'!D121 -> 691086.86
C104: Total Development Cost | D104: =SUM(D95:D103) -> 5096805.38
C107: Sources | D107: Total
C108: Assume Existing RD Loans | D108: ='2nd(MPR)Sources & Uses'!D6+'2nd(MPR)Sources & Uses'!D7 -> 691086.86
C109: 3rd Party Loans | D109: =SUM('2nd(MPR)Sources & Uses'!D10:D20) -> 685000
C110: Federal Tax Credit Equity | D110: =SUM('2nd(MPR)Sources & Uses'!D24:D26) -> 3412780
C111: State Tax Credits | D111: ='2nd(MPR)Sources & Uses'!D27 -> 0
C112: Deferred Developer Fees | D112: ='2nd(MPR)Sources & Uses'!D28 -> 307838.52
C113: =IF('2nd(MPR)Sources & Uses'!D29>0,'2nd(MPR)Sources & Uses'!C29,"") ->  | D113: =IF('2nd(MPR)Sources & Uses'!D29<>0,'2nd(MPR)Sources & Uses'!D29,"") -> 
C114: =IF(D114<>"","Reserve","") ->  | D114: =IF('2nd(MPR)Sources & Uses'!D22+'2nd(MPR)Sources & Uses'!D23>0,'2nd(MPR)Sources & Uses'!D22+'2nd(MPR)Sources & Uses'!D23,"") -> 
C115: =IF(D115<>"","Other","") -> 
C116: Total Sources | D116: =SUM(D108:D115) -> 5096705.38
G117: MPR Funding Tool
C118: Loans and Lien Position | G118: =SUMIF('2nd(MPR)Sources & Uses'!C14:C19,'2nd(MPR)DashData'!G117,'2nd(MPR)Sources & Uses'!D14:D19) -> 0
C119: Loans | D119: Amounts | E119: Priority
C120: Assumed RD Loans (Deferred) | D120: ='2nd(MPR)Sources & Uses'!D6 -> 0 | E120: =IF('2nd(MPR)Sources & Uses'!J16=9,0,'2nd(MPR)Sources & Uses'!J6) -> 1
C121: Assumed Amortizing RD Loans | D121: ='2nd(MPR)Sources & Uses'!D7 -> 691086.86 | E121: =IF('2nd(MPR)Sources & Uses'!J17=9,0,'2nd(MPR)Sources & Uses'!J7) -> 1
C122: ='2nd(MPR)Sources & Uses'!C10 -> RD 538 Loan - Specify Lender:
C123: =" "&'2nd(MPR)Sources & Uses'!C11 -> 0 | D123: ='2nd(MPR)Sources & Uses'!D10 -> 0 | E123: =IF('2nd(MPR)Sources & Uses'!J10=9,0,'2nd(MPR)Sources & Uses'!J10) -> 1
C124: ='2nd(MPR)Sources & Uses'!C12 -> Specify Lender:
C125: =" "&'2nd(MPR)Sources & Uses'!C13 -> Cow Poke Bank | D125: ='2nd(MPR)Sources & Uses'!D12 -> 685000 | E125: =IF('2nd(MPR)Sources & Uses'!J12=9,0,'2nd(MPR)Sources & Uses'!J12) -> 3
C126: ='2nd(MPR)Sources & Uses'!C14 -> Select MPR Funding Tool from Box Below
C127: =" "&'2nd(MPR)Sources & Uses'!C15 ->  | D127: ='2nd(MPR)Sources & Uses'!D14 -> 0 | E127: =IF('2nd(MPR)Sources & Uses'!J14=9,0,'2nd(MPR)Sources & Uses'!J14) -> 4
C128: ='2nd(MPR)Sources & Uses'!C16 -> Select MPR Funding Tool from Box Below
C129: =" "&'2nd(MPR)Sources & Uses'!C17 ->  | D129: ='2nd(MPR)Sources & Uses'!D16 -> 0 | E129: =IF('2nd(MPR)Sources & Uses'!J16=9,0,'2nd(MPR)Sources & Uses'!J16) -> 5
C130: ='2nd(MPR)Sources & Uses'!C18 -> Specify Lender:
C131: =" "&'2nd(MPR)Sources & Uses'!C19 ->  | D131: ='2nd(MPR)Sources & Uses'!D18 -> 0 | E131: =IF('2nd(MPR)Sources & Uses'!J18=9,0,'2nd(MPR)Sources & Uses'!J18) -> 6
C132: ='2nd(MPR)Sources & Uses'!C20 -> Assumed Existing Non-Agency Loans
C133: =" "&'2nd(MPR)Sources & Uses'!C21 -> 0 | D133: ='2nd(MPR)Sources & Uses'!D20 -> 0 | E133: =IF('2nd(MPR)Sources & Uses'!J20=9,0,'2nd(MPR)Sources & Uses'!J20) -> 0
Q134: O & M Expense Changes
Q135: Underwritten v/s Historical Avg - %Change
Q136: Maintenance & Operating (Excludes line 9 & 10) | S136: =$AA$145-$AD$145 -> 493.6666667 | T136: =AB145 -> 0.009116595158
R137: Utilities | S137: =$AA$146-$AD$146 -> 2092 | T137: 0.04441896511
R138: Total Administrative | S138: =$AA$147-$AD$147 -> 6335 | T138: 0.1044379966
R139: Total Tax & Insurance | S139: =$AA$148-$AD$148 -> 2218.5 | T139: 0.07244199905
R140: Total O & M | S140: =$AA$149-$AD$149 -> 11139.16667 | T140: 0.05785683431
R141: Reserve Deposit | S141: =$AA$150-$AD$150 -> 14695 | T141: 1.426006793
Q144: O&M Expense Changes (Transfer UW minus 3 Yr Average Actuals) Change of 10% Flagged | AA144: UW | AD144: 3 yr Avg Actual
R145: Maintenance & Operating | S145: =$AA$145-$AD$145 -> 493.6666667 | T145: =TEXT(AD145,"$0")&" versus "&TEXT(AA145,"$0")&" underwritten "&"("&TEXT(AB145,"0.0%")& " change)" -> $54150 versus $54644 underwritten (0.9% change) | AA145: =ROUND('2nd(MPR)Rents & Operations'!V37-'2nd(MPR)Rents & Operations'!V36-'2nd(MPR)Rents & Operations'!V35,0) -> 54644 | AB145: =S145/AD145 -> 0.009116595158 | AD145: ='2nd(MPR)Rents & Operations'!T37-'2nd(MPR)Rents & Operations'!T36-'2nd(MPR)Rents & Operations'!T35 -> 54150.33333
C146: Rents & Tenant Impact | R146: Utilities | S146: =$AA$146-$AD$146 -> 2092 | T146: $47097 versus $49189 underwritten (4.4% change) | AA146: ='2nd(MPR)Rents & Operations'!V45 -> 49189 | AB146: 0.04441896511 | AD146: ='2nd(MPR)Rents & Operations'!T45 -> 47097
C147: Rent Increase Proposed | D147: ='2nd(MPR)Rents & Operations'!L19-'2nd(MPR)Rents & Operations'!I19 -> 165 | R147: Total Administrative | S147: =$AA$147-$AD$147 -> 6335 | T147: $60658 versus $66993 underwritten (10.4% change) | AA147: ='2nd(MPR)Rents & Operations'!V61 -> 66993 | AB147: 0.1044379966 | AD147: ='2nd(MPR)Rents & Operations'!T61 -> 60658
C148: Number RA Units | D148: ='2nd(MPR)GeneralInfo'!I30 -> 37 | R148: Total Tax & Insurance | S148: =$AA$148-$AD$148 -> 2218.5 | T148: $30625 versus $32843 underwritten (7.2% change) | AA148: ='2nd(MPR)Rents & Operations'!V69 -> 32843 | AB148: 0.07244199905 | AD148: ='2nd(MPR)Rents & Operations'!T69 -> 30624.5
C149: Vouchers or Other Tenant Subsidy | D149: ='2nd(MPR)GeneralInfo'!I31 -> 0 | R149: Total O & M | S149: =$AA$149-$AD$149 -> 11139.16667 | T149: $192530 versus $203669 underwritten (5.8% change) | AA149: ='2nd(MPR)Rents & Operations'!V71-'2nd(MPR)Rents & Operations'!V36-'2nd(MPR)Rents & Operations'!V35-Z147 -> 203669 | AB149: 0.05785683431 | AD149: ='2nd(MPR)Rents & Operations'!T71-'2nd(MPR)Rents & Operations'!T36-'2nd(MPR)Rents & Operations'!T35 -> 192529.8333
C150: Total Project Units | D150: ='2nd(MPR)Rents & Operations'!G19 -> 39 | R150: Reserve Deposit | S150: =$AA$150-$AD$150 -> 14695 | T150: $10305 versus $25000 underwritten (142.6% change) | AA150: ='2nd(MPR)Rents & Operations'!K56 -> 25000 | AB150: 1.426006793 | AD150: ='2nd(MPR)Rents & Operations'!I56 -> 10305
C151: Potential Tenant Impact | D151: =D150-D149-D148 -> 2
C152: Annual Impact on RA | D152: =D147*D148*12 -> 73260
C153: Per Unit Per Year RA Increase | D153: =ROUND(D147*12,0) -> 1980
C154: Percent of Annual Rent Increase | D154: =D147/'2nd(MPR)Rents & Operations'!L19 -> 0.2291666667
C159: Thresholds
C160: Post Transfer Rents | D160: =IF(F162>F161,2,1) -> 1 | E160: This Transaction
C161: Maximum allowed by HFA not to exceed CRCU | E161: Max Allowed | F161: =IFERROR(IF('2nd(MPR)Rents & Operations'!J19<'2nd(MPR)Rents & Operations'!K19,'2nd(MPR)Rents & Operations'!J19,'2nd(MPR)Rents & Operations'!K19),"not calculating") -> 781
C162: =IF('2nd(MPR)Rents & Operations'!L19>'2nd(MPR)Rents & Operations'!K19,"Warning Post Transfer Rents Greater than CRCU", "Post Transfer Rents Less Than CRCU") -> Post Transfer Rents Less Than CRCU | E162: Underwritten | F162: =IFERROR('2nd(MPR)Rents & Operations'!L19,"not calculating") -> 720
C163: Rents Cash Flow Proposed Operations | D163: =IF(OR(G21>1,G21<-1),2,1) -> 1 | E163: This Transaction
C164: Expenses met within underwritten Rents | E164: Cushion | F164: ='2nd(MPR)GeneralInfo'!D41 -> 0
C165: =IFERROR(C30," not calculating") -> Rents Adequate | E165: Underwritten | F165: ='2nd(MPR)Rents & Operations'!L67+GeneralInfo!D41 -> 0.001308451992
C166: Vacancy Loss | D166: =IF(OR(F169<F168,F169>F167,C170="Underwritten Vacancy not Supported by Historical Actual plus 2%"),2,1) -> 2 | E166: This Transaction
C167: Maximum allowance 10% (16 or more units) 15% (Less than 16 units) | E167: Max Allowed | F167: =IF('2nd(MPR)Rents & Operations'!G19>15,10%,15%) -> 0.1
C168: Minimum allowance: Lesser of Historical average of collected rents for | E168: Min Allowed | F168: =IFERROR(MIN('2nd(MPR)Rents & Operations'!I22:K22),"not caculating") -> 0.061
C169: most recent 3 yrs plus 2%, or HFA / Lender Requirement | D169: ='2nd(MPR)Rents & Operations'!I22 -> 0.061 | E169: Underwritten | F169: ='2nd(MPR)Rents & Operations'!L22 -> 0.05
C170: =IFERROR(IF(C54<>"",C54,""),"Not Calculating") -> 
C171: Operating Expenses | D171: =IF(OR(F174<F172,F173="Yes"),2,1) -> 1 | E171: This Transaction
C172: Minimum required per unit cost is greater of HFA or Lender must be budgeted | E172: Min Allowed | F172: =MAX('2nd(MPR)GeneralInfo'!I40,'2nd(MPR)GeneralInfo'!D40) -> 0
C173: No more than 10% change from historical actual without justification | E173: Changed 10% | F173: =IFERROR(IF(OR(T140<-10%,T140>10%),"Yes","No"),"not calculating") -> No
E174: Underwritten | F174: =IFERROR('2nd(MPR)Rents & Operations'!K50/'2nd(MPR)Rents & Operations'!G19,0) -> 5222.282051
C175: GOA Minimum Requirement | D175: =IF(F177<F176,2,1) -> 1 | E175: This Transaction
C176: General Operating Account must be equal to 20% | E176: Min Required | F176: =('2nd(MPR)Rents & Operations'!K50-'2nd(MPR)Rents & Operations'!V69)*20% -> 34165.2
C177: total operating expense as underwritten at time of transfer | E177: GOA + Up Front Deposit | F177: =CashAnalysis!H11 -> 34485.2
C178: Tenant Protection | D178: =IF(AND(F179>F180,I25="Yes"),2,1) -> 1 | E178: This Transaction
C179: Protect tenants for full 2 year increase for affected tenants if RTO increased | E179: Min Funding | F179: =IF(D147>0,IFERROR((IF(D27>'2nd(MPR)GeneralInfo'!D29,(D151*('2nd(MPR)Rents & Operations'!L19-'2nd(MPR)Rents & Operations'!I19)*2*12),0)),"Not Calculating"),0) -> 7920
C180: Tenant Protection item 44 of Sources & Uses | F180: ='2nd(MPR)Sources & Uses'!D106 -> 8160
C181: CNA Funding & Reserve Deposit | D181: =IF(AND(F184>=F182,F183="Yes",C184="CNA Unit Count & Post Transfer the Same"),1,2) -> 1 | E181: This Transaction
C182: Minimum Requirement Per Unit is greater of HFA or Lender | E182: Min Allowed | F182: =MIN('2nd(MPR)Reserve Sizing'!Q34) -> 0
C183: Reserve ending balance forecast positive all 20 yrs of CNA forecast | E183: CNA Positive $ | F183: =IF(SUM('2nd(MPR)Reserve Sizing'!C54:V54)>0,"Not Met", "Yes") -> Yes
C184: =IF('2nd(MPR)Reserve Sizing'!C4='2nd(MPR)Reserve Sizing'!B4,"CNA Unit Count & Post Transfer the Same","CNA Unit Count & Post Transfer Not the Same") -> CNA Unit Count & Post Transfer the Same | E184: Underwritten | F184: =IFERROR('2nd(MPR)Reserve Sizing'!C50/'2nd(MPR)Reserve Sizing'!C4,0) -> 625
C185: New Loans for RD 515 Eligible Purposes | D185: =IF(F187>F186,2,1) -> 1 | E185: This Transaction
C186: New Loans must be for 515 Eligible Purposes | E186: Max Allowed | F186: ='2nd(MPR)DashData'!D62 -> 3720618.52
C187: See Sources & Uses (total eligible cost) | E187: Underwritten | F187: =-D63 -> 1382568.52
C188: DSCR | D188: =IF(AND(F190>=F189,F191="Yes"),1,2) -> 1 | E188: This Transaction
C189: Minimum Requirement 1.15 | E189: Min Allowed | F189: 1.15
C190: Underwritten Yr 1 must be 1.15 | E190: Yr 1 | F190: =IFERROR(D15,0) -> 1.55
C191: Trending Revenue 2%, Expenses 3% (including reserve) 1.15 to yr 3 1.1 to yr 5 and 1.0 to yr 15 | E191: 1.15 | F191: =IFERROR(IF('2nd(MPR)Trending 15 years'!U26>0,"No","Yes"),0) -> Yes
C192: Loan to Value | D192: =IF(F194>1,2,1) -> 1 | E192: This Transaction
C193: All Debts must be secured within Prospective (As Improved) Appraised Value | E193: Min LVT | F193: 1
E194: Underwritten | F194: =IFERROR(H40,"not calculating") -> 0.7611099889
C195: Loan Terms of 3rd Party Debt | D195: =IF(C197<>"",2,1) -> 1 | E195: This Transaction
C196: No Balloon Payment of 3rd Party Debt Prior to RD Loan Term | E196: Max Allowed | F196: =IF('2nd(MPR)Sources & Uses'!G6>'2nd(MPR)Sources & Uses'!G7,'2nd(MPR)Sources & Uses'!G6,'2nd(MPR)Sources & Uses'!G7) -> 0
C197: ='2nd(MPR)Sources & Uses'!D3 -> 
C198: Sources & Uses Balance | D198: =IF('2nd(MPR)Sources & Uses'!E42=0,1,2) -> 2 | E198: This Transaction
C199: Adequate funds for Proposed Rehab & Acquisition | E199: Sources | F199: ='2nd(MPR)Sources & Uses'!E37 -> 5096705.38
C200: Sources & Uses must Balance | E200: Uses | F200: ='2nd(MPR)Sources & Uses'!E39 -> 5096805.38
C204: Allocation of Credits and DDF for Return To Owner (RTO)
C206: Tax Credits and Deferred Developer Fee | D206: =SUM('2nd(MPR)Sources & Uses'!$D$24:$D$28) -> 3720618.52
C207: Less Sellers Equity | D207: =-'2nd(MPR)Sources & Uses'!$D$122 -> -463731
C208: Less Other Cost Not Eligible for 515 Program | D208: =-'2nd(MPR)Sources & Uses'!$D$118 -> -1125986.52
C209: Contribution Available for Hard Cost | D209: =SUM(D206:D208) -> 2130901
C210: Total Hard Cost | D210: ='2nd(MPR)Sources & Uses'!$D$54 -> 2071487
C211: Lower of Contribution or Total Hard Cost | D211: =MIN(D209,D210) -> 2071487
C213: Cost Eligible for 515 Program: | D213: ='2nd(MPR)Sources & Uses'!$D$90 -> 2816001
C214: New Loans | D214: =-SUM('2nd(MPR)Sources & Uses'!$D$8:$D$23) -> -685000
C215: Equity Provided above New Loans | D215: =SUM(D213:D214) -> 2131001
C216: Amount Not to Exceed Security Value | D216: =IF(D215<=I37,D215,I37) -> 431913.14
C218: Lower of Contribution v/s New Loan Test | D218: =MIN(D211,D216) -> 431913.14
C220: Maximum Possible Contribution Recognized for Additional RTO | D220: =D218 -> 431913.14
C221: 0.08 | D221: =IF('2nd(MPR)GeneralInfo'!I15,0,IF($D$220>0,$D$220*8%,0)) -> 34553.0512
C222: =IF('2nd(MPR)Sources & Uses'!$E$42<>0,"Sources and Uses Are Out of Balance", "Sources & Uses Balanced") -> Sources and Uses Are Out of Balance
C225: =TODAY() -> 2018-03-09
C226: RD Appraisal Requirements for This Transaction Return To Owner (RTO)
C227: Used to Evaluate Sellers Equity | D227: =IF('2nd(MPR)GeneralInfo'!$I$18>'2nd(MPR)DashData'!$C$225,"Market Value With Restricted Rents (RUP In Place)","Market Value As If Conventional Housing (RUP Expired)") -> Market Value With Restricted Rents (RUP In Place)
C228: =IF('2nd(MPR)GeneralInfo'!I18>'2nd(MPR)DashData'!C225,AppraisalGuidance!D7,AppraisalGuidance!D5) -> 2.) Market Value, subject to restricted rents (7 CFR Part 3560.752(b)(1)(i), (The appraiser must consider all restrictions and report the value of intangible assets individually and separately from the real estate) The appraisal is to reflect the value of the property in its current physical condition.
C229: Used to Evaluate RD Security Value | D229: Prospective Market Value Subject to Restricted Rents
C230: =AppraisalGuidance!D11 -> 3.) Prospective Market Value, Subject To Restricted Rents within 7 CFR Part 3560.752(b)(1)(i) (Must consider any rent limits, rent subsidies, expense abatements, and restrictive-use conditions that will affect the property. All intangible assets must be evaluated individually and separately from real estate.) Obtain for a new or subsequent loan is to assist the underwriter with calculating the security value for the basis of a loan or loan guarantee. 7 CFR Part 3560.752(b)(1)(i)(2)(ii) “Prospective value” means the forecasted value of the housing and related facilities as of a specified future date. For Agency appraisals, this date will typically be the projected completion date of proposed new construction or rehabilitation.
C247: Tax Credit Equity (Federal & State) | D247: =SUM('2nd(MPR)Sources & Uses'!D24:D27) -> 3412780
C248: Non-Amortizing Loans | D248: =F61 -> 0
C249: New Amortizing Loans | D249: =-'2nd(MPR)DashData'!D60 -> 1376086.86
C250: Other Sources | D250: ='2nd(MPR)Sources & Uses'!D22+'2nd(MPR)Sources & Uses'!D23+'2nd(MPR)Sources & Uses'!D28+'2nd(MPR)Sources & Uses'!D29+'2nd(MPR)Sources & Uses'!D30+'2nd(MPR)Sources & Uses'!D32 -> 307838.52
C251: Expenses Eligible for 515 Financing | D251: ='2nd(MPR)Sources & Uses'!D90 -> 2816001
C252: Expenses Not Eligible for 515 Financing | D252: ='2nd(MPR)Sources & Uses'!D118+'2nd(MPR)Sources & Uses'!D122 -> 1589717.52
T261: Rent Change Comparison
T262: Unit Type | U262: Number Units | V262: Current Budgeted Rent | W262: (Prospective Rent) Post Transfer Rent | X262: LIHTC | Y262: CRCU | Z262: Proposed Rent Change | AA262: Rent Change % | AC262: Rent Change Phase In | AD262: Phase In Schedule Rent Change | AE262: Phase In Calculated | AF262: Cumulative Increase | AI262: Phase in Rents | AJ262: Annual Shortfall
T263: ='2nd(MPR)Rents & Operations'!D15 -> 1 BR | U263: ='2nd(MPR)Rents & Operations'!G15 -> 15 | V263: =ROUND('2nd(MPR)Rents & Operations'!I15,0) -> 487 | W263: =ROUND('2nd(MPR)Rents & Operations'!L15,0) -> 652 | X263: =ROUND('2nd(MPR)Rents & Operations'!J15,0) -> 770 | Y263: =ROUND('2nd(MPR)Rents & Operations'!K15,0) -> 715 | Z263: =IFERROR(W263-V263,"") -> 165 | AA263: =IFERROR(Z263/V263,"") -> 0.3388090349 | AC263: =IF(Z267<=AD263,"No","Yes") -> Yes | AD263: =ROUND(IF(V267*10%<=Z267,V267*10%,Z267),0) -> 56 | AE263: =V267+AD263 -> 611 | AF263: =AD263 -> 56 | AI263: =V267+AF263 -> 611 | AJ263: =($W$267-AI263)*12*$U$267 -> 51012
T264: ='2nd(MPR)Rents & Operations'!D16 -> 2 BR | U264: ='2nd(MPR)Rents & Operations'!G16 -> 24 | V264: =ROUND('2nd(MPR)Rents & Operations'!I16,0) -> 598 | W264: =ROUND('2nd(MPR)Rents & Operations'!L16,0) -> 763 | X264: =ROUND('2nd(MPR)Rents & Operations'!J16,0) -> 912 | Y264: =ROUND('2nd(MPR)Rents & Operations'!K16,0) -> 822 | Z264: =IFERROR(W264-V264,"") -> 165 | AA264: =IFERROR(Z264/V264,"") -> 0.2759197324 | AD264: =ROUNDDOWN(IF(AE263*10%<=Z267,AE263*10%,Z267),0) -> 61 | AE264: =AE263+AD264 -> 672 | AF264: =IF(AF263+AD264>=Z267,Z267,AF263+AD264) -> 117 | AI264: =V267+AF264 -> 672 | AJ264: 22464
... 14 more rows

Sheet ConsolidationDetail (hidden)
B1: Page Used Only for Consolidation of Properties Consult with Agency Staff Regarding Eligibility and to Obtain Additional Information for Consolidation of Properties. Contact the Agency for Assistance in Entering Data On This Page
B2: Property Number | C2: Property Name | F2: Property No. 1-6 (Consolidation) | G2: Loan Number | H2: Original Loan Amount | J2: Original Loan Term (Months) | K2: Current Note Interest Rate | L2: Original Closing Date | M2: Amt UnPaid Balance | O2: Obligation Date Prior to 10/1/91 Yes or No | P2: Original Monthly Loan Payment (Subsidized) | R2: Selection: New Rates & Terms OR Same Rates & Terms | S2: Installments
B3: 1 | D3: Important: You Must Enter All Loans and Identify Property by Number | O3: Yes | R3: New | S3: =IF(R3="New",PMT(1%/12,$Q$60,-M3),P3) -> 0 | W3: Yes | X3: New
B4: 2 | S4: =IF(R4="New",PMT(1%/12,$Q$60,-M4),P4) -> 0 | W4: No | X4: Same
B5: 3 | S5: 0 | V5: Reminder: If you make changes, Click button to Update
B6: 4 | S6: 0
B7: 5 | S7: 0
B8: 6 | S8: 0
S9: 0
S10: 0
B11: For Consolidated Properties: | S11: 0
B12: IMPORT ADDITIONAL REPORTS WITH THESE BUTTONS: | S12: 0
S13: 0
S14: 0
A15: MFIS Reports - Budget History | H15: =SUM(H3:I14) -> 0 | M15: =SUM(M3:N14) -> 0 | P15: =SUM(P3:Q14) -> 0 | S15: =SUM(S3:T14) -> 0 | V15: Reminder: If you make changes, Click button to Update
A16: FIN 1700 | P16: Enter No Months for New Terms: | Q16: 600
A18: MFIS Reports - Balance Sheets
A19: FIN 1200
A21: MFIS Reports - Reserve Status
A22: FIN 2000
A24: CNA
N60: (no entry = 600 months) | Q60: =IF(Q16>0,Q16,600) -> 600
B63: Consult with Agency Staff Regarding Eligibility and Consolidation of Properties. Contact the Agency for Assistance in Entering Data On This Page
C64: Multiple Property Information for Consolidated Properties
C65: Property Name | D65: Enter Date the Restricted Use Provisions Have or Will Expire. If No restrictions you can leave blank | F65: Enter Date of Appraisal | G65: ="Current Market Appraised Value " &DashData!A273 -> Current Market Appraised Value | I65: Prospective Market Value Subject To Restricted Rents | K65: Value of Favorable Financing & RD Interest Credit Subsidy | M65: Prospective Market Value Subject to Restricted Rents + Favorable Financing & Interest Credit Subsidy | O65: Unpaid RD Loan Balances | Q65: Existing Reserve Balances | S65: RD Required Balances | T65: RD Required Reserve Balance | U65: Payments for Sellers Equity (Add all payments to the Seller including any Excees Reserve or Payment for Reserve) | V65: RD Required Reserve Balance | W65: Market Value Appraisal Type Needed for Validation of Acquisition Price | Y65: Market Appraised Value Plus Reserve Balance | AA65: Acquisition Price Supported by Appraisal?
B66: Property 1 | C66: =VLOOKUP(1,$B$3:$C$8,2,FALSE) -> 0 | M66: =SUM(I66:L66) -> 0 | O66: =SUMIF($F$3:$F$14,"=1",$M$3:$N$14) -> 0 | W66: =IF(D66>DashData!$C$225,"Market Value With Restricted Rents (RUP In Place)","Market Value As If Conventional Housing (RUP Expired)") -> Market Value As If Conventional Housing (RUP Expired) | Y66: =G66+Q66 -> 0 | AA66: =IF(Y66-(U66+O66)>=0,"Yes","No") -> Yes | AC66: =IF(AA66="Yes",1,2) -> 1
B67: Property 2 | C67: =VLOOKUP(2,$B$3:$C$8,2,FALSE) -> 0 | M67: 0 | O67: =SUMIF($F$3:$F$14,"=2",$M$3:$N$14) -> 0 | W67: =IF(D67>DashData!$C$225,"Market Value With Restricted Rents (RUP In Place)","Market Value As If Conventional Housing (RUP Expired)") -> Market Value As If Conventional Housing (RUP Expired) | Y67: 0 | AA67: Yes | AC67: 1
B68: Property 3 | C68: =VLOOKUP(3,$B$3:$C$8,2,FALSE) -> 0 | M68: 0 | O68: =SUMIF($F$3:$F$14,"=3",$M$3:$N$14) -> 0 | W68: =IF(D68>DashData!$C$225,"Market Value With Restricted Rents (RUP In Place)","Market Value As If Conventional Housing (RUP Expired)") -> Market Value As If Conventional Housing (RUP Expired) | Y68: 0 | AA68: Yes | AC68: 1
B69: Property 4 | C69: =VLOOKUP(4,$B$3:$C$8,2,FALSE) -> 0 | M69: 0 | O69: =SUMIF($F$3:$F$14,"=4",$M$3:$N$14) -> 0 | W69: =IF(D69>DashData!$C$225,"Market Value With Restricted Rents (RUP In Place)","Market Value As If Conventional Housing (RUP Expired)") -> Market Value As If Conventional Housing (RUP Expired) | Y69: 0 | AA69: Yes | AC69: 1
B70: Property 5 | C70: =VLOOKUP(5,$B$3:$C$8,2,FALSE) -> 0 | M70: 0 | O70: =SUMIF($F$3:$F$14,"=5",$M$3:$N$14) -> 0 | W70: =IF(D70>DashData!$C$225,"Market Value With Restricted Rents (RUP In Place)","Market Value As If Conventional Housing (RUP Expired)") -> Market Value As If Conventional Housing (RUP Expired) | Y70: 0 | AA70: Yes | AC70: 1
B71: Property 6 | C71: =VLOOKUP(6,$B$3:$C$8,2,FALSE) -> 0 | M71: 0 | O71: =SUMIF($F$3:$F$14,"=6",$M$3:$N$14) -> 0 | W71: =IF(D71>DashData!$C$225,"Market Value With Restricted Rents (RUP In Place)","Market Value As If Conventional Housing (RUP Expired)") -> Market Value As If Conventional Housing (RUP Expired) | Y71: 0 | AA71: Yes | AC71: 1
B72: TOTAL | G72: =SUM(G66:H71) -> 0 | I72: =SUM(I66:J71) -> 0 | K72: =SUM(K66:L71) -> 0 | M72: =SUM(M66:N71) -> 0 | O72: =SUM(O66:P71) -> 0 | Q72: =SUM(Q66:R71) -> 0 | S72: =SUM(S66:T71) -> 0 | U72: =SUM(U66:V71) -> 0 | Y72: =SUM(Y66:Z71) -> 0 | AC72: =SUM(AC66:AC71) -> 6
C74: Existing Rental Rates and Utilities
C75: Revenue Units Current Rental & Utility Rates (Enter Unit Type) | E75: =B66 -> Property 1 | I75: =B67 -> Property 2 | M75: =B68 -> Property 3 | Q75: =B69 -> Property 4 | U75: =B70 -> Property 5 | Y75: =B71 -> Property 6
E76: =IF(C66<>"",C66,"") -> 0 | I76: =IF($C67<>"",$C67,"") -> 0 | M76: =IF($C68<>"",$C68,"") -> 0 | Q76: =IF($C69<>"",$C69,"") -> 0 | U76: =IF($C70<>"",$C70,"") -> 0 | Y76: =IF($C71<>"",$C71,"") -> 0
E77: # Units | F77: Rent | G77: Utility | H77: CRCU | I77: # Units | J77: Rent | K77: Utility | L77: CRCU | M77: # Units | N77: Rent | O77: Utility | P77: CRCU | Q77: # Units | R77: Rent | S77: Utility | T77: CRCU | U77: # Units | V77: Rent | W77: Utility | X77: CRCU | Y77: # Units | Z77: Rent | AA77: Utility | AB77: CRCU
C78: 0 Bedroom
C79: 1 Bedroom
C80: 2 Bedroom
C81: 3 Bedroom
C82: 4 Bedroom
E83: RA Units to Be Transferred | F83: 3 Yr Avg Rent Loss | G83: No. Vouchers or Other Subsidy | H83: AMI | I83: RA Units to Be Transferred | J83: 3 Yr Avg Rent Loss | K83: No. Vouchers or Other Subsidy | L83: AMI | M83: RA Units to Be Transferred | N83: 3 Yr Avg Rent Loss | O83: No. Vouchers or Other Subsidy | P83: AMI | Q83: RA Units to Be Transferred | R83: 3 Yr Avg Rent Loss | S83: No. Vouchers or Other Subsidy | T83: AMI | U83: RA Units to Be Transferred | V83: 3 Yr Avg Rent Loss | W83: No. Vouchers or Other Subsidy | X83: AMI | Y83: RA Units to Be Transferred | Z83: 3 Yr Avg Rent Loss | AA83: No. Vouchers or Other Subsidy | AB83: AMI
E84: 0 | F84: 0 | G84: 0 | H84: 0 | I84: 0 | J84: 0 | K84: 0 | L84: 0 | M84: 0 | N84: 0 | O84: 0 | P84: 0 | Q84: 0 | R84: 0 | S84: 0 | T84: 0 | U84: 0 | V84: 0 | W84: 0 | X84: 0 | Y84: 0 | Z84: 0 | AA84: 0 | AB84: 0
C86: Consolidated Property Rent Summary | E86: Weighted Averages
C87: Current Revenue Units Rental & Utility Rates | E87: 0
E88: # Units | F88: Rent | G88: Utility | H88: CRCU
C89: =C78 -> 0 Bedroom | E89: =SUM(E78,I78,M78,Q78,U78,Y78) -> 0 | F89: =IFERROR(SUM(E78*F78,I78*J78,M78*N78,Q78*R78,U78*V78,Y78*Z78)/E89,"") ->  | G89: =IFERROR(SUM(E78*G78,I78*K78,M78*O78,Q78*S78,U78*W78,Y78*AA78)/E89,"") ->  | H89: =IFERROR(SUM(E78*H78,I78*L78,M78*P78,Q78*T78,U78*X78,Y78*AB78)/E89,"") -> 
C90: =C79 -> 1 Bedroom | E90: =SUM(E79,I79,M79,Q79,U79,Y79,) -> 0 | F90: =IFERROR(SUM(E79*F79,I79*J79,M79*N79,Q79*R79,U79*V79,Y79*Z79)/E90,"") ->  | G90: =IFERROR(SUM(E79*G79,I79*K79,M79*O79,Q79*S79,U79*W79,Y79*AA79)/E90,"") ->  | H90: =IFERROR(SUM(E79*H79,I79*L79,M79*P79,Q79*T79,U79*X79,Y79*AB79)/E90,"") -> 
C91: =C80 -> 2 Bedroom | E91: =SUM(E80,I80,M80,Q80,U80,Y80) -> 0 | F91: =IFERROR(SUM(E80*F80,I80*J80,M80*N80,Q80*R80,U80*V80,Y80*Z80)/E91,"") ->  | G91: =IFERROR(SUM(E80*G80,I80*K80,M80*O80,Q80*S80,U80*W80,Y80*AA80)/E91,"") ->  | H91: =IFERROR(SUM(E80*H80,I80*L80,M80*P80,Q80*T80,U80*X80,Y80*AB80)/E91,"") -> 
C92: =C81 -> 3 Bedroom | E92: =SUM(E81,I81,M81,Q81,U81,Y81) -> 0 | F92: =IFERROR(SUM(E81*F81,I81*J81,M81*N81,Q81*R81,U81*V81,Y81*Z81)/E92,"") ->  | G92: =IFERROR(SUM(E81*G81,I81*K81,M81*O81,Q81*S81,U81*W81,Y81*AA81)/E92,"") ->  | H92: =IFERROR(SUM(E81*H81,I81*L81,M81*P81,Q81*T81,U81*X81,Y81*AB81)/E92,"") -> 
C93: =C82 -> 4 Bedroom | E93: =SUM(E82,I82,M82,Q82,U82,Y82) -> 0 | F93: =IFERROR(SUM(E82*F82,I82*J82,M82*N82,Q82*R82,U82*V82,Y82*Z82)/E93,"") ->  | G93: =IFERROR(SUM(E82*G82,I82*K82,M82*O82,Q82*S82,U82*W82,Y82*AA82)/E93,"") ->  | H93: =IFERROR(SUM(E82*H82,I82*L82,M82*P82,Q82*T82,U82*X82,Y82*AB82)/E93,"") -> 
C94: RA Units to Be Transferred | E94: =E84+I84+M84+Q84+U84+Y84 -> 0
C95: 3 Yr Avg Rent Loss | E95: =IFERROR(AVERAGE(F84,J84,N84,R84,V84,Z84),0) -> 0
C96: Number Vouchers or Other Subsidy | E96: =SUM(G84,K84,O84,S84,W84,AA84) -> 0

Sheet LIHTC Details (hidden)
B4: Insert a copy of your Tax Credit Application & Supporting Documents
B5: Click File Folder to Start >>>>
B6: "Create From File"
B7: "Check Display As Icon"
B8: "Browse" (Select Your File)
B9: "Open"
B10: "Ok"

Sheet 2nd(MPR)InterimBudget (hidden)
E1: Enter the following Start Dates: | J1: Decisions: | K1: =IF(AND(D26<K33,K33<L33),FALSE,TRUE) -> FALSE | M1: =IF(OR(C26<L33,C26>L33),TRUE,(IF(AND(C26>=M32),TRUE,FALSE))) -> TRUE | O1: =IF(OR(B26<L33,B26>L33),TRUE,IF(B26>N32,TRUE,FALSE)) -> TRUE | P1: =IF(A26>L33,TRUE,(IF(AND(A26>O32),TRUE,FALSE))) -> TRUE
E2: Date of Transfer Closing | F2: ='2nd(MPR)GeneralInfo'!D42 -> 2018-03-01 | G2: xx/xx/xx format
E3: Fiscal Year Stats (Month Date 1/1, 10/1, 6/1 etc) | F3: 2016-01-01 | G3: xx/xx format
E4: Date PLACED IN SERVICE or date Debt Service for 3rd Party Loans Starts: | G4: xx/xx/xx format
E5: Date RD MPR Loans Start: | G5: xx/xx/xx format | M5: =IF(YEAR(L13)<YEAR(C12),C12,L13) -> 2019-01-01 | O5: =IF(YEAR(L13)<YEAR(B12),B12,L13) -> 2020-01-01 | P5: =IF(YEAR(L13)<YEAR(A12),A12,L13) -> 2021-01-01
E6: Date Deferral Start: | G6: xx/xx/xx format | M6: =MONTH(M5) -> 1
E7: =M88 -> Determine Use of Cash on Line 30 during Interim Budget Period (Reserve, GOA, Vacancy, O&M) | M7: =DATE(YEAR(N30)+1,MONTH(N30),1) -> 2020-01-01 | O7: =DATE(YEAR(O30)+1,MONTH(O30),1) -> 2021-01-01 | P7: =DATE(YEAR(P30)+1,MONTH(P30),1) -> 2022-01-01
E8: Reserve Prorated from Closing (Transfer Year) | F8: =IF(D12>=$E$18,$L$57,$L$57/12*$P$10) -> 18750 | N8: =12-MONTH(L11) -> 9
E9: First Monthly Deposit Due on: | F9: =IF(O12>1,O12) -> 2018-04-01 | J9: DATE(YEAR(L12)+1,MONTH(L12),1) | N9: ClosingDay | O9: ClosingMonth | P9: =TEXT(O12,"mm") -> 04 | Q9: Reserve first Month
E10: Amount of Deposit is: | F10: =L57/12 -> 2083.333333 | N10: =DAY(L11) -> 1 | O10: =TEXT(L11,"mm") -> 03 | P10: =IF(N12>=P9,N12-P9,12+(N12-P9)) -> 9 | Q10: (reserve sizing deposits after closing)
I11: Transfer Closing Date | L11: =F2 -> 2018-03-01 | N11: =YEAR(L11) -> 2018 | O11: First Reserve Dep
A12: =DATE(YEAR(B12)+1,MONTH(B12),1) -> 2021-01-01 | B12: =DATE(YEAR(C12)+1,MONTH(C12),1) -> 2020-01-01 | C12: =DATE(YEAR(D12)+1,MONTH(N12),1) -> 2019-01-01 | D12: =M30 -> 2018-03-01 | F12: =SUMIF('Sources & Uses'!B10:H21,1,'Sources & Uses'!I10:I21) -> 0 | G12: MPR Debts | L12: =F3 -> 2016-01-01 | N12: =TEXT(L12,"mm") -> 01 | O12: =IF(N10=1,DATE(YEAR(L11),MONTH(L11)+1,1),DATE(YEAR(L11),MONTH(L11)+2,1)) -> 2018-04-01 | P12: =IF(O10=1,DATE(YEAR(O12),MONTH(O12),1),DATE(YEAR(O12),MONTH(O12)+N8,1)) -> 2019-01-01
B13: 2nd YrL | C13: 1st Yr (M) | D13: Closing Date (L) Period | F13: =ROUND(-DashData!D23,0) -> 0 | G13: Debt Service for 3rd Party Loans starts (12 Mos Default) | L13: =F4 -> 00:00:00 | M13: =TEXT(L13,"mm") -> 01 | N13: =IF(L13<>"",IF(N12>=M13,N12-M13,12+(N12-M13)),0) -> 0 | O13: =MONTH(O12) -> 4 | P13: =12-O13+1 -> 9 | Q13: =TEXT(L13,"yyyy") -> 1900
D14: amts | E14: Effective Dates for Change | F14: Interium Budget Decisions | I14: Unit Types from GeneralInfo Page | J14: ='2nd(MPR)Rents & Operations'!G13 -> Post Transfer Rev Units | K14: Pre Transfer Rents | L14: (Prospective Rent) Post Transfer Rents | M14: =M28 &" "& M29&" "& TEXT(M30,"mm/dd/yy")&" "& M31 -> Transfer Closing 03/01/18 Effective Date | N14: =N28 &" "& N29&" "& TEXT(N30,"mm/dd/yy")&" "& N31 -> 2nd Budget 01/01/19 Effective Date | O14: =O28 &" "& O29&" "& TEXT(O30,"mm/dd/yy")&" "& O31 -> 3rd Budget 01/01/20 Effective Date | P14: =P28 &" "& P29&" "& TEXT(P30,"mm/dd/yy")&" "& P31 -> 4th Budget 01/01/21 Effective Date
A15: =ROUND((GeneralInfo!M85*12),0) -> 17570 | B15: =ROUND((GeneralInfo!M85*12),0) -> 17570 | C15: =ROUND((GeneralInfo!M85*12),0) -> 17570 | D15: =ROUND((GeneralInfo!M85*12),0) -> 17570 | E15: =O12 -> 2018-04-01 | F15: 1. RD Assumed Ln | I15: ='2nd(MPR)Rents & Operations'!D14 -> Studio | J15: ='2nd(MPR)Rents & Operations'!G14 -> 0 | K15: ='2nd(MPR)Rents & Operations'!I14 -> 0 | L15: ='2nd(MPR)Rents & Operations'!L14 -> 0 | M15: =M75 -> 0 | N15: 0 | O15: 0 | P15: 0
A16: =IF(L13="",0,IF(YEAR(A12)<YEAR(E16),0,IF(AND(A12>=$E$16,B16<=$L$61),$L$61,$L$61/12*$N$13))) -> 44127 | B16: =IF(L13="",0,IF(YEAR(B12)<YEAR(E16),0,ROUND(IF(AND(B12>=$E$16,C16<=$L$61),$L$61,$L$61/12*$N$13),0))) -> 44127 | C16: =IF(L13="",0,IF(YEAR(C12)<YEAR(E16),0,IF(AND(C12>=$E$16,D16<=$L$61),$L$61,$L$61/12*$N$13))) -> 44127 | D16: =IF(L13="",0,IF(YEAR(D12)<YEAR(E16),0,IF(D12<E16,IF(D12>=$E$16,$L$61,$L$61/12*$N$13),0))) -> 0 | E16: =L13 -> 00:00:00 | F16: 2. New Loans | I16: ='2nd(MPR)Rents & Operations'!D15 -> 1 BR | J16: ='2nd(MPR)Rents & Operations'!G15 -> 15 | K16: ='2nd(MPR)Rents & Operations'!I15 -> 487 | L16: ='2nd(MPR)Rents & Operations'!L15 -> 652 | M16: 487 | N16: 652 | O16: 652 | P16: 652
A17: =IF(F5="",0,-IF(YEAR($A$12)<YEAR(E17),0,ROUND(IF(AND($A$12>=$E$17,B17<=F12),F12,F12/12*$N$13),0))) -> 0 | B17: =IF(F5="",0,-IF(YEAR($B$12)<YEAR(E17),0,ROUND(IF(AND($B$12>=$E$17,C17<=F12),F12,F12/12*$N$13),0))) -> 0 | C17: =IF(F5="",0,-IF(YEAR($C$12)<YEAR(E17),0,ROUND(IF(AND($C$12>=$E$17,D17<=F12),F12,F12/12*$N$13),0))) -> 0 | D17: =IF(F5="",0,IF(D12<E17,0,IF(D12>=$E$17,F12/12*$N$13))) -> 0 | E17: =IF(F5="","",F5) ->  | F17: 3.MPR Loans Start | I17: ='2nd(MPR)Rents & Operations'!D16 -> 2 BR | J17: ='2nd(MPR)Rents & Operations'!G16 -> 24 | K17: ='2nd(MPR)Rents & Operations'!I16 -> 598 | L17: ='2nd(MPR)Rents & Operations'!L16 -> 763 | M17: 598 | N17: 763 | O17: 763 | P17: 763
A18: =$L$57 -> 25000 | B18: =$L$57 -> 25000 | C18: =$L$57 -> 25000 | D18: =$L$57 -> 25000 | E18: =O12 -> 2018-04-01 | F18: 4. New Reserve Deposit | I18: ='2nd(MPR)Rents & Operations'!D17 -> 3 BR | J18: ='2nd(MPR)Rents & Operations'!G17 -> 0 | K18: ='2nd(MPR)Rents & Operations'!I17 -> 0 | L18: ='2nd(MPR)Rents & Operations'!L17 -> 0 | M18: 0 | N18: 0 | O18: 0 | P18: 0
A19: =IF(YEAR(A12)<YEAR(E19),0,ROUND(IF(AND(A12>=$E$19,B19<=$L$58),$L$58,$L$58/12*$N$13),0)) -> 33825 | B19: =IF(YEAR(B12)<YEAR(E19),0,ROUND(IF(AND(B12>=$E$19,C19<=$L$58),$L$58,$L$58/12*$N$13),0)) -> 33825 | C19: =IF(YEAR($C$12)<YEAR(E19),0,ROUND(IF(AND($C$12>=$E$19,D19<=$L$58),$L$58,$L$58/12*$N$13),0)) -> 33825 | D19: =IF(L13="",0,IF(YEAR(D12)<YEAR(E19),0,IF(D12<E19,IF(D12>=$E$19,$L$58,$L$58/12*$N$13),0))) -> 0 | E19: =E16 -> 00:00:00 | F19: 5. New RTO | I19: ='2nd(MPR)Rents & Operations'!D18 -> 4 BR | J19: ='2nd(MPR)Rents & Operations'!G18 -> 0 | K19: ='2nd(MPR)Rents & Operations'!I18 -> 0 | L19: ='2nd(MPR)Rents & Operations'!L18 -> 0 | M19: 0 | N19: 0 | O19: 0 | P19: 0
A20: =IF(F6="",0,-IF(YEAR($A$12)<YEAR(E20),0,ROUND(IF(AND($A$12>=$E$20,B20<=F13),F13,F13/12*$N$13),0))) -> 0 | B20: =IF(F6="",0,-IF(YEAR($B$12)<YEAR(E20),0,ROUND(IF(AND($B$12>=$E$20,C20<=F13),F13,F13/12*$N$13),0))) -> 0 | C20: =IF(F6="",0,-IF(YEAR($C$12)<YEAR(E20),0,ROUND(IF(AND($C$12>=$E$20,D20<=F13),F13,F13/12*$N$13),0))) -> 0 | D20: =IF(F6="",0,-IF(D12<E20,0,IF(D12>=$E$20,F13/12*$N$13))) -> 0 | E20: =IF(F6="","",F6) ->  | F20: 6. Deferral Effective | I20: ='2nd(MPR)Rents & Operations'!D19 -> TOTAL | J20: ='2nd(MPR)Rents & Operations'!G19 -> 39 | K20: ='2nd(MPR)Rents & Operations'!I19 -> 555 | L20: ='2nd(MPR)Rents & Operations'!L19 -> 720 | M20: =IF(SUM(M15:M19)>0,ROUND((PRODUCT($J$15,M15)+PRODUCT($J$16,M16)+PRODUCT($J$17,M17)+PRODUCT($J$18,M18)+PRODUCT($J$19,M19))/J20,0),0) -> 555 | N20: =IF(SUM(N15:N19)>0,ROUND((PRODUCT($J$15,N15)+PRODUCT($J$16,N16)+PRODUCT($J$17,N17)+PRODUCT($J$18,N18)+PRODUCT($J$19,N19))/J20,0),0) -> 720 | O20: =IF(SUM(O15:O19)>0,ROUND((PRODUCT($J$15,O15)+PRODUCT($J$16,O16)+PRODUCT($J$17,O17)+PRODUCT($J$18,O18)+PRODUCT($J$19,O19))/J20,0),0) -> 720 | P20: =IF(SUM(P15:P19)>0,ROUND((PRODUCT($J$15,P15)+PRODUCT($J$16,P16)+PRODUCT($J$17,P17)+PRODUCT($J$18,P18)+PRODUCT($J$19,P19))/J20,0),0) -> 720
B24: =ROUND(IF(AND($B$12>=E19,C19<=$L$58),$L$58,$L$58/12*$N$13),0) -> 33825 | E24: =GeneralInfo!K38 -> 0 | F24: 7. 538 Fee excluded for interim (line 32) | J24: Rent Increase as % | L24: =L20/K20-1 -> 0.2972972973 | M24: =M20/K20-1 -> 0 | N24: =N20/M20-1 -> 0.2972972973 | O24: =O20/N20-1 -> 0 | P24: =P20/O20-1 -> 0 | S24: PART II - OPERATING AND MAINETNANCE EXPENSE SCHEDULE | AD24: 4
F25: 8. Need to Increase rent loss for rehab period | K25: =K20*J20*12 -> 259740 | S25: =L27 -> Project(s) Below SHADY SHORES APTS | W25: =MFIS!Q2 -> 2018 | X25: Placed in Service | Y25: =M30 -> 2018-03-01 | Z25: 1st Yr | AA25: 2nd Yr | AB25: Comments Required if Subtotals Highlighted
A26: =(SUM(A29:A34)-A27)/A28 -> 337104.4511 | B26: =(SUM(B29:B34)-B27)/B28 -> 337104.4511 | C26: =(SUM(C29:C34)-C27)/C28 -> 337104.4511 | D26: =(SUM(D29:D34)-D27)/D28 -> 255049.7142 | E26: Needed Revenue | W26: CURRENT BUDGET | Y26: Transfer Closing | Z26: =N30 -> 2019-01-01 | AA26: =O30 -> 2020-01-01 | AB26: COMMENTS
A27: =SUM(L35:L39) -> 4208 | B27: =SUM(L35:L39) -> 4208 | C27: =SUM(M35:M39) -> 4208 | D27: =SUM(M35:M39) -> 4208 | E27: Other income | F27: From Form RD 3560-7 | H27: PART I - CASH FLOW STATEMENT | L27: ="Project(s) Below "&'MFIS ProjectA'!G2 &" "&'MFIS ProjectB'!G2&" "&'MFIS ProjectC'!G2& " "&'MFIS ProjectD'!G2&" "&'MFIS ProjectD'!G2&" "&'MFIS ProjectF'!G2 -> Project(s) Below SHADY SHORES APTS
A28: =1-(Q40) -> 0.95 | B28: =1-(Q40) -> 0.95 | C28: =1-(Q40) -> 0.95 | D28: =1-(Q40) -> 0.95 | E28: Vacancy | K28: CURRENT | L28: Placed | M28: Transfer | N28: 2nd | O28: 3rd | P28: 4th | Q28: COMMENTS | S28: 1 | T28: MAINTENANCE & REPAIRS PAYROLL | W28: ='2nd(MPR)Rents & Operations'!S27 -> 25552 | X28: ='2nd(MPR)Rents & Operations'!V27 -> 26319 | Y28: =X28 -> 26319 | Z28: =X28 -> 26319 | AA28: =X28 -> 26319
A29: =L51 -> 203669 | B29: =M51 -> 203669 | C29: =N51 -> 203669 | D29: =M51 -> 203669 | E29: O&M | K29: BUDGET | L29: In | M29: Closing | N29: Budget | O29: Budget | P29: Budget | Q29: or YTD | S29: 2 | T29: MAINTENANCE & REPAIRS SUPPLY | W29: ='2nd(MPR)Rents & Operations'!S28 -> 12500 | X29: ='2nd(MPR)Rents & Operations'!V28 -> 12875 | Y29: =X29 -> 12875 | Z29: =X29 -> 12875 | AA29: =X29 -> 12875
A30: =A15+A20+A17 -> 17570 | B30: =B15+B20+B17 -> 17570 | C30: =C15+C20+C17 -> 17570 | D30: =D15+D17+D20 -> 17570 | E30: RD DS | K30: =MFIS!Q2 -> 2018 | L30: Service | M30: =L11 -> 2018-03-01 | N30: =IF(DATE(YEAR(L11)+1,MONTH(L12),1)=M5,M5,DATE(YEAR(L11)+1,MONTH(L12),1)) -> 2019-01-01 | O30: =IF(O33=N33,B12,IF(M5=N30,B12,IF(M7<L13,M7,M5))) -> 2020-01-01 | P30: =IF(P33=O33,A12,IF(O7<L13,O7,O5)) -> 2021-01-01 | Q30: ( - - ) | S30: 3 | T30: MAINTENANCE & REPAIRS CONTRACT | W30: ='2nd(MPR)Rents & Operations'!S29 -> 6500 | X30: ='2nd(MPR)Rents & Operations'!V29 -> 6695 | Y30: 6695 | Z30: 6695 | AA30: 6695
A31: =A18 -> 25000 | B31: =B18 -> 25000 | C31: =C18 -> 25000 | D31: =D18 -> 25000 | E31: Reserve | M31: Effective Date | N31: Effective Date | O31: Effective Date | P31: Effective Date | Q31: ( - - ) | S31: 4 | T31: PAINTING AND DECORATING …….. | W31: ='2nd(MPR)Rents & Operations'!S30 -> 1000 | X31: ='2nd(MPR)Rents & Operations'!V30 -> 1030 | Y31: 1030 | Z31: 1030 | AA31: 1030
A32: =A16 -> 44127 | B32: =B16 -> 44127 | C32: =C16 -> 44127 | D32: =D16 -> 0 | E32: 3rd Pty DS | F32: OPERATIONAL CASH SOURCES | M32: =ROUND(IF(AND(D26<K33,D26<L33),MIN(L33,K33),(IF(K1=TRUE,D26,K33))),0) -> 259884 | N32: =ROUND(IF(M1,C26,M33),0) -> 337104 | O32: =ROUND(IF(O1,B26,N33),0) -> 337104 | P32: =ROUND(IF(P1,A26,O33),0) -> 337104 | S32: 5 | T32: SNOW REMOVAL . . . . . . . . . . . . . . . . | W32: ='2nd(MPR)Rents & Operations'!S31 -> 0 | X32: ='2nd(MPR)Rents & Operations'!V31 -> 0 | Y32: 0 | Z32: 0 | AA32: 0
A33: =A19 -> 33825 | B33: =B19 -> 33825 | C33: =C19 -> 33825 | D33: =D19 -> 0 | E33: RTO | F33: 1 | G33: RENTAL INCOME . . . . . . . | K33: ='2nd(MPR)Rents & Operations'!H32 -> 259884 | L33: ='2nd(MPR)Rents & Operations'!K32 -> 337104 | M33: =(PRODUCT(M15,$J$15)+PRODUCT(M16,$J$16)+PRODUCT(M17,$J$17)+PRODUCT(M18,$J$18)+PRODUCT(M19,$J$19))*12 -> 259884 | N33: =(PRODUCT(N15,$J$15)+PRODUCT(N16,$J$16)+PRODUCT(N17,$J$17)+PRODUCT(N18,$J$18)+PRODUCT(N19,$J$19))*12 -> 337104 | O33: =(PRODUCT(O15,$J$15)+PRODUCT(O16,$J$16)+PRODUCT(O17,$J$17)+PRODUCT(O18,$J$18)+PRODUCT(O19,$J$19))*12 -> 337104 | P33: =(PRODUCT(P15,$J$15)+PRODUCT(P16,$J$16)+PRODUCT(P17,$J$17)+PRODUCT(P18,$J$18)+PRODUCT(P19,$J$19))*12 -> 337104 | S33: 6 | T33: ELEVATOR MAINT/CONTRACT…….. | W33: ='2nd(MPR)Rents & Operations'!S32 -> 0 | X33: ='2nd(MPR)Rents & Operations'!V32 -> 0 | Y33: 0 | Z33: 0 | AA33: 0
A34: =IF($L$68>0,$L$68,0) -> 266.2285205 | B34: =IF($L$68>0,$L$68,0) -> 266.2285205 | C34: =IF($L$68>0,$L$68,0) -> 266.2285205 | D34: =IF($L$68>0,$L$68,0) -> 266.2285205 | E34: Line 30 + | F34: 2 | G34: RHS RENTAL ASSISTANCE RECEIVED . . | S34: 7 | T34: GROUNDS . . . . . . . . . . . . . . . . . . | W34: ='2nd(MPR)Rents & Operations'!S33 -> 7500 | X34: ='2nd(MPR)Rents & Operations'!V33 -> 7725 | Y34: 7725 | Z34: 7725 | AA34: 7725
A35: =O33-A26 -> -0.4510741629 | B35: =B26-N33 -> 0.4510741629 | C35: =C26-M33 -> 77220.45107 | D35: =M33-K33 -> 0 | F35: 3 | G35: APPLICATION FEES RECEIVED . . . . . . | K35: ='2nd(MPR)Rents & Operations'!H34 -> 0 | L35: ='2nd(MPR)Rents & Operations'!K34 -> 550 | M35: =L35 -> 550 | N35: =L35 -> 550 | O35: =L35 -> 550 | P35: 550 | S35: 8 | T35: SERVICES . . . . . . . . . . . . . | W35: ='2nd(MPR)Rents & Operations'!S34 -> 0 | X35: ='2nd(MPR)Rents & Operations'!V34 -> 0 | Y35: 0 | Z35: 0 | AA35: 0
A36: =A35/12/J20 -> -0.0009638336814 | B36: =B35/12/J20 -> 0.0009638336814 | C36: =C35/12/J20 -> 165.0009638 | D36: =D35/12/J20 -> 0 | F36: 4 | G36: LAUNDRY AND VENDING . . . . . . . . . | K36: ='2nd(MPR)Rents & Operations'!H35 -> 1500 | L36: ='2nd(MPR)Rents & Operations'!K35 -> 1492 | M36: =L36 -> 1492 | N36: =L36 -> 1492 | O36: 1492 | P36: 1492 | S36: 9 | T36: CAPITAL BUDGET (Part V operating) | W36: ='2nd(MPR)Rents & Operations'!S35 -> 3782 | X36: ='2nd(MPR)Rents & Operations'!V35 -> 0 | Y36: 0 | Z36: 0 | AA36: 0
A37: ACTUAL RENT CHANGE | F37: 5 | G37: INTEREST INCOME . . . . . . . . | K37: ='2nd(MPR)Rents & Operations'!H36 -> 250 | L37: ='2nd(MPR)Rents & Operations'!K36 -> 438 | M37: =L37 -> 438 | N37: =L37 -> 438 | O37: 438 | P37: 438 | S37: 10 | T37: OTHER OPERATING EXPENSES (Itemize) | W37: ='2nd(MPR)Rents & Operations'!S36 -> 0 | X37: ='2nd(MPR)Rents & Operations'!V36 -> 0 | Y37: 0 | Z37: 0 | AA37: 0
A38: =ROUND((P32-O33)/J20/12,0) -> 0 | B38: =ROUND((O32-N33)/J20/12,0) -> 0 | C38: =-ROUND((M33-N32)/J20/12,0) -> 165 | D38: =-ROUND((K33-M32)/J20/12,0) -> 0 | E38: =(M32-L33)/J20/12 -> -165 | F38: 6 | G38: TENANT CHARGES . . . . . . . . . . . . . . | K38: ='2nd(MPR)Rents & Operations'!H37 -> 1500 | L38: ='2nd(MPR)Rents & Operations'!K37 -> 1728 | M38: =L38 -> 1728 | N38: =L38 -> 1728 | O38: 1728 | P38: 1728 | S38: 11 | T38: SUB-TOTAL MAINT. & OPERATING (1 thru 10) . . | W38: =SUM(W28:W37) -> 56834 | X38: =SUM(X28:X37) -> 54644 | Y38: =SUM(Y28:Y37) -> 54644 | Z38: =SUM(Z28:Z37) -> 54644 | AA38: =SUM(AA28:AA37) -> 54644
F39: 7 | G39: OTHER - PROJECT SOURCES . . . . . . . . . . . | K39: ='2nd(MPR)Rents & Operations'!H38 -> 0 | L39: ='2nd(MPR)Rents & Operations'!K38 -> 0 | M39: =L39 -> 0 | N39: =L39 -> 0 | O39: 0 | P39: 0 | Y39: =DashData!$AB$145 -> 0.009116595158 | Z39: =DashData!$AB$145 -> 0.009116595158 | AA39: =DashData!$AB$145 -> 0.009116595158 | AB39: =DashData!$AB$145 -> 0.009116595158 | AC39: =DashData!$AB$145 -> 0.009116595158 | AD39: =DashData!$AB$145 -> 0.009116595158
F40: 8 | G40: LESS (Vacancy and Contingency Allowance) . | J40: =L40/L33 -> -0.05 | K40: ='2nd(MPR)Rents & Operations'!H39 -> -6288 | L40: ='2nd(MPR)Rents & Operations'!K39 -> -16855.2 | M40: =ROUND(M33*J40,0) -> -12994 | N40: =ROUND(N33*J40,0) -> -16855 | O40: =ROUND(O33*J40,0) -> -16855 | P40: =ROUND(P33*J40,0) -> -16855 | Q40: =-J40 -> 0.05 | S40: 12 | T40: ELECTRICITY . . . . . . . . | W40: ='2nd(MPR)Rents & Operations'!S39 -> 5700 | X40: ='2nd(MPR)Rents & Operations'!V39 -> 5062 | Y40: =X40 -> 5062 | Z40: =X40 -> 5062 | AA40: =X40 -> 5062
F41: 9 | G41: LESS (Agency Approved Incentive Allowances) | K41: ='2nd(MPR)Rents & Operations'!H40 -> 0 | L41: ='2nd(MPR)Rents & Operations'!K40 -> 0 | S41: 13 | T41: WATER . . . . . . . . . . | W41: ='2nd(MPR)Rents & Operations'!S40 -> 21000 | X41: ='2nd(MPR)Rents & Operations'!V40 -> 20276 | Y41: 20276 | Z41: 20276 | AA41: 20276
F42: 10 | G42: SUB-TOTAL [(1 thru 7) - (8 & 9)] . . . . . . . . . . . . . . . . . . . . . . . . . | K42: =SUM(K33:K41) -> 256846 | L42: 324456.8 | M42: 251098 | N42: 324457 | O42: 324457 | P42: 324457 | S42: 14 | T42: SEWER . . . . . . . . . . . . . . . . | W42: ='2nd(MPR)Rents & Operations'!S41 -> 9400 | X42: ='2nd(MPR)Rents & Operations'!V41 -> 9803 | Y42: 9803 | Z42: 9803 | AA42: 9803
F43: NON-OPERATIONAL CASH SOURCES | S43: 15 | T43: FUEL (Oil/Coal/Gas) . . . . . . | W43: ='2nd(MPR)Rents & Operations'!S42 -> 6200 | X43: ='2nd(MPR)Rents & Operations'!V42 -> 5536 | Y43: 5536 | Z43: 5536 | AA43: 5536
F44: 11 | G44: CASH - NON PROJECT . . . . . . . . . . | K44: ='2nd(MPR)Rents & Operations'!H43 -> 0 | L44: ='2nd(MPR)Rents & Operations'!K43 -> 0 | M44: =L44 -> 0 | N44: =L44 -> 0 | O44: =L44 -> 0 | P44: 0 | S44: 16 | T44: GARBAGE & TRASH REMOVAL . | W44: ='2nd(MPR)Rents & Operations'!S43 -> 8900 | X44: ='2nd(MPR)Rents & Operations'!V43 -> 8512 | Y44: 8512 | Z44: 8512 | AA44: 8512
F45: 12 | G45: AUTHORIZED LOAN (Non-RHS). . . . . . . . | K45: ='2nd(MPR)Rents & Operations'!H44 -> 0 | L45: ='2nd(MPR)Rents & Operations'!K44 -> 0 | M45: =L45 -> 0 | N45: =L45 -> 0 | O45: 0 | P45: 0 | S45: 17 | T45: OTHER UTILITIES . . . . | W45: ='2nd(MPR)Rents & Operations'!S44 -> 0 | X45: ='2nd(MPR)Rents & Operations'!V44 -> 0 | Y45: 0 | Z45: 0 | AA45: 0
F46: 13 | G46: TRANSFER FROM RESERVE . . . . . . . . | K46: ='2nd(MPR)Rents & Operations'!H45 -> 28382 | L46: ='2nd(MPR)Rents & Operations'!K45 -> 0 | M46: =L46 -> 0 | N46: =L46 -> 0 | O46: 0 | P46: 0 | S46: 18 | T46: SUB-TOTAL UTILITIES (12 thru 17) . . | W46: =SUM(W40:W45) -> 51200 | X46: =SUM(X40:X45) -> 49189 | Y46: =SUM(Y40:Y45) -> 49189 | Z46: =SUM(Z40:Z45) -> 49189 | AA46: =SUM(AA40:AA45) -> 49189
F47: 14 | G47: SUB-TOTAL (11 thru 13) . . . . | K47: =SUM(K44:K46) -> 28382 | L47: =SUM(L44:L46) -> 0 | M47: =SUM(M44:M46) -> 0 | N47: =L47 -> 0 | O47: 0 | P47: 0 | Y47: =DashData!$AB$146 -> 0.04441896511 | Z47: =DashData!$AB$146 -> 0.04441896511 | AA47: =DashData!$AB$146 -> 0.04441896511 | AB47: =DashData!$AB$146 -> 0.04441896511 | AC47: =DashData!$AB$146 -> 0.04441896511 | AD47: =DashData!$AB$146 -> 0.04441896511
S48: 19 | T48: SITE MANAGEMENT PAYROLL . | W48: ='2nd(MPR)Rents & Operations'!S47 -> 20200 | X48: ='2nd(MPR)Rents & Operations'!V47 -> 20806 | Y48: =X48 -> 20806 | Z48: =X48 -> 20806 | AA48: =X48 -> 20806
F49: 15 | G49: TOTAL CASH SOURCES (10 + 14) . . . . . . . . . . . . . . . . . . . . . . . | K49: =K42+K47 -> 285228 | L49: 324456.8 | M49: 251098 | N49: 324457 | O49: 324457 | P49: 324457 | S49: 20 | T49: MANAGEMENT FEE | W49: ='2nd(MPR)Rents & Operations'!S48 -> 28080 | X49: ='2nd(MPR)Rents & Operations'!V48 -> 29016 | Y49: =X49 -> 29016 | Z49: =X49 -> 29016 | AA49: =X49 -> 29016 | AB49: ='2nd(MPR)Rents & Operations'!W48 -> 62 | AC49: PUPM
F50: OPERATIONAL CASH USES | S50: 21 | T50: PROJECT AUDITING EXPENSE . . . . . . . | W50: ='2nd(MPR)Rents & Operations'!S49 -> 5200 | X50: ='2nd(MPR)Rents & Operations'!V49 -> 5356 | Y50: 5356 | Z50: 5356 | AA50: 5356
F51: 16 | G51: TOTAL O&M EXPENSES (From Part II) . | K51: =W72 -> 204724 | L51: =X72 -> 203669 | M51: =Y72 -> 203669 | N51: =Z72 -> 203669 | O51: =AA72 -> 203669 | P51: =O51 -> 203669 | S51: 22 | T51: COMPUTER EXPENSE & UPDATES | W51: ='2nd(MPR)Rents & Operations'!S50 -> 0 | X51: ='2nd(MPR)Rents & Operations'!V50 -> 0 | Y51: 0 | Z51: 0 | AA51: 0
F52: 17 | G52: RHS DEBT PAYMENT . . . . . . . . . . . . . . | K52: ='2nd(MPR)Rents & Operations'!H51 -> 36575 | L52: ='2nd(MPR)Rents & Operations'!K51 -> 17569.57148 | M52: =D30 -> 17570 | N52: =C30 -> 17570 | O52: =B30 -> 17570 | P52: =A30 -> 17570 | S52: 23 | T52: LEGAL EXPENSES . . . . . . . . . . . . . . | W52: ='2nd(MPR)Rents & Operations'!S51 -> 1000 | X52: ='2nd(MPR)Rents & Operations'!V51 -> 1030 | Y52: 1030 | Z52: 1030 | AA52: 1030
F53: 18 | G53: RHS PAYMENT (Overage) . . . . . . . | S53: 24 | T53: ADVERTISING . . . . . . . . . . . | W53: ='2nd(MPR)Rents & Operations'!S52 -> 600 | X53: ='2nd(MPR)Rents & Operations'!V52 -> 618 | Y53: 618 | Z53: 618 | AA53: 618
F54: 19 | G54: RHS PAYMENT (Late Fee) . . . . . . . . . | S54: 25 | T54: TELEPHONE & ANSWERING SERVICE | W54: ='2nd(MPR)Rents & Operations'!S53 -> 1820 | X54: ='2nd(MPR)Rents & Operations'!V53 -> 1854 | Y54: 1854 | Z54: 1854 | AA54: 1854
F55: 20 | G55: REDUCTION IN PRIOR YEAR PAYABLES . . | S55: 26 | T55: OFFICE SUPPLIES . . . | W55: ='2nd(MPR)Rents & Operations'!S54 -> 1800 | X55: ='2nd(MPR)Rents & Operations'!V54 -> 1875 | Y55: 1875 | Z55: 1875 | AA55: 1875
F56: 21 | G56: TENANT UTILITY PAYMENTS . . | S56: 27 | T56: OFFICE FURNITURE & EQUIPMENT | W56: ='2nd(MPR)Rents & Operations'!S55 -> 0 | X56: ='2nd(MPR)Rents & Operations'!V55 -> 0 | Y56: 0 | Z56: 0 | AA56: 0
F57: 22 | G57: TRANSFER TO RESERVE . . . . . . . . | K57: ='2nd(MPR)Rents & Operations'!H56 -> 10228 | L57: ='2nd(MPR)Rents & Operations'!K56 -> 25000 | M57: =D31 -> 25000 | N57: =C31 -> 25000 | O57: =B31 -> 25000 | P57: =A31 -> 25000 | S57: 28 | T57: TRAINING EXPENSE . . . | W57: ='2nd(MPR)Rents & Operations'!S56 -> 1000 | X57: ='2nd(MPR)Rents & Operations'!V56 -> 1030 | Y57: 1030 | Z57: 1030 | AA57: 1030
F58: 23 | G58: RETURN TO OWNER . . . . . . . . . . . . . . . | K58: ='2nd(MPR)Rents & Operations'!H57 -> 4312 | L58: =ROUND('2nd(MPR)Rents & Operations'!K57,0) -> 33825 | M58: =D33 -> 0 | N58: =C33 -> 33825 | O58: =B33 -> 33825 | P58: =A33 -> 33825 | Q58: =DashData!D27 -> 33825.29111 | S58: 29 | T58: HEALTH INS & OTHER EMP. BENEFITS | W58: ='2nd(MPR)Rents & Operations'!S57 -> 5250 | X58: ='2nd(MPR)Rents & Operations'!V57 -> 5408 | Y58: 5408 | Z58: 5408 | AA58: 5408
F59: 24 | G59: SUB-TOTAL (16 thru 23) . . . . . . . . . | K59: =SUM(K51:K58) -> 255839 | L59: 280063.5715 | M59: 246239 | N59: 280064 | O59: 280064 | P59: 280064 | S59: 30 | T59: PAYROLL TAXES . . . | W59: ='2nd(MPR)Rents & Operations'!S58 -> 0 | X59: ='2nd(MPR)Rents & Operations'!V58 -> 0 | Y59: 0 | Z59: 0 | AA59: 0
F60: NON-OPERATIONAL CASH USES | S60: 31 | T60: WORKER'S COMPENSATION . . | W60: ='2nd(MPR)Rents & Operations'!S59 -> 0 | X60: ='2nd(MPR)Rents & Operations'!V59 -> 0 | Y60: 0 | Z60: 0 | AA60: 0
F61: 25 | G61: AUTHORIZED DEBT PAYMENT (Non-RHS) | K61: ='2nd(MPR)Rents & Operations'!H60 -> 0 | L61: =ROUND('2nd(MPR)Rents & Operations'!K60,0) -> 44127 | M61: =D32 -> 0 | N61: =C32 -> 44127 | O61: =B32 -> 44127 | P61: =A32 -> 44127 | S61: 32 | T61: OTHER ADMIN EXPENSES (Itemize) | W61: ='2nd(MPR)Rents & Operations'!S60 -> 0 | X61: ='2nd(MPR)Rents & Operations'!V60 -> 0 | Y61: 0 | Z61: 0 | AA61: 0
F62: 26 | G62: LONG-TERM IMPROVEMENTS . . . . | K62: ='2nd(MPR)Rents & Operations'!H61 -> 28382 | L62: ='2nd(MPR)Rents & Operations'!K61 -> 0 | M62: =L62 -> 0 | S62: 33 | T62: SUB-TOTAL ADMNSTRATVE (19 thru 32) . . . . . . . . . . . . . | W62: =SUM(W48:W61) -> 64950 | X62: =SUM(X48:X61) -> 66993 | Y62: =SUM(Y48:Y61) -> 66993 | Z62: =SUM(Z48:Z61) -> 66993 | AA62: =SUM(AA48:AA61) -> 66993
F63: 27 | G63: MISCELLANEOUS . . . . | K63: ='2nd(MPR)Rents & Operations'!H62 -> 0 | L63: ='2nd(MPR)Rents & Operations'!K62 -> 0 | M63: =L63 -> 0 | Y63: =DashData!$AB$147 -> 0.1308153912 | Z63: =DashData!$AB$147 -> 0.1308153912 | AA63: =DashData!$AB$147 -> 0.1308153912 | AB63: =DashData!$AB$147 -> 0.1308153912 | AC63: =DashData!$AB$147 -> 0.1308153912 | AD63: =DashData!$AB$147 -> 0.1308153912
F64: 28 | G64: SUB-TOTAL (25 thru 27) . . . . . . . . . . . . . . . . . . . . . . . . . . . . . . . . | K64: =SUM(K61:K63) -> 28382 | L64: 44127 | M64: 0 | N64: 44127 | O64: 44127 | P64: 44127 | S64: 34 | T64: REAL ESTATE TAXES . . . . | W64: ='2nd(MPR)Rents & Operations'!S63 -> 21200 | X64: ='2nd(MPR)Rents & Operations'!V63 -> 21836 | Y64: =X64 -> 21836 | Z64: =X64 -> 21836 | AA64: =X64 -> 21836
S65: 35 | T65: SPECIAL ASSESSMENTS . . . . . . . . . . . . | W65: ='2nd(MPR)Rents & Operations'!S64 -> 0 | X65: ='2nd(MPR)Rents & Operations'!V64 -> 0 | Y65: 0 | Z65: 0 | AA65: 0
F66: 29 | G66: TOTAL CASH USES (24 + 28) . . . . . . . . . . . . . . . . . . . . . . | K66: =K59+K64 -> 284221 | L66: 324190.5715 | M66: 246239 | N66: 324191 | O66: 324191 | P66: 324191 | S66: 36 | T66: OTHER TAXES, LICENSES & PERMITS | W66: ='2nd(MPR)Rents & Operations'!S65 -> 600 | X66: ='2nd(MPR)Rents & Operations'!V65 -> 0 | Y66: 0 | Z66: 0 | AA66: 0
S67: 37 | T67: PROPERTY & LIABILITY INSURANCE | W67: ='2nd(MPR)Rents & Operations'!S66 -> 9900 | X67: ='2nd(MPR)Rents & Operations'!V66 -> 10947 | Y67: 10947 | Z67: 10947 | AA67: 10947
F68: 30 | G68: NET CASH (DEFICIT) (15 - 29) . . . . . . . . . . . . . . . . . . . . . . . . . . | K68: =K49-K66 -> 1007 | L68: 266.2285205 | M68: 4859 | N68: 266 | O68: 266 | P68: 266 | S68: 38 | T68: FIDELITY COVERAGE INSURANCE | W68: ='2nd(MPR)Rents & Operations'!S67 -> 40 | X68: ='2nd(MPR)Rents & Operations'!V67 -> 60 | Y68: 60 | Z68: 60 | AA68: 60
F69: CASH BALANCE | S69: 39 | T69: OTHER INSURANCE . . . . | W69: ='2nd(MPR)Rents & Operations'!S68 -> 0 | X69: ='2nd(MPR)Rents & Operations'!V68 -> 0 | Y69: 0 | Z69: 0 | AA69: 0
F70: 31 | G70: BEGINNING CASH BALANCE . . . . . . | K70: ='2nd(MPR)Rents & Operations'!H69 -> 59852 | L70: =CashAnalysis!H11 -> 34485.2 | M70: =CashAnalysis!H11 -> 34485.2 | N70: =M70+(M68/12*P10) -> 38129.45 | O70: =N72 -> 38395.45 | P70: =O72 -> 38661.45 | S70: 40 | T70: SUB-TOTAL TAXES & INSURANCE (34 thru 39) . . . . . . . . | W70: =SUM(W64:W69) -> 31740 | X70: =SUM(X64:X69) -> 32843 | Y70: =SUM(Y64:Y69) -> 32843 | Z70: =SUM(Z64:Z69) -> 32843 | AA70: =SUM(AA64:AA69) -> 32843
F71: 32 | G71: ACCRUAL TO CASH ADJUSTMENT . . . | AB71: =DashData!$AB$148 -> 0.07244199905 | AC71: =DashData!$AB$148 -> 0.07244199905 | AD71: =DashData!$AB$148 -> 0.07244199905
F72: 33 | G72: ENDING CASH BALANCE (30+31+32) . . | K72: =K68+K70 -> 60859 | L72: =L68+L70 -> 34751.42852 | M72: =M68+M70+M71 -> 39344.2 | N72: =N68+N70 -> 38395.45 | O72: =O68+O70 -> 38661.45 | P72: =P68+P70 -> 38927.45 | S72: 41 | T72: TOTAL O & M EXPENSES (11+18+33+40) . . . . . . . . . | W72: =SUM(W38,W46,W62,W70) -> 204724 | X72: =SUM(X38,X46,X62,X70) -> 203669 | Y72: =SUM(Y38,Y46,Y62,Y70) -> 203669 | Z72: =SUM(Z38,Z46,Z62,Z70) -> 203669 | AA72: =SUM(AA38,AA46,AA62,AA70) -> 203669
J75: =J15 -> 0 | M75: =IF($D$26=$L$33,L15,ROUND(IF(L15=0,0,K15+D38),0)) -> 0 | N75: =IF($C$26=$L$33,L15,IF(M15=0,0,M15+$C$38)) -> 0 | O75: =IF($B$26=$L$33,L15,IF(N15=0,0,N15+$B$38)) -> 0 | P75: =IF($A$26=$L$33,L15,IF(O15=0,0,O15+$A$38)) -> 0
J76: 15 | M76: =IF($D$26=$L$33,L16,ROUND(IF(L16=0,0,K16+D39),0)) -> 487 | N76: =IF($C$26=$L$33,L16,IF(M16=0,0,M16+$C$38)) -> 652 | O76: =IF($B$26=$L$33,L16,IF(N16=0,0,N16+$B$38)) -> 652 | P76: =IF($A$26=$L$33,L16,IF(O16=0,0,O16+$A$38)) -> 652
J77: 24 | M77: =IF($D$26=$L$33,L17,ROUND(IF(L17=0,0,K17+D40),0)) -> 598 | N77: =IF($C$26=$L$33,L17,IF(M17=0,0,M17+$C$38)) -> 763 | O77: =IF($B$26=$L$33,L17,IF(N17=0,0,N17+$B$38)) -> 763 | P77: =IF($A$26=$L$33,L17,IF(O17=0,0,O17+$A$38)) -> 763
G78: SUGGESTIONS | J78: 0 | M78: =IF($D$26=$L$33,L18,ROUND(IF(L18=0,0,K18+D41),0)) -> 0 | N78: =IF($C$26=$L$33,L18,IF(M18=0,0,M18+$C$38)) -> 0 | O78: =IF($B$26=$L$33,L18,IF(N18=0,0,N18+$B$38)) -> 0 | P78: =IF($A$26=$L$33,L18,IF(O18=0,0,O18+$A$38)) -> 0
J79: 0 | M79: =IF($D$26=$L$33,L19,ROUND(IF(L19=0,0,K19+D42),0)) -> 0 | N79: =IF($C$26=$L$33,L19,IF(M19=0,0,M19+$C$38)) -> 0 | O79: =IF($B$26=$L$33,L19,IF(N19=0,0,N19+$B$38)) -> 0 | P79: =IF($A$26=$L$33,L19,IF(O19=0,0,O19+$A$38)) -> 0
J80: 39 | M80: =IF(SUM(M75:M79)>0,ROUND((PRODUCT($J$15,M75)+PRODUCT($J$16,M76)+PRODUCT($J$17,M77)+PRODUCT($J$18,M78)+PRODUCT($J$19,M79))/J20,0),0) -> 555 | N80: =IF(SUM(N75:N79)>0,ROUND((PRODUCT($J$15,N75)+PRODUCT($J$16,N76)+PRODUCT($J$17,N77)+PRODUCT($J$18,N78)+PRODUCT($J$19,N79))/J20,0),0) -> 720 | O80: =IF(SUM(O75:O79)>0,ROUND((PRODUCT($J$15,O75)+PRODUCT($J$16,O76)+PRODUCT($J$17,O77)+PRODUCT($J$18,O78)+PRODUCT($J$19,O79))/J20,0),0) -> 720 | P80: =IF(SUM(P75:P79)>0,ROUND((PRODUCT($J$15,P75)+PRODUCT($J$16,P76)+PRODUCT($J$17,P77)+PRODUCT($J$18,P78)+PRODUCT($J$19,P79))/J20,0),0) -> 720
M84: =M20/K20-1 -> 0 | N84: =M20/K20-1 -> 0 | O84: =N20/M20-1 -> 0.2972972973 | P84: =P20/O20-1 -> 0
M88: =IF(M68>'2nd(MPR)InterimBudget'!L68,"Determine Use of Cash on Line 30 during Interim Budget Period (Reserve, GOA, Vacancy, O&M)","") -> Determine Use of Cash on Line 30 during Interim Budget Period (Reserve, GOA, Vacancy, O&M)

Sheet InterimBudget (hidden)
E1: Enter the following Start Dates: | J1: Decisions: | K1: =IF(AND(D26<K33,K33<L33),FALSE,TRUE) -> FALSE | M1: =IF(OR(C26<L33,C26>L33),TRUE,(IF(AND(C26>=M32),TRUE,FALSE))) -> TRUE | O1: =IF(OR(B26<L33,B26>L33),TRUE,IF(B26>N32,TRUE,FALSE)) -> TRUE | P1: =IF(A26>L33,TRUE,(IF(AND(A26>O32),TRUE,FALSE))) -> TRUE
E2: Date of Transfer Closing | F2: =GeneralInfo!D42 -> 2018-03-01 | G2: xx/xx/xx format
E3: Fiscal Year Stats (Month Date 1/1, 10/1, 6/1 etc) | F3: 2016-01-01 | G3: xx/xx format
E4: Date PLACED IN SERVICE or date Debt Service for 3rd Party Loans Starts: | G4: xx/xx/xx format
E5: Date RD MPR Loans Start: | G5: xx/xx/xx format | M5: =IF(YEAR(L13)<YEAR(C12),C12,L13) -> 2019-01-01 | O5: =IF(YEAR(L13)<YEAR(B12),B12,L13) -> 2020-01-01 | P5: =IF(YEAR(L13)<YEAR(A12),A12,L13) -> 2021-01-01
E6: Date Deferral Start: | G6: xx/xx/xx format | M6: =MONTH(M5) -> 1
E7: =M88 -> Determine Use of Cash on Line 30 during Interim Budget Period (Reserve, GOA, Vacancy, O&M) | M7: =DATE(YEAR(N30)+1,MONTH(N30),1) -> 2020-01-01 | O7: =DATE(YEAR(O30)+1,MONTH(O30),1) -> 2021-01-01 | P7: =DATE(YEAR(P30)+1,MONTH(P30),1) -> 2022-01-01
E8: Reserve Prorated from Closing (Transfer Year) | F8: =IF(D12>=$E$18,$L$57,$L$57/12*$P$10) -> 18750 | N8: =12-MONTH(L11) -> 9
E9: First Monthly Deposit Due on: | F9: =IF(O12>1,O12) -> 2018-04-01 | J9: DATE(YEAR(L12)+1,MONTH(L12),1) | N9: ClosingDay | O9: ClosingMonth | P9: =TEXT(O12,"mm") -> 04 | Q9: Reserve first Month
E10: Amount of Deposit is: | F10: =L57/12 -> 2083.333333 | N10: =DAY(L11) -> 1 | O10: =TEXT(L11,"mm") -> 03 | P10: =IF(N12>=P9,N12-P9,12+(N12-P9)) -> 9 | Q10: (reserve sizing deposits after closing)
I11: Transfer Closing Date | L11: =F2 -> 2018-03-01 | N11: =YEAR(L11) -> 2018 | O11: First Reserve Dep
A12: =DATE(YEAR(B12)+1,MONTH(B12),1) -> 2021-01-01 | B12: =DATE(YEAR(C12)+1,MONTH(C12),1) -> 2020-01-01 | C12: =DATE(YEAR(D12)+1,MONTH(N12),1) -> 2019-01-01 | D12: =M30 -> 2018-03-01 | F12: =SUMIF('Sources & Uses'!B10:H21,1,'Sources & Uses'!I10:I21) -> 0 | G12: MPR Debts | L12: =F3 -> 2016-01-01 | N12: =TEXT(L12,"mm") -> 01 | O12: =IF(N10=1,DATE(YEAR(L11),MONTH(L11)+1,1),DATE(YEAR(L11),MONTH(L11)+2,1)) -> 2018-04-01 | P12: =IF(O10=1,DATE(YEAR(O12),MONTH(O12),1),DATE(YEAR(O12),MONTH(O12)+N8,1)) -> 2019-01-01
B13: 2nd YrL | C13: 1st Yr (M) | D13: Closing Date (L) Period | F13: =ROUND(-DashData!D23,0) -> 0 | G13: Debt Service for 3rd Party Loans starts (12 Mos Default) | L13: =F4 -> 00:00:00 | M13: =TEXT(L13,"mm") -> 01 | N13: =IF(L13<>"",IF(N12>=M13,N12-M13,12+(N12-M13)),0) -> 0 | O13: =MONTH(O12) -> 4 | P13: =12-O13+1 -> 9 | Q13: =TEXT(L13,"yyyy") -> 1900
D14: amts | E14: Effective Dates for Change | F14: Interium Budget Decisions | I14: Unit Types from GeneralInfo Page | J14: ='Rents & Operations'!G13 -> Post Transfer Rev Units | K14: Pre Transfer Rents | L14: (Prospective Rent) Post Transfer Rents | M14: =M28 &" "& M29&" "& TEXT(M30,"mm/dd/yy")&" "& M31 -> Transfer Closing 03/01/18 Effective Date | N14: =N28 &" "& N29&" "& TEXT(N30,"mm/dd/yy")&" "& N31 -> 2nd Budget 01/01/19 Effective Date | O14: =O28 &" "& O29&" "& TEXT(O30,"mm/dd/yy")&" "& O31 -> 3rd Budget 01/01/20 Effective Date | P14: =P28 &" "& P29&" "& TEXT(P30,"mm/dd/yy")&" "& P31 -> 4th Budget 01/01/21 Effective Date
A15: =ROUND((GeneralInfo!M85*12),0) -> 17570 | B15: =ROUND((GeneralInfo!M85*12),0) -> 17570 | C15: =ROUND((GeneralInfo!M85*12),0) -> 17570 | D15: =ROUND((GeneralInfo!M85*12),0) -> 17570 | E15: =O12 -> 2018-04-01 | F15: 1. RD Assumed Ln | I15: ='Rents & Operations'!D14 -> Studio | J15: ='Rents & Operations'!G14 -> 0 | K15: ='Rents & Operations'!I14 -> 0 | L15: ='Rents & Operations'!L14 -> 0 | M15: =M75 -> 0 | N15: =N75 -> 0 | O15: 0 | P15: 0
A16: =IF(L13="",0,IF(YEAR(A12)<YEAR(E16),0,IF(AND(A12>=$E$16,B16<=$L$61),$L$61,$L$61/12*$N$13))) -> 44127 | B16: =IF(L13="",0,IF(YEAR(B12)<YEAR(E16),0,ROUND(IF(AND(B12>=$E$16,C16<=$L$61),$L$61,$L$61/12*$N$13),0))) -> 44127 | C16: =IF(L13="",0,IF(YEAR(C12)<YEAR(E16),0,IF(AND(C12>=$E$16,D16<=$L$61),$L$61,$L$61/12*$N$13))) -> 44127 | D16: =IF(L13="",0,IF(YEAR(D12)<YEAR(E16),0,IF(D12<E16,IF(D12>=$E$16,$L$61,$L$61/12*$N$13),0))) -> 0 | E16: =L13 -> 00:00:00 | F16: 2. New Loans | I16: ='Rents & Operations'!D15 -> 1 BR | J16: ='Rents & Operations'!G15 -> 15 | K16: ='Rents & Operations'!I15 -> 487 | L16: ='Rents & Operations'!L15 -> 655 | M16: 487 | N16: 655 | O16: 655 | P16: 655
A17: =IF(F5="",0,-IF(YEAR($A$12)<YEAR(E17),0,ROUND(IF(AND($A$12>=$E$17,B17<=F12),F12,F12/12*$N$13),0))) -> 0 | B17: =IF(F5="",0,-IF(YEAR($B$12)<YEAR(E17),0,ROUND(IF(AND($B$12>=$E$17,C17<=F12),F12,F12/12*$N$13),0))) -> 0 | C17: =IF(F5="",0,-IF(YEAR($C$12)<YEAR(E17),0,ROUND(IF(AND($C$12>=$E$17,D17<=F12),F12,F12/12*$N$13),0))) -> 0 | D17: =IF(F5="",0,IF(D12<E17,0,IF(D12>=$E$17,F12/12*$N$13))) -> 0 | E17: =IF(F5="","",F5) ->  | F17: 3.MPR Loans Start | I17: ='Rents & Operations'!D16 -> 2 BR | J17: ='Rents & Operations'!G16 -> 24 | K17: ='Rents & Operations'!I16 -> 598 | L17: ='Rents & Operations'!L16 -> 766 | M17: 598 | N17: 766 | O17: 766 | P17: 766
A18: =$L$57 -> 25000 | B18: =$L$57 -> 25000 | C18: =$L$57 -> 25000 | D18: =$L$57 -> 25000 | E18: =O12 -> 2018-04-01 | F18: 4. New Reserve Deposit | I18: ='Rents & Operations'!D17 -> 3 BR | J18: ='Rents & Operations'!G17 -> 0 | K18: ='Rents & Operations'!I17 -> 0 | L18: ='Rents & Operations'!L17 -> 0 | M18: 0 | N18: 0 | O18: 0 | P18: 0
A19: =IF(YEAR(A12)<YEAR(E19),0,ROUND(IF(AND(A12>=$E$19,B19<=$L$58),$L$58,$L$58/12*$N$13),0)) -> 33825 | B19: =IF(YEAR(B12)<YEAR(E19),0,ROUND(IF(AND(B12>=$E$19,C19<=$L$58),$L$58,$L$58/12*$N$13),0)) -> 33825 | C19: =IF(YEAR($C$12)<YEAR(E19),0,ROUND(IF(AND($C$12>=$E$19,D19<=$L$58),$L$58,$L$58/12*$N$13),0)) -> 33825 | D19: =IF(L13="",0,IF(YEAR(D12)<YEAR(E19),0,IF(D12<E19,IF(D12>=$E$19,$L$58,$L$58/12*$N$13),0))) -> 0 | E19: =E16 -> 00:00:00 | F19: 5. New RTO | I19: ='Rents & Operations'!D18 -> 4 BR | J19: ='Rents & Operations'!G18 -> 0 | K19: ='Rents & Operations'!I18 -> 0 | L19: ='Rents & Operations'!L18 -> 0 | M19: 0 | N19: 0 | O19: 0 | P19: 0
A20: =IF(F6="",0,-IF(YEAR($A$12)<YEAR(E20),0,ROUND(IF(AND($A$12>=$E$20,B20<=F13),F13,F13/12*$N$13),0))) -> 0 | B20: =IF(F6="",0,-IF(YEAR($B$12)<YEAR(E20),0,ROUND(IF(AND($B$12>=$E$20,C20<=F13),F13,F13/12*$N$13),0))) -> 0 | C20: =IF(F6="",0,-IF(YEAR($C$12)<YEAR(E20),0,ROUND(IF(AND($C$12>=$E$20,D20<=F13),F13,F13/12*$N$13),0))) -> 0 | D20: =IF(F6="",0,-IF(D12<E20,0,IF(D12>=$E$20,F13/12*$N$13))) -> 0 | E20: =IF(F6="","",F6) ->  | F20: 6. Deferral Effective | I20: ='Rents & Operations'!D19 -> TOTAL | J20: ='Rents & Operations'!G19 -> 39 | K20: ='Rents & Operations'!I19 -> 555 | L20: ='Rents & Operations'!L19 -> 723 | M20: =IF(SUM(M15:M19)>0,ROUND((PRODUCT($J$15,M15)+PRODUCT($J$16,M16)+PRODUCT($J$17,M17)+PRODUCT($J$18,M18)+PRODUCT($J$19,M19))/J20,0),0) -> 555 | N20: =IF(SUM(N15:N19)>0,ROUND((PRODUCT($J$15,N15)+PRODUCT($J$16,N16)+PRODUCT($J$17,N17)+PRODUCT($J$18,N18)+PRODUCT($J$19,N19))/J20,0),0) -> 723 | O20: =IF(SUM(O15:O19)>0,ROUND((PRODUCT($J$15,O15)+PRODUCT($J$16,O16)+PRODUCT($J$17,O17)+PRODUCT($J$18,O18)+PRODUCT($J$19,O19))/J20,0),0) -> 723 | P20: =IF(SUM(P15:P19)>0,ROUND((PRODUCT($J$15,P15)+PRODUCT($J$16,P16)+PRODUCT($J$17,P17)+PRODUCT($J$18,P18)+PRODUCT($J$19,P19))/J20,0),0) -> 723
B24: =ROUND(IF(AND($B$12>=E19,C19<=$L$58),$L$58,$L$58/12*$N$13),0) -> 33825 | E24: =GeneralInfo!K38 -> 0 | F24: 7. 538 Fee excluded for interim (line 32) | J24: Rent Increase as % | L24: =L20/K20-1 -> 0.3027027027 | M24: =M20/K20-1 -> 0 | N24: =N20/M20-1 -> 0.3027027027 | O24: =O20/N20-1 -> 0 | P24: =P20/O20-1 -> 0 | S24: PART II - OPERATING AND MAINETNANCE EXPENSE SCHEDULE | AD24: 4
F25: 8. Need to Increase rent loss for rehab period | K25: =K20*J20*12 -> 259740 | S25: =L27 -> Project(s) Below SHADY SHORES APTS | W25: =MFIS!Q2 -> 2018 | X25: Placed in Service | Y25: =M30 -> 2018-03-01 | Z25: 1st Yr | AA25: 2nd Yr | AB25: Comments Required if Subtotals Highlighted
A26: =(SUM(A29:A34)-A27)/A28 -> 338508.4511 | B26: =(SUM(B29:B34)-B27)/B28 -> 338508.4511 | C26: =(SUM(C29:C34)-C27)/C28 -> 338508.4511 | D26: =(SUM(D29:D34)-D27)/D28 -> 256453.7142 | E26: Needed Revenue | W26: CURRENT BUDGET | Y26: Transfer Closing | Z26: =N30 -> 2019-01-01 | AA26: =O30 -> 2020-01-01 | AB26: COMMENTS
A27: =SUM(L35:L39) -> 4208 | B27: =SUM(L35:L39) -> 4208 | C27: =SUM(M35:M39) -> 4208 | D27: =SUM(M35:M39) -> 4208 | E27: Other income | F27: From Form RD 3560-7 | H27: PART I - CASH FLOW STATEMENT | L27: ="Project(s) Below "&'MFIS ProjectA'!G2 &" "&'MFIS ProjectB'!G2&" "&'MFIS ProjectC'!G2& " "&'MFIS ProjectD'!G2&" "&'MFIS ProjectD'!G2&" "&'MFIS ProjectF'!G2 -> Project(s) Below SHADY SHORES APTS
A28: =1-(Q40) -> 0.95 | B28: =1-(Q40) -> 0.95 | C28: =1-(Q40) -> 0.95 | D28: =1-(Q40) -> 0.95 | E28: Vacancy | K28: CURRENT | L28: Placed | M28: Transfer | N28: 2nd | O28: 3rd | P28: 4th | Q28: COMMENTS | S28: 1 | T28: MAINTENANCE & REPAIRS PAYROLL | W28: ='Rents & Operations'!S27 -> 25552 | X28: ='Rents & Operations'!V27 -> 26319 | Y28: =X28 -> 26319 | Z28: =X28 -> 26319 | AA28: =X28 -> 26319
A29: =L51 -> 205269 | B29: =M51 -> 205269 | C29: =N51 -> 205269 | D29: =M51 -> 205269 | E29: O&M | K29: BUDGET | L29: In | M29: Closing | N29: Budget | O29: Budget | P29: Budget | Q29: or YTD | S29: 2 | T29: MAINTENANCE & REPAIRS SUPPLY | W29: ='Rents & Operations'!S28 -> 12500 | X29: ='Rents & Operations'!V28 -> 12875 | Y29: =X29 -> 12875 | Z29: =X29 -> 12875 | AA29: =X29 -> 12875
A30: =A15+A20+A17 -> 17570 | B30: =B15+B20+B17 -> 17570 | C30: =C15+C20+C17 -> 17570 | D30: =D15+D17+D20 -> 17570 | E30: RD DS | K30: =MFIS!Q2 -> 2018 | L30: Service | M30: =L11 -> 2018-03-01 | N30: =IF(DATE(YEAR(L11)+1,MONTH(L12),1)=M5,M5,DATE(YEAR(L11)+1,MONTH(L12),1)) -> 2019-01-01 | O30: =IF(O33=N33,B12,IF(M5=N30,B12,IF(M7<L13,M7,M5))) -> 2020-01-01 | P30: =IF(P33=O33,A12,IF(O7<L13,O7,O5)) -> 2021-01-01 | Q30: ( - - ) | S30: 3 | T30: MAINTENANCE & REPAIRS CONTRACT | W30: ='Rents & Operations'!S29 -> 6500 | X30: ='Rents & Operations'!V29 -> 6695 | Y30: 6695 | Z30: 6695 | AA30: 6695
A31: =A18 -> 25000 | B31: =B18 -> 25000 | C31: =C18 -> 25000 | D31: =D18 -> 25000 | E31: Reserve | M31: Effective Date | N31: Effective Date | O31: Effective Date | P31: Effective Date | Q31: ( - - ) | S31: 4 | T31: PAINTING AND DECORATING …….. | W31: ='Rents & Operations'!S30 -> 1000 | X31: ='Rents & Operations'!V30 -> 1030 | Y31: 1030 | Z31: 1030 | AA31: 1030
A32: =A16 -> 44127 | B32: =B16 -> 44127 | C32: =C16 -> 44127 | D32: =D16 -> 0 | E32: 3rd Pty DS | F32: OPERATIONAL CASH SOURCES | M32: =ROUND(IF(AND(D26<K33,D26<L33),MIN(L33,K33),(IF(K1=TRUE,D26,K33))),0) -> 259884 | N32: =ROUND(IF(M1,C26,M33),0) -> 338508 | O32: =ROUND(IF(O1,B26,N33),0) -> 338508 | P32: =ROUND(IF(P1,A26,O33),0) -> 338508 | S32: 5 | T32: SNOW REMOVAL . . . . . . . . . . . . . . . . | W32: ='Rents & Operations'!S31 -> 0 | X32: ='Rents & Operations'!V31 -> 0 | Y32: 0 | Z32: 0 | AA32: 0
A33: =A19 -> 33825 | B33: =B19 -> 33825 | C33: =C19 -> 33825 | D33: =D19 -> 0 | E33: RTO | F33: 1 | G33: RENTAL INCOME . . . . . . . | K33: ='Rents & Operations'!H32 -> 259884 | L33: ='Rents & Operations'!K32 -> 338508 | M33: =(PRODUCT(M15,$J$15)+PRODUCT(M16,$J$16)+PRODUCT(M17,$J$17)+PRODUCT(M18,$J$18)+PRODUCT(M19,$J$19))*12 -> 259884 | N33: =(PRODUCT(N15,$J$15)+PRODUCT(N16,$J$16)+PRODUCT(N17,$J$17)+PRODUCT(N18,$J$18)+PRODUCT(N19,$J$19))*12 -> 338508 | O33: =(PRODUCT(O15,$J$15)+PRODUCT(O16,$J$16)+PRODUCT(O17,$J$17)+PRODUCT(O18,$J$18)+PRODUCT(O19,$J$19))*12 -> 338508 | P33: =(PRODUCT(P15,$J$15)+PRODUCT(P16,$J$16)+PRODUCT(P17,$J$17)+PRODUCT(P18,$J$18)+PRODUCT(P19,$J$19))*12 -> 338508 | S33: 6 | T33: ELEVATOR MAINT/CONTRACT…….. | W33: ='Rents & Operations'!S32 -> 0 | X33: ='Rents & Operations'!V32 -> 0 | Y33: 0 | Z33: 0 | AA33: 0
A34: =IF($L$68>0,$L$68,0) -> 0.02852045471 | B34: =IF($L$68>0,$L$68,0) -> 0.02852045471 | C34: =IF($L$68>0,$L$68,0) -> 0.02852045471 | D34: =IF($L$68>0,$L$68,0) -> 0.02852045471 | E34: Line 30 + | F34: 2 | G34: RHS RENTAL ASSISTANCE RECEIVED . . | S34: 7 | T34: GROUNDS . . . . . . . . . . . . . . . . . . | W34: ='Rents & Operations'!S33 -> 7500 | X34: ='Rents & Operations'!V33 -> 7725 | Y34: 7725 | Z34: 7725 | AA34: 7725
A35: =O33-A26 -> -0.4510741628 | B35: =B26-N33 -> 0.4510741628 | C35: =C26-M33 -> 78624.45107 | D35: =M33-K33 -> 0 | F35: 3 | G35: APPLICATION FEES RECEIVED . . . . . . | K35: ='Rents & Operations'!H34 -> 0 | L35: ='Rents & Operations'!K34 -> 550 | M35: =L35 -> 550 | N35: =L35 -> 550 | O35: =L35 -> 550 | P35: 550 | S35: 8 | T35: SERVICES . . . . . . . . . . . . . | W35: ='Rents & Operations'!S34 -> 0 | X35: ='Rents & Operations'!V34 -> 0 | Y35: 0 | Z35: 0 | AA35: 0
A36: =A35/12/J20 -> -0.0009638336813 | B36: =B35/12/J20 -> 0.0009638336813 | C36: =C35/12/J20 -> 168.0009638 | D36: =D35/12/J20 -> 0 | F36: 4 | G36: LAUNDRY AND VENDING . . . . . . . . . | K36: ='Rents & Operations'!H35 -> 1500 | L36: ='Rents & Operations'!K35 -> 1492 | M36: =L36 -> 1492 | N36: =L36 -> 1492 | O36: 1492 | P36: 1492 | S36: 9 | T36: CAPITAL BUDGET (Part V operating) | W36: ='Rents & Operations'!S35 -> 3782 | X36: ='Rents & Operations'!V35 -> 0 | Y36: 0 | Z36: 0 | AA36: 0
A37: ACTUAL RENT CHANGE | F37: 5 | G37: INTEREST INCOME . . . . . . . . | K37: ='Rents & Operations'!H36 -> 250 | L37: ='Rents & Operations'!K36 -> 438 | M37: =L37 -> 438 | N37: =L37 -> 438 | O37: 438 | P37: 438 | S37: 10 | T37: OTHER OPERATING EXPENSES (Itemize) | W37: ='Rents & Operations'!S36 -> 0 | X37: ='Rents & Operations'!V36 -> 0 | Y37: 0 | Z37: 0 | AA37: 0
A38: =ROUND((P32-O33)/J20/12,0) -> 0 | B38: =ROUND((O32-N33)/J20/12,0) -> 0 | C38: =-ROUND((M33-N32)/J20/12,0) -> 168 | D38: =-ROUND((K33-M32)/J20/12,0) -> 0 | E38: =(M32-L33)/J20/12 -> -168 | F38: 6 | G38: TENANT CHARGES . . . . . . . . . . . . . . | K38: ='Rents & Operations'!H37 -> 1500 | L38: ='Rents & Operations'!K37 -> 1728 | M38: =L38 -> 1728 | N38: =L38 -> 1728 | O38: 1728 | P38: 1728 | S38: 11 | T38: SUB-TOTAL MAINT. & OPERATING (1 thru 10) . . | W38: =SUM(W28:W37) -> 56834 | X38: =SUM(X28:X37) -> 54644 | Y38: =SUM(Y28:Y37) -> 54644 | Z38: =SUM(Z28:Z37) -> 54644 | AA38: =SUM(AA28:AA37) -> 54644
F39: 7 | G39: OTHER - PROJECT SOURCES . . . . . . . . . . . | K39: ='Rents & Operations'!H38 -> 0 | L39: ='Rents & Operations'!K38 -> 0 | M39: =L39 -> 0 | N39: =L39 -> 0 | O39: 0 | P39: 0 | Y39: =DashData!$AB$145 -> 0.009116595158 | Z39: =DashData!$AB$145 -> 0.009116595158 | AA39: =DashData!$AB$145 -> 0.009116595158 | AB39: =DashData!$AB$145 -> 0.009116595158 | AC39: =DashData!$AB$145 -> 0.009116595158 | AD39: =DashData!$AB$145 -> 0.009116595158
F40: 8 | G40: LESS (Vacancy and Contingency Allowance) . | J40: =L40/L33 -> -0.05 | K40: ='Rents & Operations'!H39 -> -6288 | L40: ='Rents & Operations'!K39 -> -16925.4 | M40: =ROUND(M33*J40,0) -> -12994 | N40: =ROUND(N33*J40,0) -> -16925 | O40: =ROUND(O33*J40,0) -> -16925 | P40: =ROUND(P33*J40,0) -> -16925 | Q40: =-J40 -> 0.05 | S40: 12 | T40: ELECTRICITY . . . . . . . . | W40: ='Rents & Operations'!S39 -> 5700 | X40: ='Rents & Operations'!V39 -> 5062 | Y40: =X40 -> 5062 | Z40: =X40 -> 5062 | AA40: =X40 -> 5062
F41: 9 | G41: LESS (Agency Approved Incentive Allowances) | K41: ='Rents & Operations'!H40 -> 0 | L41: ='Rents & Operations'!K40 -> 0 | S41: 13 | T41: WATER . . . . . . . . . . | W41: ='Rents & Operations'!S40 -> 21000 | X41: ='Rents & Operations'!V40 -> 20276 | Y41: 20276 | Z41: 20276 | AA41: 20276
F42: 10 | G42: SUB-TOTAL [(1 thru 7) - (8 & 9)] . . . . . . . . . . . . . . . . . . . . . . . . . | K42: =SUM(K33:K41) -> 256846 | L42: 325790.6 | M42: 251098 | N42: 325791 | O42: 325791 | P42: 325791 | S42: 14 | T42: SEWER . . . . . . . . . . . . . . . . | W42: ='Rents & Operations'!S41 -> 9400 | X42: ='Rents & Operations'!V41 -> 9803 | Y42: 9803 | Z42: 9803 | AA42: 9803
F43: NON-OPERATIONAL CASH SOURCES | S43: 15 | T43: FUEL (Oil/Coal/Gas) . . . . . . | W43: ='Rents & Operations'!S42 -> 6200 | X43: ='Rents & Operations'!V42 -> 5536 | Y43: 5536 | Z43: 5536 | AA43: 5536
F44: 11 | G44: CASH - NON PROJECT . . . . . . . . . . | K44: ='Rents & Operations'!H43 -> 0 | L44: ='Rents & Operations'!K43 -> 0 | M44: =L44 -> 0 | N44: =L44 -> 0 | O44: =L44 -> 0 | P44: 0 | S44: 16 | T44: GARBAGE & TRASH REMOVAL . | W44: ='Rents & Operations'!S43 -> 8900 | X44: ='Rents & Operations'!V43 -> 8512 | Y44: 8512 | Z44: 8512 | AA44: 8512
F45: 12 | G45: AUTHORIZED LOAN (Non-RHS). . . . . . . . | K45: ='Rents & Operations'!H44 -> 0 | L45: ='Rents & Operations'!K44 -> 0 | M45: =L45 -> 0 | N45: =L45 -> 0 | O45: 0 | P45: 0 | S45: 17 | T45: OTHER UTILITIES . . . . | W45: ='Rents & Operations'!S44 -> 0 | X45: ='Rents & Operations'!V44 -> 0 | Y45: 0 | Z45: 0 | AA45: 0
F46: 13 | G46: TRANSFER FROM RESERVE . . . . . . . . | K46: ='Rents & Operations'!H45 -> 28382 | L46: ='Rents & Operations'!K45 -> 0 | M46: =L46 -> 0 | N46: =L46 -> 0 | O46: 0 | P46: 0 | S46: 18 | T46: SUB-TOTAL UTILITIES (12 thru 17) . . | W46: =SUM(W40:W45) -> 51200 | X46: =SUM(X40:X45) -> 49189 | Y46: =SUM(Y40:Y45) -> 49189 | Z46: =SUM(Z40:Z45) -> 49189 | AA46: =SUM(AA40:AA45) -> 49189
F47: 14 | G47: SUB-TOTAL (11 thru 13) . . . . | K47: =SUM(K44:K46) -> 28382 | L47: =SUM(L44:L46) -> 0 | M47: =SUM(M44:M46) -> 0 | N47: =L47 -> 0 | O47: 0 | P47: 0 | Y47: =DashData!$AB$146 -> 0.04441896511 | Z47: =DashData!$AB$146 -> 0.04441896511 | AA47: =DashData!$AB$146 -> 0.04441896511 | AB47: =DashData!$AB$146 -> 0.04441896511 | AC47: =DashData!$AB$146 -> 0.04441896511 | AD47: =DashData!$AB$146 -> 0.04441896511
S48: 19 | T48: SITE MANAGEMENT PAYROLL . | W48: ='Rents & Operations'!S47 -> 20200 | X48: ='Rents & Operations'!V47 -> 20806 | Y48: =X48 -> 20806 | Z48: =X48 -> 20806 | AA48: =X48 -> 20806
F49: 15 | G49: TOTAL CASH SOURCES (10 + 14) . . . . . . . . . . . . . . . . . . . . . . . | K49: =K42+K47 -> 285228 | L49: 325790.6 | M49: 251098 | N49: 325791 | O49: 325791 | P49: 325791 | S49: 20 | T49: MANAGEMENT FEE | W49: ='Rents & Operations'!S48 -> 28080 | X49: ='Rents & Operations'!V48 -> 29016 | Y49: =X49 -> 29016 | Z49: =X49 -> 29016 | AA49: =X49 -> 29016 | AB49: ='Rents & Operations'!W48 -> 62 | AC49: PUPM
F50: OPERATIONAL CASH USES | S50: 21 | T50: PROJECT AUDITING EXPENSE . . . . . . . | W50: ='Rents & Operations'!S49 -> 5200 | X50: ='Rents & Operations'!V49 -> 5356 | Y50: 5356 | Z50: 5356 | AA50: 5356
F51: 16 | G51: TOTAL O&M EXPENSES (From Part II) . | K51: =W72 -> 204724 | L51: =X72 -> 205269 | M51: =Y72 -> 205269 | N51: =Z72 -> 205269 | O51: =AA72 -> 205269 | P51: =O51 -> 205269 | S51: 22 | T51: COMPUTER EXPENSE & UPDATES | W51: ='Rents & Operations'!S50 -> 0 | X51: ='Rents & Operations'!V50 -> 0 | Y51: 0 | Z51: 0 | AA51: 0
F52: 17 | G52: RHS DEBT PAYMENT . . . . . . . . . . . . . . | K52: ='Rents & Operations'!H51 -> 36575 | L52: ='Rents & Operations'!K51 -> 17569.57148 | M52: =D30 -> 17570 | N52: =C30 -> 17570 | O52: =B30 -> 17570 | P52: =A30 -> 17570 | S52: 23 | T52: LEGAL EXPENSES . . . . . . . . . . . . . . | W52: ='Rents & Operations'!S51 -> 1000 | X52: ='Rents & Operations'!V51 -> 1030 | Y52: 1030 | Z52: 1030 | AA52: 1030
F53: 18 | G53: RHS PAYMENT (Overage) . . . . . . . | S53: 24 | T53: ADVERTISING . . . . . . . . . . . | W53: ='Rents & Operations'!S52 -> 600 | X53: ='Rents & Operations'!V52 -> 618 | Y53: 618 | Z53: 618 | AA53: 618
F54: 19 | G54: RHS PAYMENT (Late Fee) . . . . . . . . . | S54: 25 | T54: TELEPHONE & ANSWERING SERVICE | W54: ='Rents & Operations'!S53 -> 1820 | X54: ='Rents & Operations'!V53 -> 1854 | Y54: 1854 | Z54: 1854 | AA54: 1854
F55: 20 | G55: REDUCTION IN PRIOR YEAR PAYABLES . . | S55: 26 | T55: OFFICE SUPPLIES . . . | W55: ='Rents & Operations'!S54 -> 1800 | X55: ='Rents & Operations'!V54 -> 1875 | Y55: 1875 | Z55: 1875 | AA55: 1875
F56: 21 | G56: TENANT UTILITY PAYMENTS . . | S56: 27 | T56: OFFICE FURNITURE & EQUIPMENT | W56: ='Rents & Operations'!S55 -> 0 | X56: ='Rents & Operations'!V55 -> 0 | Y56: 0 | Z56: 0 | AA56: 0
F57: 22 | G57: TRANSFER TO RESERVE . . . . . . . . | K57: ='Rents & Operations'!H56 -> 10228 | L57: ='Rents & Operations'!K56 -> 25000 | M57: =D31 -> 25000 | N57: =C31 -> 25000 | O57: =B31 -> 25000 | P57: =A31 -> 25000 | S57: 28 | T57: TRAINING EXPENSE . . . | W57: ='Rents & Operations'!S56 -> 1000 | X57: ='Rents & Operations'!V56 -> 1030 | Y57: 1030 | Z57: 1030 | AA57: 1030
F58: 23 | G58: RETURN TO OWNER . . . . . . . . . . . . . . . | K58: ='Rents & Operations'!H57 -> 4312 | L58: =ROUND('Rents & Operations'!K57,0) -> 33825 | M58: =D33 -> 0 | N58: =C33 -> 33825 | O58: =B33 -> 33825 | P58: =A33 -> 33825 | Q58: =DashData!D27 -> 33825.29111 | S58: 29 | T58: HEALTH INS & OTHER EMP. BENEFITS | W58: ='Rents & Operations'!S57 -> 5250 | X58: ='Rents & Operations'!V57 -> 5408 | Y58: 5408 | Z58: 5408 | AA58: 5408
F59: 24 | G59: SUB-TOTAL (16 thru 23) . . . . . . . . . | K59: =SUM(K51:K58) -> 255839 | L59: 281663.5715 | M59: 247839 | N59: 281664 | O59: 281664 | P59: 281664 | S59: 30 | T59: PAYROLL TAXES . . . | W59: ='Rents & Operations'!S58 -> 0 | X59: ='Rents & Operations'!V58 -> 0 | Y59: 0 | Z59: 0 | AA59: 0
F60: NON-OPERATIONAL CASH USES | S60: 31 | T60: WORKER'S COMPENSATION . . | W60: ='Rents & Operations'!S59 -> 0 | X60: ='Rents & Operations'!V59 -> 0 | Y60: 0 | Z60: 0 | AA60: 0
F61: 25 | G61: AUTHORIZED DEBT PAYMENT (Non-RHS) | K61: ='Rents & Operations'!H60 -> 0 | L61: =ROUND('Rents & Operations'!K60,0) -> 44127 | M61: =D32 -> 0 | N61: =C32 -> 44127 | O61: =B32 -> 44127 | P61: =A32 -> 44127 | S61: 32 | T61: OTHER ADMIN EXPENSES (Itemize) | W61: ='Rents & Operations'!S60 -> 0 | X61: ='Rents & Operations'!V60 -> 1600 | Y61: 1600 | Z61: 1600 | AA61: 1600
F62: 26 | G62: LONG-TERM IMPROVEMENTS . . . . | K62: ='Rents & Operations'!H61 -> 28382 | L62: ='Rents & Operations'!K61 -> 0 | M62: =L62 -> 0 | S62: 33 | T62: SUB-TOTAL ADMNSTRATVE (19 thru 32) . . . . . . . . . . . . . | W62: =SUM(W48:W61) -> 64950 | X62: =SUM(X48:X61) -> 68593 | Y62: =SUM(Y48:Y61) -> 68593 | Z62: =SUM(Z48:Z61) -> 68593 | AA62: =SUM(AA48:AA61) -> 68593
F63: 27 | G63: MISCELLANEOUS . . . . | K63: ='Rents & Operations'!H62 -> 0 | L63: ='Rents & Operations'!K62 -> 0 | M63: =L63 -> 0 | Y63: =DashData!$AB$147 -> 0.1308153912 | Z63: =DashData!$AB$147 -> 0.1308153912 | AA63: =DashData!$AB$147 -> 0.1308153912 | AB63: =DashData!$AB$147 -> 0.1308153912 | AC63: =DashData!$AB$147 -> 0.1308153912 | AD63: =DashData!$AB$147 -> 0.1308153912
F64: 28 | G64: SUB-TOTAL (25 thru 27) . . . . . . . . . . . . . . . . . . . . . . . . . . . . . . . . | K64: =SUM(K61:K63) -> 28382 | L64: 44127 | M64: 0 | N64: 44127 | O64: 44127 | P64: 44127 | S64: 34 | T64: REAL ESTATE TAXES . . . . | W64: ='Rents & Operations'!S63 -> 21200 | X64: ='Rents & Operations'!V63 -> 21836 | Y64: =X64 -> 21836 | Z64: =X64 -> 21836 | AA64: =X64 -> 21836
S65: 35 | T65: SPECIAL ASSESSMENTS . . . . . . . . . . . . | W65: ='Rents & Operations'!S64 -> 0 | X65: ='Rents & Operations'!V64 -> 0 | Y65: 0 | Z65: 0 | AA65: 0
F66: 29 | G66: TOTAL CASH USES (24 + 28) . . . . . . . . . . . . . . . . . . . . . . | K66: =K59+K64 -> 284221 | L66: 325790.5715 | M66: 247839 | N66: 325791 | O66: 325791 | P66: 325791 | S66: 36 | T66: OTHER TAXES, LICENSES & PERMITS | W66: ='Rents & Operations'!S65 -> 600 | X66: ='Rents & Operations'!V65 -> 0 | Y66: 0 | Z66: 0 | AA66: 0
S67: 37 | T67: PROPERTY & LIABILITY INSURANCE | W67: ='Rents & Operations'!S66 -> 9900 | X67: ='Rents & Operations'!V66 -> 10947 | Y67: 10947 | Z67: 10947 | AA67: 10947
F68: 30 | G68: NET CASH (DEFICIT) (15 - 29) . . . . . . . . . . . . . . . . . . . . . . . . . . | K68: =K49-K66 -> 1007 | L68: 0.02852045471 | M68: 3259 | N68: 0 | O68: 0 | P68: 0 | S68: 38 | T68: FIDELITY COVERAGE INSURANCE | W68: ='Rents & Operations'!S67 -> 40 | X68: ='Rents & Operations'!V67 -> 60 | Y68: 60 | Z68: 60 | AA68: 60
F69: CASH BALANCE | S69: 39 | T69: OTHER INSURANCE . . . . | W69: ='Rents & Operations'!S68 -> 0 | X69: ='Rents & Operations'!V68 -> 0 | Y69: 0 | Z69: 0 | AA69: 0
F70: 31 | G70: BEGINNING CASH BALANCE . . . . . . | K70: ='Rents & Operations'!H69 -> 59852 | L70: =CashAnalysis!H11 -> 34485.2 | M70: =CashAnalysis!H11 -> 34485.2 | N70: =M70+(M68/12*P10) -> 36929.45 | O70: =N72 -> 36929.45 | P70: =O72 -> 36929.45 | S70: 40 | T70: SUB-TOTAL TAXES & INSURANCE (34 thru 39) . . . . . . . . | W70: =SUM(W64:W69) -> 31740 | X70: =SUM(X64:X69) -> 32843 | Y70: =SUM(Y64:Y69) -> 32843 | Z70: =SUM(Z64:Z69) -> 32843 | AA70: =SUM(AA64:AA69) -> 32843
F71: 32 | G71: ACCRUAL TO CASH ADJUSTMENT . . . | AB71: =DashData!$AB$148 -> 0.07244199905 | AC71: =DashData!$AB$148 -> 0.07244199905 | AD71: =DashData!$AB$148 -> 0.07244199905
F72: 33 | G72: ENDING CASH BALANCE (30+31+32) . . | K72: =K68+K70 -> 60859 | L72: =L68+L70 -> 34485.22852 | M72: =M68+M70+M71 -> 37744.2 | N72: =N68+N70 -> 36929.45 | O72: =O68+O70 -> 36929.45 | P72: =P68+P70 -> 36929.45 | S72: 41 | T72: TOTAL O & M EXPENSES (11+18+33+40) . . . . . . . . . | W72: =SUM(W38,W46,W62,W70) -> 204724 | X72: =SUM(X38,X46,X62,X70) -> 205269 | Y72: =SUM(Y38,Y46,Y62,Y70) -> 205269 | Z72: =SUM(Z38,Z46,Z62,Z70) -> 205269 | AA72: =SUM(AA38,AA46,AA62,AA70) -> 205269
J75: =J15 -> 0 | M75: =IF($D$26=$L$33,L15,ROUND(IF(L15=0,0,K15+D38),0)) -> 0 | N75: =IF($C$26=$L$33,L15,IF(M15=0,0,M15+$C$38)) -> 0 | O75: =IF($B$26=$L$33,L15,IF(N15=0,0,N15+$B$38)) -> 0 | P75: =IF($A$26=$L$33,L15,IF(O15=0,0,O15+$A$38)) -> 0
J76: 15 | M76: =IF($D$26=$L$33,L16,ROUND(IF(L16=0,0,K16+D39),0)) -> 487 | N76: =IF($C$26=$L$33,L16,IF(M16=0,0,M16+$C$38)) -> 655 | O76: =IF($B$26=$L$33,L16,IF(N16=0,0,N16+$B$38)) -> 655 | P76: =IF($A$26=$L$33,L16,IF(O16=0,0,O16+$A$38)) -> 655
J77: 24 | M77: =IF($D$26=$L$33,L17,ROUND(IF(L17=0,0,K17+D40),0)) -> 598 | N77: =IF($C$26=$L$33,L17,IF(M17=0,0,M17+$C$38)) -> 766 | O77: =IF($B$26=$L$33,L17,IF(N17=0,0,N17+$B$38)) -> 766 | P77: =IF($A$26=$L$33,L17,IF(O17=0,0,O17+$A$38)) -> 766
G78: SUGGESTIONS | J78: 0 | M78: =IF($D$26=$L$33,L18,ROUND(IF(L18=0,0,K18+D41),0)) -> 0 | N78: =IF($C$26=$L$33,L18,IF(M18=0,0,M18+$C$38)) -> 0 | O78: =IF($B$26=$L$33,L18,IF(N18=0,0,N18+$B$38)) -> 0 | P78: =IF($A$26=$L$33,L18,IF(O18=0,0,O18+$A$38)) -> 0
J79: 0 | M79: =IF($D$26=$L$33,L19,ROUND(IF(L19=0,0,K19+D42),0)) -> 0 | N79: =IF($C$26=$L$33,L19,IF(M19=0,0,M19+$C$38)) -> 0 | O79: =IF($B$26=$L$33,L19,IF(N19=0,0,N19+$B$38)) -> 0 | P79: =IF($A$26=$L$33,L19,IF(O19=0,0,O19+$A$38)) -> 0
J80: 39 | M80: =IF(SUM(M75:M79)>0,ROUND((PRODUCT($J$15,M75)+PRODUCT($J$16,M76)+PRODUCT($J$17,M77)+PRODUCT($J$18,M78)+PRODUCT($J$19,M79))/J20,0),0) -> 555 | N80: =IF(SUM(N75:N79)>0,ROUND((PRODUCT($J$15,N75)+PRODUCT($J$16,N76)+PRODUCT($J$17,N77)+PRODUCT($J$18,N78)+PRODUCT($J$19,N79))/J20,0),0) -> 723 | O80: =IF(SUM(O75:O79)>0,ROUND((PRODUCT($J$15,O75)+PRODUCT($J$16,O76)+PRODUCT($J$17,O77)+PRODUCT($J$18,O78)+PRODUCT($J$19,O79))/J20,0),0) -> 723 | P80: =IF(SUM(P75:P79)>0,ROUND((PRODUCT($J$15,P75)+PRODUCT($J$16,P76)+PRODUCT($J$17,P77)+PRODUCT($J$18,P78)+PRODUCT($J$19,P79))/J20,0),0) -> 723
M84: =M20/K20-1 -> 0 | N84: =M20/K20-1 -> 0 | O84: =N20/M20-1 -> 0.3027027027 | P84: =P20/O20-1 -> 0
M88: =IF(M68>InterimBudget!L68,"Determine Use of Cash on Line 30 during Interim Budget Period (Reserve, GOA, Vacancy, O&M)","") -> Determine Use of Cash on Line 30 during Interim Budget Period (Reserve, GOA, Vacancy, O&M)

Sheet LnAgmtAddendumWorkSheet (hidden)
D1: =GeneralInfo!C6 -> Happy Trails Apartments | K1: IF MPR enter date of Conditional Commitment
F2: Property Has MPR | G2: TRUE | K2: Date of Loan Agreement
D3: Use Tenant Protection Addendum: | G3: TRUE | K3: Maximum RTO | L3: =IF(A5,'2nd(MPR)DashData'!$D$27,DashData!$D$27) -> 33825.29111 | Q3: Begin Date [Month & Year] for Reserve Deposits | R3: =IF(A5,'2nd(MPR)InterimBudget'!F9,InterimBudget!F9) -> 2018-04-01
A4: =#REF! ->  | D4: Number Unsubsidized Tenants | G4: =IF(A5,'2nd(MPR)Rents & Operations'!G19,'Rents & Operations'!G19) -> 39 | H4: =IF(A5,"Amount Per Template "&TEXT('2nd(MPR)Rents & Operations'!H19,"0"),"Amount Per Template "&TEXT('Rents & Operations'!H19,"0")) -> Amount Per Template 39 | K4: =IF(A5,"Amount Per Template "&TEXT('2nd(MPR)DashData'!$D$27,"$0.00"),"Amount Per Template "&TEXT(DashData!$D$27,"$0.00")) -> Amount Per Template $33825.29 | Q4: End Date for First Year (Month & Year]
A5: =MPRApplicant!A11 -> FALSE | D5: Number Affected Tenants | G5: =IF(A5,'2nd(MPR)DashData'!D151,DashData!D151) -> 2 | Q5: Monthly Amount first Year of Closing | R5: =IF(A5,'2nd(MPR)InterimBudget'!F9,InterimBudget!F10) -> 2083.333333 | S5: =LnAgmtAddendumWorkSheet!G83/12 -> 2083.333333
D6: [fill in the chart below for affected tenants from project worksheet as of closing] | Q6: CNA Date
B7: TENANT PROTECTION | Q7: (Date per CNA) | R7: =CNAProjectSum!J31 -> 2017-09-21
B8: ="As of the date of the agreement, "&G4& " income-producing units were unsubsidized units, of which "&G5&" are occupied by the following Affected Tenants:" -> As of the date of the agreement, 39 income-producing units were unsubsidized units, of which 2 are occupied by the following Affected Tenants:
B9: Unit | C9: Unit | D9: Tenant | G9: Pre-Transfer | H9: Post-Transfer
B10: Number | C10: Type | D10: Name | G10: Basic Rent | H10: Basic Rent
B36: Notwithstanding the authorized Return to Owner (RTO) level discussed in this
B37: addendum, the owner is responsible for any shortfall in overage that the borrower must pay to RD from non-project funds to subsidize the rents of all affected tenants. The subsidy for each unit is the difference between the pre-transfer Basic Rent and the post-transfer Basic Rent; that is, the rent to be paid by each affected tenant will be the then current Basic Rent minus the subsidy. The subsidy shall not increase or decrease based on subsequent adjustments in Basic Rents.
B38: The owner is to fund the subsidy by foregoing otherwise allowable Return to Owner. Annual operating budgets are to reflect the amount of foregone Return to Owner to fund the temporary rent incentives.
B39: This obligation will end when the last of the Affected Tenants is either assigned rental assistance, receives a housing voucher, voluntarily leaves the property, has his or her tenancy properly terminated for cause, or achieves increased income sufficient to afford the then current Basic Rent without exceeding 30 percent for rent and utilities. Furthermore, the borrower at all times remains obligated to observe all applicable occupancy and tenancy requirements of USDA regulations, including 7 CFR part 3560. When proposing and approving rent changes during the transition, the borrower and USDA agree that the Basic Rent rates and utility charges for a unit will not be affected by whether the tenant is an Affected Tenant.
B58: Maximum Potential Annual Authorized Return To Owner [RTO]
B59: ="A maximum potential earned annual authorized Return to Owner (RTO) in the amount of " &TEXT(L$3,"$0.00") &" has been determined allowable by RD based on the Agency's analytical analysis " -> A maximum potential earned annual authorized Return to Owner (RTO) in the amount of $33825.29 has been determined allowable by RD based on the Agency's analytical analysis
B61: used in authorizing the transfer to the borrower named herein. The authorized RTO replaces any previous reference to Return-on-Investment (ROI) or the payment thereof which may be otherwise referenced herein. Any increase in RTO may only be earned starting the beginning of the first project fiscal year following the completion and RD approval of the agreed-upon rehabilitation.
B69: Annual Reserve Deposits
B70: Section 1. Section 5 b is rescinded and replaced with the following sentence:
B71: ="The minimum beginning balance for the replacement reserve will be no less than "&TEXT('Reserve Sizing'!B48,"$0.00") -> The minimum beginning balance for the replacement reserve will be no less than $158182.00
B72: ="Beginning on "&TEXT(R3,"mm/dd/yy")&" through "&TEXT(R4,"mm/dd/yy")&" , a monthly deposit in the amount of "&TEXT(R5,"$0.00")&" must be made to the project reserve account." -> Beginning on 04/01/18 through 01/00/00 , a monthly deposit in the amount of $2083.33 must be made to the project reserve account.
B73: Each month, thereafter, a monthly deposit equal to 1/12th of the annual contribution identifiedin the table below must be made to the reserve account. Reserve funds will be limited to actual costs for replacements with respect to those items that were included in a
B74: ="capital needs assessment dated "&R6& " for this project entitled "& D1&" as used in the Agency's approved underwriting for this transaction." -> capital needs assessment dated for this project entitled Happy Trails Apartments as used in the Agency's approved underwriting for this transaction.
B75: No withdrawals shall be made for items other than actual costs of building system replacements and no withdrawals shall be made with respect to building systems that
B76: were included in such capital needs assessment without the prior written consent of the Government"
B77: ="This instrument also secures the obligations and covenants of borrower set forth in borrower’s MPR Conditional Commitment of " & L1 & " which are hereby incorporated herein by reference " -> This instrument also secures the obligations and covenants of borrower set forth in borrower’s MPR Conditional Commitment of which are hereby incorporated herein by reference
B78: [ ] of [ ] which are hereby incorporated herein by reference.”
B81: Reserve Deposit Schedule
C82: Year Ending | G82: Annual Amount
B83: Yr 1 | C83: =IF(A5,'2nd(MPR)Reserve Sizing'!C$47,'Reserve Sizing'!C$47) -> 2019 | G83: =IF(A5,'2nd(MPR)Reserve Sizing'!C$50,'Reserve Sizing'!C$50) -> 25000
B84: Yr 2 | C84: =C83+1 -> 2020 | G84: =IF(A5,'2nd(MPR)Reserve Sizing'!D$50,'Reserve Sizing'!D$50) -> 25750
B85: Yr 3 | C85: =C84+1 -> 2021 | G85: =IF(A5,'2nd(MPR)Reserve Sizing'!E$50,'Reserve Sizing'!E$50) -> 26523
B86: Yr 4 | C86: 2022 | G86: =IF(A5,'2nd(MPR)Reserve Sizing'!F$50,'Reserve Sizing'!F$50) -> 27319
B87: Yr 5 | C87: 2023 | G87: =IF(A5,'2nd(MPR)Reserve Sizing'!G$50,'Reserve Sizing'!G$50) -> 28139
B88: Yr 6 | C88: 2024 | G88: =IF(A5,'2nd(MPR)Reserve Sizing'!H$50,'Reserve Sizing'!H$50) -> 28983
B89: Yr 7 | C89: 2025 | G89: =IF(A5,'2nd(MPR)Reserve Sizing'!I$50,'Reserve Sizing'!I$50) -> 29852
B90: Yr 8 | C90: 2026 | G90: =IF(A5,'2nd(MPR)Reserve Sizing'!J$50,'Reserve Sizing'!J$50) -> 30748
B91: Yr 9 | C91: 2027 | G91: =IF(A5,'2nd(MPR)Reserve Sizing'!K$50,'Reserve Sizing'!K$50) -> 31670
B92: Yr 10 | C92: 2028 | G92: =IF(A5,'2nd(MPR)Reserve Sizing'!L$50,'Reserve Sizing'!L$50) -> 32620
B93: Yr 11 | C93: 2029 | G93: =IF(A5,'2nd(MPR)Reserve Sizing'!M$50,'Reserve Sizing'!M$50) -> 33599
B94: Yr 12 | C94: 2030 | G94: =IF(A5,'2nd(MPR)Reserve Sizing'!N$50,'Reserve Sizing'!N$50) -> 34607
B95: Yr 13 | C95: 2031 | G95: =IF(A5,'2nd(MPR)Reserve Sizing'!O$50,'Reserve Sizing'!O$50) -> 35645
B96: Yr 14 | C96: 2032 | G96: =IF(A5,'2nd(MPR)Reserve Sizing'!P$50,'Reserve Sizing'!P$50) -> 36714
B97: Yr 15 | C97: 2033 | G97: =IF(A5,'2nd(MPR)Reserve Sizing'!Q$50,'Reserve Sizing'!Q$50) -> 37815
B98: Yr 16 | C98: 2034 | G98: =IF(A5,'2nd(MPR)Reserve Sizing'!R$50,'Reserve Sizing'!R$50) -> 38949
B99: Yr 17 | C99: 2035 | G99: =IF(A5,'2nd(MPR)Reserve Sizing'!S$50,'Reserve Sizing'!S$50) -> 40117
B100: Yr 18 | C100: 2036 | G100: =IF(A5,'2nd(MPR)Reserve Sizing'!T$50,'Reserve Sizing'!T$50) -> 41321
B101: Yr 19 | C101: 2037 | G101: =IF(A5,'2nd(MPR)Reserve Sizing'!U$50,'Reserve Sizing'!U$50) -> 42561
B102: Yr 20 | C102: 2038 | G102: =IF(A5,'2nd(MPR)Reserve Sizing'!V$50,'Reserve Sizing'!V$50) -> 43838

Sheet LnAgmtAddendum (hidden)
A1: AMENDMENT TO
A2: ="LOAN RESOLUTION / AGREEMENT DATED "&LnAgmtAddendumWorkSheet!L2 -> LOAN RESOLUTION / AGREEMENT DATED
A3: =GeneralInfo!C8 -> Happy Trails LP
A4: =GeneralInfo!C6 -> Happy Trails Apartments
A40: ="BORROWER: "&GeneralInfo!C8 -> BORROWER: Happy Trails LP
A42: Signed By:___________________________________________
A43: Signed By:___________________________________________

Sheet AppraisalGuidance
D3: GENERAL GUIDANCE FOR RURAL DEVELOPMENT APPRAISALS | N3: Double Click Image to Read Appraisal Guidance of
N4: HB-1-3560 Attachment 7-C
D5: 1.) Market Value (7 CFR Part 3560.752(b)(1)(ii). Premised Upon A Hypothetical Condition As-If Unsubsidized Conventional Housing in compliance with 7 CFR Part 3560.656(c)(1)(i) The appraisal is to reflect the value of the property in its current physical condition
D7: 2.) Market Value, subject to restricted rents (7 CFR Part 3560.752(b)(1)(i), (The appraiser must consider all restrictions and report the value of intangible assets individually and separately from the real estate) The appraisal is to reflect the value of the property in its current physical condition.
D11: 3.) Prospective Market Value, Subject To Restricted Rents within 7 CFR Part 3560.752(b)(1)(i) (Must consider any rent limits, rent subsidies, expense abatements, and restrictive-use conditions that will affect the property. All intangible assets must be evaluated individually and separately from real estate.) Obtain for a new or subsequent loan is to assist the underwriter with calculating the security value for the basis of a loan or loan guarantee. 7 CFR Part 3560.752(b)(1)(i)(2)(ii) “Prospective value” means the forecasted value of the housing and related facilities as of a specified future date. For Agency appraisals, this date will typically be the projected completion date of proposed new construction or rehabilitation.
D18: https://ems-team.usda.gov/sites/RD_rHUB/pss/SitePages/Home.aspx
D20: https://ems-team.usda.gov/sites/RD_rHUB/pss/assign/SitePages/Home.aspx
D22: From above agency internal web site:
D23: Multifamily Housing Appraisal/Project Information
D24: Requestor’s Proposed Appraised Value Type(s) and other Requirements
D25: (Please indicate “X” in the box of each proposed item)
D26: QR 1: (From HB‐1‐3560 Attachment 7‐C page 4 of 10)
D27: “Proposed Market Value, Subject to Restricted Rents within 7 CFR Part 3560.752(b)(1)(i)”
D28: “Proposed Market Value, Subject to Restricted Rents within 7 CFR Part 3560.752(b)(1)(ii),
D29: Premised upon a Hypothetical Condition _______ As‐If Conventional Housing” (Optional Value)
D30: QR 2:
D31: “Market Value, Subject to Restricted Rents within 7 CFR Part 3560.752(b)(1)(i)”.
D32: QR 3:
D33: “Market Value within 7 CFR Part 3560.752(b)(1)(ii)”.
D34: QR 4:
D35: “Market Value within 7 CFR Part 3560.752(b)(1)(ii), Premised upon a Hypothetical Condition
D36: As‐If Unsubsidized Conventional Housing in Compliance with 7 CFR Part 3560.656(c)(1)(i)”.
D37: QR 5:
D38: “Market Value within 7 CFR Part 3560.752(b)(1)(ii), Premised upon a Hypothetical Condition
D39: As‐If Conventional Housing”.
D40: QR 6:
D41: “Market Value within 7 CFR Part 3560.752(b)(1)(ii), Premised upon a Hypothetical Condition
D42: As‐If Conventional Market Property”.
D43: “Liquidation Value Premised upon a Marketing Period of _______ Days”. (Optional value)
D46: Additional Proposed Value(s), Assignment Conditions, and
D47: Reporting Requirements
D48: Value of Interest Credit Subsidy
D49: Current (As‐Is) RD Loan
D50: Prospective RD Loan
D51: Third Party Loan
D52: Other Loan: ____________________________________________________
D53: Other Loan: ____________________________________________________
D54: Estimated Value of Tax Credits
D55: Conventional Rents for Comparable Units (CRCU)
D56: Estimated Value of Grants
D57: Insurable Value
D58: Farm Labor Housing
D59: Other:

Sheet CNAProjectSum (hidden)
A5: Project: | B5: Happy Trails Apartments Post CNA | J5: Date: | K5: 2017-12-06
B7: Provider | H7: Owner
C9: Name: | D9: CNA Specialists | I9: Name: | J9: Happy Trails LP
C10: Addr1: | D10: 1345 Encinitas Blvd., #404 | I10: Addr1: | J10: P.O. Box 190
C11: Addr2: | I11: Addr2:
C12: City: | D12: Encinitas | I12: City: | J12: Slow Poke
C13: State: | D13: CA | E13: Zip Code: | F13: 92024 | I13: State: | J13: TX | K13: Zip Code: | L13: 78611
C14: Phone: | D14: 858-354-8001 | I14: Phone:
C15: Email: | D15: paul@cnaspecialists.com | I15: Email:
B18: Site Information / Unit Mix | H18: Project
C20: Type: | D20: Family | I20: Name: | J20: Happy Trails Apartments Post CNA
B21: Year Built: | D21: 1979 | I21: Addr1: | J21: 401 N Happy Trails Road
B22: Last Renovated: | I22: Addr2:
B23: 1 Bedroom Apts: | D23: 15 | I23: City: | J23: Rural Dallas
B24: 2 Bedroom Apts: | D24: 23 | I24: State: | J24: TX | K24: Zip Code: | L24: 75065
B25: 3 Bedroom Apts: | I25: County: | J25: Denton
B26: 4 Bedroom Apts: | I26: Phone:
B27: Fully Acc. Apts | D27: 2 | I27: Email:
B28: Total Dwelling Units: | D28: 40
H29: Inspection Report
I31: Date: | J31: 2017-09-21
I32: Inspector: | J32: Paul Youngborg, AIA RAS

Sheet CNAExeSum (hidden)
A1: This is the "Raw Data" CNA with no Edits
E3: Executive Summary
B5: Project: | C5: Happy Trails Apartments Post CNA | J5: 40
C7: 1 | D7: 2 | E7: 3 | F7: 4 | G7: 5 | H7: 6 | I7: 7 | J7: 8 | K7: 9 | L7: 10 | M7: 11 | N7: 12 | O7: 13 | P7: 14 | Q7: 15 | R7: 16 | S7: 17 | T7: 18 | U7: 19 | V7: 20
A8: Item | B8: H & S | C8: 2018 | D8: 2019 | E8: 2020 | F8: 2021 | G8: 2022 | H8: 2023 | I8: 2024 | J8: 2025 | K8: 2026 | L8: 2027 | M8: 2028 | N8: 2029 | O8: 2030 | P8: 2031 | Q8: 2032 | R8: 2033 | S8: 2034 | T8: 2035 | U8: 2036 | V8: 2037 | W8: Total
A9: Site | B9: 0 | C9: 0 | D9: 0 | E9: 500 | F9: 0 | G9: 0 | H9: 500 | I9: 0 | J9: 0 | K9: 500 | L9: 20120 | M9: 0 | N9: 500 | O9: 0 | P9: 0 | Q9: 30875 | R9: 0 | S9: 0 | T9: 500 | U9: 0 | V9: 14000 | W9: 67495
A10: Architecture | B10: 0 | C10: 0 | D10: 0 | E10: 0 | F10: 0 | G10: 0 | H10: 0 | I10: 4254 | J10: 0 | K10: 0 | L10: 43433 | M10: 0 | N10: 1120 | O10: 0 | P10: 4254 | Q10: 9885 | R10: 0 | S10: 0 | T10: 0 | U10: 0 | V10: 43230.5 | W10: 106176.5
A11: Mech & Electric | B11: 0 | C11: 0 | D11: 0 | E11: 0 | F11: 0 | G11: 0 | H11: 0 | I11: 0 | J11: 0 | K11: 0 | L11: 245225 | M11: 0 | N11: 27200 | O11: 0 | P11: 0 | Q11: 31825 | R11: 0 | S11: 0 | T11: 0 | U11: 0 | V11: 110305 | W11: 414555
A12: Dwelling Units | B12: 0 | C12: 0 | D12: 0 | E12: 0 | F12: 0 | G12: 0 | H12: 0 | I12: 54344 | J12: 0 | K12: 0 | L12: 45480 | M12: 0 | N12: 37240 | O12: 0 | P12: 54344 | Q12: 97769 | R12: 0 | S12: 0 | T12: 0 | U12: 0 | V12: 192280 | W12: 481457
A13: Uninflated Totals | B13: 0 | C13: 0 | D13: 0 | E13: 500 | F13: 0 | G13: 0 | H13: 500 | I13: 58598 | J13: 0 | K13: 500 | L13: 354258 | M13: 0 | N13: 66060 | O13: 0 | P13: 58598 | Q13: 170354 | R13: 0 | S13: 0 | T13: 500 | U13: 0 | V13: 359815.5 | W13: 1069683.5
A14: Inflation Factor (3%) | B14: 1 | C14: 1 | D14: 1.03 | E14: 1.0609 | F14: 1.092727 | G14: 1.12550881 | H14: 1.159274074 | I14: 1.194052297 | J14: 1.229873865 | K14: 1.266770081 | L14: 1.304773184 | M14: 1.343916379 | N14: 1.384233871 | O14: 1.425760887 | P14: 1.468533713 | Q14: 1.512589725 | R14: 1.557967417 | S14: 1.604706439 | T14: 1.652847632 | U14: 1.702433061 | V14: 1.753506053
A15: Inflated Totals | B15: 0 | C15: 0 | D15: 0 | E15: 530.45 | F15: 0 | G15: 0 | H15: 579.6370371 | I15: 69969.07647 | J15: 0 | K15: 633.3850407 | L15: 462226.3386 | M15: 0 | N15: 91442.4895 | O15: 0 | P15: 86053.13854 | Q15: 257675.71 | R15: 0 | S15: 0 | T15: 826.4238161 | U15: 0 | V15: 630938.6572 | W15: 1600875.31

Sheet CNASite (hidden)
M5: Site - Sum of all CNAs with Changes by Underwriter - Site
M6: Year | N6: 0 | O6: 1 | P6: 2 | Q6: 3 | R6: 4 | S6: 5 | T6: 6 | U6: 7 | V6: 8 | W6: 9 | X6: 10 | Y6: 11 | Z6: 12 | AA6: 13 | AB6: 14 | AC6: 15 | AD6: 16 | AE6: 17 | AF6: 18 | AG6: 19 | AH6: 20
M7: Item | N7: =N12 -> H & S | O7: =O12 -> 2018 | P7: 2019 | Q7: 2020 | R7: 2021 | S7: 2022 | T7: 2023 | U7: 2024 | V7: 2025 | W7: 2026 | X7: 2027 | Y7: 2028 | Z7: 2029 | AA7: 2030 | AB7: 2031 | AC7: 2032 | AD7: 2033 | AE7: 2034 | AF7: 2035 | AG7: 2036 | AH7: 2037 | AI7: Total
M8: Uninflated Totals | N8: =SUM(N13:N500) -> 0 | O8: 0 | P8: 0 | Q8: 500 | R8: 0 | S8: 0 | T8: 3624 | U8: 7139 | V8: 3124 | W8: 3624 | X8: 7624 | Y8: 0 | Z8: 500 | AA8: 0 | AB8: 0 | AC8: 4300 | AD8: 4512 | AE8: 4512 | AF8: 5012 | AG8: 4512 | AH8: 0 | AI8: =SUM(N8:AH8) -> 48983
M9: Inflation Factor (3%) | N9: 1 | O9: 1 | P9: 1.03 | Q9: 1.0609 | R9: 1.092727 | S9: 1.12550881 | T9: 1.159274074 | U9: 1.194052297 | V9: 1.229873865 | W9: 1.266770081 | X9: 1.304773184 | Y9: 1.343916379 | Z9: 1.384233871 | AA9: 1.425760887 | AB9: 1.468533713 | AC9: 1.512589725 | AD9: 1.557967417 | AE9: 1.604706439 | AF9: 1.652847632 | AG9: 1.702433061 | AH9: 1.753506053
M10: Inflated Totals | N10: =N8*N9 -> 0 | O10: =O8*O9 -> 0 | P10: 0 | Q10: 530.45 | R10: 0 | S10: 0 | T10: 4201.209245 | U10: 8524.339345 | V10: 3842.125956 | W10: 4590.774775 | X10: 9947.590754 | Y10: 0 | Z10: 692.1169354 | AA10: 0 | AB10: 0 | AC10: 6504.135817 | AD10: 7029.548984 | AE10: 7240.435453 | AF10: 8284.072333 | AG10: 7681.377972 | AH10: 0 | AI10: =SUM(N10:AH10) -> 69068.17757
A11: Happy Trails Apartments Post CNA
A12: Item | B12: EUL | C12: AGE | D12: RUL | E12: Cond | F12: Action | G12: DUR | H12: QTY | I12: Unit | J12: Unit Cost | K12: Total Cost | L12: Comments | M12: Item | N12: H & S | O12: 2018 | P12: 2019 | Q12: 2020 | R12: 2021 | S12: 2022 | T12: 2023 | U12: 2024 | V12: 2025 | W12: 2026 | X12: 2027 | Y12: 2028 | Z12: 2029 | AA12: 2030 | AB12: 2031 | AC12: 2032 | AD12: 2033 | AE12: 2034 | AF12: 2035 | AG12: 2036 | AH12: 2037
A13: Accessibility Compliance | B13: 50 | C13: 0 | D13: 50 | E13: Excellent | F13: No Action | G13: 0 | H13: 0 | I13: 0 | J13: 0 | K13: 0 | M13: Accessibility Compliance | N13: 0 | O13: 0 | P13: 0 | Q13: 0 | R13: 0 | S13: 0 | T13: 0 | U13: 0 | V13: 0 | W13: 0 | X13: 0 | Y13: 0 | Z13: 0 | AA13: 0 | AB13: 0 | AC13: 0 | AD13: 0 | AE13: 0 | AF13: 0 | AG13: 0 | AH13: 0 | AI13: =SUM(N13:AH13) -> 0
A14: Carports: metal frame | B14: 40 | C14: 0 | D14: 40 | E14: Excellent | F14: Maintain | G14: 1 | H14: 40 | I14: ea | J14: 1850 | K14: 74000 | M14: Carports: metal frame | N14: 0 | O14: 0 | P14: 0 | Q14: 0 | R14: 0 | S14: 0 | T14: 0 | U14: 0 | V14: 0 | W14: 0 | X14: 0 | Y14: 0 | Z14: 0 | AA14: 0 | AB14: 0 | AC14: 0 | AD14: 0 | AE14: 0 | AF14: 0 | AG14: 0 | AH14: 0 | AI14: 0
A15: Curbing: concrete | B15: 50 | C15: 40 | D15: 10 | E15: Excellent | F15: Maintain | G15: 1 | H15: 1 | I15: ls | J15: 1000 | K15: 1000 | L15: repairs only | M15: Curbing: concrete | N15: 0 | O15: 0 | P15: 0 | Q15: 0 | R15: 0 | S15: 0 | T15: 0 | U15: 0 | V15: 0 | W15: 0 | X15: 1000 | Y15: 0 | Z15: 0 | AA15: 0 | AB15: 0 | AC15: 0 | AD15: 0 | AE15: 0 | AF15: 0 | AG15: 0 | AH15: 0 | AI15: 1000
A16: Electric distribution center | B16: 40 | C16: 0 | D16: 40 | E16: Excellent | F16: Maintain | G16: 1 | H16: 4 | I16: ea | J16: 0 | K16: 0 | L16: weatherhead and conduit checked and repaired during renovations | M16: Electric distribution center | N16: 0 | O16: 0 | P16: 0 | Q16: 0 | R16: 0 | S16: 0 | T16: 0 | U16: 0 | V16: 0 | W16: 0 | X16: 0 | Y16: 0 | Z16: 0 | AA16: 0 | AB16: 0 | AC16: 0 | AD16: 0 | AE16: 0 | AF16: 0 | AG16: 0 | AH16: 0 | AI16: 0
A17: Electric distribution lines | B17: 40 | C17: 0 | D17: 40 | E17: Excellent | F17: Maintain | G17: 1 | H17: 1 | I17: ls | J17: 0 | K17: 0 | L17: provided by electric utility | M17: Electric distribution lines | N17: 0 | O17: 0 | P17: 0 | Q17: 0 | R17: 0 | S17: 0 | T17: 0 | U17: 0 | V17: 0 | W17: 0 | X17: 0 | Y17: 0 | Z17: 0 | AA17: 0 | AB17: 0 | AC17: 0 | AD17: 0 | AE17: 0 | AF17: 0 | AG17: 0 | AH17: 0 | AI17: 0
A18: Electric: transformer | B18: 30 | C18: 0 | D18: 30 | E18: Excellent | F18: Maintain | G18: 1 | H18: 1 | I18: ea | J18: 0 | K18: 0 | L18: provided by electric utility | M18: Electric: transformer | N18: 0 | O18: 0 | P18: 0 | Q18: 0 | R18: 0 | S18: 0 | T18: 0 | U18: 0 | V18: 0 | W18: 0 | X18: 0 | Y18: 0 | Z18: 0 | AA18: 0 | AB18: 0 | AC18: 0 | AD18: 0 | AE18: 0 | AF18: 0 | AG18: 0 | AH18: 0 | AI18: 0
A19: Fencing: wood board (=>1"x 6") | B19: 15 | C19: 0 | D19: 15 | E19: Excellent | F19: Maintain | G19: 1 | H19: 940 | I19: lf | J19: 24 | K19: 22560 | M19: Fencing: wood board (=>1"x 6") | N19: 0 | O19: 0 | P19: 0 | Q19: 0 | R19: 0 | S19: 0 | T19: 0 | U19: 0 | V19: 0 | W19: 0 | X19: 0 | Y19: 0 | Z19: 0 | AA19: 0 | AB19: 0 | AC19: 0 | AD19: 4512 | AE19: 4512 | AF19: 4512 | AG19: 4512 | AH19: 0 | AI19: 18048
A20: Irrigation System | B20: 25 | C20: 0 | D20: 25 | E20: Excellent | F20: Maintain | G20: 1 | H20: 4 | I20: bldgs | J20: 12000 | K20: 48000 | M20: Irrigation System | N20: 0 | O20: 0 | P20: 0 | Q20: 0 | R20: 0 | S20: 0 | T20: 0 | U20: 0 | V20: 0 | W20: 0 | X20: 0 | Y20: 0 | Z20: 0 | AA20: 0 | AB20: 0 | AC20: 0 | AD20: 0 | AE20: 0 | AF20: 0 | AG20: 0 | AH20: 0 | AI20: 0
A21: Lighting: building mounted lighting | B21: 10 | C21: 0 | D21: 10 | E21: Excellent | F21: Maintain | G21: 1 | H21: 4 | I21: ea | J21: 250 | K21: 1000 | M21: Lighting: building mounted lighting | N21: 0 | O21: 0 | P21: 0 | Q21: 0 | R21: 0 | S21: 0 | T21: 0 | U21: 0 | V21: 0 | W21: 0 | X21: 1000 | Y21: 0 | Z21: 0 | AA21: 0 | AB21: 0 | AC21: 0 | AD21: 0 | AE21: 0 | AF21: 0 | AG21: 0 | AH21: 0 | AI21: 1000
A22: Mail Kiosk | B22: 15 | C22: 0 | D22: 15 | E22: Excellent | F22: Maintain | G22: 1 | H22: 40 | I22: ea | J22: 95 | K22: 3800 | M22: Mail Kiosk | N22: 0 | O22: 0 | P22: 0 | Q22: 0 | R22: 0 | S22: 0 | T22: 0 | U22: 0 | V22: 0 | W22: 0 | X22: 0 | Y22: 0 | Z22: 0 | AA22: 0 | AB22: 0 | AC22: 3800 | AD22: 0 | AE22: 0 | AF22: 0 | AG22: 0 | AH22: 0 | AI22: 3800
A23: Paving pedestrian: concrete | B23: 50 | C23: 0 | D23: 50 | E23: Excellent | F23: Maintain | G23: 1 | H23: 1680 | I23: sf | J23: 11 | K23: 18480 | L23: new | M23: Paving pedestrian: concrete | N23: 0 | O23: 0 | P23: 0 | Q23: 0 | R23: 0 | S23: 0 | T23: 0 | U23: 0 | V23: 0 | W23: 0 | X23: 0 | Y23: 0 | Z23: 0 | AA23: 0 | AB23: 0 | AC23: 0 | AD23: 0 | AE23: 0 | AF23: 0 | AG23: 0 | AH23: 0 | AI23: 0
A24: Paving pedestrian: concrete | B24: 50 | C24: 40 | D24: 10 | E24: Good | F24: Maintain | G24: 1 | H24: 1420 | I24: sf | J24: 0 | K24: 0 | L24: existing system checked and repaired during renovations | M24: Paving pedestrian: concrete | N24: 0 | O24: 0 | P24: 0 | Q24: 0 | R24: 0 | S24: 0 | T24: 3124 | U24: 3124 | V24: 3124 | W24: 3124 | X24: 3124 | Y24: 0 | Z24: 0 | AA24: 0 | AB24: 0 | AC24: 0 | AD24: 0 | AE24: 0 | AF24: 0 | AG24: 0 | AH24: 0 | AI24: 15620
A25: Paving vehicular: Striping and Marking | B25: 15 | C25: 0 | D25: 15 | E25: Excellent | F25: Maintain | G25: 1 | H25: 73 | I25: ea | J25: 55 | K25: 4015 | M25: Paving vehicular: Striping and Marking | N25: 0 | O25: 0 | P25: 0 | Q25: 0 | R25: 0 | S25: 0 | T25: 0 | U25: 4015 | V25: 0 | W25: 0 | X25: 0 | Y25: 0 | Z25: 0 | AA25: 0 | AB25: 0 | AC25: 0 | AD25: 0 | AE25: 0 | AF25: 0 | AG25: 0 | AH25: 0 | AI25: 4015
A26: Sanitary: sewer lines | B26: 50 | C26: 40 | D26: 10 | E26: Excellent | F26: Maintain | G26: 1 | H26: 1 | I26: ls | J26: 0 | K26: 0 | L26: existing system checked and repaired during renovations | M26: Sanitary: sewer lines | N26: 0 | O26: 0 | P26: 0 | Q26: 0 | R26: 0 | S26: 0 | T26: 0 | U26: 0 | V26: 0 | W26: 0 | X26: 1500 | Y26: 0 | Z26: 0 | AA26: 0 | AB26: 0 | AC26: 0 | AD26: 0 | AE26: 0 | AF26: 0 | AG26: 0 | AH26: 0 | AI26: 1500
A27: Signage: entrance/monument | B27: 25 | C27: 0 | D27: 25 | E27: Excellent | F27: Maintain | G27: 1 | H27: 1 | I27: ea | J27: 4500 | K27: 4500 | M27: Signage: entrance/monument | N27: 0 | O27: 0 | P27: 0 | Q27: 0 | R27: 0 | S27: 0 | T27: 0 | U27: 0 | V27: 0 | W27: 0 | X27: 0 | Y27: 0 | Z27: 0 | AA27: 0 | AB27: 0 | AC27: 0 | AD27: 0 | AE27: 0 | AF27: 0 | AG27: 0 | AH27: 0 | AI27: 0
A28: Sport Court: asphalt | B28: 25 | C28: 0 | D28: 25 | E28: Excellent | F28: Maintain | G28: 1 | H28: 1 | I28: ea | J28: 25000 | K28: 25000 | M28: Sport Court: asphalt | N28: 0 | O28: 0 | P28: 0 | Q28: 0 | R28: 0 | S28: 0 | T28: 0 | U28: 0 | V28: 0 | W28: 0 | X28: 0 | Y28: 0 | Z28: 0 | AA28: 0 | AB28: 0 | AC28: 0 | AD28: 0 | AE28: 0 | AF28: 0 | AG28: 0 | AH28: 0 | AI28: 0
A29: Tot Lot: playground equipment | B29: 20 | C29: 0 | D29: 20 | E29: Excellent | F29: Maintain | G29: 1 | H29: 1 | I29: ea | J29: 13000 | K29: 13000 | M29: Tot Lot: playground equipment | N29: 0 | O29: 0 | P29: 0 | Q29: 0 | R29: 0 | S29: 0 | T29: 0 | U29: 0 | V29: 0 | W29: 0 | X29: 0 | Y29: 0 | Z29: 0 | AA29: 0 | AB29: 0 | AC29: 0 | AD29: 0 | AE29: 0 | AF29: 0 | AG29: 0 | AH29: 0 | AI29: 0
A30: Tot Lot: ground cover loose bark | B30: 3 | C30: 0 | D30: 3 | E30: Excellent | F30: Maintain | G30: 1 | H30: 1 | I30: ea | J30: 500 | K30: 500 | M30: Tot Lot: ground cover loose bark | N30: 0 | O30: 0 | P30: 0 | Q30: 500 | R30: 0 | S30: 0 | T30: 500 | U30: 0 | V30: 0 | W30: 500 | X30: 0 | Y30: 0 | Z30: 500 | AA30: 0 | AB30: 0 | AC30: 500 | AD30: 0 | AE30: 0 | AF30: 500 | AG30: 0 | AH30: 0 | AI30: 3000
A31: Trash: dumpster enclosure, CMU | B31: 21 | C31: 0 | D31: 21 | E31: Excellent | F31: Maintain | G31: 1 | H31: 3 | I31: ea | J31: 9000 | K31: 27000 | M31: Trash: dumpster enclosure, CMU | N31: 0 | O31: 0 | P31: 0 | Q31: 0 | R31: 0 | S31: 0 | T31: 0 | U31: 0 | V31: 0 | W31: 0 | X31: 0 | Y31: 0 | Z31: 0 | AA31: 0 | AB31: 0 | AC31: 0 | AD31: 0 | AE31: 0 | AF31: 0 | AG31: 0 | AH31: 0 | AI31: 0
A32: Water Mains/Valves | B32: 50 | C32: 40 | D32: 10 | E32: Excellent | F32: Maintain | G32: 1 | H32: 1 | I32: ls | J32: 0 | K32: 0 | L32: existing system checked and repaired during renovations | M32: Water Mains/Valves | N32: 0 | O32: 0 | P32: 0 | Q32: 0 | R32: 0 | S32: 0 | T32: 0 | U32: 0 | V32: 0 | W32: 0 | X32: 1000 | Y32: 0 | Z32: 0 | AA32: 0 | AB32: 0 | AC32: 0 | AD32: 0 | AE32: 0 | AF32: 0 | AG32: 0 | AH32: 0 | AI32: 1000

Sheet CNAArchitectural (hidden)
M5: Architectural - Sum of all CNAs with Changes by Underwriter - Architectural
M6: Year | N6: 0 | O6: 1 | P6: 2 | Q6: 3 | R6: 4 | S6: 5 | T6: 6 | U6: 7 | V6: 8 | W6: 9 | X6: 10 | Y6: 11 | Z6: 12 | AA6: 13 | AB6: 14 | AC6: 15 | AD6: 16 | AE6: 17 | AF6: 18 | AG6: 19 | AH6: 20
M7: Item | N7: =N12 -> H & S | O7: =O12 -> 2018 | P7: 2019 | Q7: 2020 | R7: 2021 | S7: 2022 | T7: 2023 | U7: 2024 | V7: 2025 | W7: 2026 | X7: 2027 | Y7: 2028 | Z7: 2029 | AA7: 2030 | AB7: 2031 | AC7: 2032 | AD7: 2033 | AE7: 2034 | AF7: 2035 | AG7: 2036 | AH7: 2037 | AI7: =AI12 -> 0
M8: Uninflated Totals | N8: =SUM(N13:N500) -> 0 | O8: =SUM(O13:O500) -> 0 | P8: 0 | Q8: 0 | R8: 0 | S8: 0 | T8: 0 | U8: 12838 | V8: 8584 | W8: 8584 | X8: 9097 | Y8: 8584 | Z8: 1120 | AA8: 0 | AB8: 4254 | AC8: 3885 | AD8: 1200 | AE8: 1200 | AF8: 1200 | AG8: 1200 | AH8: 1200 | AI8: =SUM(N8:AH8) -> 62946 | AJ8: =SUM(N11:AH488) -> 103496
M9: Inflation Factor (3%) | N9: 1 | O9: 1 | P9: 1.03 | Q9: 1.0609 | R9: 1.092727 | S9: 1.12550881 | T9: 1.159274074 | U9: 1.194052297 | V9: 1.229873865 | W9: 1.266770081 | X9: 1.304773184 | Y9: 1.343916379 | Z9: 1.384233871 | AA9: 1.425760887 | AB9: 1.468533713 | AC9: 1.512589725 | AD9: 1.557967417 | AE9: 1.604706439 | AF9: 1.652847632 | AG9: 1.702433061 | AH9: 1.753506053
M10: Inflated Totals | N10: =N8*N9 -> 0 | O10: =O8*O9 -> 0 | P10: 0 | Q10: 0 | R10: 0 | S10: 0 | T10: 0 | U10: 15329.24338 | V10: 10557.23726 | W10: 10873.95438 | X10: 11869.52165 | Y10: 11536.1782 | Z10: 1550.341935 | AA10: 0 | AB10: 6247.142417 | AC10: 5876.411081 | AD10: 1869.5609 | AE10: 1925.647727 | AF10: 1983.417159 | AG10: 2042.919673 | AH10: 2104.207264 | AI10: =SUM(N10:AH10) -> 83765.78303
A11: Happy Trails Apartments Post CNA
A12: Item | B12: EUL | C12: AGE | D12: RUL | E12: Cond | F12: Action | G12: DUR | H12: QTY | I12: Unit | J12: Unit Cost | K12: Total Cost | L12: Comments | M12: Item | N12: H & S | O12: 2018 | P12: 2019 | Q12: 2020 | R12: 2021 | S12: 2022 | T12: 2023 | U12: 2024 | V12: 2025 | W12: 2026 | X12: 2027 | Y12: 2028 | Z12: 2029 | AA12: 2030 | AB12: 2031 | AC12: 2032 | AD12: 2033 | AE12: 2034 | AF12: 2035 | AG12: 2036 | AH12: 2037
A13: Accessibility Compliance | B13: 50 | C13: 0 | D13: 50 | E13: Excellent | F13: No Action | G13: 0 | H13: 0 | I13: 0 | J13: 0 | K13: 0 | M13: Accessibility Compliance | N13: 0 | O13: 0 | P13: 0 | Q13: 0 | R13: 0 | S13: 0 | T13: 0 | U13: 0 | V13: 0 | W13: 0 | X13: 0 | Y13: 0 | Z13: 0 | AA13: 0 | AB13: 0 | AC13: 0 | AD13: 0 | AE13: 0 | AF13: 0 | AG13: 0 | AH13: 0 | AI13: =SUM(N13:AH13) -> 0
A14: Appliances: range, cook top, wall oven | B14: 15 | C14: 0 | D14: 15 | E14: Excellent | F14: Maintain | G14: 1 | H14: 1 | I14: ea | J14: 450 | K14: 450 | M14: Appliances: range, cook top, wall oven | N14: 0 | O14: 0 | P14: 0 | Q14: 0 | R14: 0 | S14: 0 | T14: 0 | U14: 0 | V14: 0 | W14: 0 | X14: 0 | Y14: 0 | Z14: 0 | AA14: 0 | AB14: 0 | AC14: 450 | AD14: 0 | AE14: 0 | AF14: 0 | AG14: 0 | AH14: 0 | AI14: 450
A15: Appliances: range hood | B15: 15 | C15: 0 | D15: 15 | E15: Excellent | F15: Maintain | G15: 1 | H15: 1 | I15: ea | J15: 135 | K15: 135 | M15: Appliances: range hood | N15: 0 | O15: 0 | P15: 0 | Q15: 0 | R15: 0 | S15: 0 | T15: 0 | U15: 0 | V15: 0 | W15: 0 | X15: 0 | Y15: 0 | Z15: 0 | AA15: 0 | AB15: 0 | AC15: 135 | AD15: 0 | AE15: 0 | AF15: 0 | AG15: 0 | AH15: 0 | AI15: 135
A16: Appliances: refrigerator/freezer | B16: 12 | C16: 0 | D16: 12 | E16: Excellent | F16: Maintain | G16: 1 | H16: 1 | I16: ea | J16: 580 | K16: 580 | M16: Appliances: refrigerator/freezer | N16: 0 | O16: 0 | P16: 0 | Q16: 0 | R16: 0 | S16: 0 | T16: 0 | U16: 0 | V16: 0 | W16: 0 | X16: 0 | Y16: 0 | Z16: 580 | AA16: 0 | AB16: 0 | AC16: 0 | AD16: 0 | AE16: 0 | AF16: 0 | AG16: 0 | AH16: 0 | AI16: 580
A17: Bath: accessories (towel bars, grab bars, etc) | B17: 7 | C17: 0 | D17: 7 | E17: Excellent | F17: Maintain | G17: 1 | H17: 1 | I17: ea | J17: 125 | K17: 125 | M17: Bath: accessories (towel bars, grab bars, etc) | N17: 0 | O17: 0 | P17: 0 | Q17: 0 | R17: 0 | S17: 0 | T17: 0 | U17: 125 | V17: 0 | W17: 0 | X17: 0 | Y17: 0 | Z17: 0 | AA17: 0 | AB17: 125 | AC17: 0 | AD17: 0 | AE17: 0 | AF17: 0 | AG17: 0 | AH17: 0 | AI17: 250
A18: Bath: mirrors & medicine cabinets | B18: 15 | C18: 0 | D18: 15 | E18: Excellent | F18: Maintain | G18: 1 | H18: 1 | I18: ea | J18: 110 | K18: 110 | M18: Bath: mirrors & medicine cabinets | N18: 0 | O18: 0 | P18: 0 | Q18: 0 | R18: 0 | S18: 0 | T18: 0 | U18: 0 | V18: 0 | W18: 0 | X18: 0 | Y18: 0 | Z18: 0 | AA18: 0 | AB18: 0 | AC18: 110 | AD18: 0 | AE18: 0 | AF18: 0 | AG18: 0 | AH18: 0 | AI18: 110
A19: Bath/kitchen vent/exhaust fans | B19: 15 | C19: 0 | D19: 15 | E19: Excellent | F19: Maintain | G19: 1 | H19: 1 | I19: ea | J19: 135 | K19: 135 | M19: Bath/kitchen vent/exhaust fans | N19: 0 | O19: 0 | P19: 0 | Q19: 0 | R19: 0 | S19: 0 | T19: 0 | U19: 0 | V19: 0 | W19: 0 | X19: 0 | Y19: 0 | Z19: 0 | AA19: 0 | AB19: 0 | AC19: 135 | AD19: 0 | AE19: 0 | AF19: 0 | AG19: 0 | AH19: 0 | AI19: 135
A20: Cabinets & vanities | B20: 20 | C20: 0 | D20: 20 | E20: Excellent | F20: Maintain | G20: 1 | H20: 10 | I20: lf | J20: 350 | K20: 3500 | M20: Cabinets & vanities | N20: 0 | O20: 0 | P20: 0 | Q20: 0 | R20: 0 | S20: 0 | T20: 0 | U20: 0 | V20: 0 | W20: 0 | X20: 0 | Y20: 0 | Z20: 0 | AA20: 0 | AB20: 0 | AC20: 0 | AD20: 0 | AE20: 0 | AF20: 0 | AG20: 0 | AH20: 0 | AI20: 0
A21: Countertops: plastic laminates, wood | B21: 15 | C21: 0 | D21: 15 | E21: Excellent | F21: Maintain | G21: 1 | H21: 10 | I21: lf | J21: 85 | K21: 850 | M21: Countertops: plastic laminates, wood | N21: 0 | O21: 0 | P21: 0 | Q21: 0 | R21: 0 | S21: 0 | T21: 0 | U21: 0 | V21: 0 | W21: 0 | X21: 0 | Y21: 0 | Z21: 0 | AA21: 0 | AB21: 0 | AC21: 850 | AD21: 0 | AE21: 0 | AF21: 0 | AG21: 0 | AH21: 0 | AI21: 850
A22: Detector: smoke or CO, community area | B22: 10 | C22: 0 | D22: 10 | E22: Excellent | F22: Maintain | G22: 1 | H22: 6 | I22: ea | J22: 85 | K22: 510 | M22: Detector: smoke or CO, community area | N22: 0 | O22: 0 | P22: 0 | Q22: 0 | R22: 0 | S22: 0 | T22: 0 | U22: 0 | V22: 0 | W22: 0 | X22: 510 | Y22: 0 | Z22: 0 | AA22: 0 | AB22: 0 | AC22: 0 | AD22: 0 | AE22: 0 | AF22: 0 | AG22: 0 | AH22: 0 | AI22: 510
A23: Doors: common exterior door, solid wood /metal clad | B23: 25 | C23: 0 | D23: 25 | E23: Excellent | F23: Maintain | G23: 1 | H23: 4 | I23: ea | J23: 475 | K23: 1900 | M23: Doors: common exterior door, solid wood /metal clad | N23: 0 | O23: 0 | P23: 0 | Q23: 0 | R23: 0 | S23: 0 | T23: 0 | U23: 0 | V23: 0 | W23: 0 | X23: 0 | Y23: 0 | Z23: 0 | AA23: 0 | AB23: 0 | AC23: 0 | AD23: 0 | AE23: 0 | AF23: 0 | AG23: 0 | AH23: 0 | AI23: 0
A24: Doors: interior, hollow core doors | B24: 20 | C24: 0 | D24: 20 | E24: Excellent | F24: Maintain | G24: 1 | H24: 4 | I24: ea | J24: 275 | K24: 1100 | M24: Doors: interior, hollow core doors | N24: 0 | O24: 0 | P24: 0 | Q24: 0 | R24: 0 | S24: 0 | T24: 0 | U24: 0 | V24: 0 | W24: 0 | X24: 0 | Y24: 0 | Z24: 0 | AA24: 0 | AB24: 0 | AC24: 0 | AD24: 0 | AE24: 0 | AF24: 0 | AG24: 0 | AH24: 0 | AI24: 0
A25: Doors: passage & lock sets | B25: 12 | C25: 0 | D25: 12 | E25: Excellent | F25: Maintain | G25: 1 | H25: 4 | I25: ea | J25: 135 | K25: 540 | M25: Doors: passage & lock sets | N25: 0 | O25: 0 | P25: 0 | Q25: 0 | R25: 0 | S25: 0 | T25: 0 | U25: 0 | V25: 0 | W25: 0 | X25: 0 | Y25: 0 | Z25: 540 | AA25: 0 | AB25: 0 | AC25: 0 | AD25: 0 | AE25: 0 | AF25: 0 | AG25: 0 | AH25: 0 | AI25: 540
A26: Doors: unit entry, door solid wood/metal clad | B26: 25 | C26: 0 | D26: 25 | E26: Excellent | F26: Maintain | G26: 1 | H26: 40 | I26: ea | J26: 475 | K26: 19000 | M26: Doors: unit entry, door solid wood/metal clad | N26: 0 | O26: 0 | P26: 0 | Q26: 0 | R26: 0 | S26: 0 | T26: 0 | U26: 0 | V26: 0 | W26: 0 | X26: 0 | Y26: 0 | Z26: 0 | AA26: 0 | AB26: 0 | AC26: 0 | AD26: 0 | AE26: 0 | AF26: 0 | AG26: 0 | AH26: 0 | AI26: 0
A27: Exterior wall: brick/block veneer | B27: 60 | C27: 40 | D27: 20 | E27: Excellent | F27: Maintain | G27: 1 | H27: 1 | I27: ls | J27: 0 | K27: 0 | L27: existing system checked and repaired during renovations | M27: Exterior wall: brick/block veneer | N27: 0 | O27: 0 | P27: 0 | Q27: 0 | R27: 0 | S27: 0 | T27: 0 | U27: 0 | V27: 0 | W27: 0 | X27: 0 | Y27: 0 | Z27: 0 | AA27: 0 | AB27: 0 | AC27: 0 | AD27: 0 | AE27: 0 | AF27: 0 | AG27: 0 | AH27: 0 | AI27: 0
A28: Exterior wall: building wraps & moisture resistant barriers | B28: 50 | C28: 40 | D28: 10 | E28: Excellent | F28: Maintain | G28: 1 | H28: 1 | I28: ls | J28: 0 | K28: 0 | L28: existing system checked and repaired during renovations | M28: Exterior wall: building wraps & moisture resistant barriers | N28: 0 | O28: 0 | P28: 0 | Q28: 0 | R28: 0 | S28: 0 | T28: 0 | U28: 0 | V28: 0 | W28: 0 | X28: 3 | Y28: 0 | Z28: 0 | AA28: 0 | AB28: 0 | AC28: 0 | AD28: 0 | AE28: 0 | AF28: 0 | AG28: 0 | AH28: 0 | AI28: 3
A29: Exterior wall: building wraps & moisture resistant barriers | B29: 50 | C29: 0 | D29: 50 | E29: Excellent | F29: Maintain | G29: 0 | H29: 13650 | I29: ea | J29: 3 | K29: 40950 | L29: at new HardiPlank | M29: Exterior wall: building wraps & moisture resistant barriers | N29: 0 | O29: 0 | P29: 0 | Q29: 0 | R29: 0 | S29: 0 | T29: 0 | U29: 0 | V29: 0 | W29: 0 | X29: 0 | Y29: 0 | Z29: 0 | AA29: 0 | AB29: 0 | AC29: 0 | AD29: 0 | AE29: 0 | AF29: 0 | AG29: 0 | AH29: 0 | AI29: 0
A30: Exterior wall: cement board siding | B30: 50 | C30: 0 | D30: 50 | E30: Excellent | F30: No Action | G30: 0 | H30: 0 | I30: 0 | J30: 0 | K30: 0 | M30: Exterior wall: cement board siding | N30: 0 | O30: 0 | P30: 0 | Q30: 0 | R30: 0 | S30: 0 | T30: 0 | U30: 0 | V30: 0 | W30: 0 | X30: 0 | Y30: 0 | Z30: 0 | AA30: 0 | AB30: 0 | AC30: 0 | AD30: 0 | AE30: 0 | AF30: 0 | AG30: 0 | AH30: 0 | AI30: 0
A31: Fascia: wood or vinyl | B31: 20 | C31: 0 | D31: 20 | E31: Excellent | F31: Maintain | G31: 1 | H31: 1030 | I31: lf | J31: 15 | K31: 15450 | M31: Fascia: wood or vinyl | N31: 0 | O31: 0 | P31: 0 | Q31: 0 | R31: 0 | S31: 0 | T31: 0 | U31: 0 | V31: 0 | W31: 0 | X31: 0 | Y31: 0 | Z31: 0 | AA31: 0 | AB31: 0 | AC31: 0 | AD31: 0 | AE31: 0 | AF31: 0 | AG31: 0 | AH31: 0 | AI31: 0
A32: Floors: carpet | B32: 7 | C32: 0 | D32: 7 | E32: Excellent | F32: Maintain | G32: 1 | H32: 12 | I32: sy | J32: 32 | K32: 384 | M32: Floors: carpet | N32: 0 | O32: 0 | P32: 0 | Q32: 0 | R32: 0 | S32: 0 | T32: 0 | U32: 384 | V32: 0 | W32: 0 | X32: 0 | Y32: 0 | Z32: 0 | AA32: 0 | AB32: 384 | AC32: 0 | AD32: 0 | AE32: 0 | AF32: 0 | AG32: 0 | AH32: 0 | AI32: 768
A33: Floors: vinyl plank (> 3mm thick) | B33: 20 | C33: 0 | D33: 20 | E33: Excellent | F33: Maintain | G33: 1 | H33: 985 | I33: sf | J33: 3.5 | K33: 3447.5 | M33: Floors: vinyl plank (> 3mm thick) | N33: 0 | O33: 0 | P33: 0 | Q33: 0 | R33: 0 | S33: 0 | T33: 0 | U33: 0 | V33: 0 | W33: 0 | X33: 0 | Y33: 0 | Z33: 0 | AA33: 0 | AB33: 0 | AC33: 0 | AD33: 0 | AE33: 0 | AF33: 0 | AG33: 0 | AH33: 0 | AI33: 0
A34: Gutters/Downspouts: aluminum/vinyl | B34: 20 | C34: 0 | D34: 20 | E34: Excellent | F34: Maintain | G34: 1 | H34: 650 | I34: lf | J34: 18 | K34: 11700 | M34: Gutters/Downspouts: aluminum/vinyl | N34: 0 | O34: 0 | P34: 0 | Q34: 0 | R34: 0 | S34: 0 | T34: 0 | U34: 0 | V34: 0 | W34: 0 | X34: 0 | Y34: 0 | Z34: 0 | AA34: 0 | AB34: 0 | AC34: 0 | AD34: 0 | AE34: 0 | AF34: 0 | AG34: 0 | AH34: 0 | AI34: 0
A35: Insulation: loose fill, fiberglass, cellulose, mineral wool | B35: 50 | C35: 40 | D35: 10 | E35: Excellent | F35: Maintain | G35: 1 | H35: 1 | I35: ls | J35: 0 | K35: 0 | L35: existing system checked and repaired during renovations | M35: Insulation: loose fill, fiberglass, cellulose, mineral wool | N35: 0 | O35: 0 | P35: 0 | Q35: 0 | R35: 0 | S35: 0 | T35: 0 | U35: 8584 | V35: 8584 | W35: 8584 | X35: 8584 | Y35: 8584 | Z35: 0 | AA35: 0 | AB35: 0 | AC35: 0 | AD35: 0 | AE35: 0 | AF35: 0 | AG35: 0 | AH35: 0 | AI35: 42920
A36: Paints & Stains: fiber cement | B36: 15 | C36: 0 | D36: 15 | E36: Excellent | F36: Maintain | G36: 1 | H36: 4 | I36: blgs | J36: 1500 | K36: 6000 | M36: Paints & Stains: fiber cement | N36: 0 | O36: 0 | P36: 0 | Q36: 0 | R36: 0 | S36: 0 | T36: 0 | U36: 0 | V36: 0 | W36: 0 | X36: 0 | Y36: 0 | Z36: 0 | AA36: 0 | AB36: 0 | AC36: 0 | AD36: 1200 | AE36: 1200 | AF36: 1200 | AG36: 1200 | AH36: 1200 | AI36: 6000
A37: Penetrations: caulking/sealing | B37: 15 | C37: 0 | D37: 15 | E37: Excellent | F37: Maintain | G37: 1 | H37: 147 | I37: ea | J37: 15 | K37: 2205 | M37: Penetrations: caulking/sealing | N37: 0 | O37: 0 | P37: 0 | Q37: 0 | R37: 0 | S37: 0 | T37: 0 | U37: 0 | V37: 0 | W37: 0 | X37: 0 | Y37: 0 | Z37: 0 | AA37: 0 | AB37: 0 | AC37: 2205 | AD37: 0 | AE37: 0 | AF37: 0 | AG37: 0 | AH37: 0 | AI37: 2205
A38: Roofing: metal | B38: 50 | C38: 0 | D38: 50 | E38: Excellent | F38: Maintain | G38: 1 | H38: 232 | I38: sq | J38: 290 | K38: 67280 | M38: Roofing: metal | N38: 0 | O38: 0 | P38: 0 | Q38: 0 | R38: 0 | S38: 0 | T38: 0 | U38: 0 | V38: 0 | W38: 0 | X38: 0 | Y38: 0 | Z38: 0 | AA38: 0 | AB38: 0 | AC38: 0 | AD38: 0 | AE38: 0 | AF38: 0 | AG38: 0 | AH38: 0 | AI38: 0
A39: Soffits: wood, vinyl or metal | B39: 20 | C39: 0 | D39: 20 | E39: Excellent | F39: Maintain | G39: 1 | H39: 5 | I39: bldgs | J39: 1500 | K39: 7500 | M39: Soffits: wood, vinyl or metal | N39: 0 | O39: 0 | P39: 0 | Q39: 0 | R39: 0 | S39: 0 | T39: 0 | U39: 0 | V39: 0 | W39: 0 | X39: 0 | Y39: 0 | Z39: 0 | AA39: 0 | AB39: 0 | AC39: 0 | AD39: 0 | AE39: 0 | AF39: 0 | AG39: 0 | AH39: 0 | AI39: 0
A40: Stair, Exterior: steel frame/stringer | B40: 40 | C40: 0 | D40: 40 | E40: Excellent | F40: Maintain | G40: 1 | H40: 10 | I40: ea | J40: 15000 | K40: 150000 | M40: Stair, Exterior: steel frame/stringer | N40: 0 | O40: 0 | P40: 0 | Q40: 0 | R40: 0 | S40: 0 | T40: 0 | U40: 0 | V40: 0 | W40: 0 | X40: 0 | Y40: 0 | Z40: 0 | AA40: 0 | AB40: 0 | AC40: 0 | AD40: 0 | AE40: 0 | AF40: 0 | AG40: 0 | AH40: 0 | AI40: 0
A41: Windows: storm/screen windows | B41: 7 | C41: 0 | D41: 7 | E41: Excellent | F41: Maintain | G41: 1 | H41: 107 | I41: ea | J41: 35 | K41: 3745 | M41: Windows: storm/screen windows | N41: 0 | O41: 0 | P41: 0 | Q41: 0 | R41: 0 | S41: 0 | T41: 0 | U41: 3745 | V41: 0 | W41: 0 | X41: 0 | Y41: 0 | Z41: 0 | AA41: 0 | AB41: 3745 | AC41: 0 | AD41: 0 | AE41: 0 | AF41: 0 | AG41: 0 | AH41: 0 | AI41: 7490
A42: Windows: vinyl | B42: 30 | C42: 0 | D42: 30 | E42: Excellent | F42: Maintain | G42: 1 | H42: 107 | I42: ea | J42: 680 | K42: 72760 | M42: Windows: vinyl | N42: 0 | O42: 0 | P42: 0 | Q42: 0 | R42: 0 | S42: 0 | T42: 0 | U42: 0 | V42: 0 | W42: 0 | X42: 0 | Y42: 0 | Z42: 0 | AA42: 0 | AB42: 0 | AC42: 0 | AD42: 0 | AE42: 0 | AF42: 0 | AG42: 0 | AH42: 0 | AI42: 0

Sheet CNAMech & Electric (hidden)
M5: Mech & Electric - Sum of all CNAs with Changes by Underwriter - Mech & Electric
M6: Year | N6: 0 | O6: 1 | P6: 2 | Q6: 3 | R6: 4 | S6: 5 | T6: 6 | U6: 7 | V6: 8 | W6: 9 | X6: 10 | Y6: 11 | Z6: 12 | AA6: 13 | AB6: 14 | AC6: 15 | AD6: 16 | AE6: 17 | AF6: 18 | AG6: 19 | AH6: 20
M7: Item | N7: =N12 -> H & S | O7: =O12 -> 2018 | P7: 2019 | Q7: 2020 | R7: 2021 | S7: 2022 | T7: 2023 | U7: 2024 | V7: 2025 | W7: 2026 | X7: 2027 | Y7: 2028 | Z7: 2029 | AA7: 2030 | AB7: 2031 | AC7: 2032 | AD7: 2033 | AE7: 2034 | AF7: 2035 | AG7: 2036 | AH7: 2037 | AI7: 0
M8: Uninflated Totals | N8: =SUM(N13:N500) -> 0 | O8: =SUM(O13:O500) -> 0 | P8: 0 | Q8: 0 | R8: 0 | S8: 0 | T8: 8000 | U8: 13440 | V8: 13440 | W8: 28440 | X8: 33665 | Y8: 20440 | Z8: 15000 | AA8: 15000 | AB8: 15000 | AC8: 18075 | AD8: 5750 | AE8: 5750 | AF8: 5750 | AG8: 5750 | AH8: 1240 | AI8: =SUM(N8:AH8) -> 204740
M9: Inflation Factor (3%) | N9: 1 | O9: 1 | P9: 1.03 | Q9: 1.0609 | R9: 1.092727 | S9: 1.12550881 | T9: 1.159274074 | U9: 1.194052297 | V9: 1.229873865 | W9: 1.266770081 | X9: 1.304773184 | Y9: 1.343916379 | Z9: 1.384233871 | AA9: 1.425760887 | AB9: 1.468533713 | AC9: 1.512589725 | AD9: 1.557967417 | AE9: 1.604706439 | AF9: 1.652847632 | AG9: 1.702433061 | AH9: 1.753506053
M10: Inflated Totals | N10: =N8*N9 -> 0 | O10: =O8*O9 -> 0 | P10: 0 | Q10: 0 | R10: 0 | S10: 0 | T10: 9274.192594 | U10: 16048.06287 | V10: 16529.50475 | W10: 36026.94111 | X10: 43925.18923 | Y10: 27469.65079 | Z10: 20763.50806 | AA10: 21386.4133 | AB10: 22028.0057 | AC10: 27340.05928 | AD10: 8958.312645 | AE10: 9227.062025 | AF10: 9503.873886 | AG10: 9788.990102 | AH10: 2174.347506 | AI10: =SUM(N10:AH10) -> 280444.1139
A11: Happy Trails Apartments Post CNA
A12: Item | B12: EUL | C12: AGE | D12: RUL | E12: Cond | F12: Action | G12: DUR | H12: QTY | I12: Unit | J12: Unit Cost | K12: Total Cost | L12: Comments | M12: Item | N12: H & S | O12: 2018 | P12: 2019 | Q12: 2020 | R12: 2021 | S12: 2022 | T12: 2023 | U12: 2024 | V12: 2025 | W12: 2026 | X12: 2027 | Y12: 2028 | Z12: 2029 | AA12: 2030 | AB12: 2031 | AC12: 2032 | AD12: 2033 | AE12: 2034 | AF12: 2035 | AG12: 2036 | AH12: 2037
A13: Detector:smoke or CO | B13: 10 | C13: 0 | D13: 10 | E13: Excellent | F13: Maintain | G13: 1 | H13: 5 | I13: ea | J13: 85 | K13: 425 | M13: Detector:smoke or CO | N13: 0 | O13: 0 | P13: 0 | Q13: 0 | R13: 0 | S13: 0 | T13: 0 | U13: 0 | V13: 0 | W13: 0 | X13: 425 | Y13: 0 | Z13: 0 | AA13: 0 | AB13: 0 | AC13: 0 | AD13: 0 | AE13: 0 | AF13: 0 | AG13: 0 | AH13: 0 | AI13: =SUM(N13:AH13) -> 425
A14: DHW: gas or electric, residential unit | B14: 12 | C14: 0 | D14: 12 | E14: Excellent | F14: Maintain | G14: 1 | H14: 40 | I14: ea | J14: 680 | K14: 27200 | M14: DHW: gas or electric, residential unit | N14: 0 | O14: 0 | P14: 0 | Q14: 0 | R14: 0 | S14: 0 | T14: 0 | U14: 5440 | V14: 5440 | W14: 5440 | X14: 5440 | Y14: 5440 | Z14: 0 | AA14: 0 | AB14: 0 | AC14: 0 | AD14: 0 | AE14: 0 | AF14: 0 | AG14: 0 | AH14: 0 | AI14: 27200
A15: Electric: electric panel, dwelling unit | B15: 50 | C15: 40 | D15: 10 | E15: Excellent | F15: Maintain | G15: 1 | H15: 40 | I15: ea | J15: 0 | K15: 0 | L15: existing system checked and repaired during renovations | M15: Electric: electric panel, dwelling unit | N15: 0 | O15: 0 | P15: 0 | Q15: 0 | R15: 0 | S15: 0 | T15: 8000 | U15: 8000 | V15: 8000 | W15: 8000 | X15: 8000 | Y15: 0 | Z15: 0 | AA15: 0 | AB15: 0 | AC15: 0 | AD15: 0 | AE15: 0 | AF15: 0 | AG15: 0 | AH15: 0 | AI15: 40000
A16: Electric: service panel, building | B16: 50 | C16: 40 | D16: 10 | E16: Excellent | F16: Maintain | G16: 1 | H16: 4 | I16: ea | J16: 0 | K16: 0 | L16: existing system checked and repaired during renovations | M16: Electric: service panel, building | N16: 0 | O16: 0 | P16: 0 | Q16: 0 | R16: 0 | S16: 0 | T16: 0 | U16: 0 | V16: 0 | W16: 0 | X16: 4800 | Y16: 0 | Z16: 0 | AA16: 0 | AB16: 0 | AC16: 0 | AD16: 0 | AE16: 0 | AF16: 0 | AG16: 0 | AH16: 0 | AI16: 4800
A17: Electric: wiring, building/unit | B17: 50 | C17: 40 | D17: 10 | E17: Excellent | F17: Maintain | G17: 1 | H17: 40 | I17: units | J17: 0 | K17: 0 | L17: existing system checked and repaired during renovations | M17: Electric: wiring, building/unit | N17: 0 | O17: 0 | P17: 0 | Q17: 0 | R17: 0 | S17: 0 | T17: 0 | U17: 0 | V17: 0 | W17: 0 | X17: 0 | Y17: 0 | Z17: 0 | AA17: 0 | AB17: 0 | AC17: 0 | AD17: 0 | AE17: 0 | AF17: 0 | AG17: 0 | AH17: 0 | AI17: 0
A18: HVAC: AC condenser, pad or rooftop, electric | B18: 15 | C18: 0 | D18: 15 | E18: Excellent | F18: Maintain | G18: 1 | H18: 41 | I18: ea | J18: 550 | K18: 22550 | M18: HVAC: AC condenser, pad or rooftop, electric | N18: 0 | O18: 0 | P18: 0 | Q18: 0 | R18: 0 | S18: 0 | T18: 0 | U18: 0 | V18: 0 | W18: 0 | X18: 0 | Y18: 0 | Z18: 0 | AA18: 0 | AB18: 0 | AC18: 0 | AD18: 4510 | AE18: 4510 | AF18: 4510 | AG18: 4510 | AH18: 0 | AI18: 18040
A19: HVAC: furnace/air handler, gas | B19: 20 | C19: 0 | D19: 20 | E19: Excellent | F19: Maintain | G19: 1 | H19: 41 | I19: ea | J19: 2200 | K19: 90200 | M19: HVAC: furnace/air handler, gas | N19: 0 | O19: 0 | P19: 0 | Q19: 0 | R19: 0 | S19: 0 | T19: 0 | U19: 0 | V19: 0 | W19: 0 | X19: 0 | Y19: 0 | Z19: 0 | AA19: 0 | AB19: 0 | AC19: 0 | AD19: 0 | AE19: 0 | AF19: 0 | AG19: 0 | AH19: 0 | AI19: 0
A20: HVAC: thermostat, dwelling/common area | B20: 15 | C20: 0 | D20: 15 | E20: Excellent | F20: Maintain | G20: 1 | H20: 41 | I20: ea | J20: 75 | K20: 3075 | M20: HVAC: thermostat, dwelling/common area | N20: 0 | O20: 0 | P20: 0 | Q20: 0 | R20: 0 | S20: 0 | T20: 0 | U20: 0 | V20: 0 | W20: 0 | X20: 0 | Y20: 0 | Z20: 0 | AA20: 0 | AB20: 0 | AC20: 3075 | AD20: 0 | AE20: 0 | AF20: 0 | AG20: 0 | AH20: 0 | AI20: 3075
A21: Lighting: exterior entry | B21: 25 | C21: 0 | D21: 25 | E21: Excellent | F21: Maintain | G21: 1 | H21: 40 | I21: ea | J21: 85 | K21: 3400 | L21: LED adjusted RUL | M21: Lighting: exterior entry | N21: 0 | O21: 0 | P21: 0 | Q21: 0 | R21: 0 | S21: 0 | T21: 0 | U21: 0 | V21: 0 | W21: 0 | X21: 0 | Y21: 0 | Z21: 0 | AA21: 0 | AB21: 0 | AC21: 0 | AD21: 0 | AE21: 0 | AF21: 0 | AG21: 0 | AH21: 0 | AI21: 0
A22: Lighting: interior common space | B22: 25 | C22: 0 | D22: 25 | E22: Excellent | F22: Maintain | G22: 1 | H22: 11 | I22: ea | J22: 120 | K22: 1320 | L22: LED | M22: Lighting: interior common space | N22: 0 | O22: 0 | P22: 0 | Q22: 0 | R22: 0 | S22: 0 | T22: 0 | U22: 0 | V22: 0 | W22: 0 | X22: 0 | Y22: 0 | Z22: 0 | AA22: 0 | AB22: 0 | AC22: 0 | AD22: 0 | AE22: 0 | AF22: 0 | AG22: 0 | AH22: 0 | AI22: 0
A23: Lighting: tenant spaces | B23: 20 | C23: 0 | D23: 20 | E23: Excellent | F23: Maintain | G23: 1 | H23: 164 | I23: ea | J23: 120 | K23: 19680 | L23: LED | M23: Lighting: tenant spaces | N23: 0 | O23: 0 | P23: 0 | Q23: 0 | R23: 0 | S23: 0 | T23: 0 | U23: 0 | V23: 0 | W23: 0 | X23: 0 | Y23: 0 | Z23: 0 | AA23: 0 | AB23: 0 | AC23: 0 | AD23: 0 | AE23: 0 | AF23: 0 | AG23: 0 | AH23: 0 | AI23: 0
A24: Meter: building | B24: 40 | C24: 0 | D24: 40 | E24: Excellent | F24: Maintain | G24: 1 | H24: 4 | I24: ea | J24: 0 | K24: 0 | L24: provided by electric utility | M24: Meter: building | N24: 0 | O24: 0 | P24: 0 | Q24: 0 | R24: 0 | S24: 0 | T24: 0 | U24: 0 | V24: 0 | W24: 0 | X24: 0 | Y24: 0 | Z24: 0 | AA24: 0 | AB24: 0 | AC24: 0 | AD24: 0 | AE24: 0 | AF24: 0 | AG24: 0 | AH24: 0 | AI24: 0
A25: Meter: dwelling unit | B25: 40 | C25: 0 | D25: 40 | E25: Excellent | F25: Maintain | G25: 1 | H25: 40 | I25: ea | J25: 0 | K25: 0 | L25: provided by electric utility | M25: Meter: dwelling unit | N25: 0 | O25: 0 | P25: 0 | Q25: 0 | R25: 0 | S25: 0 | T25: 0 | U25: 0 | V25: 0 | W25: 0 | X25: 0 | Y25: 0 | Z25: 0 | AA25: 0 | AB25: 0 | AC25: 0 | AD25: 0 | AE25: 0 | AF25: 0 | AG25: 0 | AH25: 0 | AI25: 0
A26: Plumbing: copper tube, supply | B26: 50 | C26: 40 | D26: 10 | E26: Excellent | F26: Maintain | G26: 1 | H26: 40 | I26: units | J26: 0 | K26: 0 | L26: existing system checked and repaired during renovations | M26: Plumbing: copper tube, supply | N26: 0 | O26: 0 | P26: 0 | Q26: 0 | R26: 0 | S26: 0 | T26: 0 | U26: 0 | V26: 0 | W26: 15000 | X26: 15000 | Y26: 15000 | Z26: 15000 | AA26: 15000 | AB26: 15000 | AC26: 15000 | AD26: 0 | AE26: 0 | AF26: 0 | AG26: 0 | AH26: 0 | AI26: 105000
A27: Plumbing: tub/shower units or integrated assemblies | B27: 30 | C27: 0 | D27: 30 | E27: Excellent | F27: Maintain | G27: 1 | H27: 40 | I27: ea | J27: 1750 | K27: 70000 | M27: Plumbing: tub/shower units or integrated assemblies | N27: 0 | O27: 0 | P27: 0 | Q27: 0 | R27: 0 | S27: 0 | T27: 0 | U27: 0 | V27: 0 | W27: 0 | X27: 0 | Y27: 0 | Z27: 0 | AA27: 0 | AB27: 0 | AC27: 0 | AD27: 0 | AE27: 0 | AF27: 0 | AG27: 0 | AH27: 0 | AI27: 0
A28: Plumbing: faucets & valves | B28: 15 | C28: 0 | D28: 15 | E28: Excellent | F28: Maintain | G28: 1 | H28: 40 | I28: ea | J28: 155 | K28: 6200 | M28: Plumbing: faucets & valves | N28: 0 | O28: 0 | P28: 0 | Q28: 0 | R28: 0 | S28: 0 | T28: 0 | U28: 0 | V28: 0 | W28: 0 | X28: 0 | Y28: 0 | Z28: 0 | AA28: 0 | AB28: 0 | AC28: 0 | AD28: 1240 | AE28: 1240 | AF28: 1240 | AG28: 1240 | AH28: 1240 | AI28: 6200
A29: Plumbing: toilets/bidets/urinals | B29: 40 | C29: 0 | D29: 40 | E29: Excellent | F29: Maintain | G29: 1 | H29: 40 | I29: ea | J29: 450 | K29: 18000 | M29: Plumbing: toilets/bidets/urinals | N29: 0 | O29: 0 | P29: 0 | Q29: 0 | R29: 0 | S29: 0 | T29: 0 | U29: 0 | V29: 0 | W29: 0 | X29: 0 | Y29: 0 | Z29: 0 | AA29: 0 | AB29: 0 | AC29: 0 | AD29: 0 | AE29: 0 | AF29: 0 | AG29: 0 | AH29: 0 | AI29: 0
A30: Satellite dishes/antennae | B30: 20 | C30: 0 | D30: 20 | E30: Excellent | F30: Maintain | G30: 0 | H30: 0 | I30: ea | J30: 0 | K30: 0 | L30: none | M30: Satellite dishes/antennae | N30: 0 | O30: 0 | P30: 0 | Q30: 0 | R30: 0 | S30: 0 | T30: 0 | U30: 0 | V30: 0 | W30: 0 | X30: 0 | Y30: 0 | Z30: 0 | AA30: 0 | AB30: 0 | AC30: 0 | AD30: 0 | AE30: 0 | AF30: 0 | AG30: 0 | AH30: 0 | AI30: 0
A31: Telecom: cabling & outlets | B31: 20 | C31: 0 | D31: 20 | E31: Excellent | F31: Maintain | G31: 0 | H31: 0 | I31: ea | J31: 0 | K31: 0 | L31: none | M31: Telecom: cabling & outlets | N31: 0 | O31: 0 | P31: 0 | Q31: 0 | R31: 0 | S31: 0 | T31: 0 | U31: 0 | V31: 0 | W31: 0 | X31: 0 | Y31: 0 | Z31: 0 | AA31: 0 | AB31: 0 | AC31: 0 | AD31: 0 | AE31: 0 | AF31: 0 | AG31: 0 | AH31: 0 | AI31: 0
A32: Telecom: panels & controls | B32: 20 | C32: 0 | D32: 20 | E32: Excellent | F32: Maintain | G32: 0 | H32: 0 | I32: ea | J32: 0 | K32: 0 | L32: none | M32: Telecom: panels & controls | N32: 0 | O32: 0 | P32: 0 | Q32: 0 | R32: 0 | S32: 0 | T32: 0 | U32: 0 | V32: 0 | W32: 0 | X32: 0 | Y32: 0 | Z32: 0 | AA32: 0 | AB32: 0 | AC32: 0 | AD32: 0 | AE32: 0 | AF32: 0 | AG32: 0 | AH32: 0 | AI32: 0

Sheet CNADwelling Units (hidden)
M5: Dwelling - Sum of all CNAs with Changes by Underwriter - Dwelling
M6: Year | N6: 0 | O6: 1 | P6: 2 | Q6: 3 | R6: 4 | S6: 5 | T6: 6 | U6: 7 | V6: 8 | W6: 9 | X6: 10 | Y6: 11 | Z6: 12 | AA6: 13 | AB6: 14 | AC6: 15 | AD6: 16 | AE6: 17 | AF6: 18 | AG6: 19 | AH6: 20
M7: Item | N7: H & S | O7: 2013 | P7: 2014 | Q7: 2015 | R7: 2016 | S7: 2017 | T7: 2018 | U7: 2019 | V7: 2020 | W7: 2021 | X7: 2022 | Y7: 2023 | Z7: 2024 | AA7: 2025 | AB7: 2026 | AC7: 2027 | AD7: 2028 | AE7: 2029 | AF7: 2030 | AG7: 2031 | AH7: 2032 | AI7: Total
M8: Uninflated Totals | N8: =SUM(N13:N500) -> 0 | O8: =SUM(O13:O500) -> 0 | P8: 0 | Q8: 0 | R8: 0 | S8: 0 | T8: 2600 | U8: 19824 | V8: 19464 | W8: 19464 | X8: 40984 | Y8: 25504 | Z8: 39544 | AA8: 20864 | AB8: 20864 | AC8: 18518 | AD8: 14918 | AE8: 6694 | AF8: 6694 | AG8: 6694 | AH8: 0 | AI8: =SUM(N8:AH8) -> 262630
M9: Inflation Factor (3%) | N9: 1 | O9: 1 | P9: 1.03 | Q9: 1.0609 | R9: 1.092727 | S9: 1.12550881 | T9: 1.159274074 | U9: 1.194052297 | V9: 1.229873865 | W9: 1.266770081 | X9: 1.304773184 | Y9: 1.343916379 | Z9: 1.384233871 | AA9: 1.425760887 | AB9: 1.468533713 | AC9: 1.512589725 | AD9: 1.557967417 | AE9: 1.604706439 | AF9: 1.652847632 | AG9: 1.702433061 | AH9: 1.753506053
M10: Inflated Totals | N10: =N8*N9 -> 0 | O10: =O8*O9 -> 0 | P10: 0 | Q10: 0 | R10: 0 | S10: 0 | T10: 3014.112593 | U10: 23670.89273 | V10: 23938.26492 | W10: 24656.41286 | X10: 53474.82417 | Y10: 34275.24334 | Z10: 54738.14418 | AA10: 29747.07514 | AB10: 30639.4874 | AC10: 28010.13652 | AD10: 23241.75792 | AE10: 10741.9049 | AF10: 11064.16205 | AG10: 11396.08691 | AH10: 0 | AI10: =SUM(N10:AH10) -> 362608.5056
A11: Happy Trails Apartments Post CNA
A12: Item | B12: EUL | C12: AGE | D12: RUL | E12: Cond | F12: Action | G12: DUR | H12: QTY | I12: Unit | J12: Unit Cost | K12: Total Cost | L12: Comments | M12: Item | N12: H & S | O12: 2018 | P12: 2019 | Q12: 2020 | R12: 2021 | S12: 2022 | T12: 2023 | U12: 2024 | V12: 2025 | W12: 2026 | X12: 2027 | Y12: 2028 | Z12: 2029 | AA12: 2030 | AB12: 2031 | AC12: 2032 | AD12: 2033 | AE12: 2034 | AF12: 2035 | AG12: 2036 | AH12: 2037
A13: Accessibility Compliance | B13: 50 | C13: 0 | D13: 50 | E13: Excellent | F13: No Action | G13: 0 | H13: 0 | I13: 0 | J13: 0 | K13: 0 | M13: Accessibility Compliance | N13: 0 | O13: 0 | P13: 0 | Q13: 0 | R13: 0 | S13: 0 | T13: 0 | U13: 0 | V13: 0 | W13: 0 | X13: 0 | Y13: 0 | Z13: 0 | AA13: 0 | AB13: 0 | AC13: 0 | AD13: 0 | AE13: 0 | AF13: 0 | AG13: 0 | AH13: 0 | AI13: =SUM(N13:AH13) -> 0
A14: Appliances: range, cooktop, wall oven | B14: 15 | C14: 0 | D14: 15 | E14: Excellent | F14: Maintain | G14: 1 | H14: 40 | I14: ea | J14: 450 | K14: 18000 | M14: Appliances: range, cooktop, wall oven | N14: 0 | O14: 0 | P14: 0 | Q14: 0 | R14: 0 | S14: 0 | T14: 0 | U14: 0 | V14: 0 | W14: 0 | X14: 0 | Y14: 3600 | Z14: 3600 | AA14: 3600 | AB14: 3600 | AC14: 3600 | AD14: 0 | AE14: 0 | AF14: 0 | AG14: 0 | AH14: 0 | AI14: 18000
A15: Appliances: range hood | B15: 15 | C15: 0 | D15: 15 | E15: Excellent | F15: Maintain | G15: 1 | H15: 40 | I15: ea | J15: 135 | K15: 5400 | M15: Appliances: range hood | N15: 0 | O15: 0 | P15: 0 | Q15: 0 | R15: 0 | S15: 0 | T15: 0 | U15: 0 | V15: 0 | W15: 0 | X15: 1080 | Y15: 1080 | Z15: 1080 | AA15: 1080 | AB15: 1080 | AC15: 0 | AD15: 0 | AE15: 0 | AF15: 0 | AG15: 0 | AH15: 0 | AI15: 5400
A16: Appliances: refrigerator/freezer | B16: 12 | C16: 0 | D16: 12 | E16: Excellent | F16: Maintain | G16: 1 | H16: 40 | I16: ea | J16: 580 | K16: 23200 | M16: Appliances: refrigerator/freezer | N16: 0 | O16: 0 | P16: 0 | Q16: 0 | R16: 0 | S16: 0 | T16: 0 | U16: 0 | V16: 4640 | W16: 4640 | X16: 4640 | Y16: 4640 | Z16: 4640 | AA16: 0 | AB16: 0 | AC16: 0 | AD16: 0 | AE16: 0 | AF16: 0 | AG16: 0 | AH16: 0 | AI16: 23200
A17: Bath: accessories (towel bars, grab bars, etc) | B17: 7 | C17: 0 | D17: 7 | E17: Excellent | F17: Maintain | G17: 1 | H17: 40 | I17: ea | J17: 125 | K17: 5000 | M17: Bath: accessories (towel bars, grab bars, etc) | N17: 0 | O17: 0 | P17: 0 | Q17: 0 | R17: 0 | S17: 0 | T17: 0 | U17: 5000 | V17: 0 | W17: 0 | X17: 1000 | Y17: 1000 | Z17: 1000 | AA17: 1000 | AB17: 1000 | AC17: 0 | AD17: 0 | AE17: 0 | AF17: 0 | AG17: 0 | AH17: 0 | AI17: 10000
A18: Bath: mirrors & medicine cabinets | B18: 15 | C18: 0 | D18: 15 | E18: Excellent | F18: Maintain | G18: 1 | H18: 40 | I18: ea | J18: 75 | K18: 3000 | M18: Bath: mirrors & medicine cabinets | N18: 0 | O18: 0 | P18: 0 | Q18: 0 | R18: 0 | S18: 0 | T18: 0 | U18: 0 | V18: 0 | W18: 0 | X18: 0 | Y18: 0 | Z18: 0 | AA18: 0 | AB18: 0 | AC18: 600 | AD18: 600 | AE18: 600 | AF18: 600 | AG18: 600 | AH18: 0 | AI18: 3000
A19: Bath/kitchen vent/exhaust fans | B19: 15 | C19: 0 | D19: 15 | E19: Excellent | F19: Maintain | G19: 1 | H19: 40 | I19: ea | J19: 135 | K19: 5400 | M19: Bath/kitchen vent/exhaust fans | N19: 0 | O19: 0 | P19: 0 | Q19: 0 | R19: 0 | S19: 0 | T19: 0 | U19: 0 | V19: 0 | W19: 0 | X19: 1080 | Y19: 1080 | Z19: 1080 | AA19: 1080 | AB19: 1080 | AC19: 0 | AD19: 0 | AE19: 0 | AF19: 0 | AG19: 0 | AH19: 0 | AI19: 5400
A20: Cabinets & vanities | B20: 20 | C20: 0 | D20: 20 | E20: Excellent | F20: Maintain | G20: 1 | H20: 40 | I20: ea | J20: 2575 | K20: 103000 | M20: Cabinets & vanities | N20: 0 | O20: 0 | P20: 0 | Q20: 0 | R20: 0 | S20: 0 | T20: 0 | U20: 0 | V20: 0 | W20: 0 | X20: 0 | Y20: 0 | Z20: 0 | AA20: 0 | AB20: 0 | AC20: 0 | AD20: 0 | AE20: 0 | AF20: 0 | AG20: 0 | AH20: 0 | AI20: 0
A21: Closet/storage specialties: shelving | B21: 15 | C21: 0 | D21: 15 | E21: Excellent | F21: Maintain | G21: 1 | H21: 40 | I21: ea | J21: 135 | K21: 5400 | M21: Closet/storage specialties: shelving | N21: 0 | O21: 0 | P21: 0 | Q21: 0 | R21: 0 | S21: 0 | T21: 0 | U21: 0 | V21: 0 | W21: 0 | X21: 1080 | Y21: 1080 | Z21: 1080 | AA21: 1080 | AB21: 1080 | AC21: 0 | AD21: 0 | AE21: 0 | AF21: 0 | AG21: 0 | AH21: 0 | AI21: 5400
A22: Countertops: plastic laminates, wood | B22: 15 | C22: 0 | D22: 15 | E22: Excellent | F22: Maintain | G22: 1 | H22: 40 | I22: ea | J22: 600 | K22: 24000 | M22: Countertops: plastic laminates, wood | N22: 0 | O22: 0 | P22: 0 | Q22: 0 | R22: 0 | S22: 0 | T22: 0 | U22: 0 | V22: 0 | W22: 0 | X22: 4800 | Y22: 4800 | Z22: 4800 | AA22: 4800 | AB22: 4800 | AC22: 0 | AD22: 0 | AE22: 0 | AF22: 0 | AG22: 0 | AH22: 0 | AI22: 24000
A23: Countertops (vanity): cultered marble, molded arcylic, fiberglass | B23: 20 | C23: 0 | D23: 20 | E23: Excellent | F23: Maintain | G23: 1 | H23: 40 | I23: ea | J23: 250 | K23: 10000 | M23: Countertops (vanity): cultered marble, molded arcylic, fiberglass | N23: 0 | O23: 0 | P23: 0 | Q23: 0 | R23: 0 | S23: 0 | T23: 0 | U23: 0 | V23: 0 | W23: 0 | X23: 0 | Y23: 0 | Z23: 0 | AA23: 0 | AB23: 0 | AC23: 0 | AD23: 0 | AE23: 0 | AF23: 0 | AG23: 0 | AH23: 0 | AI23: 0
A24: Detector: smoke or CO, dwelling unit | B24: 10 | C24: 0 | D24: 10 | E24: Excellent | F24: Maintain | G24: 1 | H24: 104 | I24: ea | J24: 85 | K24: 8840 | M24: Detector: smoke or CO, dwelling unit | N24: 0 | O24: 0 | P24: 0 | Q24: 0 | R24: 0 | S24: 0 | T24: 0 | U24: 0 | V24: 0 | W24: 0 | X24: 8840 | Y24: 0 | Z24: 0 | AA24: 0 | AB24: 0 | AC24: 0 | AD24: 0 | AE24: 0 | AF24: 0 | AG24: 0 | AH24: 0 | AI24: 8840
A25: Doors: bifold & sliding doors | B25: 10 | C25: 0 | D25: 10 | E25: Excellent | F25: Maintain | G25: 1 | H25: 104 | I25: ea | J25: 125 | K25: 13000 | M25: Doors: bifold & sliding doors | N25: 0 | O25: 0 | P25: 0 | Q25: 0 | R25: 0 | S25: 0 | T25: 2600 | U25: 2600 | V25: 2600 | W25: 2600 | X25: 2600 | Y25: 0 | Z25: 0 | AA25: 0 | AB25: 0 | AC25: 0 | AD25: 0 | AE25: 0 | AF25: 0 | AG25: 0 | AH25: 0 | AI25: 13000
A26: Doors: door trim | B26: 20 | C26: 0 | D26: 20 | E26: Excellent | F26: Maintain | G26: 1 | H26: 104 | I26: ea | J26: 75 | K26: 7800 | M26: Doors: door trim | N26: 0 | O26: 0 | P26: 0 | Q26: 0 | R26: 0 | S26: 0 | T26: 0 | U26: 0 | V26: 0 | W26: 0 | X26: 0 | Y26: 0 | Z26: 0 | AA26: 0 | AB26: 0 | AC26: 0 | AD26: 0 | AE26: 0 | AF26: 0 | AG26: 0 | AH26: 0 | AI26: 0
A27: Doors: interior, hollow core doors | B27: 20 | C27: 0 | D27: 20 | E27: Excellent | F27: Maintain | G27: 1 | H27: 104 | I27: ea | J27: 250 | K27: 26000 | M27: Doors: interior, hollow core doors | N27: 0 | O27: 0 | P27: 0 | Q27: 0 | R27: 0 | S27: 0 | T27: 0 | U27: 0 | V27: 0 | W27: 0 | X27: 0 | Y27: 0 | Z27: 0 | AA27: 0 | AB27: 0 | AC27: 0 | AD27: 0 | AE27: 0 | AF27: 0 | AG27: 0 | AH27: 0 | AI27: 0
A28: Doors: passage & lock sets | B28: 12 | C28: 0 | D28: 12 | E28: Excellent | F28: Maintain | G28: 1 | H28: 104 | I28: ea | J28: 135 | K28: 14040 | M28: Doors: passage & lock sets | N28: 0 | O28: 0 | P28: 0 | Q28: 0 | R28: 0 | S28: 0 | T28: 0 | U28: 0 | V28: 0 | W28: 0 | X28: 0 | Y28: 0 | Z28: 14040 | AA28: 0 | AB28: 0 | AC28: 0 | AD28: 0 | AE28: 0 | AF28: 0 | AG28: 0 | AH28: 0 | AI28: 14040
A29: Floors: carpet | B29: 7 | C29: 0 | D29: 7 | E29: Excellent | F29: Maintain | G29: 1 | H29: 1542 | I29: sy | J29: 32 | K29: 49344 | M29: Floors: carpet | N29: 0 | O29: 0 | P29: 0 | Q29: 0 | R29: 0 | S29: 0 | T29: 0 | U29: 8224 | V29: 8224 | W29: 8224 | X29: 8224 | Y29: 8224 | Z29: 8224 | AA29: 8224 | AB29: 8224 | AC29: 8224 | AD29: 8224 | AE29: 0 | AF29: 0 | AG29: 0 | AH29: 0 | AI29: 82240
A30: Floors: resilient tile or sheet floor (vinyl, linoleum) | B30: 15 | C30: 0 | D30: 15 | E30: Excellent | F30: Maintain | G30: 1 | H30: 11252 | I30: sf | J30: 3.25 | K30: 36569 | M30: Floors: resilient tile or sheet floor (vinyl, linoleum) | N30: 0 | O30: 0 | P30: 0 | Q30: 0 | R30: 0 | S30: 0 | T30: 0 | U30: 0 | V30: 0 | W30: 0 | X30: 0 | Y30: 0 | Z30: 0 | AA30: 0 | AB30: 0 | AC30: 6094 | AD30: 6094 | AE30: 6094 | AF30: 6094 | AG30: 6094 | AH30: 0 | AI30: 30470
A31: Walls: paints, stains, clear finishes, interior | B31: 10 | C31: 0 | D31: 10 | E31: Excellent | F31: Maintain | G31: 1 | H31: 40 | I31: units | J31: 500 | K31: 20000 | M31: Walls: paints, stains, clear finishes, interior | N31: 0 | O31: 0 | P31: 0 | Q31: 0 | R31: 0 | S31: 0 | T31: 0 | U31: 4000 | V31: 4000 | W31: 4000 | X31: 4000 | Y31: 0 | Z31: 0 | AA31: 0 | AB31: 0 | AC31: 0 | AD31: 0 | AE31: 0 | AF31: 0 | AG31: 0 | AH31: 0 | AI31: 16000
A32: Walls: wall trim (base, chair rail, crown moldings) | B32: 25 | C32: 0 | D32: 25 | E32: Excellent | F32: Maintain | G32: 1 | H32: 40 | I32: units | J32: 1250 | K32: 50000 | M32: Walls: wall trim (base, chair rail, crown moldings) | N32: 0 | O32: 0 | P32: 0 | Q32: 0 | R32: 0 | S32: 0 | T32: 0 | U32: 0 | V32: 0 | W32: 0 | X32: 0 | Y32: 0 | Z32: 0 | AA32: 0 | AB32: 0 | AC32: 0 | AD32: 0 | AE32: 0 | AF32: 0 | AG32: 0 | AH32: 0 | AI32: 0
A33: Window treatments: drapery rods, shades, blinds, etc | B33: 10 | C33: 0 | D33: 10 | E33: Excellent | F33: Maintain | G33: 1 | H33: 104 | I33: ea | J33: 35 | K33: 3640 | M33: Window treatments: drapery rods, shades, blinds, etc | N33: 0 | O33: 0 | P33: 0 | Q33: 0 | R33: 0 | S33: 0 | T33: 0 | U33: 0 | V33: 0 | W33: 0 | X33: 3640 | Y33: 0 | Z33: 0 | AA33: 0 | AB33: 0 | AC33: 0 | AD33: 0 | AE33: 0 | AF33: 0 | AG33: 0 | AH33: 0 | AI33: 3640

Sheet CNAExcSumUW (hidden)
A1: This is the CNA Executive Summary Underwritten Schedule
A5: Project: | D5: =CNAProjectSum!$J$20 -> Happy Trails Apartments Post CNA | J5: =CNAProjectSum!D28 -> 40
A7: Year | C7: 1 | D7: 2 | E7: 3 | F7: 4 | G7: 5 | H7: 6 | I7: 7 | J7: 8 | K7: 9 | L7: 10 | M7: 11 | N7: 12 | O7: 13 | P7: 14 | Q7: 15 | R7: 16 | S7: 17 | T7: 18 | U7: 19 | V7: 20
A8: Item | B8: H & S | C8: =YEAR(CNAProjectSum!J31) -> 2017 | D8: =C8+1 -> 2018 | E8: =D8+1 -> 2019 | F8: 2020 | G8: 2021 | H8: 2022 | I8: 2023 | J8: 2024 | K8: 2025 | L8: 2026 | M8: 2027 | N8: 2028 | O8: 2029 | P8: 2030 | Q8: 2031 | R8: 2032 | S8: 2033 | T8: 2034 | U8: 2035 | V8: 2036 | W8: Total
A9: Site | B9: ='Reserve Sizing'!B21 -> 0 | C9: ='Reserve Sizing'!C21 -> 0 | D9: ='Reserve Sizing'!D21 -> 0 | E9: ='Reserve Sizing'!E21 -> 500 | F9: ='Reserve Sizing'!F21 -> 0 | G9: ='Reserve Sizing'!G21 -> 0 | H9: ='Reserve Sizing'!H21 -> 3624 | I9: ='Reserve Sizing'!I21 -> 7139 | J9: ='Reserve Sizing'!J21 -> 3124 | K9: ='Reserve Sizing'!K21 -> 3624 | L9: ='Reserve Sizing'!L21 -> 7624 | M9: ='Reserve Sizing'!M21 -> 0 | N9: ='Reserve Sizing'!N21 -> 500 | O9: ='Reserve Sizing'!O21 -> 0 | P9: ='Reserve Sizing'!P21 -> 0 | Q9: ='Reserve Sizing'!Q21 -> 4300 | R9: ='Reserve Sizing'!R21 -> 4512 | S9: ='Reserve Sizing'!S21 -> 4512 | T9: ='Reserve Sizing'!T21 -> 5012 | U9: ='Reserve Sizing'!U21 -> 4512 | V9: ='Reserve Sizing'!V21 -> 0 | W9: =SUM(B9:V9) -> 48983
A10: Architecture | B10: ='Reserve Sizing'!B22 -> 0 | C10: ='Reserve Sizing'!C22 -> 0 | D10: ='Reserve Sizing'!D22 -> 0 | E10: ='Reserve Sizing'!E22 -> 0 | F10: ='Reserve Sizing'!F22 -> 0 | G10: ='Reserve Sizing'!G22 -> 0 | H10: ='Reserve Sizing'!H22 -> 0 | I10: ='Reserve Sizing'!I22 -> 12838 | J10: ='Reserve Sizing'!J22 -> 8584 | K10: ='Reserve Sizing'!K22 -> 8584 | L10: ='Reserve Sizing'!L22 -> 9097 | M10: ='Reserve Sizing'!M22 -> 8584 | N10: ='Reserve Sizing'!N22 -> 1120 | O10: ='Reserve Sizing'!O22 -> 0 | P10: ='Reserve Sizing'!P22 -> 4254 | Q10: ='Reserve Sizing'!Q22 -> 3885 | R10: ='Reserve Sizing'!R22 -> 1200 | S10: ='Reserve Sizing'!S22 -> 1200 | T10: ='Reserve Sizing'!T22 -> 1200 | U10: ='Reserve Sizing'!U22 -> 1200 | V10: ='Reserve Sizing'!V22 -> 1200 | W10: =SUM(B10:V10) -> 62946
A11: Mech & Electric | B11: ='Reserve Sizing'!B23 -> 0 | C11: ='Reserve Sizing'!C23 -> 0 | D11: ='Reserve Sizing'!D23 -> 0 | E11: ='Reserve Sizing'!E23 -> 0 | F11: ='Reserve Sizing'!F23 -> 0 | G11: ='Reserve Sizing'!G23 -> 0 | H11: ='Reserve Sizing'!H23 -> 8000 | I11: ='Reserve Sizing'!I23 -> 13440 | J11: ='Reserve Sizing'!J23 -> 13440 | K11: ='Reserve Sizing'!K23 -> 28440 | L11: ='Reserve Sizing'!L23 -> 33665 | M11: ='Reserve Sizing'!M23 -> 20440 | N11: ='Reserve Sizing'!N23 -> 15000 | O11: ='Reserve Sizing'!O23 -> 15000 | P11: ='Reserve Sizing'!P23 -> 15000 | Q11: ='Reserve Sizing'!Q23 -> 18075 | R11: ='Reserve Sizing'!R23 -> 5750 | S11: ='Reserve Sizing'!S23 -> 5750 | T11: ='Reserve Sizing'!T23 -> 5750 | U11: ='Reserve Sizing'!U23 -> 5750 | V11: ='Reserve Sizing'!V23 -> 1240 | W11: =SUM(B11:V11) -> 204740
A12: Dwelling Units | B12: ='Reserve Sizing'!B24 -> 0 | C12: ='Reserve Sizing'!C24 -> 0 | D12: ='Reserve Sizing'!D24 -> 0 | E12: ='Reserve Sizing'!E24 -> 0 | F12: ='Reserve Sizing'!F24 -> 0 | G12: ='Reserve Sizing'!G24 -> 0 | H12: ='Reserve Sizing'!H24 -> 2600 | I12: ='Reserve Sizing'!I24 -> 19824 | J12: ='Reserve Sizing'!J24 -> 19464 | K12: ='Reserve Sizing'!K24 -> 19464 | L12: ='Reserve Sizing'!L24 -> 40984 | M12: ='Reserve Sizing'!M24 -> 25504 | N12: ='Reserve Sizing'!N24 -> 39544 | O12: ='Reserve Sizing'!O24 -> 20864 | P12: ='Reserve Sizing'!P24 -> 20864 | Q12: ='Reserve Sizing'!Q24 -> 18518 | R12: ='Reserve Sizing'!R24 -> 14918 | S12: ='Reserve Sizing'!S24 -> 6694 | T12: ='Reserve Sizing'!T24 -> 6694 | U12: ='Reserve Sizing'!U24 -> 6694 | V12: ='Reserve Sizing'!V24 -> 0 | W12: =SUM(B12:V12) -> 262630
A13: Uninflated Totals | B13: ='Reserve Sizing'!B25 -> 0 | C13: ='Reserve Sizing'!C25 -> 0 | D13: ='Reserve Sizing'!D25 -> 0 | E13: ='Reserve Sizing'!E25 -> 500 | F13: ='Reserve Sizing'!F25 -> 0 | G13: ='Reserve Sizing'!G25 -> 0 | H13: ='Reserve Sizing'!H25 -> 14224 | I13: ='Reserve Sizing'!I25 -> 53241 | J13: ='Reserve Sizing'!J25 -> 44612 | K13: ='Reserve Sizing'!K25 -> 60112 | L13: ='Reserve Sizing'!L25 -> 91370 | M13: ='Reserve Sizing'!M25 -> 54528 | N13: ='Reserve Sizing'!N25 -> 56164 | O13: ='Reserve Sizing'!O25 -> 35864 | P13: ='Reserve Sizing'!P25 -> 40118 | Q13: ='Reserve Sizing'!Q25 -> 44778 | R13: ='Reserve Sizing'!R25 -> 26380 | S13: ='Reserve Sizing'!S25 -> 18156 | T13: ='Reserve Sizing'!T25 -> 18656 | U13: ='Reserve Sizing'!U25 -> 18156 | V13: ='Reserve Sizing'!V25 -> 2440 | W13: =SUM(B13:V13) -> 579299
A14: Inflation Factor (3%) | B14: 1 | C14: 1 | D14: 1.03 | E14: 1.0609 | F14: 1.092727 | G14: 1.12550881 | H14: 1.159274074 | I14: 1.194052297 | J14: 1.229873865 | K14: 1.266770081 | L14: 1.304773184 | M14: 1.343916379 | N14: 1.384233871 | O14: 1.425760887 | P14: 1.468533713 | Q14: 1.512589725 | R14: 1.557967417 | S14: 1.604706439 | T14: 1.652847632 | U14: 1.702433061 | V14: 1.753506053
A15: Inflated Totals | B15: =B13*B14 -> 0 | C15: =C13*C14 -> 0 | D15: 0 | E15: 530.45 | F15: 0 | G15: 0 | H15: 16489.51443 | I15: 63572.53832 | J15: 54867.13288 | K15: 76148.08313 | L15: 119217.1258 | M15: 73281.07233 | N15: 77744.11112 | O15: 51133.48845 | P15: 58914.63552 | Q15: 67730.7427 | R15: 41099.18045 | S15: 29135.05011 | T15: 30835.52543 | U15: 30909.37466 | V15: 4278.55477 | W15: =SUM(B15:V15) -> 795886.5801
H18: Non-Inflated | K18: Inflated
F19: Immediate Capital Needs: | H19: =B13 -> 0
F20: Total Capital Needs Over the Term: | H20: =SUM(C13:V13) -> 579299 | K20: =SUM(C15:V15) -> 795886.5801
F21: Grand Total Capital Needs: | H21: =W13 -> 579299 | K21: =W15 -> 795886.5801
A22: Units: | B22: =CNAProjectSum!D28 -> 40 | F22: Capital Needs Per Unit | H22: =IF($B$22>0,W13/$B$22,0) -> 14482.475 | K22: =IF($B$22>0,W15/$B$22,0) -> 19897.1645
A24: Reserve
A25: Deposit Schedule
A26: ='Reserve Sizing'!A46 -> Year | B26: ='Reserve Sizing'!B46 -> 0 | C26: ='Reserve Sizing'!C46 -> 1 | D26: ='Reserve Sizing'!D46 -> 2 | E26: ='Reserve Sizing'!E46 -> 3 | F26: ='Reserve Sizing'!F46 -> 4 | G26: ='Reserve Sizing'!G46 -> 5 | H26: ='Reserve Sizing'!H46 -> 6 | I26: ='Reserve Sizing'!I46 -> 7 | J26: ='Reserve Sizing'!J46 -> 8 | K26: ='Reserve Sizing'!K46 -> 9 | L26: ='Reserve Sizing'!L46 -> 10 | M26: ='Reserve Sizing'!M46 -> 11 | N26: ='Reserve Sizing'!N46 -> 12 | O26: ='Reserve Sizing'!O46 -> 13 | P26: ='Reserve Sizing'!P46 -> 14 | Q26: ='Reserve Sizing'!Q46 -> 15 | R26: ='Reserve Sizing'!R46 -> 16 | S26: ='Reserve Sizing'!S46 -> 17 | T26: ='Reserve Sizing'!T46 -> 18 | U26: ='Reserve Sizing'!U46 -> 19 | V26: ='Reserve Sizing'!V46 -> 20 | W26: TOTAL
A27: ='Reserve Sizing'!A50 -> Plus annual deposit | B27: ='Reserve Sizing'!B50 -> 18750 | C27: ='Reserve Sizing'!C50 -> 25000 | D27: ='Reserve Sizing'!D50 -> 25750 | E27: ='Reserve Sizing'!E50 -> 26523 | F27: ='Reserve Sizing'!F50 -> 27319 | G27: ='Reserve Sizing'!G50 -> 28139 | H27: ='Reserve Sizing'!H50 -> 28983 | I27: ='Reserve Sizing'!I50 -> 29852 | J27: ='Reserve Sizing'!J50 -> 30748 | K27: ='Reserve Sizing'!K50 -> 31670 | L27: ='Reserve Sizing'!L50 -> 32620 | M27: ='Reserve Sizing'!M50 -> 33599 | N27: ='Reserve Sizing'!N50 -> 34607 | O27: ='Reserve Sizing'!O50 -> 35645 | P27: ='Reserve Sizing'!P50 -> 36714 | Q27: ='Reserve Sizing'!Q50 -> 37815 | R27: ='Reserve Sizing'!R50 -> 38949 | S27: ='Reserve Sizing'!S50 -> 40117 | T27: ='Reserve Sizing'!T50 -> 41321 | U27: ='Reserve Sizing'!U50 -> 42561 | V27: ='Reserve Sizing'!V50 -> 43838 | W27: =SUM(B27:V27) -> 690520

Sheet MFIS ProjectA (hidden)
A1: St | B1: St Name | C1: Srv Off | D1: Cnty | E1: Borrower ID | F1: Proj Number | G1: Prj Name | H1: Borr Name | I1: Mgmt Name | J1: Pay Desc | K1: Labor Hsg Typ | L1: Class | M1: Oprtn Date | N1: Part | O1: Section | P1: Item | Q1: Curr FY | R1: Prp Bdgt | S1: FY1 | T1: Prp Bdgt 1 | U1: Actl Bdgt 1 | V1: FY2 | W1: Prp Bdgt 2 | X1: Actl Bdgt 2 | Y1: FY3 | Z1: Prp Bdgt 3 | AA1: Actl Bdgt 3
A2: ="49" -> 49 | B2: TEXAS | C2: ="608" -> 608 | D2: ="61" -> 61 | E2: ="847921178" -> 847921178 | F2: ="01-6" -> 01-6 | G2: SHADY SHORES APTS | H2: HVM LAKE DALLAS LTD | I2: HAMILTON VALLEY MANAGEMENT | J2: Active | K2: NA | L2: A | M2: 1995-09-20 | N2: PART I - CASH FLOW STATEMENT | O2: Operational Cash Sources | P2: 1. Rental Income | Q2: 2018 | R2: 259884 | S2: 2017 | T2: 252864 | U2: 95262 | V2: 2016 | W2: 251532 | X2: 95262 | Y2: 2015 | Z2: 247980 | AA2: 92003
A3: 49 | B3: TEXAS | C3: 608 | D3: 61 | E3: 847921178 | F3: 01-6 | G3: SHADY SHORES APTS | H3: HVM LAKE DALLAS LTD | I3: HAMILTON VALLEY MANAGEMENT | J3: Active | K3: NA | L3: A | M3: 1995-09-20 | N3: PART I - CASH FLOW STATEMENT | O3: Operational Cash Sources | P3: 2. RHS Rental Assist. Received | Q3: 2018 | S3: 2017 | T3: 0 | U3: 151116 | V3: 2016 | W3: 0 | X3: 151116 | Y3: 2015 | Z3: 0 | AA3: 146028
A4: 49 | B4: TEXAS | C4: 608 | D4: 61 | E4: 847921178 | F4: 01-6 | G4: SHADY SHORES APTS | H4: HVM LAKE DALLAS LTD | I4: HAMILTON VALLEY MANAGEMENT | J4: Active | K4: NA | L4: A | M4: 1995-09-20 | N4: PART I - CASH FLOW STATEMENT | O4: Operational Cash Sources | P4: 3. Application Fee Received | Q4: 2018 | S4: 2017 | T4: 0 | U4: 550 | V4: 2016 | W4: 0 | X4: 550 | Y4: 2015 | Z4: 0 | AA4: 0
A5: 49 | B5: TEXAS | C5: 608 | D5: 61 | E5: 847921178 | F5: 01-6 | G5: SHADY SHORES APTS | H5: HVM LAKE DALLAS LTD | I5: HAMILTON VALLEY MANAGEMENT | J5: Active | K5: NA | L5: A | M5: 1995-09-20 | N5: PART I - CASH FLOW STATEMENT | O5: Operational Cash Sources | P5: 4. Laundry And Vending | Q5: 2018 | R5: 1500 | S5: 2017 | T5: 2000 | U5: 1492 | V5: 2016 | W5: 2000 | X5: 1492 | Y5: 2015 | Z5: 3000 | AA5: 1839
A6: 49 | B6: TEXAS | C6: 608 | D6: 61 | E6: 847921178 | F6: 01-6 | G6: SHADY SHORES APTS | H6: HVM LAKE DALLAS LTD | I6: HAMILTON VALLEY MANAGEMENT | J6: Active | K6: NA | L6: A | M6: 1995-09-20 | N6: PART I - CASH FLOW STATEMENT | O6: Operational Cash Sources | P6: 5. Interest Income | Q6: 2018 | R6: 250 | S6: 2017 | T6: 250 | U6: 438 | V6: 2016 | W6: 250 | X6: 438 | Y6: 2015 | Z6: 250 | AA6: 403
A7: 49 | B7: TEXAS | C7: 608 | D7: 61 | E7: 847921178 | F7: 01-6 | G7: SHADY SHORES APTS | H7: HVM LAKE DALLAS LTD | I7: HAMILTON VALLEY MANAGEMENT | J7: Active | K7: NA | L7: A | M7: 1995-09-20 | N7: PART I - CASH FLOW STATEMENT | O7: Operational Cash Sources | P7: 6. Tenant Charges | Q7: 2018 | R7: 1500 | S7: 2017 | T7: 1500 | U7: 1728 | V7: 2016 | W7: 1500 | X7: 1728 | Y7: 2015 | Z7: 800 | AA7: 2393
A8: 49 | B8: TEXAS | C8: 608 | D8: 61 | E8: 847921178 | F8: 01-6 | G8: SHADY SHORES APTS | H8: HVM LAKE DALLAS LTD | I8: HAMILTON VALLEY MANAGEMENT | J8: Active | K8: NA | L8: A | M8: 1995-09-20 | N8: PART I - CASH FLOW STATEMENT | O8: Operational Cash Sources | P8: 7. Other - Project Sources | Q8: 2018 | R8: 0 | S8: 2017 | T8: 0 | U8: 0 | V8: 2016 | W8: 0 | X8: 0 | Y8: 2015 | Z8: 0 | AA8: 30
A9: 49 | B9: TEXAS | C9: 608 | D9: 61 | E9: 847921178 | F9: 01-6 | G9: SHADY SHORES APTS | H9: HVM LAKE DALLAS LTD | I9: HAMILTON VALLEY MANAGEMENT | J9: Active | K9: NA | L9: A | M9: 1995-09-20 | N9: PART I - CASH FLOW STATEMENT | O9: Operational Cash Sources | P9: 8. Less (Vcncy @ Cntgncy Allw) | Q9: 2018 | R9: -6288 | S9: 2017 | T9: -5031 | V9: 2016 | W9: -5031 | Y9: 2015 | Z9: -6200
A10: 49 | B10: TEXAS | C10: 608 | D10: 61 | E10: 847921178 | F10: 01-6 | G10: SHADY SHORES APTS | H10: HVM LAKE DALLAS LTD | I10: HAMILTON VALLEY MANAGEMENT | J10: Active | K10: NA | L10: A | M10: 1995-09-20 | N10: PART I - CASH FLOW STATEMENT | O10: Operational Cash Sources | P10: 9. Less (Agncy Aprvd Incentv) | Q10: 2018 | R10: 0 | S10: 2017 | T10: 0 | V10: 2016 | W10: 0 | Y10: 2015 | Z10: 0
A11: 49 | B11: TEXAS | C11: 608 | D11: 61 | E11: 847921178 | F11: 01-6 | G11: SHADY SHORES APTS | H11: HVM LAKE DALLAS LTD | I11: HAMILTON VALLEY MANAGEMENT | J11: Active | K11: NA | L11: A | M11: 1995-09-20 | N11: PART I - CASH FLOW STATEMENT | O11: Operational Cash Sources | P11: 10. Sub-Ttl [(1 thru 7)-(8@9)] | Q11: 2018 | R11: 256846 | S11: 2017 | T11: 251583 | U11: 250586 | V11: 2016 | W11: 250251 | X11: 250586 | Y11: 2015 | Z11: 245830 | AA11: 242696
A12: 49 | B12: TEXAS | C12: 608 | D12: 61 | E12: 847921178 | F12: 01-6 | G12: SHADY SHORES APTS | H12: HVM LAKE DALLAS LTD | I12: HAMILTON VALLEY MANAGEMENT | J12: Active | K12: NA | L12: A | M12: 1995-09-20 | N12: PART I - CASH FLOW STATEMENT | O12: Non-Operational Cash Sources | P12: 11. Cash - Non Project | Q12: 2018 | R12: 0 | S12: 2017 | T12: 0 | U12: 0 | V12: 2016 | W12: 0 | X12: 0 | Y12: 2015 | Z12: 0 | AA12: 0
A13: 49 | B13: TEXAS | C13: 608 | D13: 61 | E13: 847921178 | F13: 01-6 | G13: SHADY SHORES APTS | H13: HVM LAKE DALLAS LTD | I13: HAMILTON VALLEY MANAGEMENT | J13: Active | K13: NA | L13: A | M13: 1995-09-20 | N13: PART I - CASH FLOW STATEMENT | O13: Non-Operational Cash Sources | P13: 12. Authorized Loan (Non-RHS) | Q13: 2018 | R13: 0 | S13: 2017 | T13: 0 | U13: 0 | V13: 2016 | W13: 0 | X13: 0 | Y13: 2015 | Z13: 0 | AA13: 0
A14: 49 | B14: TEXAS | C14: 608 | D14: 61 | E14: 847921178 | F14: 01-6 | G14: SHADY SHORES APTS | H14: HVM LAKE DALLAS LTD | I14: HAMILTON VALLEY MANAGEMENT | J14: Active | K14: NA | L14: A | M14: 1995-09-20 | N14: PART I - CASH FLOW STATEMENT | O14: Non-Operational Cash Sources | P14: 13. Transfer From Reserve | Q14: 2018 | R14: 28382 | S14: 2017 | T14: 25378 | U14: 6379 | V14: 2016 | W14: 25378 | X14: 6379 | Y14: 2015 | Z14: 20470 | AA14: 9511
A15: 49 | B15: TEXAS | C15: 608 | D15: 61 | E15: 847921178 | F15: 01-6 | G15: SHADY SHORES APTS | H15: HVM LAKE DALLAS LTD | I15: HAMILTON VALLEY MANAGEMENT | J15: Active | K15: NA | L15: A | M15: 1995-09-20 | N15: PART I - CASH FLOW STATEMENT | O15: Non-Operational Cash Sources | P15: 14. Sub-Total (11 thru 13) | Q15: 2018 | R15: 28382 | S15: 2017 | T15: 25378 | U15: 6379 | V15: 2016 | W15: 25378 | X15: 6379 | Y15: 2015 | Z15: 20470 | AA15: 9511
A16: 49 | B16: TEXAS | C16: 608 | D16: 61 | E16: 847921178 | F16: 01-6 | G16: SHADY SHORES APTS | H16: HVM LAKE DALLAS LTD | I16: HAMILTON VALLEY MANAGEMENT | J16: Active | K16: NA | L16: A | M16: 1995-09-20 | N16: PART I - CASH FLOW STATEMENT | O16: Non-Operational Cash Sources | P16: 15. Total Cash Sources (10+14) | Q16: 2018 | R16: 285228 | S16: 2017 | T16: 276961 | U16: 256965 | V16: 2016 | W16: 275629 | X16: 256965 | Y16: 2015 | Z16: 266300 | AA16: 252207
A17: 49 | B17: TEXAS | C17: 608 | D17: 61 | E17: 847921178 | F17: 01-6 | G17: SHADY SHORES APTS | H17: HVM LAKE DALLAS LTD | I17: HAMILTON VALLEY MANAGEMENT | J17: Active | K17: NA | L17: A | M17: 1995-09-20 | N17: PART I - CASH FLOW STATEMENT | O17: Operational Cash Uses | P17: 16. Ttl O@M Exp (From Part II) | Q17: 2018 | R17: 204724 | S17: 2017 | T17: 198512 | U17: 201072 | V17: 2016 | W17: 198512 | X17: 201072 | Y17: 2015 | Z17: 192702 | AA17: 198929
A18: 49 | B18: TEXAS | C18: 608 | D18: 61 | E18: 847921178 | F18: 01-6 | G18: SHADY SHORES APTS | H18: HVM LAKE DALLAS LTD | I18: HAMILTON VALLEY MANAGEMENT | J18: Active | K18: NA | L18: A | M18: 1995-09-20 | N18: PART I - CASH FLOW STATEMENT | O18: Operational Cash Uses | P18: 17. RHS Debt Payment | Q18: 2018 | R18: 36575 | S18: 2017 | T18: 36575 | U18: 36576 | V18: 2016 | W18: 36575 | X18: 36576 | Y18: 2015 | Z18: 36575 | AA18: 36575
A19: 49 | B19: TEXAS | C19: 608 | D19: 61 | E19: 847921178 | F19: 01-6 | G19: SHADY SHORES APTS | H19: HVM LAKE DALLAS LTD | I19: HAMILTON VALLEY MANAGEMENT | J19: Active | K19: NA | L19: A | M19: 1995-09-20 | N19: PART I - CASH FLOW STATEMENT | O19: Operational Cash Uses | P19: 18. RHS Payment (Overage) | Q19: 2018 | S19: 2017 | T19: 0 | U19: 3164 | V19: 2016 | W19: 0 | X19: 3164 | Y19: 2015 | Z19: 0 | AA19: 555
A20: 49 | B20: TEXAS | C20: 608 | D20: 61 | E20: 847921178 | F20: 01-6 | G20: SHADY SHORES APTS | H20: HVM LAKE DALLAS LTD | I20: HAMILTON VALLEY MANAGEMENT | J20: Active | K20: NA | L20: A | M20: 1995-09-20 | N20: PART I - CASH FLOW STATEMENT | O20: Operational Cash Uses | P20: 19. RHS Payment (Late Fee) | Q20: 2018 | S20: 2017 | T20: 0 | U20: 0 | V20: 2016 | W20: 0 | X20: 0 | Y20: 2015 | Z20: 0 | AA20: 0
A21: 49 | B21: TEXAS | C21: 608 | D21: 61 | E21: 847921178 | F21: 01-6 | G21: SHADY SHORES APTS | H21: HVM LAKE DALLAS LTD | I21: HAMILTON VALLEY MANAGEMENT | J21: Active | K21: NA | L21: A | M21: 1995-09-20 | N21: PART I - CASH FLOW STATEMENT | O21: Operational Cash Uses | P21: 20. Reductn In Prior Yr Pybles | Q21: 2018 | S21: 2017 | T21: 0 | U21: 0 | V21: 2016 | W21: 0 | X21: 0 | Y21: 2015 | Z21: 0 | AA21: 0
A22: 49 | B22: TEXAS | C22: 608 | D22: 61 | E22: 847921178 | F22: 01-6 | G22: SHADY SHORES APTS | H22: HVM LAKE DALLAS LTD | I22: HAMILTON VALLEY MANAGEMENT | J22: Active | K22: NA | L22: A | M22: 1995-09-20 | N22: PART I - CASH FLOW STATEMENT | O22: Operational Cash Uses | P22: 21. Tenant Utility Payments | Q22: 2018 | S22: 2017 | T22: 0 | U22: 1159 | V22: 2016 | W22: 0 | X22: 1159 | Y22: 2015 | Z22: 0 | AA22: 60
A23: 49 | B23: TEXAS | C23: 608 | D23: 61 | E23: 847921178 | F23: 01-6 | G23: SHADY SHORES APTS | H23: HVM LAKE DALLAS LTD | I23: HAMILTON VALLEY MANAGEMENT | J23: Active | K23: NA | L23: A | M23: 1995-09-20 | N23: PART I - CASH FLOW STATEMENT | O23: Operational Cash Uses | P23: 22. Transfer to Reserve | Q23: 2018 | R23: 10228 | S23: 2017 | T23: 10228 | U23: 10232 | V23: 2016 | W23: 10228 | X23: 10232 | Y23: 2015 | Z23: 10228 | AA23: 10451
A24: 49 | B24: TEXAS | C24: 608 | D24: 61 | E24: 847921178 | F24: 01-6 | G24: SHADY SHORES APTS | H24: HVM LAKE DALLAS LTD | I24: HAMILTON VALLEY MANAGEMENT | J24: Active | K24: NA | L24: A | M24: 1995-09-20 | N24: PART I - CASH FLOW STATEMENT | O24: Operational Cash Uses | P24: 23. RTN Owner/NP Asset Mgt Fee | Q24: 2018 | R24: 4312 | S24: 2017 | T24: 4312 | U24: 0 | V24: 2016 | W24: 4312 | X24: 0 | Y24: 2015 | Z24: 4312 | AA24: 0
A25: 49 | B25: TEXAS | C25: 608 | D25: 61 | E25: 847921178 | F25: 01-6 | G25: SHADY SHORES APTS | H25: HVM LAKE DALLAS LTD | I25: HAMILTON VALLEY MANAGEMENT | J25: Active | K25: NA | L25: A | M25: 1995-09-20 | N25: PART I - CASH FLOW STATEMENT | O25: Operational Cash Uses | P25: 24. Sub-Total (16 thru 23) | Q25: 2018 | R25: 255839 | S25: 2017 | T25: 249627 | U25: 252203 | V25: 2016 | W25: 249627 | X25: 252203 | Y25: 2015 | Z25: 243817 | AA25: 246570
A26: 49 | B26: TEXAS | C26: 608 | D26: 61 | E26: 847921178 | F26: 01-6 | G26: SHADY SHORES APTS | H26: HVM LAKE DALLAS LTD | I26: HAMILTON VALLEY MANAGEMENT | J26: Active | K26: NA | L26: A | M26: 1995-09-20 | N26: PART I - CASH FLOW STATEMENT | O26: Non-Operational Cash Uses | P26: 25. Authzd Debt Pymnt (NonRHS) | Q26: 2018 | R26: 0 | S26: 2017 | T26: 0 | U26: 0 | V26: 2016 | W26: 0 | X26: 0 | Y26: 2015 | Z26: 0 | AA26: 0
A27: 49 | B27: TEXAS | C27: 608 | D27: 61 | E27: 847921178 | F27: 01-6 | G27: SHADY SHORES APTS | H27: HVM LAKE DALLAS LTD | I27: HAMILTON VALLEY MANAGEMENT | J27: Active | K27: NA | L27: A | M27: 1995-09-20 | N27: PART I - CASH FLOW STATEMENT | O27: Non-Operational Cash Uses | P27: 26. Capital Budget (III 4-6) | Q27: 2018 | R27: 28382 | S27: 2017 | T27: 25378 | U27: 6379 | V27: 2016 | W27: 25378 | X27: 6379 | Y27: 2015 | Z27: 20470 | AA27: 9511
A28: 49 | B28: TEXAS | C28: 608 | D28: 61 | E28: 847921178 | F28: 01-6 | G28: SHADY SHORES APTS | H28: HVM LAKE DALLAS LTD | I28: HAMILTON VALLEY MANAGEMENT | J28: Active | K28: NA | L28: A | M28: 1995-09-20 | N28: PART I - CASH FLOW STATEMENT | O28: Non-Operational Cash Uses | P28: 27. Miscellaneous | Q28: 2018 | R28: 0 | S28: 2017 | T28: 0 | U28: 0 | V28: 2016 | W28: 0 | X28: 0 | Y28: 2015 | Z28: 0 | AA28: 0
A29: 49 | B29: TEXAS | C29: 608 | D29: 61 | E29: 847921178 | F29: 01-6 | G29: SHADY SHORES APTS | H29: HVM LAKE DALLAS LTD | I29: HAMILTON VALLEY MANAGEMENT | J29: Active | K29: NA | L29: A | M29: 1995-09-20 | N29: PART I - CASH FLOW STATEMENT | O29: Non-Operational Cash Uses | P29: 28. Sub-Total (25 thru 27) | Q29: 2018 | R29: 28382 | S29: 2017 | T29: 25378 | U29: 6379 | V29: 2016 | W29: 25378 | X29: 6379 | Y29: 2015 | Z29: 20470 | AA29: 9511
A30: 49 | B30: TEXAS | C30: 608 | D30: 61 | E30: 847921178 | F30: 01-6 | G30: SHADY SHORES APTS | H30: HVM LAKE DALLAS LTD | I30: HAMILTON VALLEY MANAGEMENT | J30: Active | K30: NA | L30: A | M30: 1995-09-20 | N30: PART I - CASH FLOW STATEMENT | O30: Non-Operational Cash Uses | P30: 29. Total Cash Uses (24+28) | Q30: 2018 | R30: 284221 | S30: 2017 | T30: 275005 | U30: 258582 | V30: 2016 | W30: 275005 | X30: 258582 | Y30: 2015 | Z30: 264287 | AA30: 256081
A31: 49 | B31: TEXAS | C31: 608 | D31: 61 | E31: 847921178 | F31: 01-6 | G31: SHADY SHORES APTS | H31: HVM LAKE DALLAS LTD | I31: HAMILTON VALLEY MANAGEMENT | J31: Active | K31: NA | L31: A | M31: 1995-09-20 | N31: PART I - CASH FLOW STATEMENT | O31: Non-Operational Cash Uses | P31: 30. Net (Deficit) (15-29) | Q31: 2018 | R31: 1007 | S31: 2017 | T31: 1956 | U31: -1617 | V31: 2016 | W31: 624 | X31: -1617 | Y31: 2015 | Z31: 2013 | AA31: -3874
A32: 49 | B32: TEXAS | C32: 608 | D32: 61 | E32: 847921178 | F32: 01-6 | G32: SHADY SHORES APTS | H32: HVM LAKE DALLAS LTD | I32: HAMILTON VALLEY MANAGEMENT | J32: Active | K32: NA | L32: A | M32: 1995-09-20 | N32: PART I - CASH FLOW STATEMENT | O32: Cash Balance | P32: 31. Beginning Cash Balance | Q32: 2018 | R32: 59852 | S32: 2017 | T32: 48912 | U32: 59852 | V32: 2016 | W32: 48912 | X32: 59852 | Y32: 2015 | Z32: 59296 | AA32: 48912
A33: 49 | B33: TEXAS | C33: 608 | D33: 61 | E33: 847921178 | F33: 01-6 | G33: SHADY SHORES APTS | H33: HVM LAKE DALLAS LTD | I33: HAMILTON VALLEY MANAGEMENT | J33: Active | K33: NA | L33: A | M33: 1995-09-20 | N33: PART I - CASH FLOW STATEMENT | O33: Cash Balance | P33: 32. Accrual To Cash Adjustment | Q33: 2018 | S33: 2017 | T33: 0 | U33: 1533 | V33: 2016 | W33: 0 | X33: 1533 | Y33: 2015 | Z33: 0 | AA33: -3002
A34: 49 | B34: TEXAS | C34: 608 | D34: 61 | E34: 847921178 | F34: 01-6 | G34: SHADY SHORES APTS | H34: HVM LAKE DALLAS LTD | I34: HAMILTON VALLEY MANAGEMENT | J34: Active | K34: NA | L34: A | M34: 1995-09-20 | N34: PART I - CASH FLOW STATEMENT | O34: Cash Balance | P34: 33. Ending Cash Bal (30+31+32) | Q34: 2018 | R34: 60859 | S34: 2017 | T34: 50868 | U34: 59768 | V34: 2016 | W34: 49536 | X34: 59768 | Y34: 2015 | Z34: 61309 | AA34: 42036
A35: 49 | B35: TEXAS | C35: 608 | D35: 61 | E35: 847921178 | F35: 01-6 | G35: SHADY SHORES APTS | H35: HVM LAKE DALLAS LTD | I35: HAMILTON VALLEY MANAGEMENT | J35: Active | K35: NA | L35: A | M35: 1995-09-20 | N35: PART II - O@M EXPENSE SCHEDULE | P35: 1. Maint. @ Repairs Payroll | Q35: 2018 | R35: 25552 | S35: 2017 | T35: 19800 | U35: 18683 | V35: 2016 | W35: 19800 | X35: 18683 | Y35: 2015 | Z35: 19760 | AA35: 20521
A36: 49 | B36: TEXAS | C36: 608 | D36: 61 | E36: 847921178 | F36: 01-6 | G36: SHADY SHORES APTS | H36: HVM LAKE DALLAS LTD | I36: HAMILTON VALLEY MANAGEMENT | J36: Active | K36: NA | L36: A | M36: 1995-09-20 | N36: PART II - O@M EXPENSE SCHEDULE | P36: 2. Maint. @ Repairs Supply | Q36: 2018 | R36: 12500 | S36: 2017 | T36: 9500 | U36: 14654 | V36: 2016 | W36: 9500 | X36: 14654 | Y36: 2015 | Z36: 9500 | AA36: 15466
A37: 49 | B37: TEXAS | C37: 608 | D37: 61 | E37: 847921178 | F37: 01-6 | G37: SHADY SHORES APTS | H37: HVM LAKE DALLAS LTD | I37: HAMILTON VALLEY MANAGEMENT | J37: Active | K37: NA | L37: A | M37: 1995-09-20 | N37: PART II - O@M EXPENSE SCHEDULE | P37: 3. Maint. @ Repairs Contract | Q37: 2018 | R37: 6500 | S37: 2017 | T37: 6500 | U37: 8323 | V37: 2016 | W37: 6500 | X37: 8323 | Y37: 2015 | Z37: 5400 | AA37: 12699
A38: 49 | B38: TEXAS | C38: 608 | D38: 61 | E38: 847921178 | F38: 01-6 | G38: SHADY SHORES APTS | H38: HVM LAKE DALLAS LTD | I38: HAMILTON VALLEY MANAGEMENT | J38: Active | K38: NA | L38: A | M38: 1995-09-20 | N38: PART II - O@M EXPENSE SCHEDULE | P38: 4. Painting | Q38: 2018 | R38: 1000 | S38: 2017 | T38: 1000 | U38: 3566 | V38: 2016 | W38: 1000 | X38: 3566 | Y38: 2015 | Z38: 1200 | AA38: 2908
A39: 49 | B39: TEXAS | C39: 608 | D39: 61 | E39: 847921178 | F39: 01-6 | G39: SHADY SHORES APTS | H39: HVM LAKE DALLAS LTD | I39: HAMILTON VALLEY MANAGEMENT | J39: Active | K39: NA | L39: A | M39: 1995-09-20 | N39: PART II - O@M EXPENSE SCHEDULE | P39: 5. Snow Removal | Q39: 2018 | R39: 0 | S39: 2017 | T39: 0 | U39: 0 | V39: 2016 | W39: 0 | X39: 0 | Y39: 2015 | Z39: 0 | AA39: 0
A40: 49 | B40: TEXAS | C40: 608 | D40: 61 | E40: 847921178 | F40: 01-6 | G40: SHADY SHORES APTS | H40: HVM LAKE DALLAS LTD | I40: HAMILTON VALLEY MANAGEMENT | J40: Active | K40: NA | L40: A | M40: 1995-09-20 | N40: PART II - O@M EXPENSE SCHEDULE | P40: 6. Elevator Maint./Contract | Q40: 2018 | R40: 0 | S40: 2017 | T40: 0 | U40: 0 | V40: 2016 | W40: 0 | X40: 0 | Y40: 2015 | Z40: 0 | AA40: 0
A41: 49 | B41: TEXAS | C41: 608 | D41: 61 | E41: 847921178 | F41: 01-6 | G41: SHADY SHORES APTS | H41: HVM LAKE DALLAS LTD | I41: HAMILTON VALLEY MANAGEMENT | J41: Active | K41: NA | L41: A | M41: 1995-09-20 | N41: PART II - O@M EXPENSE SCHEDULE | P41: 7. Grounds | Q41: 2018 | R41: 7500 | S41: 2017 | T41: 6500 | U41: 7431 | V41: 2016 | W41: 6500 | X41: 7431 | Y41: 2015 | Z41: 6500 | AA41: 5543
A42: 49 | B42: TEXAS | C42: 608 | D42: 61 | E42: 847921178 | F42: 01-6 | G42: SHADY SHORES APTS | H42: HVM LAKE DALLAS LTD | I42: HAMILTON VALLEY MANAGEMENT | J42: Active | K42: NA | L42: A | M42: 1995-09-20 | N42: PART II - O@M EXPENSE SCHEDULE | P42: 8. Services | Q42: 2018 | R42: 0 | S42: 2017 | T42: 0 | U42: 0 | V42: 2016 | W42: 0 | X42: 0 | Y42: 2015 | Z42: 0 | AA42: 0
A43: 49 | B43: TEXAS | C43: 608 | D43: 61 | E43: 847921178 | F43: 01-6 | G43: SHADY SHORES APTS | H43: HVM LAKE DALLAS LTD | I43: HAMILTON VALLEY MANAGEMENT | J43: Active | K43: NA | L43: A | M43: 1995-09-20 | N43: PART II - O@M EXPENSE SCHEDULE | P43: 9. Cptl Bgt(Part V operating) | Q43: 2018 | R43: 3782 | S43: 2017 | T43: 7928 | U43: 10157 | V43: 2016 | W43: 7928 | X43: 10157 | Y43: 2015 | Z43: 0 | AA43: 3185
A44: 49 | B44: TEXAS | C44: 608 | D44: 61 | E44: 847921178 | F44: 01-6 | G44: SHADY SHORES APTS | H44: HVM LAKE DALLAS LTD | I44: HAMILTON VALLEY MANAGEMENT | J44: Active | K44: NA | L44: A | M44: 1995-09-20 | N44: PART II - O@M EXPENSE SCHEDULE | P44: 10. Other Operating Expenses | Q44: 2018 | R44: 0 | S44: 2017 | T44: 0 | U44: 0 | V44: 2016 | W44: 0 | X44: 0 | Y44: 2015 | Z44: 0 | AA44: 0
A45: 49 | B45: TEXAS | C45: 608 | D45: 61 | E45: 847921178 | F45: 01-6 | G45: SHADY SHORES APTS | H45: HVM LAKE DALLAS LTD | I45: HAMILTON VALLEY MANAGEMENT | J45: Active | K45: NA | L45: A | M45: 1995-09-20 | N45: PART II - O@M EXPENSE SCHEDULE | P45: 11. Sub-Ttl O@M (1 thru 10) | Q45: 2018 | R45: 56834 | S45: 2017 | T45: 51228 | U45: 62814 | V45: 2016 | W45: 51228 | X45: 62814 | Y45: 2015 | Z45: 42360 | AA45: 60322
A46: 49 | B46: TEXAS | C46: 608 | D46: 61 | E46: 847921178 | F46: 01-6 | G46: SHADY SHORES APTS | H46: HVM LAKE DALLAS LTD | I46: HAMILTON VALLEY MANAGEMENT | J46: Active | K46: NA | L46: A | M46: 1995-09-20 | N46: PART II - O@M EXPENSE SCHEDULE | P46: 12. Electricity | Q46: 2018 | R46: 5700 | S46: 2017 | T46: 6100 | U46: 4915 | V46: 2016 | W46: 6100 | X46: 4915 | Y46: 2015 | Z46: 6400 | AA46: 5657
A47: 49 | B47: TEXAS | C47: 608 | D47: 61 | E47: 847921178 | F47: 01-6 | G47: SHADY SHORES APTS | H47: HVM LAKE DALLAS LTD | I47: HAMILTON VALLEY MANAGEMENT | J47: Active | K47: NA | L47: A | M47: 1995-09-20 | N47: PART II - O@M EXPENSE SCHEDULE | P47: 13. Water | Q47: 2018 | R47: 21000 | S47: 2017 | T47: 21000 | U47: 19685 | V47: 2016 | W47: 21000 | X47: 19685 | Y47: 2015 | Z47: 21000 | AA47: 18271
A48: 49 | B48: TEXAS | C48: 608 | D48: 61 | E48: 847921178 | F48: 01-6 | G48: SHADY SHORES APTS | H48: HVM LAKE DALLAS LTD | I48: HAMILTON VALLEY MANAGEMENT | J48: Active | K48: NA | L48: A | M48: 1995-09-20 | N48: PART II - O@M EXPENSE SCHEDULE | P48: 14. Sewer | Q48: 2018 | R48: 9400 | S48: 2017 | T48: 9400 | U48: 9517 | V48: 2016 | W48: 9400 | X48: 9517 | Y48: 2015 | Z48: 9400 | AA48: 8078
A49: 49 | B49: TEXAS | C49: 608 | D49: 61 | E49: 847921178 | F49: 01-6 | G49: SHADY SHORES APTS | H49: HVM LAKE DALLAS LTD | I49: HAMILTON VALLEY MANAGEMENT | J49: Active | K49: NA | L49: A | M49: 1995-09-20 | N49: PART II - O@M EXPENSE SCHEDULE | P49: 15. Fuel (Oil/Coal/Gas) | Q49: 2018 | R49: 6200 | S49: 2017 | T49: 7800 | U49: 5375 | V49: 2016 | W49: 7800 | X49: 5375 | Y49: 2015 | Z49: 7800 | AA49: 4997
A50: 49 | B50: TEXAS | C50: 608 | D50: 61 | E50: 847921178 | F50: 01-6 | G50: SHADY SHORES APTS | H50: HVM LAKE DALLAS LTD | I50: HAMILTON VALLEY MANAGEMENT | J50: Active | K50: NA | L50: A | M50: 1995-09-20 | N50: PART II - O@M EXPENSE SCHEDULE | P50: 16. Garbage @ Trash Removal | Q50: 2018 | R50: 8900 | S50: 2017 | T50: 9300 | U50: 8264 | V50: 2016 | W50: 9300 | X50: 8264 | Y50: 2015 | Z50: 9300 | AA50: 8776
A51: 49 | B51: TEXAS | C51: 608 | D51: 61 | E51: 847921178 | F51: 01-6 | G51: SHADY SHORES APTS | H51: HVM LAKE DALLAS LTD | I51: HAMILTON VALLEY MANAGEMENT | J51: Active | K51: NA | L51: A | M51: 1995-09-20 | N51: PART II - O@M EXPENSE SCHEDULE | P51: 17. Other Utilities | Q51: 2018 | R51: 0 | S51: 2017 | T51: 0 | U51: 0 | V51: 2016 | W51: 0 | X51: 0 | Y51: 2015 | Z51: 0 | AA51: 0
A52: 49 | B52: TEXAS | C52: 608 | D52: 61 | E52: 847921178 | F52: 01-6 | G52: SHADY SHORES APTS | H52: HVM LAKE DALLAS LTD | I52: HAMILTON VALLEY MANAGEMENT | J52: Active | K52: NA | L52: A | M52: 1995-09-20 | N52: PART II - O@M EXPENSE SCHEDULE | P52: 18. Sub-Ttl Util. (12 thru 17) | Q52: 2018 | R52: 51200 | S52: 2017 | T52: 53600 | U52: 47756 | V52: 2016 | W52: 53600 | X52: 47756 | Y52: 2015 | Z52: 53900 | AA52: 45779
A53: 49 | B53: TEXAS | C53: 608 | D53: 61 | E53: 847921178 | F53: 01-6 | G53: SHADY SHORES APTS | H53: HVM LAKE DALLAS LTD | I53: HAMILTON VALLEY MANAGEMENT | J53: Active | K53: NA | L53: A | M53: 1995-09-20 | N53: PART II - O@M EXPENSE SCHEDULE | P53: 19. Site Management Payroll | Q53: 2018 | R53: 20200 | S53: 2017 | T53: 20200 | U53: 19539 | V53: 2016 | W53: 20200 | X53: 19539 | Y53: 2015 | Z53: 21143 | AA53: 19795
A54: 49 | B54: TEXAS | C54: 608 | D54: 61 | E54: 847921178 | F54: 01-6 | G54: SHADY SHORES APTS | H54: HVM LAKE DALLAS LTD | I54: HAMILTON VALLEY MANAGEMENT | J54: Active | K54: NA | L54: A | M54: 1995-09-20 | N54: PART II - O@M EXPENSE SCHEDULE | P54: 20. Management Fee | Q54: 2018 | R54: 28080 | S54: 2017 | T54: 27144 | U54: 26560 | V54: 2016 | W54: 27144 | X54: 26560 | Y54: 2015 | Z54: 27360 | AA54: 25593
A55: 49 | B55: TEXAS | C55: 608 | D55: 61 | E55: 847921178 | F55: 01-6 | G55: SHADY SHORES APTS | H55: HVM LAKE DALLAS LTD | I55: HAMILTON VALLEY MANAGEMENT | J55: Active | K55: NA | L55: A | M55: 1995-09-20 | N55: PART II - O@M EXPENSE SCHEDULE | P55: 21. Project Auditing Expense | Q55: 2018 | R55: 5200 | S55: 2017 | T55: 3700 | U55: 1750 | V55: 2016 | W55: 3700 | X55: 1750 | Y55: 2015 | Z55: 4100 | AA55: 4200
A56: 49 | B56: TEXAS | C56: 608 | D56: 61 | E56: 847921178 | F56: 01-6 | G56: SHADY SHORES APTS | H56: HVM LAKE DALLAS LTD | I56: HAMILTON VALLEY MANAGEMENT | J56: Active | K56: NA | L56: A | M56: 1995-09-20 | N56: PART II - O@M EXPENSE SCHEDULE | P56: 22. Proj. Bookkeeping/Accnting | Q56: 2018 | R56: 0 | S56: 2017 | T56: 0 | U56: 0 | V56: 2016 | W56: 0 | X56: 0 | Y56: 2015 | Z56: 0 | AA56: 0
A57: 49 | B57: TEXAS | C57: 608 | D57: 61 | E57: 847921178 | F57: 01-6 | G57: SHADY SHORES APTS | H57: HVM LAKE DALLAS LTD | I57: HAMILTON VALLEY MANAGEMENT | J57: Active | K57: NA | L57: A | M57: 1995-09-20 | N57: PART II - O@M EXPENSE SCHEDULE | P57: 23. Legal Expenses | Q57: 2018 | R57: 1000 | S57: 2017 | T57: 500 | U57: 2061 | V57: 2016 | W57: 500 | X57: 2061 | Y57: 2015 | Z57: 850 | AA57: 2517
A58: 49 | B58: TEXAS | C58: 608 | D58: 61 | E58: 847921178 | F58: 01-6 | G58: SHADY SHORES APTS | H58: HVM LAKE DALLAS LTD | I58: HAMILTON VALLEY MANAGEMENT | J58: Active | K58: NA | L58: A | M58: 1995-09-20 | N58: PART II - O@M EXPENSE SCHEDULE | P58: 24. Advertising | Q58: 2018 | R58: 600 | S58: 2017 | T58: 300 | U58: 400 | V58: 2016 | W58: 300 | X58: 400 | Y58: 2015 | Z58: 300 | AA58: 225
A59: 49 | B59: TEXAS | C59: 608 | D59: 61 | E59: 847921178 | F59: 01-6 | G59: SHADY SHORES APTS | H59: HVM LAKE DALLAS LTD | I59: HAMILTON VALLEY MANAGEMENT | J59: Active | K59: NA | L59: A | M59: 1995-09-20 | N59: PART II - O@M EXPENSE SCHEDULE | P59: 25. Phone @ Answering Service | Q59: 2018 | R59: 1820 | S59: 2017 | T59: 1600 | U59: 1824 | V59: 2016 | W59: 1600 | X59: 1824 | Y59: 2015 | Z59: 1600 | AA59: 1602
A60: 49 | B60: TEXAS | C60: 608 | D60: 61 | E60: 847921178 | F60: 01-6 | G60: SHADY SHORES APTS | H60: HVM LAKE DALLAS LTD | I60: HAMILTON VALLEY MANAGEMENT | J60: Active | K60: NA | L60: A | M60: 1995-09-20 | N60: PART II - O@M EXPENSE SCHEDULE | P60: 26. Office Supplies | Q60: 2018 | R60: 1800 | S60: 2017 | T60: 1800 | U60: 2703 | V60: 2016 | W60: 1800 | X60: 2703 | Y60: 2015 | Z60: 1800 | AA60: 3264
A61: 49 | B61: TEXAS | C61: 608 | D61: 61 | E61: 847921178 | F61: 01-6 | G61: SHADY SHORES APTS | H61: HVM LAKE DALLAS LTD | I61: HAMILTON VALLEY MANAGEMENT | J61: Active | K61: NA | L61: A | M61: 1995-09-20 | N61: PART II - O@M EXPENSE SCHEDULE | P61: 27. Office Furniture @ Equip. | Q61: 2018 | R61: 0 | S61: 2017 | T61: 0 | U61: 0 | V61: 2016 | W61: 0 | X61: 0 | Y61: 2015 | Z61: 0 | AA61: 0
A62: 49 | B62: TEXAS | C62: 608 | D62: 61 | E62: 847921178 | F62: 01-6 | G62: SHADY SHORES APTS | H62: HVM LAKE DALLAS LTD | I62: HAMILTON VALLEY MANAGEMENT | J62: Active | K62: NA | L62: A | M62: 1995-09-20 | N62: PART II - O@M EXPENSE SCHEDULE | P62: 28. Training Expense | Q62: 2018 | R62: 1000 | S62: 2017 | T62: 1000 | U62: 1098 | V62: 2016 | W62: 1000 | X62: 1098 | Y62: 2015 | Z62: 600 | AA62: 1356
A63: 49 | B63: TEXAS | C63: 608 | D63: 61 | E63: 847921178 | F63: 01-6 | G63: SHADY SHORES APTS | H63: HVM LAKE DALLAS LTD | I63: HAMILTON VALLEY MANAGEMENT | J63: Active | K63: NA | L63: A | M63: 1995-09-20 | N63: PART II - O@M EXPENSE SCHEDULE | P63: 29. Hlth Ins. @ Other Benefits | Q63: 2018 | R63: 5250 | S63: 2017 | T63: 4000 | U63: 3986 | V63: 2016 | W63: 4000 | X63: 3986 | Y63: 2015 | Z63: 4000 | AA63: 3000
A64: 49 | B64: TEXAS | C64: 608 | D64: 61 | E64: 847921178 | F64: 01-6 | G64: SHADY SHORES APTS | H64: HVM LAKE DALLAS LTD | I64: HAMILTON VALLEY MANAGEMENT | J64: Active | K64: NA | L64: A | M64: 1995-09-20 | N64: PART II - O@M EXPENSE SCHEDULE | P64: 30. Payroll Taxes | Q64: 2018 | R64: 0 | S64: 2017 | T64: 0 | U64: 0 | V64: 2016 | W64: 0 | X64: 0 | Y64: 2015 | Z64: 0 | AA64: 0
A65: 49 | B65: TEXAS | C65: 608 | D65: 61 | E65: 847921178 | F65: 01-6 | G65: SHADY SHORES APTS | H65: HVM LAKE DALLAS LTD | I65: HAMILTON VALLEY MANAGEMENT | J65: Active | K65: NA | L65: A | M65: 1995-09-20 | N65: PART II - O@M EXPENSE SCHEDULE | P65: 31. Workmans Compensation | Q65: 2018 | R65: 0 | S65: 2017 | T65: 0 | U65: 0 | V65: 2016 | W65: 0 | X65: 0 | Y65: 2015 | Z65: 0 | AA65: 0
A66: ="49" -> 49 | B66: TEXAS | C66: ="608" -> 608 | D66: ="61" -> 61 | E66: ="847921178" -> 847921178 | F66: ="01-6" -> 01-6 | G66: SHADY SHORES APTS | H66: HVM LAKE DALLAS LTD | I66: HAMILTON VALLEY MANAGEMENT | J66: Active | K66: NA | L66: A | M66: 1995-09-20 | N66: PART II - O@M EXPENSE SCHEDULE | P66: 32. Other Admin.Expenses | Q66: 2018 | R66: 0 | S66: 2017 | T66: 100 | U66: 200 | V66: 2016 | W66: 100 | X66: 200 | Y66: 2015 | Z66: 0 | AA66: 180
A67: 49 | B67: TEXAS | C67: 608 | D67: 61 | E67: 847921178 | F67: 01-6 | G67: SHADY SHORES APTS | H67: HVM LAKE DALLAS LTD | I67: HAMILTON VALLEY MANAGEMENT | J67: Active | K67: NA | L67: A | M67: 1995-09-20 | N67: PART II - O@M EXPENSE SCHEDULE | P67: 33. Sub-Ttl Admin (19 thru 32) | Q67: 2018 | R67: 64950 | S67: 2017 | T67: 60344 | U67: 60121 | V67: 2016 | W67: 60344 | X67: 60121 | Y67: 2015 | Z67: 61753 | AA67: 61732
A68: 49 | B68: TEXAS | C68: 608 | D68: 61 | E68: 847921178 | F68: 01-6 | G68: SHADY SHORES APTS | H68: HVM LAKE DALLAS LTD | I68: HAMILTON VALLEY MANAGEMENT | J68: Active | K68: NA | L68: A | M68: 1995-09-20 | N68: PART II - O@M EXPENSE SCHEDULE | P68: 34. Real Estate Taxes | Q68: 2018 | R68: 21200 | S68: 2017 | T68: 20900 | U68: 20400 | V68: 2016 | W68: 20900 | X68: 20400 | Y68: 2015 | Z68: 21540 | AA68: 19578
A69: 49 | B69: TEXAS | C69: 608 | D69: 61 | E69: 847921178 | F69: 01-6 | G69: SHADY SHORES APTS | H69: HVM LAKE DALLAS LTD | I69: HAMILTON VALLEY MANAGEMENT | J69: Active | K69: NA | L69: A | M69: 1995-09-20 | N69: PART II - O@M EXPENSE SCHEDULE | P69: 35. Special Assessments | Q69: 2018 | R69: 0 | S69: 2017 | T69: 0 | U69: 0 | V69: 2016 | W69: 0 | X69: 0 | Y69: 2015 | Z69: 0 | AA69: 0
A70: 49 | B70: TEXAS | C70: 608 | D70: 61 | E70: 847921178 | F70: 01-6 | G70: SHADY SHORES APTS | H70: HVM LAKE DALLAS LTD | I70: HAMILTON VALLEY MANAGEMENT | J70: Active | K70: NA | L70: A | M70: 1995-09-20 | N70: PART II - O@M EXPENSE SCHEDULE | P70: 36. Othr Taxes, Lcnses, Permts | Q70: 2018 | R70: 600 | S70: 2017 | T70: 600 | U70: 600 | V70: 2016 | W70: 600 | X70: 600 | Y70: 2015 | Z70: 600 | AA70: 600
A71: 49 | B71: TEXAS | C71: 608 | D71: 61 | E71: 847921178 | F71: 01-6 | G71: SHADY SHORES APTS | H71: HVM LAKE DALLAS LTD | I71: HAMILTON VALLEY MANAGEMENT | J71: Active | K71: NA | L71: A | M71: 1995-09-20 | N71: PART II - O@M EXPENSE SCHEDULE | P71: 37. Property @ Liability Ins. | Q71: 2018 | R71: 9900 | S71: 2017 | T71: 11800 | U71: 9381 | V71: 2016 | W71: 11800 | X71: 9381 | Y71: 2015 | Z71: 12509 | AA71: 10887
A72: 49 | B72: TEXAS | C72: 608 | D72: 61 | E72: 847921178 | F72: 01-6 | G72: SHADY SHORES APTS | H72: HVM LAKE DALLAS LTD | I72: HAMILTON VALLEY MANAGEMENT | J72: Active | K72: NA | L72: A | M72: 1995-09-20 | N72: PART II - O@M EXPENSE SCHEDULE | P72: 38. Fidelity Coverage Ins. | Q72: 2018 | R72: 40 | S72: 2017 | T72: 40 | U72: 0 | V72: 2016 | W72: 40 | X72: 0 | Y72: 2015 | Z72: 40 | AA72: 31
A73: 49 | B73: TEXAS | C73: 608 | D73: 61 | E73: 847921178 | F73: 01-6 | G73: SHADY SHORES APTS | H73: HVM LAKE DALLAS LTD | I73: HAMILTON VALLEY MANAGEMENT | J73: Active | K73: NA | L73: A | M73: 1995-09-20 | N73: PART II - O@M EXPENSE SCHEDULE | P73: 39. Other Insurance | Q73: 2018 | R73: 0 | S73: 2017 | T73: 0 | U73: 0 | V73: 2016 | W73: 0 | X73: 0 | Y73: 2015 | Z73: 0 | AA73: 0
A74: 49 | B74: TEXAS | C74: 608 | D74: 61 | E74: 847921178 | F74: 01-6 | G74: SHADY SHORES APTS | H74: HVM LAKE DALLAS LTD | I74: HAMILTON VALLEY MANAGEMENT | J74: Active | K74: NA | L74: A | M74: 1995-09-20 | N74: PART II - O@M EXPENSE SCHEDULE | P74: 40. Sub-Ttl Tx/In (34 thru 39) | Q74: 2018 | R74: 31740 | S74: 2017 | T74: 33340 | U74: 30381 | V74: 2016 | W74: 33340 | X74: 30381 | Y74: 2015 | Z74: 34689 | AA74: 31096
A75: 49 | B75: TEXAS | C75: 608 | D75: 61 | E75: 847921178 | F75: 01-6 | G75: SHADY SHORES APTS | H75: HVM LAKE DALLAS LTD | I75: HAMILTON VALLEY MANAGEMENT | J75: Active | K75: NA | L75: A | M75: 1995-09-20 | N75: PART II - O@M EXPENSE SCHEDULE | P75: 41. Ttl O@M Exps (11+18+33+40) | Q75: 2018 | R75: 204724 | S75: 2017 | T75: 198512 | U75: 201072 | V75: 2016 | W75: 198512 | X75: 201072 | Y75: 2015 | Z75: 192702 | AA75: 198929
A76: 49 | B76: TEXAS | C76: 608 | D76: 61 | E76: 847921178 | F76: 01-6 | G76: SHADY SHORES APTS | H76: HVM LAKE DALLAS LTD | I76: HAMILTON VALLEY MANAGEMENT | J76: Active | K76: NA | L76: A | M76: 1995-09-20 | N76: PART III - ACCT BUDGET/STATUS | O76: Reserve Account | P76: 1.Beginning Balance | Q76: 2018 | R76: 106905 | S76: 2017 | T76: 95727.02 | U76: 96677 | V76: 2016 | W76: 93170 | X76: 96677 | Y76: 2015 | Z76: 92956 | AA76: 93170
A77: 49 | B77: TEXAS | C77: 608 | D77: 61 | E77: 847921178 | F77: 01-6 | G77: SHADY SHORES APTS | H77: HVM LAKE DALLAS LTD | I77: HAMILTON VALLEY MANAGEMENT | J77: Active | K77: NA | L77: A | M77: 1995-09-20 | N77: PART III - ACCT BUDGET/STATUS | O77: Reserve Account | P77: 2. Transfer to Reserve | Q77: 2018 | R77: 10228 | S77: 2017 | T77: 10228 | U77: 10232 | V77: 2016 | W77: 10228 | X77: 10232 | Y77: 2015 | Z77: 10228 | AA77: 10451
A78: 49 | B78: TEXAS | C78: 608 | D78: 61 | E78: 847921178 | F78: 01-6 | G78: SHADY SHORES APTS | H78: HVM LAKE DALLAS LTD | I78: HAMILTON VALLEY MANAGEMENT | J78: Active | K78: NA | L78: A | M78: 1995-09-20 | N78: PART III - ACCT BUDGET/STATUS | O78: Transfer From Reserve | P78: 3. Operating Deficit | Q78: 2018 | R78: 0 | S78: 2017 | T78: 0 | U78: 0 | V78: 2016 | W78: 0 | X78: 0 | Y78: 2015 | Z78: 0 | AA78: 0
A79: 49 | B79: TEXAS | C79: 608 | D79: 61 | E79: 847921178 | F79: 01-6 | G79: SHADY SHORES APTS | H79: HVM LAKE DALLAS LTD | I79: HAMILTON VALLEY MANAGEMENT | J79: Active | K79: NA | L79: A | M79: 1995-09-20 | N79: PART III - ACCT BUDGET/STATUS | O79: Transfer From Reserve | P79: 4. Cptl Bgt (Part V reserve) | Q79: 2018 | R79: 28382 | S79: 2017 | T79: 25378 | U79: 6379 | V79: 2016 | W79: 25378 | X79: 6379 | Y79: 2015 | Z79: 20470 | AA79: 9511
A80: 49 | B80: TEXAS | C80: 608 | D80: 61 | E80: 847921178 | F80: 01-6 | G80: SHADY SHORES APTS | H80: HVM LAKE DALLAS LTD | I80: HAMILTON VALLEY MANAGEMENT | J80: Active | K80: NA | L80: A | M80: 1995-09-20 | N80: PART III - ACCT BUDGET/STATUS | O80: Transfer From Reserve | P80: 5. Building @ Equip Repair | Q80: 2018 | R80: 0 | S80: 2017 | T80: 0 | U80: 0 | V80: 2016 | W80: 0 | X80: 0 | Y80: 2015 | Z80: 0 | AA80: 0
A81: 49 | B81: TEXAS | C81: 608 | D81: 61 | E81: 847921178 | F81: 01-6 | G81: SHADY SHORES APTS | H81: HVM LAKE DALLAS LTD | I81: HAMILTON VALLEY MANAGEMENT | J81: Active | K81: NA | L81: A | M81: 1995-09-20 | N81: PART III - ACCT BUDGET/STATUS | O81: Transfer From Reserve | P81: 6. Othr Non-Operating Expenses | Q81: 2018 | R81: 0 | S81: 2017 | T81: 0 | U81: 0 | V81: 2016 | W81: 0 | X81: 0 | Y81: 2015 | Z81: 0 | AA81: 0
A82: 49 | B82: TEXAS | C82: 608 | D82: 61 | E82: 847921178 | F82: 01-6 | G82: SHADY SHORES APTS | H82: HVM LAKE DALLAS LTD | I82: HAMILTON VALLEY MANAGEMENT | J82: Active | K82: NA | L82: A | M82: 1995-09-20 | N82: PART III - ACCT BUDGET/STATUS | O82: Transfer From Reserve | P82: 7. Total (3 thru 6) | Q82: 2018 | R82: 28382 | S82: 2017 | T82: 25378 | U82: 6379 | V82: 2016 | W82: 25378 | X82: 6379 | Y82: 2015 | Z82: 20470 | AA82: 9511
A83: 49 | B83: TEXAS | C83: 608 | D83: 61 | E83: 847921178 | F83: 01-6 | G83: SHADY SHORES APTS | H83: HVM LAKE DALLAS LTD | I83: HAMILTON VALLEY MANAGEMENT | J83: Active | K83: NA | L83: A | M83: 1995-09-20 | N83: PART III - ACCT BUDGET/STATUS | O83: Transfer From Reserve | P83: 8. Ending Balance [(1+2)-7)] | Q83: 2018 | R83: 88751 | S83: 2017 | T83: 80577.02 | U83: 100530 | V83: 2016 | W83: 78020 | X83: 100530 | Y83: 2015 | Z83: 82714 | AA83: 94110
A84: 49 | B84: TEXAS | C84: 608 | D84: 61 | E84: 847921178 | F84: 01-6 | G84: SHADY SHORES APTS | H84: HVM LAKE DALLAS LTD | I84: HAMILTON VALLEY MANAGEMENT | J84: Active | K84: NA | L84: A | M84: 1995-09-20 | N84: PART III - ACCT BUDGET/STATUS | O84: General Operating Account | P84: Beginning Balance | Q84: 2018 | S84: 2017 | T84: 0 | U84: 10562.63 | V84: 2016 | W84: 0 | X84: 10562.63 | Y84: 2015 | Z84: 0 | AA84: 3795.28
A85: 49 | B85: TEXAS | C85: 608 | D85: 61 | E85: 847921178 | F85: 01-6 | G85: SHADY SHORES APTS | H85: HVM LAKE DALLAS LTD | I85: HAMILTON VALLEY MANAGEMENT | J85: Active | K85: NA | L85: A | M85: 1995-09-20 | N85: PART III - ACCT BUDGET/STATUS | O85: General Operating Account | P85: Ending Balance | Q85: 2018 | S85: 2017 | T85: 0 | U85: 14908.56 | V85: 2016 | W85: 0 | X85: 14908.56 | Y85: 2015 | Z85: 0 | AA85: 258
A86: 49 | B86: TEXAS | C86: 608 | D86: 61 | E86: 847921178 | F86: 01-6 | G86: SHADY SHORES APTS | H86: HVM LAKE DALLAS LTD | I86: HAMILTON VALLEY MANAGEMENT | J86: Active | K86: NA | L86: A | M86: 1995-09-20 | N86: PART III - ACCT BUDGET/STATUS | O86: Real Estate Tax And Ins Escrow | P86: Beginning Balance | Q86: 2018 | S86: 2017 | T86: 0 | U86: 49289.69 | V86: 2016 | W86: 0 | X86: 49289.69 | Y86: 2015 | Z86: 0 | AA86: 44967.03
A87: 49 | B87: TEXAS | C87: 608 | D87: 61 | E87: 847921178 | F87: 01-6 | G87: SHADY SHORES APTS | H87: HVM LAKE DALLAS LTD | I87: HAMILTON VALLEY MANAGEMENT | J87: Active | K87: NA | L87: A | M87: 1995-09-20 | N87: PART III - ACCT BUDGET/STATUS | O87: Real Estate Tax And Ins Escrow | P87: Ending Balance | Q87: 2018 | S87: 2017 | T87: 0 | U87: 44859.62 | V87: 2016 | W87: 0 | X87: 44859.62 | Y87: 2015 | Z87: 0 | AA87: 41628.24
A88: 49 | B88: TEXAS | C88: 608 | D88: 61 | E88: 847921178 | F88: 01-6 | G88: SHADY SHORES APTS | H88: HVM LAKE DALLAS LTD | I88: HAMILTON VALLEY MANAGEMENT | J88: Active | K88: NA | L88: A | M88: 1995-09-20 | N88: PART III - ACCT BUDGET/STATUS | O88: Tenant Security Deposit Acct | P88: Beginning Balance | Q88: 2018 | S88: 2017 | T88: 0 | U88: 8906.02 | V88: 2016 | W88: 0 | X88: 8906.02 | Y88: 2015 | Z88: 0 | AA88: 8850.47
A89: 49 | B89: TEXAS | C89: 608 | D89: 61 | E89: 847921178 | F89: 01-6 | G89: SHADY SHORES APTS | H89: HVM LAKE DALLAS LTD | I89: HAMILTON VALLEY MANAGEMENT | J89: Active | K89: NA | L89: A | M89: 1995-09-20 | N89: PART III - ACCT BUDGET/STATUS | O89: Tenant Security Deposit Acct | P89: Ending Balance | Q89: 2018 | S89: 2017 | T89: 0 | U89: 8200.5 | V89: 2016 | W89: 0 | X89: 8200.5 | Y89: 2015 | Z89: 0 | AA89: 8904.91
A90: 49 | B90: TEXAS | C90: 608 | D90: 61 | E90: 847921178 | F90: 01-6 | G90: SHADY SHORES APTS | H90: HVM LAKE DALLAS LTD | I90: HAMILTON VALLEY MANAGEMENT | J90: Active | K90: NA | L90: A | M90: 1995-09-20 | N90: ANNUAL CAPITAL BUDGET | O90: Appliances | P90: Appliances - Range | Q90: 2018 | R90: 0 | S90: 2017 | T90: 0 | U90: 693 | V90: 2016 | W90: 2008 | X90: 693 | Y90: 2015 | Z90: 1440 | AA90: 0
A91: 49 | B91: TEXAS | C91: 608 | D91: 61 | E91: 847921178 | F91: 01-6 | G91: SHADY SHORES APTS | H91: HVM LAKE DALLAS LTD | I91: HAMILTON VALLEY MANAGEMENT | J91: Active | K91: NA | L91: A | M91: 1995-09-20 | N91: ANNUAL CAPITAL BUDGET | O91: Appliances | P91: Appliances - Refrigerator | Q91: 2018 | R91: 0 | S91: 2017 | T91: 0 | U91: 541 | V91: 2016 | W91: 2648 | X91: 541 | Y91: 2015 | Z91: 1130 | AA91: 522
A92: 49 | B92: TEXAS | C92: 608 | D92: 61 | E92: 847921178 | F92: 01-6 | G92: SHADY SHORES APTS | H92: HVM LAKE DALLAS LTD | I92: HAMILTON VALLEY MANAGEMENT | J92: Active | K92: NA | L92: A | M92: 1995-09-20 | N92: ANNUAL CAPITAL BUDGET | O92: Appliances | P92: Appliances - Range Hood | Q92: 2018 | R92: 0 | S92: 2017 | T92: 0 | U92: 0 | V92: 2016 | W92: 0 | X92: 0 | Y92: 2015 | Z92: 0 | AA92: 0
A93: 49 | B93: TEXAS | C93: 608 | D93: 61 | E93: 847921178 | F93: 01-6 | G93: SHADY SHORES APTS | H93: HVM LAKE DALLAS LTD | I93: HAMILTON VALLEY MANAGEMENT | J93: Active | K93: NA | L93: A | M93: 1995-09-20 | N93: ANNUAL CAPITAL BUDGET | O93: Appliances | P93: Appliances - Washers @ Dryers | Q93: 2018 | R93: 0 | S93: 2017 | T93: 0 | U93: 0 | V93: 2016 | W93: 0 | X93: 0 | Y93: 2015 | Z93: 0 | AA93: 0
A94: 49 | B94: TEXAS | C94: 608 | D94: 61 | E94: 847921178 | F94: 01-6 | G94: SHADY SHORES APTS | H94: HVM LAKE DALLAS LTD | I94: HAMILTON VALLEY MANAGEMENT | J94: Active | K94: NA | L94: A | M94: 1995-09-20 | N94: ANNUAL CAPITAL BUDGET | O94: Appliances | P94: Appliances - Other | Q94: 2018 | R94: 0 | S94: 2017 | T94: 0 | U94: 0 | V94: 2016 | W94: 0 | X94: 0 | Y94: 2015 | Z94: 0 | AA94: 0
A95: 49 | B95: TEXAS | C95: 608 | D95: 61 | E95: 847921178 | F95: 01-6 | G95: SHADY SHORES APTS | H95: HVM LAKE DALLAS LTD | I95: HAMILTON VALLEY MANAGEMENT | J95: Active | K95: NA | L95: A | M95: 1995-09-20 | N95: ANNUAL CAPITAL BUDGET | O95: Carpet and Vinyl | P95: Carpet @ Vinyl - 1 Br. | Q95: 2018 | R95: 0 | S95: 2017 | T95: 0 | U95: 2858 | V95: 2016 | W95: 6400 | X95: 2858 | Y95: 2015 | Z95: 2400 | AA95: 472
A96: 49 | B96: TEXAS | C96: 608 | D96: 61 | E96: 847921178 | F96: 01-6 | G96: SHADY SHORES APTS | H96: HVM LAKE DALLAS LTD | I96: HAMILTON VALLEY MANAGEMENT | J96: Active | K96: NA | L96: A | M96: 1995-09-20 | N96: ANNUAL CAPITAL BUDGET | O96: Carpet and Vinyl | P96: Carpet @ Vinyl - 2 Br. | Q96: 2018 | R96: 0 | S96: 2017 | T96: 0 | U96: 6310 | V96: 2016 | W96: 5700 | X96: 6310 | Y96: 2015 | Z96: 4500 | AA96: 3375
A97: 49 | B97: TEXAS | C97: 608 | D97: 61 | E97: 847921178 | F97: 01-6 | G97: SHADY SHORES APTS | H97: HVM LAKE DALLAS LTD | I97: HAMILTON VALLEY MANAGEMENT | J97: Active | K97: NA | L97: A | M97: 1995-09-20 | N97: ANNUAL CAPITAL BUDGET | O97: Carpet and Vinyl | P97: Carpet @ Vinyl - 3 Br. | Q97: 2018 | R97: 0 | S97: 2017 | T97: 0 | U97: 0 | V97: 2016 | W97: 0 | X97: 0 | Y97: 2015 | Z97: 0 | AA97: 0
A98: 49 | B98: TEXAS | C98: 608 | D98: 61 | E98: 847921178 | F98: 01-6 | G98: SHADY SHORES APTS | H98: HVM LAKE DALLAS LTD | I98: HAMILTON VALLEY MANAGEMENT | J98: Active | K98: NA | L98: A | M98: 1995-09-20 | N98: ANNUAL CAPITAL BUDGET | O98: Carpet and Vinyl | P98: Carpet @ Vinyl - 4 Br. | Q98: 2018 | R98: 0 | S98: 2017 | T98: 0 | U98: 0 | V98: 2016 | W98: 0 | X98: 0 | Y98: 2015 | Z98: 0 | AA98: 0
A99: 49 | B99: TEXAS | C99: 608 | D99: 61 | E99: 847921178 | F99: 01-6 | G99: SHADY SHORES APTS | H99: HVM LAKE DALLAS LTD | I99: HAMILTON VALLEY MANAGEMENT | J99: Active | K99: NA | L99: A | M99: 1995-09-20 | N99: ANNUAL CAPITAL BUDGET | O99: Carpet and Vinyl | P99: Carpet @ Vinyl - Other | Q99: 2018 | R99: 0 | S99: 2017 | T99: 0 | U99: 0 | V99: 2016 | W99: 0 | X99: 0 | Y99: 2015 | Z99: 0 | AA99: 722
A100: 49 | B100: TEXAS | C100: 608 | D100: 61 | E100: 847921178 | F100: 01-6 | G100: SHADY SHORES APTS | H100: HVM LAKE DALLAS LTD | I100: HAMILTON VALLEY MANAGEMENT | J100: Active | K100: NA | L100: A | M100: 1995-09-20 | N100: ANNUAL CAPITAL BUDGET | O100: Cabinets | P100: Cabinets - Kitchens | Q100: 2018 | R100: 0 | S100: 2017 | T100: 0 | U100: 0 | V100: 2016 | W100: 4000 | X100: 0 | Y100: 2015 | Z100: 4000 | AA100: 0
A101: 49 | B101: TEXAS | C101: 608 | D101: 61 | E101: 847921178 | F101: 01-6 | G101: SHADY SHORES APTS | H101: HVM LAKE DALLAS LTD | I101: HAMILTON VALLEY MANAGEMENT | J101: Active | K101: NA | L101: A | M101: 1995-09-20 | N101: ANNUAL CAPITAL BUDGET | O101: Cabinets | P101: Cabinets - Bathroom | Q101: 2018 | R101: 0 | S101: 2017 | T101: 0 | U101: 0 | V101: 2016 | W101: 1750 | X101: 0 | Y101: 2015 | Z101: 1500 | AA101: 0
A102: 49 | B102: TEXAS | C102: 608 | D102: 61 | E102: 847921178 | F102: 01-6 | G102: SHADY SHORES APTS | H102: HVM LAKE DALLAS LTD | I102: HAMILTON VALLEY MANAGEMENT | J102: Active | K102: NA | L102: A | M102: 1995-09-20 | N102: ANNUAL CAPITAL BUDGET | O102: Cabinets | P102: Cabinets - Other | Q102: 2018 | R102: 0 | S102: 2017 | T102: 0 | U102: 428 | V102: 2016 | W102: 0 | X102: 428 | Y102: 2015 | Z102: 0 | AA102: 78
A103: 49 | B103: TEXAS | C103: 608 | D103: 61 | E103: 847921178 | F103: 01-6 | G103: SHADY SHORES APTS | H103: HVM LAKE DALLAS LTD | I103: HAMILTON VALLEY MANAGEMENT | J103: Active | K103: NA | L103: A | M103: 1995-09-20 | N103: ANNUAL CAPITAL BUDGET | O103: Doors | P103: Doors - Exterior | Q103: 2018 | R103: 0 | S103: 2017 | T103: 0 | U103: 0 | V103: 2016 | W103: 0 | X103: 0 | Y103: 2015 | Z103: 0 | AA103: 0
A104: 49 | B104: TEXAS | C104: 608 | D104: 61 | E104: 847921178 | F104: 01-6 | G104: SHADY SHORES APTS | H104: HVM LAKE DALLAS LTD | I104: HAMILTON VALLEY MANAGEMENT | J104: Active | K104: NA | L104: A | M104: 1995-09-20 | N104: ANNUAL CAPITAL BUDGET | O104: Doors | P104: Doors - Interior | Q104: 2018 | R104: 0 | S104: 2017 | T104: 0 | U104: 0 | V104: 2016 | W104: 0 | X104: 0 | Y104: 2015 | Z104: 0 | AA104: 0
A105: 49 | B105: TEXAS | C105: 608 | D105: 61 | E105: 847921178 | F105: 01-6 | G105: SHADY SHORES APTS | H105: HVM LAKE DALLAS LTD | I105: HAMILTON VALLEY MANAGEMENT | J105: Active | K105: NA | L105: A | M105: 1995-09-20 | N105: ANNUAL CAPITAL BUDGET | O105: Doors | P105: Doors - Other | Q105: 2018 | R105: 0 | S105: 2017 | T105: 0 | U105: 0 | V105: 2016 | W105: 0 | X105: 0 | Y105: 2015 | Z105: 0 | AA105: 0
A106: 49 | B106: TEXAS | C106: 608 | D106: 61 | E106: 847921178 | F106: 01-6 | G106: SHADY SHORES APTS | H106: HVM LAKE DALLAS LTD | I106: HAMILTON VALLEY MANAGEMENT | J106: Active | K106: NA | L106: A | M106: 1995-09-20 | N106: ANNUAL CAPITAL BUDGET | O106: Window Coverings | P106: Window Coverings - Detail | Q106: 2018 | R106: 0 | S106: 2017 | T106: 0 | U106: 0 | V106: 2016 | W106: 0 | X106: 0 | Y106: 2015 | Z106: 0 | AA106: 0
A107: 49 | B107: TEXAS | C107: 608 | D107: 61 | E107: 847921178 | F107: 01-6 | G107: SHADY SHORES APTS | H107: HVM LAKE DALLAS LTD | I107: HAMILTON VALLEY MANAGEMENT | J107: Active | K107: NA | L107: A | M107: 1995-09-20 | N107: ANNUAL CAPITAL BUDGET | O107: Window Coverings | P107: Window Coverings - Other | Q107: 2018 | R107: 0 | S107: 2017 | T107: 0 | U107: 0 | V107: 2016 | W107: 0 | X107: 0 | Y107: 2015 | Z107: 0 | AA107: 0
A108: 49 | B108: TEXAS | C108: 608 | D108: 61 | E108: 847921178 | F108: 01-6 | G108: SHADY SHORES APTS | H108: HVM LAKE DALLAS LTD | I108: HAMILTON VALLEY MANAGEMENT | J108: Active | K108: NA | L108: A | M108: 1995-09-20 | N108: ANNUAL CAPITAL BUDGET | O108: Heat and Air Conditioning | P108: Heat @ Air - Heating | Q108: 2018 | R108: 0 | S108: 2017 | T108: 0 | U108: 0 | V108: 2016 | W108: 0 | X108: 0 | Y108: 2015 | Z108: 4000 | AA108: 0
A109: 49 | B109: TEXAS | C109: 608 | D109: 61 | E109: 847921178 | F109: 01-6 | G109: SHADY SHORES APTS | H109: HVM LAKE DALLAS LTD | I109: HAMILTON VALLEY MANAGEMENT | J109: Active | K109: NA | L109: A | M109: 1995-09-20 | N109: ANNUAL CAPITAL BUDGET | O109: Heat and Air Conditioning | P109: Heat @ Air - Air Conditioning | Q109: 2018 | R109: 0 | S109: 2017 | T109: 0 | U109: 3366 | V109: 2016 | W109: 4000 | X109: 3366 | Y109: 2015 | Z109: 0 | AA109: 3650
A110: 49 | B110: TEXAS | C110: 608 | D110: 61 | E110: 847921178 | F110: 01-6 | G110: SHADY SHORES APTS | H110: HVM LAKE DALLAS LTD | I110: HAMILTON VALLEY MANAGEMENT | J110: Active | K110: NA | L110: A | M110: 1995-09-20 | N110: ANNUAL CAPITAL BUDGET | O110: Heat and Air Conditioning | P110: Heat @ Air - Other | Q110: 2018 | R110: 0 | S110: 2017 | T110: 0 | U110: 0 | V110: 2016 | W110: 0 | X110: 0 | Y110: 2015 | Z110: 0 | AA110: 0
A111: 49 | B111: TEXAS | C111: 608 | D111: 61 | E111: 847921178 | F111: 01-6 | G111: SHADY SHORES APTS | H111: HVM LAKE DALLAS LTD | I111: HAMILTON VALLEY MANAGEMENT | J111: Active | K111: NA | L111: A | M111: 1995-09-20 | N111: ANNUAL CAPITAL BUDGET | O111: Plumbing | P111: Plumbing - Water Heater | Q111: 2018 | R111: 0 | S111: 2017 | T111: 0 | U111: 0 | V111: 2016 | W111: 800 | X111: 0 | Y111: 2015 | Z111: 0 | AA111: 0
A112: 49 | B112: TEXAS | C112: 608 | D112: 61 | E112: 847921178 | F112: 01-6 | G112: SHADY SHORES APTS | H112: HVM LAKE DALLAS LTD | I112: HAMILTON VALLEY MANAGEMENT | J112: Active | K112: NA | L112: A | M112: 1995-09-20 | N112: ANNUAL CAPITAL BUDGET | O112: Plumbing | P112: Plumbing - Bath Sinks | Q112: 2018 | R112: 0 | S112: 2017 | T112: 0 | U112: 0 | V112: 2016 | W112: 0 | X112: 0 | Y112: 2015 | Z112: 0 | AA112: 0
A113: 49 | B113: TEXAS | C113: 608 | D113: 61 | E113: 847921178 | F113: 01-6 | G113: SHADY SHORES APTS | H113: HVM LAKE DALLAS LTD | I113: HAMILTON VALLEY MANAGEMENT | J113: Active | K113: NA | L113: A | M113: 1995-09-20 | N113: ANNUAL CAPITAL BUDGET | O113: Plumbing | P113: Plumbing - Kitchen Sinks | Q113: 2018 | R113: 0 | S113: 2017 | T113: 0 | U113: 0 | V113: 2016 | W113: 0 | X113: 0 | Y113: 2015 | Z113: 0 | AA113: 0
A114: 49 | B114: TEXAS | C114: 608 | D114: 61 | E114: 847921178 | F114: 01-6 | G114: SHADY SHORES APTS | H114: HVM LAKE DALLAS LTD | I114: HAMILTON VALLEY MANAGEMENT | J114: Active | K114: NA | L114: A | M114: 1995-09-20 | N114: ANNUAL CAPITAL BUDGET | O114: Plumbing | P114: Plumbing - Faucets | Q114: 2018 | R114: 0 | S114: 2017 | T114: 0 | U114: 0 | V114: 2016 | W114: 0 | X114: 0 | Y114: 2015 | Z114: 0 | AA114: 0
A115: 49 | B115: TEXAS | C115: 608 | D115: 61 | E115: 847921178 | F115: 01-6 | G115: SHADY SHORES APTS | H115: HVM LAKE DALLAS LTD | I115: HAMILTON VALLEY MANAGEMENT | J115: Active | K115: NA | L115: A | M115: 1995-09-20 | N115: ANNUAL CAPITAL BUDGET | O115: Plumbing | P115: Plumbing - Toilets | Q115: 2018 | R115: 0 | S115: 2017 | T115: 0 | U115: 0 | V115: 2016 | W115: 0 | X115: 0 | Y115: 2015 | Z115: 0 | AA115: 0
A116: 49 | B116: TEXAS | C116: 608 | D116: 61 | E116: 847921178 | F116: 01-6 | G116: SHADY SHORES APTS | H116: HVM LAKE DALLAS LTD | I116: HAMILTON VALLEY MANAGEMENT | J116: Active | K116: NA | L116: A | M116: 1995-09-20 | N116: ANNUAL CAPITAL BUDGET | O116: Plumbing | P116: Plumbing - Other | Q116: 2018 | R116: 0 | S116: 2017 | T116: 0 | U116: 2340 | V116: 2016 | W116: 0 | X116: 2340 | Y116: 2015 | Z116: 0 | AA116: 1953
A117: 49 | B117: TEXAS | C117: 608 | D117: 61 | E117: 847921178 | F117: 01-6 | G117: SHADY SHORES APTS | H117: HVM LAKE DALLAS LTD | I117: HAMILTON VALLEY MANAGEMENT | J117: Active | K117: NA | L117: A | M117: 1995-09-20 | N117: ANNUAL CAPITAL BUDGET | O117: Major Electrical | P117: Major Electrical - Detail | Q117: 2018 | R117: 0 | S117: 2017 | T117: 0 | U117: 0 | V117: 2016 | W117: 0 | X117: 0 | Y117: 2015 | Z117: 0 | AA117: 0
A118: 49 | B118: TEXAS | C118: 608 | D118: 61 | E118: 847921178 | F118: 01-6 | G118: SHADY SHORES APTS | H118: HVM LAKE DALLAS LTD | I118: HAMILTON VALLEY MANAGEMENT | J118: Active | K118: NA | L118: A | M118: 1995-09-20 | N118: ANNUAL CAPITAL BUDGET | O118: Major Electrical | P118: Major Electrical - Other | Q118: 2018 | R118: 0 | S118: 2017 | T118: 0 | U118: 0 | V118: 2016 | W118: 0 | X118: 0 | Y118: 2015 | Z118: 0 | AA118: 274
A119: 49 | B119: TEXAS | C119: 608 | D119: 61 | E119: 847921178 | F119: 01-6 | G119: SHADY SHORES APTS | H119: HVM LAKE DALLAS LTD | I119: HAMILTON VALLEY MANAGEMENT | J119: Active | K119: NA | L119: A | M119: 1995-09-20 | N119: ANNUAL CAPITAL BUDGET | O119: Structures | P119: Structures - Windows | Q119: 2018 | R119: 0 | S119: 2017 | T119: 0 | U119: 0 | V119: 2016 | W119: 0 | X119: 0 | Y119: 2015 | Z119: 0 | AA119: 0
A120: 49 | B120: TEXAS | C120: 608 | D120: 61 | E120: 847921178 | F120: 01-6 | G120: SHADY SHORES APTS | H120: HVM LAKE DALLAS LTD | I120: HAMILTON VALLEY MANAGEMENT | J120: Active | K120: NA | L120: A | M120: 1995-09-20 | N120: ANNUAL CAPITAL BUDGET | O120: Structures | P120: Structures - Screens | Q120: 2018 | R120: 0 | S120: 2017 | T120: 0 | U120: 0 | V120: 2016 | W120: 0 | X120: 0 | Y120: 2015 | Z120: 0 | AA120: 0
A121: 49 | B121: TEXAS | C121: 608 | D121: 61 | E121: 847921178 | F121: 01-6 | G121: SHADY SHORES APTS | H121: HVM LAKE DALLAS LTD | I121: HAMILTON VALLEY MANAGEMENT | J121: Active | K121: NA | L121: A | M121: 1995-09-20 | N121: ANNUAL CAPITAL BUDGET | O121: Structures | P121: Structures - Walls | Q121: 2018 | R121: 0 | S121: 2017 | T121: 0 | U121: 0 | V121: 2016 | W121: 0 | X121: 0 | Y121: 2015 | Z121: 0 | AA121: 0
A122: 49 | B122: TEXAS | C122: 608 | D122: 61 | E122: 847921178 | F122: 01-6 | G122: SHADY SHORES APTS | H122: HVM LAKE DALLAS LTD | I122: HAMILTON VALLEY MANAGEMENT | J122: Active | K122: NA | L122: A | M122: 1995-09-20 | N122: ANNUAL CAPITAL BUDGET | O122: Structures | P122: Structures - Roofing | Q122: 2018 | R122: 0 | S122: 2017 | T122: 0 | U122: 0 | V122: 2016 | W122: 0 | X122: 0 | Y122: 2015 | Z122: 0 | AA122: 0
A123: 49 | B123: TEXAS | C123: 608 | D123: 61 | E123: 847921178 | F123: 01-6 | G123: SHADY SHORES APTS | H123: HVM LAKE DALLAS LTD | I123: HAMILTON VALLEY MANAGEMENT | J123: Active | K123: NA | L123: A | M123: 1995-09-20 | N123: ANNUAL CAPITAL BUDGET | O123: Structures | P123: Structures - Siding | Q123: 2018 | R123: 0 | S123: 2017 | T123: 0 | U123: 0 | V123: 2016 | W123: 0 | X123: 0 | Y123: 2015 | Z123: 0 | AA123: 0
A124: 49 | B124: TEXAS | C124: 608 | D124: 61 | E124: 847921178 | F124: 01-6 | G124: SHADY SHORES APTS | H124: HVM LAKE DALLAS LTD | I124: HAMILTON VALLEY MANAGEMENT | J124: Active | K124: NA | L124: A | M124: 1995-09-20 | N124: ANNUAL CAPITAL BUDGET | O124: Structures | P124: Structures - Exterior Painting | Q124: 2018 | R124: 0 | S124: 2017 | T124: 0 | U124: 0 | V124: 2016 | W124: 0 | X124: 0 | Y124: 2015 | Z124: 0 | AA124: 0
A125: 49 | B125: TEXAS | C125: 608 | D125: 61 | E125: 847921178 | F125: 01-6 | G125: SHADY SHORES APTS | H125: HVM LAKE DALLAS LTD | I125: HAMILTON VALLEY MANAGEMENT | J125: Active | K125: NA | L125: A | M125: 1995-09-20 | N125: ANNUAL CAPITAL BUDGET | O125: Structures | P125: Structures - Other | Q125: 2018 | R125: 0 | S125: 2017 | T125: 0 | U125: 0 | V125: 2016 | W125: 0 | X125: 0 | Y125: 2015 | Z125: 1500 | AA125: 1190
A126: 49 | B126: TEXAS | C126: 608 | D126: 61 | E126: 847921178 | F126: 01-6 | G126: SHADY SHORES APTS | H126: HVM LAKE DALLAS LTD | I126: HAMILTON VALLEY MANAGEMENT | J126: Active | K126: NA | L126: A | M126: 1995-09-20 | N126: ANNUAL CAPITAL BUDGET | O126: Paving | P126: Paving - Asphalt | Q126: 2018 | R126: 0 | S126: 2017 | T126: 0 | U126: 0 | V126: 2016 | W126: 3000 | X126: 0 | Y126: 2015 | Z126: 0 | AA126: 0
A127: 49 | B127: TEXAS | C127: 608 | D127: 61 | E127: 847921178 | F127: 01-6 | G127: SHADY SHORES APTS | H127: HVM LAKE DALLAS LTD | I127: HAMILTON VALLEY MANAGEMENT | J127: Active | K127: NA | L127: A | M127: 1995-09-20 | N127: ANNUAL CAPITAL BUDGET | O127: Paving | P127: Paving - Concrete | Q127: 2018 | R127: 0 | S127: 2017 | T127: 0 | U127: 0 | V127: 2016 | W127: 0 | X127: 0 | Y127: 2015 | Z127: 0 | AA127: 0
A128: 49 | B128: TEXAS | C128: 608 | D128: 61 | E128: 847921178 | F128: 01-6 | G128: SHADY SHORES APTS | H128: HVM LAKE DALLAS LTD | I128: HAMILTON VALLEY MANAGEMENT | J128: Active | K128: NA | L128: A | M128: 1995-09-20 | N128: ANNUAL CAPITAL BUDGET | O128: Paving | P128: Paving - Seal and Stripe | Q128: 2018 | R128: 0 | S128: 2017 | T128: 0 | U128: 0 | V128: 2016 | W128: 0 | X128: 0 | Y128: 2015 | Z128: 0 | AA128: 0
A129: 49 | B129: TEXAS | C129: 608 | D129: 61 | E129: 847921178 | F129: 01-6 | G129: SHADY SHORES APTS | H129: HVM LAKE DALLAS LTD | I129: HAMILTON VALLEY MANAGEMENT | J129: Active | K129: NA | L129: A | M129: 1995-09-20 | N129: ANNUAL CAPITAL BUDGET | O129: Paving | P129: Paving - Other | Q129: 2018 | R129: 0 | S129: 2017 | T129: 0 | U129: 0 | V129: 2016 | W129: 0 | X129: 0 | Y129: 2015 | Z129: 0 | AA129: 0
A130: ="49" -> 49 | B130: TEXAS | C130: ="608" -> 608 | D130: ="61" -> 61 | E130: ="847921178" -> 847921178 | F130: ="01-6" -> 01-6 | G130: SHADY SHORES APTS | H130: HVM LAKE DALLAS LTD | I130: HAMILTON VALLEY MANAGEMENT | J130: Active | K130: NA | L130: A | M130: 1995-09-20 | N130: ANNUAL CAPITAL BUDGET | O130: Landscape and Grounds | P130: Lndscp@Grnds - Landscaping | Q130: 2018 | R130: 0 | S130: 2017 | T130: 0 | U130: 0 | V130: 2016 | W130: 0 | X130: 0 | Y130: 2015 | Z130: 0 | AA130: 0
A131: 49 | B131: TEXAS | C131: 608 | D131: 61 | E131: 847921178 | F131: 01-6 | G131: SHADY SHORES APTS | H131: HVM LAKE DALLAS LTD | I131: HAMILTON VALLEY MANAGEMENT | J131: Active | K131: NA | L131: A | M131: 1995-09-20 | N131: ANNUAL CAPITAL BUDGET | O131: Landscape and Grounds | P131: Lndscp@Grnds - Lawn Equipment | Q131: 2018 | R131: 0 | S131: 2017 | T131: 0 | U131: 0 | V131: 2016 | W131: 0 | X131: 0 | Y131: 2015 | Z131: 0 | AA131: 0
A132: 49 | B132: TEXAS | C132: 608 | D132: 61 | E132: 847921178 | F132: 01-6 | G132: SHADY SHORES APTS | H132: HVM LAKE DALLAS LTD | I132: HAMILTON VALLEY MANAGEMENT | J132: Active | K132: NA | L132: A | M132: 1995-09-20 | N132: ANNUAL CAPITAL BUDGET | O132: Landscape and Grounds | P132: Lndscp@Grnds - Fencin | Q132: 2018 | R132: 0 | S132: 2017 | T132: 0 | U132: 0 | V132: 2016 | W132: 0 | X132: 0 | Y132: 2015 | Z132: 0 | AA132: 0
A133: 49 | B133: TEXAS | C133: 608 | D133: 61 | E133: 847921178 | F133: 01-6 | G133: SHADY SHORES APTS | H133: HVM LAKE DALLAS LTD | I133: HAMILTON VALLEY MANAGEMENT | J133: Active | K133: NA | L133: A | M133: 1995-09-20 | N133: ANNUAL CAPITAL BUDGET | O133: Landscape and Grounds | P133: Lndscp@Grnds - Recreation Area | Q133: 2018 | R133: 0 | S133: 2017 | T133: 0 | U133: 0 | V133: 2016 | W133: 3000 | X133: 0 | Y133: 2015 | Z133: 0 | AA133: 0
A134: 49 | B134: TEXAS | C134: 608 | D134: 61 | E134: 847921178 | F134: 01-6 | G134: SHADY SHORES APTS | H134: HVM LAKE DALLAS LTD | I134: HAMILTON VALLEY MANAGEMENT | J134: Active | K134: NA | L134: A | M134: 1995-09-20 | N134: ANNUAL CAPITAL BUDGET | O134: Landscape and Grounds | P134: Lndscp@Grnds - Signs | Q134: 2018 | R134: 0 | S134: 2017 | T134: 0 | U134: 0 | V134: 2016 | W134: 0 | X134: 0 | Y134: 2015 | Z134: 0 | AA134: 0
A135: 49 | B135: TEXAS | C135: 608 | D135: 61 | E135: 847921178 | F135: 01-6 | G135: SHADY SHORES APTS | H135: HVM LAKE DALLAS LTD | I135: HAMILTON VALLEY MANAGEMENT | J135: Active | K135: NA | L135: A | M135: 1995-09-20 | N135: ANNUAL CAPITAL BUDGET | O135: Landscape and Grounds | P135: Lndscp@Grnds - Other | Q135: 2018 | R135: 0 | S135: 2017 | T135: 0 | U135: 0 | V135: 2016 | W135: 0 | X135: 0 | Y135: 2015 | Z135: 0 | AA135: 0
A136: 49 | B136: TEXAS | C136: 608 | D136: 61 | E136: 847921178 | F136: 01-6 | G136: SHADY SHORES APTS | H136: HVM LAKE DALLAS LTD | I136: HAMILTON VALLEY MANAGEMENT | J136: Active | K136: NA | L136: A | M136: 1995-09-20 | N136: ANNUAL CAPITAL BUDGET | O136: Accessibility Features | P136: Accessibility Features -Detail | Q136: 2018 | R136: 0 | S136: 2017 | T136: 0 | U136: 0 | V136: 2016 | W136: 0 | X136: 0 | Y136: 2015 | Z136: 0 | AA136: 0
A137: 49 | B137: TEXAS | C137: 608 | D137: 61 | E137: 847921178 | F137: 01-6 | G137: SHADY SHORES APTS | H137: HVM LAKE DALLAS LTD | I137: HAMILTON VALLEY MANAGEMENT | J137: Active | K137: NA | L137: A | M137: 1995-09-20 | N137: ANNUAL CAPITAL BUDGET | O137: Accessibility Features | P137: Accessibility Features -Other | Q137: 2018 | R137: 0 | S137: 2017 | T137: 0 | U137: 0 | V137: 2016 | W137: 0 | X137: 0 | Y137: 2015 | Z137: 0 | AA137: 0
A138: 49 | B138: TEXAS | C138: 608 | D138: 61 | E138: 847921178 | F138: 01-6 | G138: SHADY SHORES APTS | H138: HVM LAKE DALLAS LTD | I138: HAMILTON VALLEY MANAGEMENT | J138: Active | K138: NA | L138: A | M138: 1995-09-20 | N138: ANNUAL CAPITAL BUDGET | O138: Automation Equipment | P138: Automation Equip. -Site Mngt. | Q138: 2018 | R138: 0 | S138: 2017 | T138: 0 | U138: 0 | V138: 2016 | W138: 0 | X138: 0 | Y138: 2015 | Z138: 0 | AA138: 0
A139: 49 | B139: TEXAS | C139: 608 | D139: 61 | E139: 847921178 | F139: 01-6 | G139: SHADY SHORES APTS | H139: HVM LAKE DALLAS LTD | I139: HAMILTON VALLEY MANAGEMENT | J139: Active | K139: NA | L139: A | M139: 1995-09-20 | N139: ANNUAL CAPITAL BUDGET | O139: Automation Equipment | P139: Automation Equip. -Common Area | Q139: 2018 | R139: 0 | S139: 2017 | T139: 0 | U139: 0 | V139: 2016 | W139: 0 | X139: 0 | Y139: 2015 | Z139: 0 | AA139: 0
A140: 49 | B140: TEXAS | C140: 608 | D140: 61 | E140: 847921178 | F140: 01-6 | G140: SHADY SHORES APTS | H140: HVM LAKE DALLAS LTD | I140: HAMILTON VALLEY MANAGEMENT | J140: Active | K140: NA | L140: A | M140: 1995-09-20 | N140: ANNUAL CAPITAL BUDGET | O140: Automation Equipment | P140: Automation Equip. -Other | Q140: 2018 | R140: 0 | S140: 2017 | T140: 0 | U140: 0 | V140: 2016 | W140: 0 | X140: 0 | Y140: 2015 | Z140: 0 | AA140: 0
A141: 49 | B141: TEXAS | C141: 608 | D141: 61 | E141: 847921178 | F141: 01-6 | G141: SHADY SHORES APTS | H141: HVM LAKE DALLAS LTD | I141: HAMILTON VALLEY MANAGEMENT | J141: Active | K141: NA | L141: A | M141: 1995-09-20 | N141: ANNUAL CAPITAL BUDGET | O141: Other | P141: List: ? | Q141: 2018 | R141: 0 | S141: 2017 | T141: 0 | U141: 0 | V141: 2016 | W141: 0 | X141: 0 | Y141: 2015 | Z141: 0 | AA141: 460
A142: 49 | B142: TEXAS | C142: 608 | D142: 61 | E142: 847921178 | F142: 01-6 | G142: SHADY SHORES APTS | H142: HVM LAKE DALLAS LTD | I142: HAMILTON VALLEY MANAGEMENT | J142: Active | K142: NA | L142: A | M142: 1995-09-20 | N142: ANNUAL CAPITAL BUDGET | O142: Other | P142: List: ? | Q142: 2018 | R142: 0 | S142: 2017 | T142: 0 | U142: 0 | V142: 2016 | W142: 0 | X142: 0 | Y142: 2015 | Z142: 0 | AA142: 0
A143: 49 | B143: TEXAS | C143: 608 | D143: 61 | E143: 847921178 | F143: 01-6 | G143: SHADY SHORES APTS | H143: HVM LAKE DALLAS LTD | I143: HAMILTON VALLEY MANAGEMENT | J143: Active | K143: NA | L143: A | M143: 1995-09-20 | N143: ANNUAL CAPITAL BUDGET | O143: Other | P143: List: ? | Q143: 2018 | R143: 0 | S143: 2017 | T143: 0 | U143: 0 | V143: 2016 | W143: 0 | X143: 0 | Y143: 2015 | Z143: 0 | AA143: 0
A144: 49 | B144: TEXAS | C144: 608 | D144: 61 | E144: 847921178 | F144: 01-6 | G144: SHADY SHORES APTS | H144: HVM LAKE DALLAS LTD | I144: HAMILTON VALLEY MANAGEMENT | J144: Active | K144: NA | L144: A | M144: 1995-09-20 | N144: ANNUAL CAPITAL BUDGET | O144: Other | P144: Total Capital Expenses | Q144: 2018 | R144: 32164 | S144: 2017 | T144: 33306 | U144: 16536 | V144: 2016 | W144: 33306 | X144: 16536 | Y144: 2015 | Z144: 20470 | AA144: 12696
A150: St | B150: St Name | C150: Srv Off | D150: Cnty | E150: Borrower ID | F150: Proj Number | G150: Prj Name | H150: Borr Name | I150: Paid Cd | J150: Labor Hsg Typ | K150: Class | L150: FY | M150: Version | N150: Cur Bal Eff Date | O150: Cur Bal End Date | P150: Prev Bal Eff Date | Q150: Prev Bal End Date | R150: Part | S150: Section | T150: Item | U150: Curr Bal Amt | V150: Prev Bal Amt | W150: Comment
A151: ="49" -> 49 | B151: TEXAS | C151: ="608" -> 608 | D151: ="61" -> 61 | E151: ="847921178" -> 847921178 | F151: ="01-6" -> 01-6 | G151: SHADY SHORES APTS | H151: HVM LAKE DALLAS LTD | I151: Active | J151: NA | K151: C | L151: 2017 | M151: REVIEWED-0001 | N151: 2016-04-01 | O151: 2017-03-31 | P151: 2016-01-01 | Q151: 2016-03-31 | R151: ASSETS | S151: CURRENT ASSETS | T151: 1. GENERAL OPERATING ACCOUNT | U151: 14908
A152: 49 | B152: TEXAS | C152: 608 | D152: 61 | E152: 847921178 | F152: 01-6 | G152: SHADY SHORES APTS | H152: HVM LAKE DALLAS LTD | I152: Active | J152: NA | K152: C | L152: 2017 | M152: REVIEWED-0001 | N152: 2016-04-01 | O152: 2017-03-31 | P152: 2016-01-01 | Q152: 2016-03-31 | R152: ASSETS | S152: CURRENT ASSETS | T152: 2. R.E. TAX @ INSURANCE ACCNT | U152: 44860
A153: 49 | B153: TEXAS | C153: 608 | D153: 61 | E153: 847921178 | F153: 01-6 | G153: SHADY SHORES APTS | H153: HVM LAKE DALLAS LTD | I153: Active | J153: NA | K153: C | L153: 2017 | M153: REVIEWED-0001 | N153: 2016-04-01 | O153: 2017-03-31 | P153: 2016-01-01 | Q153: 2016-03-31 | R153: ASSETS | S153: CURRENT ASSETS | T153: 3. RESERVE ACCOUNT | U153: 100530
A154: 49 | B154: TEXAS | C154: 608 | D154: 61 | E154: 847921178 | F154: 01-6 | G154: SHADY SHORES APTS | H154: HVM LAKE DALLAS LTD | I154: Active | J154: NA | K154: C | L154: 2017 | M154: REVIEWED-0001 | N154: 2016-04-01 | O154: 2017-03-31 | P154: 2016-01-01 | Q154: 2016-03-31 | R154: ASSETS | S154: CURRENT ASSETS | T154: 4. SECURITY DEPOSIT ACCOUNT | U154: 8201
A155: 49 | B155: TEXAS | C155: 608 | D155: 61 | E155: 847921178 | F155: 01-6 | G155: SHADY SHORES APTS | H155: HVM LAKE DALLAS LTD | I155: Active | J155: NA | K155: C | L155: 2017 | M155: REVIEWED-0001 | N155: 2016-04-01 | O155: 2017-03-31 | P155: 2016-01-01 | Q155: 2016-03-31 | R155: ASSETS | S155: CURRENT ASSETS | T155: 5. OTHER CASH (identify) | U155: 150 | W155: PETTY CASH
A156: 49 | B156: TEXAS | C156: 608 | D156: 61 | E156: 847921178 | F156: 01-6 | G156: SHADY SHORES APTS | H156: HVM LAKE DALLAS LTD | I156: Active | J156: NA | K156: C | L156: 2017 | M156: REVIEWED-0001 | N156: 2016-04-01 | O156: 2017-03-31 | P156: 2016-01-01 | Q156: 2016-03-31 | R156: ASSETS | S156: CURRENT ASSETS | T156: 6. OTHER (identify) | U156: 0
A157: 49 | B157: TEXAS | C157: 608 | D157: 61 | E157: 847921178 | F157: 01-6 | G157: SHADY SHORES APTS | H157: HVM LAKE DALLAS LTD | I157: Active | J157: NA | K157: C | L157: 2017 | M157: REVIEWED-0001 | N157: 2016-04-01 | O157: 2017-03-31 | P157: 2016-01-01 | Q157: 2016-03-31 | R157: ASSETS | S157: CURRENT ASSETS | T157: 7A. ACCTS RCVBL 0-30 DAYS | U157: 319
A158: 49 | B158: TEXAS | C158: 608 | D158: 61 | E158: 847921178 | F158: 01-6 | G158: SHADY SHORES APTS | H158: HVM LAKE DALLAS LTD | I158: Active | J158: NA | K158: C | L158: 2017 | M158: REVIEWED-0001 | N158: 2016-04-01 | O158: 2017-03-31 | P158: 2016-01-01 | Q158: 2016-03-31 | R158: ASSETS | S158: CURRENT ASSETS | T158: 7B. ACCTS RCVBL 30-60 DAYS | U158: 0
A159: 49 | B159: TEXAS | C159: 608 | D159: 61 | E159: 847921178 | F159: 01-6 | G159: SHADY SHORES APTS | H159: HVM LAKE DALLAS LTD | I159: Active | J159: NA | K159: C | L159: 2017 | M159: REVIEWED-0001 | N159: 2016-04-01 | O159: 2017-03-31 | P159: 2016-01-01 | Q159: 2016-03-31 | R159: ASSETS | S159: CURRENT ASSETS | T159: 7C. ACCTS RCVBL 60-90 DAYS | U159: 0
A160: 49 | B160: TEXAS | C160: 608 | D160: 61 | E160: 847921178 | F160: 01-6 | G160: SHADY SHORES APTS | H160: HVM LAKE DALLAS LTD | I160: Active | J160: NA | K160: C | L160: 2017 | M160: REVIEWED-0001 | N160: 2016-04-01 | O160: 2017-03-31 | P160: 2016-01-01 | Q160: 2016-03-31 | R160: ASSETS | S160: CURRENT ASSETS | T160: 7D. ACCTS RCVBL OVER 90 DAYS | U160: 0
A161: 49 | B161: TEXAS | C161: 608 | D161: 61 | E161: 847921178 | F161: 01-6 | G161: SHADY SHORES APTS | H161: HVM LAKE DALLAS LTD | I161: Active | J161: NA | K161: C | L161: 2017 | M161: REVIEWED-0001 | N161: 2016-04-01 | O161: 2017-03-31 | P161: 2016-01-01 | Q161: 2016-03-31 | R161: ASSETS | S161: CURRENT ASSETS | T161: 7. TTL ACCTS RCVBL (7A - 7D) | U161: 319
A162: 49 | B162: TEXAS | C162: 608 | D162: 61 | E162: 847921178 | F162: 01-6 | G162: SHADY SHORES APTS | H162: HVM LAKE DALLAS LTD | I162: Active | J162: NA | K162: C | L162: 2017 | M162: REVIEWED-0001 | N162: 2016-04-01 | O162: 2017-03-31 | P162: 2016-01-01 | Q162: 2016-03-31 | R162: ASSETS | S162: CURRENT ASSETS | T162: 8. LESS:DOUBTFUL ACCTS ALLWNCE | U162: 0
A163: 49 | B163: TEXAS | C163: 608 | D163: 61 | E163: 847921178 | F163: 01-6 | G163: SHADY SHORES APTS | H163: HVM LAKE DALLAS LTD | I163: Active | J163: NA | K163: C | L163: 2017 | M163: REVIEWED-0001 | N163: 2016-04-01 | O163: 2017-03-31 | P163: 2016-01-01 | Q163: 2016-03-31 | R163: ASSETS | S163: CURRENT ASSETS | T163: 9. INVENTORIES (supplies) | U163: 0
A164: 49 | B164: TEXAS | C164: 608 | D164: 61 | E164: 847921178 | F164: 01-6 | G164: SHADY SHORES APTS | H164: HVM LAKE DALLAS LTD | I164: Active | J164: NA | K164: C | L164: 2017 | M164: REVIEWED-0001 | N164: 2016-04-01 | O164: 2017-03-31 | P164: 2016-01-01 | Q164: 2016-03-31 | R164: ASSETS | S164: CURRENT ASSETS | T164: 10. PREPAYMENTS | U164: 1600 | W164: PREPAID INSURANCE
A165: 49 | B165: TEXAS | C165: 608 | D165: 61 | E165: 847921178 | F165: 01-6 | G165: SHADY SHORES APTS | H165: HVM LAKE DALLAS LTD | I165: Active | J165: NA | K165: C | L165: 2017 | M165: REVIEWED-0001 | N165: 2016-04-01 | O165: 2017-03-31 | P165: 2016-01-01 | Q165: 2016-03-31 | R165: ASSETS | S165: CURRENT ASSETS | T165: 11 | U165: 0
A166: 49 | B166: TEXAS | C166: 608 | D166: 61 | E166: 847921178 | F166: 01-6 | G166: SHADY SHORES APTS | H166: HVM LAKE DALLAS LTD | I166: Active | J166: NA | K166: C | L166: 2017 | M166: REVIEWED-0001 | N166: 2016-04-01 | O166: 2017-03-31 | P166: 2016-01-01 | Q166: 2016-03-31 | R166: ASSETS | S166: CURRENT ASSETS | T166: 12. TTL CUR ASSETS (1 thru 11) | U166: 170568
A167: 49 | B167: TEXAS | C167: 608 | D167: 61 | E167: 847921178 | F167: 01-6 | G167: SHADY SHORES APTS | H167: HVM LAKE DALLAS LTD | I167: Active | J167: NA | K167: C | L167: 2017 | M167: REVIEWED-0001 | N167: 2016-04-01 | O167: 2017-03-31 | P167: 2016-01-01 | Q167: 2016-03-31 | R167: ASSETS | S167: FIXED ASSETS | T167: 13. LAND | U167: 67496
A168: 49 | B168: TEXAS | C168: 608 | D168: 61 | E168: 847921178 | F168: 01-6 | G168: SHADY SHORES APTS | H168: HVM LAKE DALLAS LTD | I168: Active | J168: NA | K168: C | L168: 2017 | M168: REVIEWED-0001 | N168: 2016-04-01 | O168: 2017-03-31 | P168: 2016-01-01 | Q168: 2016-03-31 | R168: ASSETS | S168: FIXED ASSETS | T168: 14. BUILDINGS | U168: 1049313
A169: 49 | B169: TEXAS | C169: 608 | D169: 61 | E169: 847921178 | F169: 01-6 | G169: SHADY SHORES APTS | H169: HVM LAKE DALLAS LTD | I169: Active | J169: NA | K169: C | L169: 2017 | M169: REVIEWED-0001 | N169: 2016-04-01 | O169: 2017-03-31 | P169: 2016-01-01 | Q169: 2016-03-31 | R169: ASSETS | S169: FIXED ASSETS | T169: 15. LESS: ACCUM. DEPRECIATION | U169: -500250
A170: 49 | B170: TEXAS | C170: 608 | D170: 61 | E170: 847921178 | F170: 01-6 | G170: SHADY SHORES APTS | H170: HVM LAKE DALLAS LTD | I170: Active | J170: NA | K170: C | L170: 2017 | M170: REVIEWED-0001 | N170: 2016-04-01 | O170: 2017-03-31 | P170: 2016-01-01 | Q170: 2016-03-31 | R170: ASSETS | S170: FIXED ASSETS | T170: 16. FURNITURE @ EQUIPMENT | U170: 71239
A171: 49 | B171: TEXAS | C171: 608 | D171: 61 | E171: 847921178 | F171: 01-6 | G171: SHADY SHORES APTS | H171: HVM LAKE DALLAS LTD | I171: Active | J171: NA | K171: C | L171: 2017 | M171: REVIEWED-0001 | N171: 2016-04-01 | O171: 2017-03-31 | P171: 2016-01-01 | Q171: 2016-03-31 | R171: ASSETS | S171: FIXED ASSETS | T171: 17. LESS: ACCUM. DEPRECIATION | U171: -68393
A172: 49 | B172: TEXAS | C172: 608 | D172: 61 | E172: 847921178 | F172: 01-6 | G172: SHADY SHORES APTS | H172: HVM LAKE DALLAS LTD | I172: Active | J172: NA | K172: C | L172: 2017 | M172: REVIEWED-0001 | N172: 2016-04-01 | O172: 2017-03-31 | P172: 2016-01-01 | Q172: 2016-03-31 | R172: ASSETS | S172: FIXED ASSETS | T172: 18 | U172: 0
A173: 49 | B173: TEXAS | C173: 608 | D173: 61 | E173: 847921178 | F173: 01-6 | G173: SHADY SHORES APTS | H173: HVM LAKE DALLAS LTD | I173: Active | J173: NA | K173: C | L173: 2017 | M173: REVIEWED-0001 | N173: 2016-04-01 | O173: 2017-03-31 | P173: 2016-01-01 | Q173: 2016-03-31 | R173: ASSETS | S173: FIXED ASSETS | T173: 19. TTL FXD ASSETS(13 thru 18) | U173: 619405
A174: 49 | B174: TEXAS | C174: 608 | D174: 61 | E174: 847921178 | F174: 01-6 | G174: SHADY SHORES APTS | H174: HVM LAKE DALLAS LTD | I174: Active | J174: NA | K174: C | L174: 2017 | M174: REVIEWED-0001 | N174: 2016-04-01 | O174: 2017-03-31 | P174: 2016-01-01 | Q174: 2016-03-31 | R174: ASSETS | S174: OTHER ASSETS | T174: 20 | U174: 18836 | W174: LLC/UTILITY DEPOSITS
A175: 49 | B175: TEXAS | C175: 608 | D175: 61 | E175: 847921178 | F175: 01-6 | G175: SHADY SHORES APTS | H175: HVM LAKE DALLAS LTD | I175: Active | J175: NA | K175: C | L175: 2017 | M175: REVIEWED-0001 | N175: 2016-04-01 | O175: 2017-03-31 | P175: 2016-01-01 | Q175: 2016-03-31 | R175: ASSETS | S175: OTHER ASSETS | T175: 21. TOTAL ASSETS (12+19+20) | U175: 808809
A176: 49 | B176: TEXAS | C176: 608 | D176: 61 | E176: 847921178 | F176: 01-6 | G176: SHADY SHORES APTS | H176: HVM LAKE DALLAS LTD | I176: Active | J176: NA | K176: C | L176: 2017 | M176: REVIEWED-0001 | N176: 2016-04-01 | O176: 2017-03-31 | P176: 2016-01-01 | Q176: 2016-03-31 | R176: ASSETS | S176: CURRENT LIABILITIES | T176: 22A. ACCTS PAYBLE 0-30 DAYS | U176: 11998
A177: 49 | B177: TEXAS | C177: 608 | D177: 61 | E177: 847921178 | F177: 01-6 | G177: SHADY SHORES APTS | H177: HVM LAKE DALLAS LTD | I177: Active | J177: NA | K177: C | L177: 2017 | M177: REVIEWED-0001 | N177: 2016-04-01 | O177: 2017-03-31 | P177: 2016-01-01 | Q177: 2016-03-31 | R177: ASSETS | S177: CURRENT LIABILITIES | T177: 22B. ACCTS PAYBLE 30-60 DAYS | U177: 0
A178: 49 | B178: TEXAS | C178: 608 | D178: 61 | E178: 847921178 | F178: 01-6 | G178: SHADY SHORES APTS | H178: HVM LAKE DALLAS LTD | I178: Active | J178: NA | K178: C | L178: 2017 | M178: REVIEWED-0001 | N178: 2016-04-01 | O178: 2017-03-31 | P178: 2016-01-01 | Q178: 2016-03-31 | R178: ASSETS | S178: CURRENT LIABILITIES | T178: 22C. ACCTS PAYBLE 60-90 DAYS | U178: 0
A179: 49 | B179: TEXAS | C179: 608 | D179: 61 | E179: 847921178 | F179: 01-6 | G179: SHADY SHORES APTS | H179: HVM LAKE DALLAS LTD | I179: Active | J179: NA | K179: C | L179: 2017 | M179: REVIEWED-0001 | N179: 2016-04-01 | O179: 2017-03-31 | P179: 2016-01-01 | Q179: 2016-03-31 | R179: ASSETS | S179: CURRENT LIABILITIES | T179: 22D. ACCTS PAYBLE OVER 90 DAYS | U179: 0
A180: 49 | B180: TEXAS | C180: 608 | D180: 61 | E180: 847921178 | F180: 01-6 | G180: SHADY SHORES APTS | H180: HVM LAKE DALLAS LTD | I180: Active | J180: NA | K180: C | L180: 2017 | M180: REVIEWED-0001 | N180: 2016-04-01 | O180: 2017-03-31 | P180: 2016-01-01 | Q180: 2016-03-31 | R180: ASSETS | S180: CURRENT LIABILITIES | T180: 22. TTL ACCTS PYBL (22A - 22D) | U180: 11998
A181: 49 | B181: TEXAS | C181: 608 | D181: 61 | E181: 847921178 | F181: 01-6 | G181: SHADY SHORES APTS | H181: HVM LAKE DALLAS LTD | I181: Active | J181: NA | K181: C | L181: 2017 | M181: REVIEWED-0001 | N181: 2016-04-01 | O181: 2017-03-31 | P181: 2016-01-01 | Q181: 2016-03-31 | R181: ASSETS | S181: CURRENT LIABILITIES | T181: 23. NOTES PAYABLE | U181: 32199
A182: 49 | B182: TEXAS | C182: 608 | D182: 61 | E182: 847921178 | F182: 01-6 | G182: SHADY SHORES APTS | H182: HVM LAKE DALLAS LTD | I182: Active | J182: NA | K182: C | L182: 2017 | M182: REVIEWED-0001 | N182: 2016-04-01 | O182: 2017-03-31 | P182: 2016-01-01 | Q182: 2016-03-31 | R182: ASSETS | S182: CURRENT LIABILITIES | T182: 24. SECURITY DEPOSITS | U182: 8250
A183: 49 | B183: TEXAS | C183: 608 | D183: 61 | E183: 847921178 | F183: 01-6 | G183: SHADY SHORES APTS | H183: HVM LAKE DALLAS LTD | I183: Active | J183: NA | K183: C | L183: 2017 | M183: REVIEWED-0001 | N183: 2016-04-01 | O183: 2017-03-31 | P183: 2016-01-01 | Q183: 2016-03-31 | R183: ASSETS | S183: CURRENT LIABILITIES | T183: 25. TTL CUR LIABS (22 thru 24) | U183: 52447
A184: 49 | B184: TEXAS | C184: 608 | D184: 61 | E184: 847921178 | F184: 01-6 | G184: SHADY SHORES APTS | H184: HVM LAKE DALLAS LTD | I184: Active | J184: NA | K184: C | L184: 2017 | M184: REVIEWED-0001 | N184: 2016-04-01 | O184: 2017-03-31 | P184: 2016-01-01 | Q184: 2016-03-31 | R184: ASSETS | S184: LONG-TERM LIABILITIES | T184: 26. NOTES PAYABLE RURL DVLPMNT | U184: 677383
A185: 49 | B185: TEXAS | C185: 608 | D185: 61 | E185: 847921178 | F185: 01-6 | G185: SHADY SHORES APTS | H185: HVM LAKE DALLAS LTD | I185: Active | J185: NA | K185: C | L185: 2017 | M185: REVIEWED-0001 | N185: 2016-04-01 | O185: 2017-03-31 | P185: 2016-01-01 | Q185: 2016-03-31 | R185: ASSETS | S185: LONG-TERM LIABILITIES | T185: 27. OTHER (Identify) | U185: 0
A186: 49 | B186: TEXAS | C186: 608 | D186: 61 | E186: 847921178 | F186: 01-6 | G186: SHADY SHORES APTS | H186: HVM LAKE DALLAS LTD | I186: Active | J186: NA | K186: C | L186: 2017 | M186: REVIEWED-0001 | N186: 2016-04-01 | O186: 2017-03-31 | P186: 2016-01-01 | Q186: 2016-03-31 | R186: ASSETS | S186: LONG-TERM LIABILITIES | T186: 28. TTL LNG-TERM LIABS (26+27) | U186: 677383
A187: 49 | B187: TEXAS | C187: 608 | D187: 61 | E187: 847921178 | F187: 01-6 | G187: SHADY SHORES APTS | H187: HVM LAKE DALLAS LTD | I187: Active | J187: NA | K187: C | L187: 2017 | M187: REVIEWED-0001 | N187: 2016-04-01 | O187: 2017-03-31 | P187: 2016-01-01 | Q187: 2016-03-31 | R187: ASSETS | S187: LONG-TERM LIABILITIES | T187: 29. TOTAL LIABILITIES (25+28) | U187: 729830
A188: 49 | B188: TEXAS | C188: 608 | D188: 61 | E188: 847921178 | F188: 01-6 | G188: SHADY SHORES APTS | H188: HVM LAKE DALLAS LTD | I188: Active | J188: NA | K188: C | L188: 2017 | M188: REVIEWED-0001 | N188: 2016-04-01 | O188: 2017-03-31 | P188: 2016-01-01 | Q188: 2016-03-31 | R188: ASSETS | S188: LONG-TERM LIABILITIES | T188: 30. OWNERS EQUITY (21-29) | U188: 78979
A189: 49 | B189: TEXAS | C189: 608 | D189: 61 | E189: 847921178 | F189: 01-6 | G189: SHADY SHORES APTS | H189: HVM LAKE DALLAS LTD | I189: Active | J189: NA | K189: C | L189: 2017 | M189: REVIEWED-0001 | N189: 2016-04-01 | O189: 2017-03-31 | P189: 2016-01-01 | Q189: 2016-03-31 | R189: ASSETS | S189: LONG-TERM LIABILITIES | T189: 31. TTL LIB @ OWN EQTY (29+30) | U189: 808809
A201: St | B201: State Name | C201: Srv Off | D201: Cnty | E201: Borrower ID | F201: Prj Nbr | G201: Prj Name | H201: Assigned To | I201: NITC ID | J201: CNA/Rev | K201: Class | L201: Date of Operation | M201: Fund Code | N201: Labor Hsg Typ | O201: As of Date | P201: Amount Behind | Q201: Required Bal | R201: Actual Bal | S201: Fully Funded Amount | T201: Fully Funded Ind | U201: Captl Need Amt | V201: WOP Ind | W201: Borrower ID | X201: Borrower Name
A202: ="49" -> 49 | B202: TEXAS | C202: ="608" -> 608 | D202: ="61" -> 61 | E202: ="847921178" -> 847921178 | F202: ="01-6" -> 01-6 | G202: SHADY SHORES APTS | H202: SUSAN C STONEHAM | I202: FHU8B | K202: A | L202: 1995-09-20 | N202: NA | O202: 2017-04-30 | Q202: 53402.3 | R202: 102107.58 | S202: 102283 | T202: N | U202: 28382 | V202: IN | W202: 847921178 | X202: HVM LAKE DALLAS LTD

Sheet MFIS ProjectB (hidden)

Sheet MFIS ProjectC (hidden)

Sheet MFIS ProjectD (hidden)

Sheet MFIS ProjectE (hidden)

Sheet MFIS ProjectF (hidden)

Sheet MFIS (hidden)
P1: Item | Q1: Curr FY | R1: Prp Bdgt | S1: FY1 | T1: Prp Bdgt 1 | U1: Actl Bdgt 1 | V1: FY2 | W1: Prp Bdgt 2 | X1: Actl Bdgt 2 | Y1: FY3 | Z1: Prp Bdgt 3 | AA1: Actl Bdgt 3 | AD1: Recent Actual | AE1: =MFIS!Q2 -> 2018 | AF1: =IF('MFIS ProjectA'!U2<1,"Avg Last 2","Avg Last 3") -> Avg Last 3 | AG1: PART II Budget | AH1: PART II Actual | AI1: PART II Recent | BA1: State Code | BB1: State Name | BC1: StateAbr
P2: 1. Rental Income | Q2: ='MFIS ProjectA'!Q2 -> 2018 | R2: =SUM('MFIS ProjectA:MFIS ProjectF'!R2) -> 259884 | S2: ='MFIS ProjectA'!S2 -> 2017 | T2: =SUM('MFIS ProjectA:MFIS ProjectF'!T2) -> 252864 | U2: =SUM('MFIS ProjectA:MFIS ProjectF'!U2) -> 95262 | V2: ='MFIS ProjectA'!V2 -> 2016 | W2: =SUM('MFIS ProjectA:MFIS ProjectF'!W2) -> 251532 | X2: =SUM('MFIS ProjectA:MFIS ProjectF'!X2) -> 95262 | Y2: ='MFIS ProjectA'!Y2 -> 2015 | Z2: =SUM('MFIS ProjectA:MFIS ProjectF'!Z2) -> 247980 | AA2: =SUM('MFIS ProjectA:MFIS ProjectF'!AA2) -> 92003 | AD2: =IF(U2>1,U2,X2) -> 95262 | AE2: =R2 -> 259884 | AF2: =IF(U2<1, AVERAGE(X2,AA2),AVERAGE(U2,X2,AA2)) -> 94175.66667 | AG2: =R35 -> 25552 | AH2: =IF(U35<1,AVERAGE(X35,AA35),AVERAGE(U35,X35,AA35)) -> 19295.66667 | AI2: =IF($U$2>1,U35,X35) -> 18683 | AY2: MFIS A: | AZ2: =IFERROR(VLOOKUP('MFIS ProjectA'!A2,StateCode[],3,FALSE),'MFIS ProjectA'!A2) -> TX | BA2: 1 | BB2: ALABAMA | BC2: AL
P3: 2. RHS Rental Assist. Received | Q3: ='MFIS ProjectA'!Q3 -> 2018 | R3: =SUM('MFIS ProjectA:MFIS ProjectF'!R3) -> 0 | S3: ='MFIS ProjectA'!S3 -> 2017 | T3: =SUM('MFIS ProjectA:MFIS ProjectF'!T3) -> 0 | U3: =SUM('MFIS ProjectA:MFIS ProjectF'!U3) -> 151116 | V3: ='MFIS ProjectA'!V3 -> 2016 | W3: =SUM('MFIS ProjectA:MFIS ProjectF'!W3) -> 0 | X3: =SUM('MFIS ProjectA:MFIS ProjectF'!X3) -> 151116 | Y3: ='MFIS ProjectA'!Y3 -> 2015 | Z3: =SUM('MFIS ProjectA:MFIS ProjectF'!Z3) -> 0 | AA3: =SUM('MFIS ProjectA:MFIS ProjectF'!AA3) -> 146028 | AD3: =IF($U$2>1,U3,X3) -> 151116 | AF3: 149420 | AG3: 12500 | AH3: 14924.66667 | AI3: 14654 | BA3: 2 | BB3: ARIZONA | BC3: AZ
P4: 3. Application Fee Received | Q4: ='MFIS ProjectA'!Q4 -> 2018 | R4: =SUM('MFIS ProjectA:MFIS ProjectF'!R4) -> 0 | S4: ='MFIS ProjectA'!S4 -> 2017 | T4: =SUM('MFIS ProjectA:MFIS ProjectF'!T4) -> 0 | U4: =SUM('MFIS ProjectA:MFIS ProjectF'!U4) -> 550 | V4: ='MFIS ProjectA'!V4 -> 2016 | W4: =SUM('MFIS ProjectA:MFIS ProjectF'!W4) -> 0 | X4: =SUM('MFIS ProjectA:MFIS ProjectF'!X4) -> 550 | Y4: ='MFIS ProjectA'!Y4 -> 2015 | Z4: =SUM('MFIS ProjectA:MFIS ProjectF'!Z4) -> 0 | AA4: =SUM('MFIS ProjectA:MFIS ProjectF'!AA4) -> 0 | AD4: 550 | AE4: =R4 -> 0 | AF4: 366.6666667 | AG4: 6500 | AH4: 9781.666667 | AI4: 8323 | BA4: 3 | BB4: ARKANSAS | BC4: AR
P5: 4. Laundry And Vending | Q5: ='MFIS ProjectA'!Q5 -> 2018 | R5: =SUM('MFIS ProjectA:MFIS ProjectF'!R5) -> 1500 | S5: ='MFIS ProjectA'!S5 -> 2017 | T5: =SUM('MFIS ProjectA:MFIS ProjectF'!T5) -> 2000 | U5: =SUM('MFIS ProjectA:MFIS ProjectF'!U5) -> 1492 | V5: ='MFIS ProjectA'!V5 -> 2016 | W5: =SUM('MFIS ProjectA:MFIS ProjectF'!W5) -> 2000 | X5: =SUM('MFIS ProjectA:MFIS ProjectF'!X5) -> 1492 | Y5: ='MFIS ProjectA'!Y5 -> 2015 | Z5: =SUM('MFIS ProjectA:MFIS ProjectF'!Z5) -> 3000 | AA5: =SUM('MFIS ProjectA:MFIS ProjectF'!AA5) -> 1839 | AD5: 1492 | AE5: 1500 | AF5: 1607.666667 | AG5: 1000 | AH5: 3346.666667 | AI5: 3566 | BA5: 4 | BB5: CALIFORNIA | BC5: CA
P6: 5. Interest Income | Q6: ='MFIS ProjectA'!Q6 -> 2018 | R6: =SUM('MFIS ProjectA:MFIS ProjectF'!R6) -> 250 | S6: ='MFIS ProjectA'!S6 -> 2017 | T6: =SUM('MFIS ProjectA:MFIS ProjectF'!T6) -> 250 | U6: =SUM('MFIS ProjectA:MFIS ProjectF'!U6) -> 438 | V6: ='MFIS ProjectA'!V6 -> 2016 | W6: =SUM('MFIS ProjectA:MFIS ProjectF'!W6) -> 250 | X6: =SUM('MFIS ProjectA:MFIS ProjectF'!X6) -> 438 | Y6: ='MFIS ProjectA'!Y6 -> 2015 | Z6: =SUM('MFIS ProjectA:MFIS ProjectF'!Z6) -> 250 | AA6: =SUM('MFIS ProjectA:MFIS ProjectF'!AA6) -> 403 | AD6: 438 | AE6: 250 | AF6: 426.3333333 | AG6: 0 | AH6: 0 | AI6: 0 | BA6: 5 | BB6: COLORADO | BC6: CO
P7: 6. Tenant Charges | Q7: ='MFIS ProjectA'!Q7 -> 2018 | R7: =SUM('MFIS ProjectA:MFIS ProjectF'!R7) -> 1500 | S7: ='MFIS ProjectA'!S7 -> 2017 | T7: =SUM('MFIS ProjectA:MFIS ProjectF'!T7) -> 1500 | U7: =SUM('MFIS ProjectA:MFIS ProjectF'!U7) -> 1728 | V7: ='MFIS ProjectA'!V7 -> 2016 | W7: =SUM('MFIS ProjectA:MFIS ProjectF'!W7) -> 1500 | X7: =SUM('MFIS ProjectA:MFIS ProjectF'!X7) -> 1728 | Y7: ='MFIS ProjectA'!Y7 -> 2015 | Z7: =SUM('MFIS ProjectA:MFIS ProjectF'!Z7) -> 800 | AA7: =SUM('MFIS ProjectA:MFIS ProjectF'!AA7) -> 2393 | AD7: 1728 | AE7: 1500 | AF7: 1949.666667 | AG7: 0 | AH7: 0 | AI7: 0 | BA7: 6 | BB7: CONNECTICUT | BC7: CT
P8: 7. Other - Project Sources | Q8: ='MFIS ProjectA'!Q8 -> 2018 | R8: =SUM('MFIS ProjectA:MFIS ProjectF'!R8) -> 0 | S8: ='MFIS ProjectA'!S8 -> 2017 | T8: =SUM('MFIS ProjectA:MFIS ProjectF'!T8) -> 0 | U8: =SUM('MFIS ProjectA:MFIS ProjectF'!U8) -> 0 | V8: ='MFIS ProjectA'!V8 -> 2016 | W8: =SUM('MFIS ProjectA:MFIS ProjectF'!W8) -> 0 | X8: =SUM('MFIS ProjectA:MFIS ProjectF'!X8) -> 0 | Y8: ='MFIS ProjectA'!Y8 -> 2015 | Z8: =SUM('MFIS ProjectA:MFIS ProjectF'!Z8) -> 0 | AA8: =SUM('MFIS ProjectA:MFIS ProjectF'!AA8) -> 30 | AD8: 0 | AE8: 0 | AF8: 15 | AG8: 7500 | AH8: 6801.666667 | AI8: 7431 | BA8: 7 | BB8: DELAWARE | BC8: DE
P9: 8. Less (Vcncy @ Cntgncy Allw) | Q9: ='MFIS ProjectA'!Q9 -> 2018 | R9: =SUM('MFIS ProjectA:MFIS ProjectF'!R9) -> -6288 | S9: ='MFIS ProjectA'!S9 -> 2017 | T9: =SUM('MFIS ProjectA:MFIS ProjectF'!T9) -> -5031 | U9: =SUM('MFIS ProjectA:MFIS ProjectF'!U9) -> 0 | V9: ='MFIS ProjectA'!V9 -> 2016 | W9: =SUM('MFIS ProjectA:MFIS ProjectF'!W9) -> -5031 | X9: =SUM('MFIS ProjectA:MFIS ProjectF'!X9) -> 0 | Y9: ='MFIS ProjectA'!Y9 -> 2015 | Z9: =SUM('MFIS ProjectA:MFIS ProjectF'!Z9) -> -6200 | AA9: =SUM('MFIS ProjectA:MFIS ProjectF'!AA9) -> 0 | AE9: -6288 | AG9: 0 | AH9: 0 | AI9: 0 | BA9: 09 | BB9: FLORIDA | BC9: FL
P10: 9. Less (Agncy Aprvd Incentv) | Q10: ='MFIS ProjectA'!Q10 -> 2018 | R10: =SUM('MFIS ProjectA:MFIS ProjectF'!R10) -> 0 | S10: ='MFIS ProjectA'!S10 -> 2017 | T10: =SUM('MFIS ProjectA:MFIS ProjectF'!T10) -> 0 | U10: =SUM('MFIS ProjectA:MFIS ProjectF'!U10) -> 0 | V10: ='MFIS ProjectA'!V10 -> 2016 | W10: =SUM('MFIS ProjectA:MFIS ProjectF'!W10) -> 0 | X10: =SUM('MFIS ProjectA:MFIS ProjectF'!X10) -> 0 | Y10: ='MFIS ProjectA'!Y10 -> 2015 | Z10: =SUM('MFIS ProjectA:MFIS ProjectF'!Z10) -> 0 | AA10: =SUM('MFIS ProjectA:MFIS ProjectF'!AA10) -> 0 | AE10: 0 | AG10: 3782 | AH10: 7833 | AI10: 10157 | BA10: 10 | BB10: GEORGIA | BC10: GA
P11: 10. Sub-Ttl [(1 thru 7)-(8@9)] | Q11: ='MFIS ProjectA'!Q11 -> 2018 | R11: =SUM('MFIS ProjectA:MFIS ProjectF'!R11) -> 256846 | S11: ='MFIS ProjectA'!S11 -> 2017 | T11: =SUM('MFIS ProjectA:MFIS ProjectF'!T11) -> 251583 | U11: =SUM('MFIS ProjectA:MFIS ProjectF'!U11) -> 250586 | V11: ='MFIS ProjectA'!V11 -> 2016 | W11: =SUM('MFIS ProjectA:MFIS ProjectF'!W11) -> 250251 | X11: =SUM('MFIS ProjectA:MFIS ProjectF'!X11) -> 250586 | Y11: ='MFIS ProjectA'!Y11 -> 2015 | Z11: =SUM('MFIS ProjectA:MFIS ProjectF'!Z11) -> 245830 | AA11: =SUM('MFIS ProjectA:MFIS ProjectF'!AA11) -> 242696 | AD11: =SUM(AD2:AD10) -> 250586 | AE11: =SUM(AE2:AE10) -> 256846 | AF11: =SUM(AF2:AF10) -> 247961 | AG11: 0 | AH11: 0 | AI11: 0 | BA11: 11 | BB11: GEORGIA | BC11: GA
P12: 11. Cash - Non Project | Q12: ='MFIS ProjectA'!Q12 -> 2018 | R12: =SUM('MFIS ProjectA:MFIS ProjectF'!R12) -> 0 | S12: ='MFIS ProjectA'!S12 -> 2017 | T12: =SUM('MFIS ProjectA:MFIS ProjectF'!T12) -> 0 | U12: =SUM('MFIS ProjectA:MFIS ProjectF'!U12) -> 0 | V12: ='MFIS ProjectA'!V12 -> 2016 | W12: =SUM('MFIS ProjectA:MFIS ProjectF'!W12) -> 0 | X12: =SUM('MFIS ProjectA:MFIS ProjectF'!X12) -> 0 | Y12: ='MFIS ProjectA'!Y12 -> 2015 | Z12: =SUM('MFIS ProjectA:MFIS ProjectF'!Z12) -> 0 | AA12: =SUM('MFIS ProjectA:MFIS ProjectF'!AA12) -> 0 | AG12: =SUM(AG2:AG11) -> 56834 | AH12: =SUM(AH2:AH11) -> 61983.33333 | AI12: =SUM(AI2:AI11) -> 62814 | BA12: 12 | BB12: IDAHO | BC12: ID
P13: 12. Authorized Loan (Non-RHS) | Q13: ='MFIS ProjectA'!Q13 -> 2018 | R13: =SUM('MFIS ProjectA:MFIS ProjectF'!R13) -> 0 | S13: ='MFIS ProjectA'!S13 -> 2017 | T13: =SUM('MFIS ProjectA:MFIS ProjectF'!T13) -> 0 | U13: =SUM('MFIS ProjectA:MFIS ProjectF'!U13) -> 0 | V13: ='MFIS ProjectA'!V13 -> 2016 | W13: =SUM('MFIS ProjectA:MFIS ProjectF'!W13) -> 0 | X13: =SUM('MFIS ProjectA:MFIS ProjectF'!X13) -> 0 | Y13: ='MFIS ProjectA'!Y13 -> 2015 | Z13: =SUM('MFIS ProjectA:MFIS ProjectF'!Z13) -> 0 | AA13: =SUM('MFIS ProjectA:MFIS ProjectF'!AA13) -> 0 | AD13: =IF($U$2>1,U12,X12) -> 0 | AE13: =R12 -> 0 | AF13: =IF(U12<1, AVERAGE(X12,AA12),AVERAGE(U12,X12,AA12)) -> 0 | BA13: 13 | BB13: ILLINOIS | BC13: IL
P14: 13. Transfer From Reserve | Q14: ='MFIS ProjectA'!Q14 -> 2018 | R14: =SUM('MFIS ProjectA:MFIS ProjectF'!R14) -> 28382 | S14: ='MFIS ProjectA'!S14 -> 2017 | T14: =SUM('MFIS ProjectA:MFIS ProjectF'!T14) -> 25378 | U14: =SUM('MFIS ProjectA:MFIS ProjectF'!U14) -> 6379 | V14: ='MFIS ProjectA'!V14 -> 2016 | W14: =SUM('MFIS ProjectA:MFIS ProjectF'!W14) -> 25378 | X14: =SUM('MFIS ProjectA:MFIS ProjectF'!X14) -> 6379 | Y14: ='MFIS ProjectA'!Y14 -> 2015 | Z14: =SUM('MFIS ProjectA:MFIS ProjectF'!Z14) -> 20470 | AA14: =SUM('MFIS ProjectA:MFIS ProjectF'!AA14) -> 9511 | AD14: =IF($U$2>1,U13,X13) -> 0 | AE14: =R13 -> 0 | AF14: =IF(U13<1, AVERAGE(X13,AA13),AVERAGE(U13,X13,AA13)) -> 0 | AG14: =R46 -> 5700 | AH14: =IF(U46<1,AVERAGE(X46,AA46),AVERAGE(U46,X46,AA46)) -> 5162.333333 | AI14: =IF($U$2>1,U46,X46) -> 4915 | BA14: 14 | BB14: ILLINOIS | BC14: IL
P15: 14. Sub-Total (11 thru 13) | Q15: ='MFIS ProjectA'!Q15 -> 2018 | R15: =SUM('MFIS ProjectA:MFIS ProjectF'!R15) -> 28382 | S15: ='MFIS ProjectA'!S15 -> 2017 | T15: =SUM('MFIS ProjectA:MFIS ProjectF'!T15) -> 25378 | U15: =SUM('MFIS ProjectA:MFIS ProjectF'!U15) -> 6379 | V15: ='MFIS ProjectA'!V15 -> 2016 | W15: =SUM('MFIS ProjectA:MFIS ProjectF'!W15) -> 25378 | X15: =SUM('MFIS ProjectA:MFIS ProjectF'!X15) -> 6379 | Y15: ='MFIS ProjectA'!Y15 -> 2015 | Z15: =SUM('MFIS ProjectA:MFIS ProjectF'!Z15) -> 20470 | AA15: =SUM('MFIS ProjectA:MFIS ProjectF'!AA15) -> 9511 | AD15: =IF($U$2>1,U14,X14) -> 6379 | AE15: =R14 -> 28382 | AF15: =IF(U14<1, AVERAGE(X14,AA14),AVERAGE(U14,X14,AA14)) -> 7423 | AG15: 21000 | AH15: 19213.66667 | AI15: 19685 | BA15: 15 | BB15: INDIANA | BC15: IN
P16: 15. Total Cash Sources (10+14) | Q16: ='MFIS ProjectA'!Q16 -> 2018 | R16: =SUM('MFIS ProjectA:MFIS ProjectF'!R16) -> 285228 | S16: ='MFIS ProjectA'!S16 -> 2017 | T16: =SUM('MFIS ProjectA:MFIS ProjectF'!T16) -> 276961 | U16: =SUM('MFIS ProjectA:MFIS ProjectF'!U16) -> 256965 | V16: ='MFIS ProjectA'!V16 -> 2016 | W16: =SUM('MFIS ProjectA:MFIS ProjectF'!W16) -> 275629 | X16: =SUM('MFIS ProjectA:MFIS ProjectF'!X16) -> 256965 | Y16: ='MFIS ProjectA'!Y16 -> 2015 | Z16: =SUM('MFIS ProjectA:MFIS ProjectF'!Z16) -> 266300 | AA16: =SUM('MFIS ProjectA:MFIS ProjectF'!AA16) -> 252207 | AD16: =SUM(AD13:AD15) -> 6379 | AE16: =SUM(AE13:AE15) -> 28382 | AF16: =SUM(AF13:AF15) -> 7423 | AG16: 9400 | AH16: 9037.333333 | AI16: 9517 | BA16: 16 | BB16: IOWA | BC16: IA
P17: 16. Ttl O@M Exp (From Part II) | Q17: ='MFIS ProjectA'!Q17 -> 2018 | R17: =SUM('MFIS ProjectA:MFIS ProjectF'!R17) -> 204724 | S17: ='MFIS ProjectA'!S17 -> 2017 | T17: =SUM('MFIS ProjectA:MFIS ProjectF'!T17) -> 198512 | U17: =SUM('MFIS ProjectA:MFIS ProjectF'!U17) -> 201072 | V17: ='MFIS ProjectA'!V17 -> 2016 | W17: =SUM('MFIS ProjectA:MFIS ProjectF'!W17) -> 198512 | X17: =SUM('MFIS ProjectA:MFIS ProjectF'!X17) -> 201072 | Y17: ='MFIS ProjectA'!Y17 -> 2015 | Z17: =SUM('MFIS ProjectA:MFIS ProjectF'!Z17) -> 192702 | AA17: =SUM('MFIS ProjectA:MFIS ProjectF'!AA17) -> 198929 | AG17: 6200 | AH17: 5249 | AI17: 5375 | BA17: 18 | BB17: KANSAS | BC17: KS
P18: 17. RHS Debt Payment | Q18: ='MFIS ProjectA'!Q18 -> 2018 | R18: =SUM('MFIS ProjectA:MFIS ProjectF'!R18) -> 36575 | S18: ='MFIS ProjectA'!S18 -> 2017 | T18: =SUM('MFIS ProjectA:MFIS ProjectF'!T18) -> 36575 | U18: =SUM('MFIS ProjectA:MFIS ProjectF'!U18) -> 36576 | V18: ='MFIS ProjectA'!V18 -> 2016 | W18: =SUM('MFIS ProjectA:MFIS ProjectF'!W18) -> 36575 | X18: =SUM('MFIS ProjectA:MFIS ProjectF'!X18) -> 36576 | Y18: ='MFIS ProjectA'!Y18 -> 2015 | Z18: =SUM('MFIS ProjectA:MFIS ProjectF'!Z18) -> 36575 | AA18: =SUM('MFIS ProjectA:MFIS ProjectF'!AA18) -> 36575 | AD18: =AD11+AD16 -> 256965 | AE18: =AE11+AE16 -> 285228 | AF18: =AF11+AF16 -> 255384 | AG18: 8900 | AH18: 8434.666667 | AI18: 8264 | BA18: 19 | BB18: KANSAS | BC18: KS
P19: 18. RHS Payment (Overage) | Q19: ='MFIS ProjectA'!Q19 -> 2018 | R19: =SUM('MFIS ProjectA:MFIS ProjectF'!R19) -> 0 | S19: ='MFIS ProjectA'!S19 -> 2017 | T19: =SUM('MFIS ProjectA:MFIS ProjectF'!T19) -> 0 | U19: =SUM('MFIS ProjectA:MFIS ProjectF'!U19) -> 3164 | V19: ='MFIS ProjectA'!V19 -> 2016 | W19: =SUM('MFIS ProjectA:MFIS ProjectF'!W19) -> 0 | X19: =SUM('MFIS ProjectA:MFIS ProjectF'!X19) -> 3164 | Y19: ='MFIS ProjectA'!Y19 -> 2015 | Z19: =SUM('MFIS ProjectA:MFIS ProjectF'!Z19) -> 0 | AA19: =SUM('MFIS ProjectA:MFIS ProjectF'!AA19) -> 555 | AG19: 0 | AH19: 0 | AI19: 0 | BA19: 20 | BB19: KENTUCKY | BC19: KY
P20: 19. RHS Payment (Late Fee) | Q20: ='MFIS ProjectA'!Q20 -> 2018 | R20: =SUM('MFIS ProjectA:MFIS ProjectF'!R20) -> 0 | S20: ='MFIS ProjectA'!S20 -> 2017 | T20: =SUM('MFIS ProjectA:MFIS ProjectF'!T20) -> 0 | U20: =SUM('MFIS ProjectA:MFIS ProjectF'!U20) -> 0 | V20: ='MFIS ProjectA'!V20 -> 2016 | W20: =SUM('MFIS ProjectA:MFIS ProjectF'!W20) -> 0 | X20: =SUM('MFIS ProjectA:MFIS ProjectF'!X20) -> 0 | Y20: ='MFIS ProjectA'!Y20 -> 2015 | Z20: =SUM('MFIS ProjectA:MFIS ProjectF'!Z20) -> 0 | AA20: =SUM('MFIS ProjectA:MFIS ProjectF'!AA20) -> 0 | AD20: =IF($U$2>1,U17,X17) -> 201072 | AE20: =R17 -> 204724 | AF20: =IF(U17<1, AVERAGE(X17,AA17),AVERAGE(U17,X17,AA17)) -> 200357.6667 | AG20: =SUM(AG14:AG19) -> 51200 | AH20: =SUM(AH14:AH19) -> 47097 | AI20: =SUM(AI14:AI19) -> 47756 | BA20: 21 | BB20: KENTUCKY | BC20: KY
P21: 20. Reductn In Prior Yr Pybles | Q21: ='MFIS ProjectA'!Q21 -> 2018 | R21: =SUM('MFIS ProjectA:MFIS ProjectF'!R21) -> 0 | S21: ='MFIS ProjectA'!S21 -> 2017 | T21: =SUM('MFIS ProjectA:MFIS ProjectF'!T21) -> 0 | U21: =SUM('MFIS ProjectA:MFIS ProjectF'!U21) -> 0 | V21: ='MFIS ProjectA'!V21 -> 2016 | W21: =SUM('MFIS ProjectA:MFIS ProjectF'!W21) -> 0 | X21: =SUM('MFIS ProjectA:MFIS ProjectF'!X21) -> 0 | Y21: ='MFIS ProjectA'!Y21 -> 2015 | Z21: =SUM('MFIS ProjectA:MFIS ProjectF'!Z21) -> 0 | AA21: =SUM('MFIS ProjectA:MFIS ProjectF'!AA21) -> 0 | AD21: 36576 | AE21: =R18 -> 36575 | AF21: 36575.66667 | BA21: 22 | BB21: LOUISIANA | BC21: LA
P22: 21. Tenant Utility Payments | Q22: ='MFIS ProjectA'!Q22 -> 2018 | R22: =SUM('MFIS ProjectA:MFIS ProjectF'!R22) -> 0 | S22: ='MFIS ProjectA'!S22 -> 2017 | T22: =SUM('MFIS ProjectA:MFIS ProjectF'!T22) -> 0 | U22: =SUM('MFIS ProjectA:MFIS ProjectF'!U22) -> 1159 | V22: ='MFIS ProjectA'!V22 -> 2016 | W22: =SUM('MFIS ProjectA:MFIS ProjectF'!W22) -> 0 | X22: =SUM('MFIS ProjectA:MFIS ProjectF'!X22) -> 1159 | Y22: ='MFIS ProjectA'!Y22 -> 2015 | Z22: =SUM('MFIS ProjectA:MFIS ProjectF'!Z22) -> 0 | AA22: =SUM('MFIS ProjectA:MFIS ProjectF'!AA22) -> 60 | AD22: 3164 | AF22: 2294.333333 | AG22: =R53 -> 20200 | AH22: =IF(U53<1,AVERAGE(X53,AA53),AVERAGE(U53,X53,AA53)) -> 19624.33333 | AI22: =IF($U$2>2,U53,X53) -> 19539 | BA22: 23 | BB22: MAINE | BC22: ME
P23: 22. Transfer to Reserve | Q23: ='MFIS ProjectA'!Q23 -> 2018 | R23: =SUM('MFIS ProjectA:MFIS ProjectF'!R23) -> 10228 | S23: ='MFIS ProjectA'!S23 -> 2017 | T23: =SUM('MFIS ProjectA:MFIS ProjectF'!T23) -> 10228 | U23: =SUM('MFIS ProjectA:MFIS ProjectF'!U23) -> 10232 | V23: ='MFIS ProjectA'!V23 -> 2016 | W23: =SUM('MFIS ProjectA:MFIS ProjectF'!W23) -> 10228 | X23: =SUM('MFIS ProjectA:MFIS ProjectF'!X23) -> 10232 | Y23: ='MFIS ProjectA'!Y23 -> 2015 | Z23: =SUM('MFIS ProjectA:MFIS ProjectF'!Z23) -> 10228 | AA23: =SUM('MFIS ProjectA:MFIS ProjectF'!AA23) -> 10451 | AD23: 0 | AF23: 0 | AG23: 28080 | AH23: 26237.66667 | AI23: 26560 | BA23: 24 | BB23: MARYLAND | BC23: MD
P24: 23. RTN Owner/NP Asset Mgt Fee | Q24: ='MFIS ProjectA'!Q24 -> 2018 | R24: =SUM('MFIS ProjectA:MFIS ProjectF'!R24) -> 4312 | S24: ='MFIS ProjectA'!S24 -> 2017 | T24: =SUM('MFIS ProjectA:MFIS ProjectF'!T24) -> 4312 | U24: =SUM('MFIS ProjectA:MFIS ProjectF'!U24) -> 0 | V24: ='MFIS ProjectA'!V24 -> 2016 | W24: =SUM('MFIS ProjectA:MFIS ProjectF'!W24) -> 4312 | X24: =SUM('MFIS ProjectA:MFIS ProjectF'!X24) -> 0 | Y24: ='MFIS ProjectA'!Y24 -> 2015 | Z24: =SUM('MFIS ProjectA:MFIS ProjectF'!Z24) -> 4312 | AA24: =SUM('MFIS ProjectA:MFIS ProjectF'!AA24) -> 0 | AD24: 0 | AF24: 0 | AG24: 5200 | AH24: 2566.666667 | AI24: 1750 | BA24: 25 | BB24: MASSACHUSETTS | BC24: MA
P25: 24. Sub-Total (16 thru 23) | Q25: ='MFIS ProjectA'!Q25 -> 2018 | R25: =SUM('MFIS ProjectA:MFIS ProjectF'!R25) -> 255839 | S25: ='MFIS ProjectA'!S25 -> 2017 | T25: =SUM('MFIS ProjectA:MFIS ProjectF'!T25) -> 249627 | U25: =SUM('MFIS ProjectA:MFIS ProjectF'!U25) -> 252203 | V25: ='MFIS ProjectA'!V25 -> 2016 | W25: =SUM('MFIS ProjectA:MFIS ProjectF'!W25) -> 249627 | X25: =SUM('MFIS ProjectA:MFIS ProjectF'!X25) -> 252203 | Y25: ='MFIS ProjectA'!Y25 -> 2015 | Z25: =SUM('MFIS ProjectA:MFIS ProjectF'!Z25) -> 243817 | AA25: =SUM('MFIS ProjectA:MFIS ProjectF'!AA25) -> 246570 | AD25: 1159 | AF25: 792.6666667 | AG25: 0 | AH25: 0 | AI25: 0 | BA25: 26 | BB25: MICHIGAN | BC25: MI
P26: 25. Authzd Debt Pymnt (NonRHS) | Q26: ='MFIS ProjectA'!Q26 -> 2018 | R26: =SUM('MFIS ProjectA:MFIS ProjectF'!R26) -> 0 | S26: ='MFIS ProjectA'!S26 -> 2017 | T26: =SUM('MFIS ProjectA:MFIS ProjectF'!T26) -> 0 | U26: =SUM('MFIS ProjectA:MFIS ProjectF'!U26) -> 0 | V26: ='MFIS ProjectA'!V26 -> 2016 | W26: =SUM('MFIS ProjectA:MFIS ProjectF'!W26) -> 0 | X26: =SUM('MFIS ProjectA:MFIS ProjectF'!X26) -> 0 | Y26: ='MFIS ProjectA'!Y26 -> 2015 | Z26: =SUM('MFIS ProjectA:MFIS ProjectF'!Z26) -> 0 | AA26: =SUM('MFIS ProjectA:MFIS ProjectF'!AA26) -> 0 | AD26: 10232 | AE26: =R23 -> 10228 | AF26: 10305 | AG26: 1000 | AH26: 2213 | AI26: 2061 | BA26: 27 | BB26: MINNESOTA | BC26: MN
P27: 26. Capital Budget (III 4-6) | Q27: ='MFIS ProjectA'!Q27 -> 2018 | R27: =SUM('MFIS ProjectA:MFIS ProjectF'!R27) -> 28382 | S27: ='MFIS ProjectA'!S27 -> 2017 | T27: =SUM('MFIS ProjectA:MFIS ProjectF'!T27) -> 25378 | U27: =SUM('MFIS ProjectA:MFIS ProjectF'!U27) -> 6379 | V27: ='MFIS ProjectA'!V27 -> 2016 | W27: =SUM('MFIS ProjectA:MFIS ProjectF'!W27) -> 25378 | X27: =SUM('MFIS ProjectA:MFIS ProjectF'!X27) -> 6379 | Y27: ='MFIS ProjectA'!Y27 -> 2015 | Z27: =SUM('MFIS ProjectA:MFIS ProjectF'!Z27) -> 20470 | AA27: =SUM('MFIS ProjectA:MFIS ProjectF'!AA27) -> 9511 | AD27: 0 | AE27: =R24 -> 4312 | AF27: 0 | AG27: 600 | AH27: 341.6666667 | AI27: 400 | BA27: 28 | BB27: MISSISSIPPI | BC27: MS
P28: 27. Miscellaneous | Q28: ='MFIS ProjectA'!Q28 -> 2018 | R28: =SUM('MFIS ProjectA:MFIS ProjectF'!R28) -> 0 | S28: ='MFIS ProjectA'!S28 -> 2017 | T28: =SUM('MFIS ProjectA:MFIS ProjectF'!T28) -> 0 | U28: =SUM('MFIS ProjectA:MFIS ProjectF'!U28) -> 0 | V28: ='MFIS ProjectA'!V28 -> 2016 | W28: =SUM('MFIS ProjectA:MFIS ProjectF'!W28) -> 0 | X28: =SUM('MFIS ProjectA:MFIS ProjectF'!X28) -> 0 | Y28: ='MFIS ProjectA'!Y28 -> 2015 | Z28: =SUM('MFIS ProjectA:MFIS ProjectF'!Z28) -> 0 | AA28: =SUM('MFIS ProjectA:MFIS ProjectF'!AA28) -> 0 | AD28: =SUM(AD20:AD27) -> 252203 | AE28: =SUM(AE20:AE27) -> 255839 | AF28: =SUM(AF20:AF27) -> 250325.3333 | AG28: 1820 | AH28: 1750 | AI28: 1824 | BA28: 29 | BB28: MISSOURI | BC28: MO
P29: 28. Sub-Total (25 thru 27) | Q29: ='MFIS ProjectA'!Q29 -> 2018 | R29: =SUM('MFIS ProjectA:MFIS ProjectF'!R29) -> 28382 | S29: ='MFIS ProjectA'!S29 -> 2017 | T29: =SUM('MFIS ProjectA:MFIS ProjectF'!T29) -> 25378 | U29: =SUM('MFIS ProjectA:MFIS ProjectF'!U29) -> 6379 | V29: ='MFIS ProjectA'!V29 -> 2016 | W29: =SUM('MFIS ProjectA:MFIS ProjectF'!W29) -> 25378 | X29: =SUM('MFIS ProjectA:MFIS ProjectF'!X29) -> 6379 | Y29: ='MFIS ProjectA'!Y29 -> 2015 | Z29: =SUM('MFIS ProjectA:MFIS ProjectF'!Z29) -> 20470 | AA29: =SUM('MFIS ProjectA:MFIS ProjectF'!AA29) -> 9511 | AG29: 1800 | AH29: 2890 | AI29: 2703 | BA29: 30 | BB29: MISSOURI | BC29: MO
P30: 29. Total Cash Uses (24+28) | Q30: ='MFIS ProjectA'!Q30 -> 2018 | R30: =SUM('MFIS ProjectA:MFIS ProjectF'!R30) -> 284221 | S30: ='MFIS ProjectA'!S30 -> 2017 | T30: =SUM('MFIS ProjectA:MFIS ProjectF'!T30) -> 275005 | U30: =SUM('MFIS ProjectA:MFIS ProjectF'!U30) -> 258582 | V30: ='MFIS ProjectA'!V30 -> 2016 | W30: =SUM('MFIS ProjectA:MFIS ProjectF'!W30) -> 275005 | X30: =SUM('MFIS ProjectA:MFIS ProjectF'!X30) -> 258582 | Y30: ='MFIS ProjectA'!Y30 -> 2015 | Z30: =SUM('MFIS ProjectA:MFIS ProjectF'!Z30) -> 264287 | AA30: =SUM('MFIS ProjectA:MFIS ProjectF'!AA30) -> 256081 | AD30: =IF($U$2>1,U26,X26) -> 0 | AE30: =R26 -> 0 | AF30: =IF(U26<1, AVERAGE(X26,AA26),AVERAGE(U26,X26,AA26)) -> 0 | AG30: 0 | AH30: 0 | AI30: 0 | BA30: 31 | BB30: MONTANA | BC30: MT
P31: 30. Net (Deficit) (15-29) | Q31: ='MFIS ProjectA'!Q31 -> 2018 | R31: =SUM('MFIS ProjectA:MFIS ProjectF'!R31) -> 1007 | S31: ='MFIS ProjectA'!S31 -> 2017 | T31: =SUM('MFIS ProjectA:MFIS ProjectF'!T31) -> 1956 | U31: =SUM('MFIS ProjectA:MFIS ProjectF'!U31) -> -1617 | V31: ='MFIS ProjectA'!V31 -> 2016 | W31: =SUM('MFIS ProjectA:MFIS ProjectF'!W31) -> 624 | X31: =SUM('MFIS ProjectA:MFIS ProjectF'!X31) -> -1617 | Y31: ='MFIS ProjectA'!Y31 -> 2015 | Z31: =SUM('MFIS ProjectA:MFIS ProjectF'!Z31) -> 2013 | AA31: =SUM('MFIS ProjectA:MFIS ProjectF'!AA31) -> -3874 | AD31: =IF($U$2>1,U27,X27) -> 6379 | AE31: =R27 -> 28382 | AF31: =IF(U27<1, AVERAGE(X27,AA27),AVERAGE(U27,X27,AA27)) -> 7423 | AG31: 1000 | AH31: 1184 | AI31: 1098 | BA31: 32 | BB31: NEBRASKA | BC31: NE
P32: 31. Beginning Cash Balance | Q32: ='MFIS ProjectA'!Q32 -> 2018 | R32: =SUM('MFIS ProjectA:MFIS ProjectF'!R32) -> 59852 | S32: ='MFIS ProjectA'!S32 -> 2017 | T32: =SUM('MFIS ProjectA:MFIS ProjectF'!T32) -> 48912 | U32: =SUM('MFIS ProjectA:MFIS ProjectF'!U32) -> 59852 | V32: ='MFIS ProjectA'!V32 -> 2016 | W32: =SUM('MFIS ProjectA:MFIS ProjectF'!W32) -> 48912 | X32: =SUM('MFIS ProjectA:MFIS ProjectF'!X32) -> 59852 | Y32: ='MFIS ProjectA'!Y32 -> 2015 | Z32: =SUM('MFIS ProjectA:MFIS ProjectF'!Z32) -> 59296 | AA32: =SUM('MFIS ProjectA:MFIS ProjectF'!AA32) -> 48912 | AD32: =IF($U$2>1,U28,X28) -> 0 | AE32: =R28 -> 0 | AF32: =IF(U28<1, AVERAGE(X28,AA28),AVERAGE(U28,X28,AA28)) -> 0 | AG32: 5250 | AH32: 3657.333333 | AI32: 3986 | BA32: 33 | BB32: NEVADA | BC32: NV
P33: 32. Accrual To Cash Adjustment | Q33: ='MFIS ProjectA'!Q33 -> 2018 | R33: =SUM('MFIS ProjectA:MFIS ProjectF'!R33) -> 0 | S33: ='MFIS ProjectA'!S33 -> 2017 | T33: =SUM('MFIS ProjectA:MFIS ProjectF'!T33) -> 0 | U33: =SUM('MFIS ProjectA:MFIS ProjectF'!U33) -> 1533 | V33: ='MFIS ProjectA'!V33 -> 2016 | W33: =SUM('MFIS ProjectA:MFIS ProjectF'!W33) -> 0 | X33: =SUM('MFIS ProjectA:MFIS ProjectF'!X33) -> 1533 | Y33: ='MFIS ProjectA'!Y33 -> 2015 | Z33: =SUM('MFIS ProjectA:MFIS ProjectF'!Z33) -> 0 | AA33: =SUM('MFIS ProjectA:MFIS ProjectF'!AA33) -> -3002 | AD33: =SUM(AD30:AD32) -> 6379 | AE33: =SUM(AE30:AE32) -> 28382 | AF33: =SUM(AF30:AF32) -> 7423 | AG33: 0 | AH33: 0 | AI33: 0 | BA33: 34 | BB33: NEW HAMPSHIRE | BC33: NH
P34: 33. Ending Cash Bal (30+31+32) | Q34: ='MFIS ProjectA'!Q34 -> 2018 | R34: =SUM('MFIS ProjectA:MFIS ProjectF'!R34) -> 60859 | S34: ='MFIS ProjectA'!S34 -> 2017 | T34: =SUM('MFIS ProjectA:MFIS ProjectF'!T34) -> 50868 | U34: =SUM('MFIS ProjectA:MFIS ProjectF'!U34) -> 59768 | V34: ='MFIS ProjectA'!V34 -> 2016 | W34: =SUM('MFIS ProjectA:MFIS ProjectF'!W34) -> 49536 | X34: =SUM('MFIS ProjectA:MFIS ProjectF'!X34) -> 59768 | Y34: ='MFIS ProjectA'!Y34 -> 2015 | Z34: =SUM('MFIS ProjectA:MFIS ProjectF'!Z34) -> 61309 | AA34: =SUM('MFIS ProjectA:MFIS ProjectF'!AA34) -> 42036 | AG34: 0 | AH34: 0 | AI34: 0 | BA34: 35 | BB34: NEW JERSEY | BC34: NJ
P35: 1. Maint. @ Repairs Payroll | Q35: ='MFIS ProjectA'!Q35 -> 2018 | R35: =SUM('MFIS ProjectA:MFIS ProjectF'!R35) -> 25552 | S35: ='MFIS ProjectA'!S35 -> 2017 | T35: =SUM('MFIS ProjectA:MFIS ProjectF'!T35) -> 19800 | U35: =SUM('MFIS ProjectA:MFIS ProjectF'!U35) -> 18683 | V35: ='MFIS ProjectA'!V35 -> 2016 | W35: =SUM('MFIS ProjectA:MFIS ProjectF'!W35) -> 19800 | X35: =SUM('MFIS ProjectA:MFIS ProjectF'!X35) -> 18683 | Y35: ='MFIS ProjectA'!Y35 -> 2015 | Z35: =SUM('MFIS ProjectA:MFIS ProjectF'!Z35) -> 19760 | AA35: =SUM('MFIS ProjectA:MFIS ProjectF'!AA35) -> 20521 | AD35: =AD28+AD33 -> 258582 | AE35: =AE28+AE33 -> 284221 | AF35: =AF28+AF33 -> 257748.3333 | AG35: 0 | AH35: 193.3333333 | AI35: 200 | BA35: 36 | BB35: NEW MEXICO | BC35: NM
P36: 2. Maint. @ Repairs Supply | Q36: ='MFIS ProjectA'!Q36 -> 2018 | R36: =SUM('MFIS ProjectA:MFIS ProjectF'!R36) -> 12500 | S36: ='MFIS ProjectA'!S36 -> 2017 | T36: =SUM('MFIS ProjectA:MFIS ProjectF'!T36) -> 9500 | U36: =SUM('MFIS ProjectA:MFIS ProjectF'!U36) -> 14654 | V36: ='MFIS ProjectA'!V36 -> 2016 | W36: =SUM('MFIS ProjectA:MFIS ProjectF'!W36) -> 9500 | X36: =SUM('MFIS ProjectA:MFIS ProjectF'!X36) -> 14654 | Y36: ='MFIS ProjectA'!Y36 -> 2015 | Z36: =SUM('MFIS ProjectA:MFIS ProjectF'!Z36) -> 9500 | AA36: =SUM('MFIS ProjectA:MFIS ProjectF'!AA36) -> 15466 | AG36: =SUM(AG22:AG35) -> 64950 | AH36: =SUM(AH22:AH35) -> 60658 | AI36: =SUM(AI22:AI35) -> 60121 | BA36: 37 | BB36: NEW YORK | BC36: NY
P37: 3. Maint. @ Repairs Contract | Q37: ='MFIS ProjectA'!Q37 -> 2018 | R37: =SUM('MFIS ProjectA:MFIS ProjectF'!R37) -> 6500 | S37: ='MFIS ProjectA'!S37 -> 2017 | T37: =SUM('MFIS ProjectA:MFIS ProjectF'!T37) -> 6500 | U37: =SUM('MFIS ProjectA:MFIS ProjectF'!U37) -> 8323 | V37: ='MFIS ProjectA'!V37 -> 2016 | W37: =SUM('MFIS ProjectA:MFIS ProjectF'!W37) -> 6500 | X37: =SUM('MFIS ProjectA:MFIS ProjectF'!X37) -> 8323 | Y37: ='MFIS ProjectA'!Y37 -> 2015 | Z37: =SUM('MFIS ProjectA:MFIS ProjectF'!Z37) -> 5400 | AA37: =SUM('MFIS ProjectA:MFIS ProjectF'!AA37) -> 12699 | AD37: =AD18-AD35 -> -1617 | AE37: =AE18-AE35 -> 1007 | AF37: =AF18-AF35 -> -2364.333333 | BA37: 38 | BB37: NORTH CAROLINA | BC37: NC
P38: 4. Painting | Q38: ='MFIS ProjectA'!Q38 -> 2018 | R38: =SUM('MFIS ProjectA:MFIS ProjectF'!R38) -> 1000 | S38: ='MFIS ProjectA'!S38 -> 2017 | T38: =SUM('MFIS ProjectA:MFIS ProjectF'!T38) -> 1000 | U38: =SUM('MFIS ProjectA:MFIS ProjectF'!U38) -> 3566 | V38: ='MFIS ProjectA'!V38 -> 2016 | W38: =SUM('MFIS ProjectA:MFIS ProjectF'!W38) -> 1000 | X38: =SUM('MFIS ProjectA:MFIS ProjectF'!X38) -> 3566 | Y38: ='MFIS ProjectA'!Y38 -> 2015 | Z38: =SUM('MFIS ProjectA:MFIS ProjectF'!Z38) -> 1200 | AA38: =SUM('MFIS ProjectA:MFIS ProjectF'!AA38) -> 2908 | AG38: =R68 -> 21200 | AH38: =IF(U68<1,AVERAGE(X68,AA68),AVERAGE(U68,X68,AA68)) -> 20126 | AI38: =IF($U$2>1,U68,X68) -> 20400 | BA38: 39 | BB38: NORTH CAROLINA | BC38: NC
P39: 5. Snow Removal | Q39: ='MFIS ProjectA'!Q39 -> 2018 | R39: =SUM('MFIS ProjectA:MFIS ProjectF'!R39) -> 0 | S39: ='MFIS ProjectA'!S39 -> 2017 | T39: =SUM('MFIS ProjectA:MFIS ProjectF'!T39) -> 0 | U39: =SUM('MFIS ProjectA:MFIS ProjectF'!U39) -> 0 | V39: ='MFIS ProjectA'!V39 -> 2016 | W39: =SUM('MFIS ProjectA:MFIS ProjectF'!W39) -> 0 | X39: =SUM('MFIS ProjectA:MFIS ProjectF'!X39) -> 0 | Y39: ='MFIS ProjectA'!Y39 -> 2015 | Z39: =SUM('MFIS ProjectA:MFIS ProjectF'!Z39) -> 0 | AA39: =SUM('MFIS ProjectA:MFIS ProjectF'!AA39) -> 0 | AD39: =IF($U$2>2,U32,X32) -> 59852 | AE39: =R32 -> 59852 | AF39: =IF(U32<1, AVERAGE(X32,AA32),AVERAGE(U32,X32,AA32)) -> 56205.33333 | AG39: 0 | AH39: 0 | AI39: 0 | BA39: 40 | BB39: NORTH DAKOTA | BC39: ND
P40: 6. Elevator Maint./Contract | Q40: ='MFIS ProjectA'!Q40 -> 2018 | R40: =SUM('MFIS ProjectA:MFIS ProjectF'!R40) -> 0 | S40: ='MFIS ProjectA'!S40 -> 2017 | T40: =SUM('MFIS ProjectA:MFIS ProjectF'!T40) -> 0 | U40: =SUM('MFIS ProjectA:MFIS ProjectF'!U40) -> 0 | V40: ='MFIS ProjectA'!V40 -> 2016 | W40: =SUM('MFIS ProjectA:MFIS ProjectF'!W40) -> 0 | X40: =SUM('MFIS ProjectA:MFIS ProjectF'!X40) -> 0 | Y40: ='MFIS ProjectA'!Y40 -> 2015 | Z40: =SUM('MFIS ProjectA:MFIS ProjectF'!Z40) -> 0 | AA40: =SUM('MFIS ProjectA:MFIS ProjectF'!AA40) -> 0 | AD40: =IF($U$2>2,U33,X33) -> 1533 | AF40: =IF(U33<1, AVERAGE(X33,AA33),AVERAGE(U33,X33,AA33)) -> 21.33333333 | AG40: 600 | AH40: 600 | AI40: 600 | BA40: 41 | BB40: OHIO | BC40: OH
P41: 7. Grounds | Q41: ='MFIS ProjectA'!Q41 -> 2018 | R41: =SUM('MFIS ProjectA:MFIS ProjectF'!R41) -> 7500 | S41: ='MFIS ProjectA'!S41 -> 2017 | T41: =SUM('MFIS ProjectA:MFIS ProjectF'!T41) -> 6500 | U41: =SUM('MFIS ProjectA:MFIS ProjectF'!U41) -> 7431 | V41: ='MFIS ProjectA'!V41 -> 2016 | W41: =SUM('MFIS ProjectA:MFIS ProjectF'!W41) -> 6500 | X41: =SUM('MFIS ProjectA:MFIS ProjectF'!X41) -> 7431 | Y41: ='MFIS ProjectA'!Y41 -> 2015 | Z41: =SUM('MFIS ProjectA:MFIS ProjectF'!Z41) -> 6500 | AA41: =SUM('MFIS ProjectA:MFIS ProjectF'!AA41) -> 5543 | AD41: =IF($U$2>2,U34,X34) -> 59768 | AE41: =R34 -> 60859 | AF41: =IF(MFIS!U34<1, AVERAGE(MFIS!X34,MFIS!AA34),AVERAGE(MFIS!U34,MFIS!X34,MFIS!AA34)) -> 53857.33333 | AG41: 9900 | AH41: 9883 | AI41: 9381 | BA41: 42 | BB41: OKLAHOMA | BC41: OK
P42: 8. Services | Q42: ='MFIS ProjectA'!Q42 -> 2018 | R42: =SUM('MFIS ProjectA:MFIS ProjectF'!R42) -> 0 | S42: ='MFIS ProjectA'!S42 -> 2017 | T42: =SUM('MFIS ProjectA:MFIS ProjectF'!T42) -> 0 | U42: =SUM('MFIS ProjectA:MFIS ProjectF'!U42) -> 0 | V42: ='MFIS ProjectA'!V42 -> 2016 | W42: =SUM('MFIS ProjectA:MFIS ProjectF'!W42) -> 0 | X42: =SUM('MFIS ProjectA:MFIS ProjectF'!X42) -> 0 | Y42: ='MFIS ProjectA'!Y42 -> 2015 | Z42: =SUM('MFIS ProjectA:MFIS ProjectF'!Z42) -> 0 | AA42: =SUM('MFIS ProjectA:MFIS ProjectF'!AA42) -> 0 | AG42: 40 | AH42: 15.5 | AI42: 0 | BA42: 43 | BB42: OREGON | BC42: OR
P43: 9. Cptl Bgt(Part V operating) | Q43: ='MFIS ProjectA'!Q43 -> 2018 | R43: =SUM('MFIS ProjectA:MFIS ProjectF'!R43) -> 3782 | S43: ='MFIS ProjectA'!S43 -> 2017 | T43: =SUM('MFIS ProjectA:MFIS ProjectF'!T43) -> 7928 | U43: =SUM('MFIS ProjectA:MFIS ProjectF'!U43) -> 10157 | V43: ='MFIS ProjectA'!V43 -> 2016 | W43: =SUM('MFIS ProjectA:MFIS ProjectF'!W43) -> 7928 | X43: =SUM('MFIS ProjectA:MFIS ProjectF'!X43) -> 10157 | Y43: ='MFIS ProjectA'!Y43 -> 2015 | Z43: =SUM('MFIS ProjectA:MFIS ProjectF'!Z43) -> 0 | AA43: =SUM('MFIS ProjectA:MFIS ProjectF'!AA43) -> 3185 | AG43: 0 | AH43: 0 | AI43: 0 | BA43: 44 | BB43: PENNSYLVANIA | BC43: PA
P44: 10. Other Operating Expenses | Q44: ='MFIS ProjectA'!Q44 -> 2018 | R44: =SUM('MFIS ProjectA:MFIS ProjectF'!R44) -> 0 | S44: ='MFIS ProjectA'!S44 -> 2017 | T44: =SUM('MFIS ProjectA:MFIS ProjectF'!T44) -> 0 | U44: =SUM('MFIS ProjectA:MFIS ProjectF'!U44) -> 0 | V44: ='MFIS ProjectA'!V44 -> 2016 | W44: =SUM('MFIS ProjectA:MFIS ProjectF'!W44) -> 0 | X44: =SUM('MFIS ProjectA:MFIS ProjectF'!X44) -> 0 | Y44: ='MFIS ProjectA'!Y44 -> 2015 | Z44: =SUM('MFIS ProjectA:MFIS ProjectF'!Z44) -> 0 | AA44: =SUM('MFIS ProjectA:MFIS ProjectF'!AA44) -> 0 | AG44: =SUM(AG38:AG43) -> 31740 | AH44: =SUM(AH38:AH43) -> 30624.5 | AI44: =SUM(AI38:AI43) -> 30381 | BA44: 45 | BB44: RHODE ISLAND | BC44: RI
P45: 11. Sub-Ttl O@M (1 thru 10) | Q45: ='MFIS ProjectA'!Q45 -> 2018 | R45: =SUM('MFIS ProjectA:MFIS ProjectF'!R45) -> 56834 | S45: ='MFIS ProjectA'!S45 -> 2017 | T45: =SUM('MFIS ProjectA:MFIS ProjectF'!T45) -> 51228 | U45: =SUM('MFIS ProjectA:MFIS ProjectF'!U45) -> 62814 | V45: ='MFIS ProjectA'!V45 -> 2016 | W45: =SUM('MFIS ProjectA:MFIS ProjectF'!W45) -> 51228 | X45: =SUM('MFIS ProjectA:MFIS ProjectF'!X45) -> 62814 | Y45: ='MFIS ProjectA'!Y45 -> 2015 | Z45: =SUM('MFIS ProjectA:MFIS ProjectF'!Z45) -> 42360 | AA45: =SUM('MFIS ProjectA:MFIS ProjectF'!AA45) -> 60322 | BA45: 46 | BB45: SOUTH CAROLINA | BC45: SC
P46: 12. Electricity | Q46: ='MFIS ProjectA'!Q46 -> 2018 | R46: =SUM('MFIS ProjectA:MFIS ProjectF'!R46) -> 5700 | S46: ='MFIS ProjectA'!S46 -> 2017 | T46: =SUM('MFIS ProjectA:MFIS ProjectF'!T46) -> 6100 | U46: =SUM('MFIS ProjectA:MFIS ProjectF'!U46) -> 4915 | V46: ='MFIS ProjectA'!V46 -> 2016 | W46: =SUM('MFIS ProjectA:MFIS ProjectF'!W46) -> 6100 | X46: =SUM('MFIS ProjectA:MFIS ProjectF'!X46) -> 4915 | Y46: ='MFIS ProjectA'!Y46 -> 2015 | Z46: =SUM('MFIS ProjectA:MFIS ProjectF'!Z46) -> 6400 | AA46: =SUM('MFIS ProjectA:MFIS ProjectF'!AA46) -> 5657 | AG46: =SUM(AG12,AG20,AG36,AG44) -> 204724 | AH46: =SUM(AH12,AH20,AH36,AH44) -> 200362.8333 | AI46: =SUM(AI12,AI20,AI36,AI44) -> 201072 | BA46: 47 | BB46: SOUTH DAKOTA | BC46: SD
P47: 13. Water | Q47: ='MFIS ProjectA'!Q47 -> 2018 | R47: =SUM('MFIS ProjectA:MFIS ProjectF'!R47) -> 21000 | S47: ='MFIS ProjectA'!S47 -> 2017 | T47: =SUM('MFIS ProjectA:MFIS ProjectF'!T47) -> 21000 | U47: =SUM('MFIS ProjectA:MFIS ProjectF'!U47) -> 19685 | V47: ='MFIS ProjectA'!V47 -> 2016 | W47: =SUM('MFIS ProjectA:MFIS ProjectF'!W47) -> 21000 | X47: =SUM('MFIS ProjectA:MFIS ProjectF'!X47) -> 19685 | Y47: ='MFIS ProjectA'!Y47 -> 2015 | Z47: =SUM('MFIS ProjectA:MFIS ProjectF'!Z47) -> 21000 | AA47: =SUM('MFIS ProjectA:MFIS ProjectF'!AA47) -> 18271 | BA47: 48 | BB47: TENNESSEE | BC47: TN
P48: 14. Sewer | Q48: ='MFIS ProjectA'!Q48 -> 2018 | R48: =SUM('MFIS ProjectA:MFIS ProjectF'!R48) -> 9400 | S48: ='MFIS ProjectA'!S48 -> 2017 | T48: =SUM('MFIS ProjectA:MFIS ProjectF'!T48) -> 9400 | U48: =SUM('MFIS ProjectA:MFIS ProjectF'!U48) -> 9517 | V48: ='MFIS ProjectA'!V48 -> 2016 | W48: =SUM('MFIS ProjectA:MFIS ProjectF'!W48) -> 9400 | X48: =SUM('MFIS ProjectA:MFIS ProjectF'!X48) -> 9517 | Y48: ='MFIS ProjectA'!Y48 -> 2015 | Z48: =SUM('MFIS ProjectA:MFIS ProjectF'!Z48) -> 9400 | AA48: =SUM('MFIS ProjectA:MFIS ProjectF'!AA48) -> 8078 | BA48: 49 | BB48: TEXAS | BC48: TX
P49: 15. Fuel (Oil/Coal/Gas) | Q49: ='MFIS ProjectA'!Q49 -> 2018 | R49: =SUM('MFIS ProjectA:MFIS ProjectF'!R49) -> 6200 | S49: ='MFIS ProjectA'!S49 -> 2017 | T49: =SUM('MFIS ProjectA:MFIS ProjectF'!T49) -> 7800 | U49: =SUM('MFIS ProjectA:MFIS ProjectF'!U49) -> 5375 | V49: ='MFIS ProjectA'!V49 -> 2016 | W49: =SUM('MFIS ProjectA:MFIS ProjectF'!W49) -> 7800 | X49: =SUM('MFIS ProjectA:MFIS ProjectF'!X49) -> 5375 | Y49: ='MFIS ProjectA'!Y49 -> 2015 | Z49: =SUM('MFIS ProjectA:MFIS ProjectF'!Z49) -> 7800 | AA49: =SUM('MFIS ProjectA:MFIS ProjectF'!AA49) -> 4997 | BA49: 50 | BB49: TEXAS | BC49: TX
P50: 16. Garbage @ Trash Removal | Q50: ='MFIS ProjectA'!Q50 -> 2018 | R50: =SUM('MFIS ProjectA:MFIS ProjectF'!R50) -> 8900 | S50: ='MFIS ProjectA'!S50 -> 2017 | T50: =SUM('MFIS ProjectA:MFIS ProjectF'!T50) -> 9300 | U50: =SUM('MFIS ProjectA:MFIS ProjectF'!U50) -> 8264 | V50: ='MFIS ProjectA'!V50 -> 2016 | W50: =SUM('MFIS ProjectA:MFIS ProjectF'!W50) -> 9300 | X50: =SUM('MFIS ProjectA:MFIS ProjectF'!X50) -> 8264 | Y50: ='MFIS ProjectA'!Y50 -> 2015 | Z50: =SUM('MFIS ProjectA:MFIS ProjectF'!Z50) -> 9300 | AA50: =SUM('MFIS ProjectA:MFIS ProjectF'!AA50) -> 8776 | BA50: 51 | BB50: TEXAS | BC50: TX
P51: 17. Other Utilities | Q51: ='MFIS ProjectA'!Q51 -> 2018 | R51: =SUM('MFIS ProjectA:MFIS ProjectF'!R51) -> 0 | S51: ='MFIS ProjectA'!S51 -> 2017 | T51: =SUM('MFIS ProjectA:MFIS ProjectF'!T51) -> 0 | U51: =SUM('MFIS ProjectA:MFIS ProjectF'!U51) -> 0 | V51: ='MFIS ProjectA'!V51 -> 2016 | W51: =SUM('MFIS ProjectA:MFIS ProjectF'!W51) -> 0 | X51: =SUM('MFIS ProjectA:MFIS ProjectF'!X51) -> 0 | Y51: ='MFIS ProjectA'!Y51 -> 2015 | Z51: =SUM('MFIS ProjectA:MFIS ProjectF'!Z51) -> 0 | AA51: =SUM('MFIS ProjectA:MFIS ProjectF'!AA51) -> 0 | BA51: 52 | BB51: UTAH | BC51: UT
P52: 18. Sub-Ttl Util. (12 thru 17) | Q52: ='MFIS ProjectA'!Q52 -> 2018 | R52: =SUM('MFIS ProjectA:MFIS ProjectF'!R52) -> 51200 | S52: ='MFIS ProjectA'!S52 -> 2017 | T52: =SUM('MFIS ProjectA:MFIS ProjectF'!T52) -> 53600 | U52: =SUM('MFIS ProjectA:MFIS ProjectF'!U52) -> 47756 | V52: ='MFIS ProjectA'!V52 -> 2016 | W52: =SUM('MFIS ProjectA:MFIS ProjectF'!W52) -> 53600 | X52: =SUM('MFIS ProjectA:MFIS ProjectF'!X52) -> 47756 | Y52: ='MFIS ProjectA'!Y52 -> 2015 | Z52: =SUM('MFIS ProjectA:MFIS ProjectF'!Z52) -> 53900 | AA52: =SUM('MFIS ProjectA:MFIS ProjectF'!AA52) -> 45779 | BA52: 53 | BB52: VERMONT | BC52: VT
P53: 19. Site Management Payroll | Q53: ='MFIS ProjectA'!Q53 -> 2018 | R53: =SUM('MFIS ProjectA:MFIS ProjectF'!R53) -> 20200 | S53: ='MFIS ProjectA'!S53 -> 2017 | T53: =SUM('MFIS ProjectA:MFIS ProjectF'!T53) -> 20200 | U53: =SUM('MFIS ProjectA:MFIS ProjectF'!U53) -> 19539 | V53: ='MFIS ProjectA'!V53 -> 2016 | W53: =SUM('MFIS ProjectA:MFIS ProjectF'!W53) -> 20200 | X53: =SUM('MFIS ProjectA:MFIS ProjectF'!X53) -> 19539 | Y53: ='MFIS ProjectA'!Y53 -> 2015 | Z53: =SUM('MFIS ProjectA:MFIS ProjectF'!Z53) -> 21143 | AA53: =SUM('MFIS ProjectA:MFIS ProjectF'!AA53) -> 19795 | BA53: 54 | BB53: VIRGINIA | BC53: VA
P54: 20. Management Fee | Q54: ='MFIS ProjectA'!Q54 -> 2018 | R54: =SUM('MFIS ProjectA:MFIS ProjectF'!R54) -> 28080 | S54: ='MFIS ProjectA'!S54 -> 2017 | T54: =SUM('MFIS ProjectA:MFIS ProjectF'!T54) -> 27144 | U54: =SUM('MFIS ProjectA:MFIS ProjectF'!U54) -> 26560 | V54: ='MFIS ProjectA'!V54 -> 2016 | W54: =SUM('MFIS ProjectA:MFIS ProjectF'!W54) -> 27144 | X54: =SUM('MFIS ProjectA:MFIS ProjectF'!X54) -> 26560 | Y54: ='MFIS ProjectA'!Y54 -> 2015 | Z54: =SUM('MFIS ProjectA:MFIS ProjectF'!Z54) -> 27360 | AA54: =SUM('MFIS ProjectA:MFIS ProjectF'!AA54) -> 25593 | BA54: 55 | BB54: VIRGINIA | BC54: VA
P55: 21. Project Auditing Expense | Q55: ='MFIS ProjectA'!Q55 -> 2018 | R55: =SUM('MFIS ProjectA:MFIS ProjectF'!R55) -> 5200 | S55: ='MFIS ProjectA'!S55 -> 2017 | T55: =SUM('MFIS ProjectA:MFIS ProjectF'!T55) -> 3700 | U55: =SUM('MFIS ProjectA:MFIS ProjectF'!U55) -> 1750 | V55: ='MFIS ProjectA'!V55 -> 2016 | W55: =SUM('MFIS ProjectA:MFIS ProjectF'!W55) -> 3700 | X55: =SUM('MFIS ProjectA:MFIS ProjectF'!X55) -> 1750 | Y55: ='MFIS ProjectA'!Y55 -> 2015 | Z55: =SUM('MFIS ProjectA:MFIS ProjectF'!Z55) -> 4100 | AA55: =SUM('MFIS ProjectA:MFIS ProjectF'!AA55) -> 4200 | BA55: 56 | BB55: WASHINGTON | BC55: WA
P56: 22. Proj. Bookkeeping/Accnting | Q56: ='MFIS ProjectA'!Q56 -> 2018 | R56: =SUM('MFIS ProjectA:MFIS ProjectF'!R56) -> 0 | S56: ='MFIS ProjectA'!S56 -> 2017 | T56: =SUM('MFIS ProjectA:MFIS ProjectF'!T56) -> 0 | U56: =SUM('MFIS ProjectA:MFIS ProjectF'!U56) -> 0 | V56: ='MFIS ProjectA'!V56 -> 2016 | W56: =SUM('MFIS ProjectA:MFIS ProjectF'!W56) -> 0 | X56: =SUM('MFIS ProjectA:MFIS ProjectF'!X56) -> 0 | Y56: ='MFIS ProjectA'!Y56 -> 2015 | Z56: =SUM('MFIS ProjectA:MFIS ProjectF'!Z56) -> 0 | AA56: =SUM('MFIS ProjectA:MFIS ProjectF'!AA56) -> 0 | BA56: 57 | BB56: WEST VIRGINIA | BC56: WV
P57: 23. Legal Expenses | Q57: ='MFIS ProjectA'!Q57 -> 2018 | R57: =SUM('MFIS ProjectA:MFIS ProjectF'!R57) -> 1000 | S57: ='MFIS ProjectA'!S57 -> 2017 | T57: =SUM('MFIS ProjectA:MFIS ProjectF'!T57) -> 500 | U57: =SUM('MFIS ProjectA:MFIS ProjectF'!U57) -> 2061 | V57: ='MFIS ProjectA'!V57 -> 2016 | W57: =SUM('MFIS ProjectA:MFIS ProjectF'!W57) -> 500 | X57: =SUM('MFIS ProjectA:MFIS ProjectF'!X57) -> 2061 | Y57: ='MFIS ProjectA'!Y57 -> 2015 | Z57: =SUM('MFIS ProjectA:MFIS ProjectF'!Z57) -> 850 | AA57: =SUM('MFIS ProjectA:MFIS ProjectF'!AA57) -> 2517 | BA57: 58 | BB57: WISCONSIN | BC57: WI
P58: 24. Advertising | Q58: ='MFIS ProjectA'!Q58 -> 2018 | R58: =SUM('MFIS ProjectA:MFIS ProjectF'!R58) -> 600 | S58: ='MFIS ProjectA'!S58 -> 2017 | T58: =SUM('MFIS ProjectA:MFIS ProjectF'!T58) -> 300 | U58: =SUM('MFIS ProjectA:MFIS ProjectF'!U58) -> 400 | V58: ='MFIS ProjectA'!V58 -> 2016 | W58: =SUM('MFIS ProjectA:MFIS ProjectF'!W58) -> 300 | X58: =SUM('MFIS ProjectA:MFIS ProjectF'!X58) -> 400 | Y58: ='MFIS ProjectA'!Y58 -> 2015 | Z58: =SUM('MFIS ProjectA:MFIS ProjectF'!Z58) -> 300 | AA58: =SUM('MFIS ProjectA:MFIS ProjectF'!AA58) -> 225 | BA58: 59 | BB58: WYOMING | BC58: WY
P59: 25. Phone @ Answering Service | Q59: ='MFIS ProjectA'!Q59 -> 2018 | R59: =SUM('MFIS ProjectA:MFIS ProjectF'!R59) -> 1820 | S59: ='MFIS ProjectA'!S59 -> 2017 | T59: =SUM('MFIS ProjectA:MFIS ProjectF'!T59) -> 1600 | U59: =SUM('MFIS ProjectA:MFIS ProjectF'!U59) -> 1824 | V59: ='MFIS ProjectA'!V59 -> 2016 | W59: =SUM('MFIS ProjectA:MFIS ProjectF'!W59) -> 1600 | X59: =SUM('MFIS ProjectA:MFIS ProjectF'!X59) -> 1824 | Y59: ='MFIS ProjectA'!Y59 -> 2015 | Z59: =SUM('MFIS ProjectA:MFIS ProjectF'!Z59) -> 1600 | AA59: =SUM('MFIS ProjectA:MFIS ProjectF'!AA59) -> 1602 | BA59: 60 | BB59: ALASKA | BC59: AL
P60: 26. Office Supplies | Q60: ='MFIS ProjectA'!Q60 -> 2018 | R60: =SUM('MFIS ProjectA:MFIS ProjectF'!R60) -> 1800 | S60: ='MFIS ProjectA'!S60 -> 2017 | T60: =SUM('MFIS ProjectA:MFIS ProjectF'!T60) -> 1800 | U60: =SUM('MFIS ProjectA:MFIS ProjectF'!U60) -> 2703 | V60: ='MFIS ProjectA'!V60 -> 2016 | W60: =SUM('MFIS ProjectA:MFIS ProjectF'!W60) -> 1800 | X60: =SUM('MFIS ProjectA:MFIS ProjectF'!X60) -> 2703 | Y60: ='MFIS ProjectA'!Y60 -> 2015 | Z60: =SUM('MFIS ProjectA:MFIS ProjectF'!Z60) -> 1800 | AA60: =SUM('MFIS ProjectA:MFIS ProjectF'!AA60) -> 3264 | BA60: 61 | BB60: HAWAII | BC60: HI
P61: 27. Office Furniture @ Equip. | Q61: ='MFIS ProjectA'!Q61 -> 2018 | R61: =SUM('MFIS ProjectA:MFIS ProjectF'!R61) -> 0 | S61: ='MFIS ProjectA'!S61 -> 2017 | T61: =SUM('MFIS ProjectA:MFIS ProjectF'!T61) -> 0 | U61: =SUM('MFIS ProjectA:MFIS ProjectF'!U61) -> 0 | V61: ='MFIS ProjectA'!V61 -> 2016 | W61: =SUM('MFIS ProjectA:MFIS ProjectF'!W61) -> 0 | X61: =SUM('MFIS ProjectA:MFIS ProjectF'!X61) -> 0 | Y61: ='MFIS ProjectA'!Y61 -> 2015 | Z61: =SUM('MFIS ProjectA:MFIS ProjectF'!Z61) -> 0 | AA61: =SUM('MFIS ProjectA:MFIS ProjectF'!AA61) -> 0 | BA61: 62 | BB61: GUAM | BC61: GM
P62: 28. Training Expense | Q62: ='MFIS ProjectA'!Q62 -> 2018 | R62: =SUM('MFIS ProjectA:MFIS ProjectF'!R62) -> 1000 | S62: ='MFIS ProjectA'!S62 -> 2017 | T62: =SUM('MFIS ProjectA:MFIS ProjectF'!T62) -> 1000 | U62: =SUM('MFIS ProjectA:MFIS ProjectF'!U62) -> 1098 | V62: ='MFIS ProjectA'!V62 -> 2016 | W62: =SUM('MFIS ProjectA:MFIS ProjectF'!W62) -> 1000 | X62: =SUM('MFIS ProjectA:MFIS ProjectF'!X62) -> 1098 | Y62: ='MFIS ProjectA'!Y62 -> 2015 | Z62: =SUM('MFIS ProjectA:MFIS ProjectF'!Z62) -> 600 | AA62: =SUM('MFIS ProjectA:MFIS ProjectF'!AA62) -> 1356 | BA62: 63 | BB62: PUERTO RICO | BC62: PR
P63: 29. Hlth Ins. @ Other Benefits | Q63: ='MFIS ProjectA'!Q63 -> 2018 | R63: =SUM('MFIS ProjectA:MFIS ProjectF'!R63) -> 5250 | S63: ='MFIS ProjectA'!S63 -> 2017 | T63: =SUM('MFIS ProjectA:MFIS ProjectF'!T63) -> 4000 | U63: =SUM('MFIS ProjectA:MFIS ProjectF'!U63) -> 3986 | V63: ='MFIS ProjectA'!V63 -> 2016 | W63: =SUM('MFIS ProjectA:MFIS ProjectF'!W63) -> 4000 | X63: =SUM('MFIS ProjectA:MFIS ProjectF'!X63) -> 3986 | Y63: ='MFIS ProjectA'!Y63 -> 2015 | Z63: =SUM('MFIS ProjectA:MFIS ProjectF'!Z63) -> 4000 | AA63: =SUM('MFIS ProjectA:MFIS ProjectF'!AA63) -> 3000 | BA63: 64 | BB63: VIRGIN ISLANDS | BC63: VI
P64: 30. Payroll Taxes | Q64: ='MFIS ProjectA'!Q64 -> 2018 | R64: =SUM('MFIS ProjectA:MFIS ProjectF'!R64) -> 0 | S64: ='MFIS ProjectA'!S64 -> 2017 | T64: =SUM('MFIS ProjectA:MFIS ProjectF'!T64) -> 0 | U64: =SUM('MFIS ProjectA:MFIS ProjectF'!U64) -> 0 | V64: ='MFIS ProjectA'!V64 -> 2016 | W64: =SUM('MFIS ProjectA:MFIS ProjectF'!W64) -> 0 | X64: =SUM('MFIS ProjectA:MFIS ProjectF'!X64) -> 0 | Y64: ='MFIS ProjectA'!Y64 -> 2015 | Z64: =SUM('MFIS ProjectA:MFIS ProjectF'!Z64) -> 0 | AA64: =SUM('MFIS ProjectA:MFIS ProjectF'!AA64) -> 0
P65: 31. Workmans Compensation | Q65: ='MFIS ProjectA'!Q65 -> 2018 | R65: =SUM('MFIS ProjectA:MFIS ProjectF'!R65) -> 0 | S65: ='MFIS ProjectA'!S65 -> 2017 | T65: =SUM('MFIS ProjectA:MFIS ProjectF'!T65) -> 0 | U65: =SUM('MFIS ProjectA:MFIS ProjectF'!U65) -> 0 | V65: ='MFIS ProjectA'!V65 -> 2016 | W65: =SUM('MFIS ProjectA:MFIS ProjectF'!W65) -> 0 | X65: =SUM('MFIS ProjectA:MFIS ProjectF'!X65) -> 0 | Y65: ='MFIS ProjectA'!Y65 -> 2015 | Z65: =SUM('MFIS ProjectA:MFIS ProjectF'!Z65) -> 0 | AA65: =SUM('MFIS ProjectA:MFIS ProjectF'!AA65) -> 0
P66: 32. Other Admin.Expenses | Q66: ='MFIS ProjectA'!Q66 -> 2018 | R66: =SUM('MFIS ProjectA:MFIS ProjectF'!R66) -> 0 | S66: ='MFIS ProjectA'!S66 -> 2017 | T66: =SUM('MFIS ProjectA:MFIS ProjectF'!T66) -> 100 | U66: =SUM('MFIS ProjectA:MFIS ProjectF'!U66) -> 200 | V66: ='MFIS ProjectA'!V66 -> 2016 | W66: =SUM('MFIS ProjectA:MFIS ProjectF'!W66) -> 100 | X66: =SUM('MFIS ProjectA:MFIS ProjectF'!X66) -> 200 | Y66: ='MFIS ProjectA'!Y66 -> 2015 | Z66: =SUM('MFIS ProjectA:MFIS ProjectF'!Z66) -> 0 | AA66: =SUM('MFIS ProjectA:MFIS ProjectF'!AA66) -> 180
P67: 33. Sub-Ttl Admin (19 thru 32) | Q67: ='MFIS ProjectA'!Q67 -> 2018 | R67: =SUM('MFIS ProjectA:MFIS ProjectF'!R67) -> 64950 | S67: ='MFIS ProjectA'!S67 -> 2017 | T67: =SUM('MFIS ProjectA:MFIS ProjectF'!T67) -> 60344 | U67: =SUM('MFIS ProjectA:MFIS ProjectF'!U67) -> 60121 | V67: ='MFIS ProjectA'!V67 -> 2016 | W67: =SUM('MFIS ProjectA:MFIS ProjectF'!W67) -> 60344 | X67: =SUM('MFIS ProjectA:MFIS ProjectF'!X67) -> 60121 | Y67: ='MFIS ProjectA'!Y67 -> 2015 | Z67: =SUM('MFIS ProjectA:MFIS ProjectF'!Z67) -> 61753 | AA67: =SUM('MFIS ProjectA:MFIS ProjectF'!AA67) -> 61732
